Workbook

Sheet Процент
A1: 0

Sheet Шапка
A1: Карта заказа № | C1: 3/ЛИГА | E1: Менеджер | F1: Галлямова Венера | K1: Дата запуска | L1: НЕТ | M1: Срок изгот. (дни) | N1: 21 раб.день
E2: Компания | F2: МебельПлюс ООО | K2: Адрес доставки | M2: НЕТ
E3: Заказчик | F3: ИП Леман
E4: Способ доставки | F4: Самовывоз | K4: Сумма доставки | M4: НЕТ
E5: =IF(OR(--ISBLANK($C$1),(--ISBLANK($F$1)),(--ISBLANK($L$1)),(--ISBLANK($N$1)),(--ISBLANK($F$2)),(--ISBLANK($M$2)),(--ISBLANK($F$3)),(--ISBLANK($F$4)),(--ISBLANK($M$4)),(--ISBLANK($N$5)), (--ISBLANK($D$6)),(--ISBLANK($D$7)),(--ISBLANK($D$8)),(--ISBLANK($D$9)),(--ISBLANK($D$10)),(--ISBLANK($D$11)),(--ISBLANK($D$12)),(--ISBLANK($D$13)),(--ISBLANK($D$14)),(--ISBLANK($D$15)), (--ISBLANK($D$16)),(--ISBLANK($D$17)),(--ISBLANK($D$18)),(--ISBLANK($D$19)),(--ISBLANK($D$20)),(--ISBLANK($D$21)),(--ISBLANK($D$22)),(--ISBLANK($D$23)),(--ISBLANK($D$24)),(--ISBLANK($D$25)), (--ISBLANK($J$6)),(--ISBLANK($J$7)),(--ISBLANK($J$8)),(--ISBLANK($J$9)),(--ISBLANK($J$10)),(--ISBLANK($J$11)),(--ISBLANK($J$12)),(--ISBLANK($J$13)),(--ISBLANK($M$14)),(--ISBLANK($M$15)), (--ISBLANK($J$16)),(--ISBLANK($J$17)),(--ISBLANK($J$18)),(--ISBLANK($J$19)),(--ISBLANK($J$20)),(--ISBLANK($L$21)),(--ISBLANK($J$22)),(--ISBLANK($J$23)),(--ISBLANK($M$24)),(--ISBLANK($L$16)),(--ISBLANK($N$35)),(--ISBLANK($M$17)),(--ISBLANK($N$12)), ),"Все красные поля обязательны для заполнения!","") ->  | N5: ОПТ
A6: Корпус | B6: Шкафы | C6: Материал каркаса | D6: ЛДСП Выбеленное дерево | H6: Багет верхний | I6: Вид багета | J6: НЕТ | V6: багет | W6: =IF(AND($J$6="нет",$J$8="нет"),"пусто","печать") -> пусто
C7: Задняя стенка | D7: ХДФ Дуб рустикальный 3 мм | I7: Цвет/патина | J7: НЕТ
C8: Толщина кромки | D8: 2,0 мм | H8: Багет нижний | I8: Вид багета | J8: НЕТ | V8: пеать (багет, балюстрада, цоколь) | Y8: =IF(OR(W22="печать",W10="печать",W6="печать"),"печать","пусто") -> печать
B9: Тумбы | C9: Материал каркаса | D9: ЛДСП Выбеленное дерево | I9: Цвет/патина | J9: НЕТ
C10: Задняя стенка | D10: ХДФ Дуб рустикальный 3 мм | H10: Балюстрада | J10: НЕТ | V10: балюстрада | W10: =IF($J$10="нет","пусто","печать") -> пусто
C11: Толщина кромки | D11: 2,0 мм | H11: Козырек/менсола | J11: НЕТ | V11: менсола | W11: =IF($J$11="нет","пусто","печать") -> пусто
B12: Пеналы | C12: Материал каркаса | D12: НЕТ | H12: Стекло | J12: НЕТ | M12: Вид стекло-фасада | N12: НЕТ
C13: Задняя стенка | D13: НЕТ | H13: Мойка | J13: U-502/цвет 307 терракот | V13: пеать (столешница, отбортовка, стен панель, менсола, козырек, ) | Y13: =IF(OR(W14="печать",W20="печать",W18="печать",W11="печать"),"печать","пусто") -> печать
C14: Толщина кромки | D14: НЕТ | H14: Ручки | J14: Межцентровое расстояние | M14: 160 мм | V14: печать акрила | W14: =IF(OR(J16="нет",J16="Акрил"),"пусто","печать") -> печать
B15: Цветные открытые полки | D15: НЕТ | J15: Артикул | M15: Ручка рейлинг мебельная R-302
A16: Фасад | B16: Шкафы | C16: Коллекция | D16: Севилья кант ПВХ | H16: Столешница | J16: _38_мм_без_пф | L16: 4026 Аламбра | V16: акрил | Y16: =IF(OR($J$16="Акрил",$J$18="Акрил_",$J$20="Акрил_"),"печать","пусто") -> пусто
C17: =IF(OR($D16="Аликанте 16",$D16="Аликанте 19",$D16="Помпея 16",$D16="Помпея 19",$D16="Галисия",$D16="Барселона"),"Фрезеровка",IF(OR($D16="Севилья в ЦВЕТНОМ профиле",$D16="Севилья в Al профиле",$D16="Севилья кант ПВХ",$D16="Севилья ABS кант",$D16="Севилья 3D"),"Категория",IF(OR($D16="Валенсия",$D16="Толедо",$D16="Верде"),"Модель","НАПИСАТЬ - НЕТ"))) -> Категория | D17: категория 1 | J17: категория_2 | L17: Кромка | M17: 4026 Аламбра
C18: =IF(OR($D16="Аликанте 16",$D16="Аликанте 19"),"RAL",IF(OR($D16="Помпея 16",$D16="Помпея 19"),"Артикул пленки",IF(OR($D16="Севилья в Al профиле",$D16="Севилья в ЦВЕТНОМ профиле"),"Цвет профиля и Артикул пластика",IF(OR($D16="Севилья кант ПВХ",$D16="Севилья ABS кант",$D16="Севилья 3D"),"Артикул канта и Артикул пластика",IF($D16="Барселона","Шпон и RAL",IF($D16="Верде","Цвет ЛДСП",IF($D16="Валенсия","Цвет фасада",IF($D16="Толедо","Цвет фасада",IF($D16="Галисия","Цвет фасада","НАПИСАТЬ - НЕТ"))))))))) -> Артикул канта и Артикул пластика | D18: 587E Кр.22*1 PVC1134 Серебристый металлик /0675 LU Синий (глянец) PF | H18: Стеновая панель | J18: категория_2 | V18: стеновая | W18: =IF(OR(J18="нет",J18="Акрил_"),"пусто","печать") -> печать
B19: Тумбы | C19: Коллекция | D19: Севилья кант ПВХ | J19: 4026 Аламбра
C20: =IF(OR($D19="Аликанте 16",$D19="Аликанте 19",$D19="Помпея 16",$D19="Помпея 19",$D19="Галисия",$D19="Барселона"),"Фрезеровка",IF(OR($D19="Севилья в ЦВЕТНОМ профиле",$D19="Севилья в Al профиле",$D19="Севилья кант ПВХ",$D19="Севилья ABS кант",$D19="Севилья 3D"),"Категория",IF(OR($D19="Валенсия",$D19="Толедо",$D19="Верде"),"Модель","НАПИСАТЬ - НЕТ"))) -> Категория | D20: категория 1 | H20: Отбортовочный профиль | J20: Плинтус_№5 | L20: =IF(Шапка!J20=Стол!P4,"Заглушки_к_плинтусу_№1",IF(Шапка!J20=Стол!P5,"Заглушки_к_плинтусу_№2",IF(Шапка!J20=Стол!P6,"Заглушки_к_плинтусу_№3",IF(Шапка!J20=Стол!P7,"Заглушки_к_плинтусу_№4",IF(Шапка!J20=Стол!P8,"Заглушки_к_плинтусу_№5",IF(Шапка!J20=Стол!P10,"Радиус фаски","НЕТ")))))) -> Заглушки_к_плинтусу_№5 | N20: светло-коричневые | V20: отбортовка | W20: =IF(OR(J20="нет",J20="Акрил_"),"пусто","печать") -> печать
C21: =IF(OR($D19="Аликанте 16",$D19="Аликанте 19"),"RAL",IF(OR($D19="Помпея 16",$D19="Помпея 19"),"Артикул пленки",IF(OR($D19="Севилья в Al профиле",$D19="Севилья в ЦВЕТНОМ профиле"),"Цвет профиля и Артикул пластика",IF(OR($D19="Севилья кант ПВХ",$D19="Севилья ABS кант",$D19="Севилья 3D"),"Артикул канта и Артикул пластика",IF($D19="Барселона","Шпон и RAL",IF($D19="Верде","Цвет ЛДСП",IF($D19="Валенсия","Цвет фасада",IF($D19="Толедо","Цвет фасада",IF($D19="Галисия","Цвет фасада","НАПИСАТЬ - НЕТ"))))))))) -> Артикул канта и Артикул пластика | D21: 587E Кр.22*1 PVC1134 Серебристый металлик / 0675 LU Синий (глянец) PF | J21: =IF(J20="Акрил_","цвет бортика","цвет вставки") -> цвет вставки | L21: 619886 №5 Саломе бежевый
B22: Пеналы | C22: Коллекция | D22: НЕТ | H22: Цоколь | J22: СМ. ЭСКИЗ | V22: цоколь | W22: =IF($J$22="нет","пусто","печать") -> печать
C23: =IF(OR($D22="Аликанте 16",$D22="Аликанте 19",$D22="Помпея 16",$D22="Помпея 19",$D22="Галисия",$D22="Барселона"),"Фрезеровка",IF(OR($D22="Севилья в ЦВЕТНОМ профиле",$D22="Севилья в Al профиле",$D22="Севилья кант ПВХ",$D22="Севилья ABS кант",$D22="Севилья 3D"),"Категория",IF(OR($D22="Валенсия",$D22="Толедо",$D22="Верде"),"Модель","НАПИСАТЬ - НЕТ"))) -> НАПИСАТЬ - НЕТ | D23: НЕТ | H23: Ножки | J23: Пласт. 100 мм
C24: =IF(OR($D22="Аликанте 16",$D22="Аликанте 19"),"RAL",IF(OR($D22="Помпея 16",$D22="Помпея 19"),"Артикул пленки",IF(OR($D22="Севилья в Al профиле",$D22="Севилья в ЦВЕТНОМ профиле"),"Цвет профиля и Артикул пластика",IF(OR($D22="Севилья кант ПВХ",$D22="Севилья ABS кант",$D22="Севилья 3D"),"Артикул канта и Артикул пластика",IF($D22="Барселона","Шпон и RAL",IF($D22="Верде","Цвет ЛДСП",IF($D22="Валенсия","Цвет фасада",IF($D22="Толедо","Цвет фасада",IF($D22="Галисия","Цвет фасада","НАПИСАТЬ - НЕТ"))))))))) -> НАПИСАТЬ - НЕТ | D24: НЕТ | H24: Упаковка столешниц и стеновых панелей | M24: Стандарт
A25: Упаковка фасадов | D25: Стандарт
H26: =Лист4!K39 ->  | L26: Итого расчет Акрила | N26: ='Расчет акрила'!E38 -> 0
L27: Скидка | M27: ='Расчет акрила'!D39 -> 0 | N27: ='Расчет акрила'!E39 -> 0
D28: Итого стандартные модули | H28: =Модули!O31 -> 45638.54422 | L28: Итого с учетом скидки | N28: ='Расчет акрила'!E40 -> 0
D29: Скидка | H29: =Модули!N32 -> 0 | I29: =Модули!O32 -> 0
D30: Итого с учетом скидки | H30: =Модули!O33 -> 45638.54422 | L30: Итого сумма | N30: =H28+N26+H31+H34 -> 60359.34422
D31: Итого нестандартные модули | H31: =Модули!O52 -> 0 | L31: Всего скидка | N31: =N27+I29+I35+I32 -> 0
D32: Скидка | H32: =Модули!N53 -> 0 | I32: =Модули!O53 -> 0 | L32: Итого с учетом скидки | N32: =H30+H33+H36+N28 -> 60359.34422
D33: Итого с учетом скидки | H33: =Модули!O54 -> 0 | L33: Технологи/производство
D34: Итого дополнительная комплектация | H34: =Модули!O74 -> 14720.8
D35: Скидка | H35: =Модули!N75 -> 0 | I35: =Модули!O75 -> 0 | L35: Категория сложности | N35: Стандарт
D36: Итого с учетом скидки | H36: =Модули!O76 -> 14720.8

Sheet Модули
A1: 1.Стандартные модули
A2: № | B2: ПРИМЕЧАНИЕ | C2: Номер поз. | D2: Тип | G2: Ширина | H2: Высота | I2: Глубина | J2: Кол-во | K2: Коллекция | M2: Профильная ручка | N2: Цена | O2: Сумма
A3: 1 | C3: 28 | D3: 28-180(600)-528 | G3: =IF(Шапка!$D$16<>"Валенсия",IF($D3="","",VLOOKUP($D3,Основной_прайс!$D$3:$K$6120,6,FALSE)),IF($D3="","",VLOOKUP($D3,Прайс_Валенсия!$D$3:$K$7247,6,FALSE))) -> 600 | H3: =IF(Шапка!$D$16<>"Валенсия",IF($D3="","",VLOOKUP($D3,Основной_прайс!$D$3:$K$6120,7,FALSE)),IF($D3="","",VLOOKUP($D3,Прайс_Валенсия!$D$3:$K$7247,7,FALSE))) -> 720 | I3: 560 | J3: 1 | K3: Севилья кант ПВХ Категория 1 | N3: =IF(Шапка!$D$16<>"Валенсия", IF(D3="","",IF(K3="","",(INDEX(Основной_прайс!$L$3:$CE$6904,MATCH(D3,Основной_прайс!$D$3:$D$6904,0),MATCH(K3,Основной_прайс!$L$2:$CE$2,0))+Лист4!L48)*IF(Процент!$A$1=0,1,Процент!$A$1+1))), IF(D3="","",IF(K3="","",(INDEX(Прайс_Валенсия!$L$3:$CO$8031,MATCH(D3,Прайс_Валенсия!$D$3:$D$8031,0),MATCH(K3,Прайс_Валенсия!$L$2:$CO$2,0))+0)*IF(Процент!$A$1=0,1,Процент!$A$1+1)))) -> 12101.34857 | O3: =IF(J3="","",IF(N3="","",J3*N3)) -> 12101.34857 | AA3: =IF(Шапка!$D$16<>"Валенсия",IF($D3="","",VLOOKUP($D3,Основной_прайс!$D$3:$K$6120,6,FALSE)),IF($D3="","",VLOOKUP($D3,Прайс_Валенсия!$D$3:$K$7247,6,FALSE))) -> 600 | AB3: =IF(Шапка!$D$16<>"Валенсия",IF($D3="","",VLOOKUP($D3,Основной_прайс!$D$3:$K$6120,7,FALSE)),IF($D3="","",VLOOKUP($D3,Прайс_Валенсия!$D$3:$K$7247,7,FALSE))) -> 720 | AC3: =IF(Шапка!$D$16<>"Валенсия",IF($D3="","",VLOOKUP($D3,Основной_прайс!$D$3:$K$6120,8,FALSE)),IF($D3="","",VLOOKUP($D3,Прайс_Валенсия!$D$3:$K$7247,8,FALSE))) -> 528
A4: 2 | C4: 58 | D4: 58(1050-150)-528 | G4: =IF(Шапка!$D$16<>"Валенсия",IF($D4="","",VLOOKUP($D4,Основной_прайс!$D$3:$K$6120,6,FALSE)),IF($D4="","",VLOOKUP($D4,Прайс_Валенсия!$D$3:$K$7247,6,FALSE))) -> 1050 | H4: =IF(Шапка!$D$16<>"Валенсия",IF($D4="","",VLOOKUP($D4,Основной_прайс!$D$3:$K$6120,7,FALSE)),IF($D4="","",VLOOKUP($D4,Прайс_Валенсия!$D$3:$K$7247,7,FALSE))) -> 720 | I4: =IF(Шапка!$D$16<>"Валенсия",IF($D4="","",VLOOKUP($D4,Основной_прайс!$D$3:$K$6120,8,FALSE)),IF($D4="","",VLOOKUP($D4,Прайс_Валенсия!$D$3:$K$7247,8,FALSE))) -> 528 | J4: 1 | K4: Севилья кант ПВХ Категория 1 | N4: =IF(Шапка!$D$16<>"Валенсия", IF(D4="","",IF(K4="","",(INDEX(Основной_прайс!$L$3:$CE$6904,MATCH(D4,Основной_прайс!$D$3:$D$6904,0),MATCH(K4,Основной_прайс!$L$2:$CE$2,0))+Лист4!L49)*IF(Процент!$A$1=0,1,Процент!$A$1+1))), IF(D4="","",IF(K4="","",(INDEX(Прайс_Валенсия!$L$3:$CO$8031,MATCH(D4,Прайс_Валенсия!$D$3:$D$8031,0),MATCH(K4,Прайс_Валенсия!$L$2:$CO$2,0))+0)*IF(Процент!$A$1=0,1,Процент!$A$1+1)))) -> 4164.134607 | O4: 4164.134607 | AA4: =IF(Шапка!$D$16<>"Валенсия",IF($D4="","",VLOOKUP($D4,Основной_прайс!$D$3:$K$6120,6,FALSE)),IF($D4="","",VLOOKUP($D4,Прайс_Валенсия!$D$3:$K$7247,6,FALSE))) -> 1050 | AB4: =IF(Шапка!$D$16<>"Валенсия",IF($D4="","",VLOOKUP($D4,Основной_прайс!$D$3:$K$6120,7,FALSE)),IF($D4="","",VLOOKUP($D4,Прайс_Валенсия!$D$3:$K$7247,7,FALSE))) -> 720 | AC4: =IF(Шапка!$D$16<>"Валенсия",IF($D4="","",VLOOKUP($D4,Основной_прайс!$D$3:$K$6120,8,FALSE)),IF($D4="","",VLOOKUP($D4,Прайс_Валенсия!$D$3:$K$7247,8,FALSE))) -> 528
A5: 3 | C5: 74 | D5: 74(150)-528 | G5: =IF(Шапка!$D$16<>"Валенсия",IF($D5="","",VLOOKUP($D5,Основной_прайс!$D$3:$K$6120,6,FALSE)),IF($D5="","",VLOOKUP($D5,Прайс_Валенсия!$D$3:$K$7247,6,FALSE))) -> 150 | H5: =IF(Шапка!$D$16<>"Валенсия",IF($D5="","",VLOOKUP($D5,Основной_прайс!$D$3:$K$6120,7,FALSE)),IF($D5="","",VLOOKUP($D5,Прайс_Валенсия!$D$3:$K$7247,7,FALSE))) -> 720 | I5: =IF(Шапка!$D$16<>"Валенсия",IF($D5="","",VLOOKUP($D5,Основной_прайс!$D$3:$K$6120,8,FALSE)),IF($D5="","",VLOOKUP($D5,Прайс_Валенсия!$D$3:$K$7247,8,FALSE))) -> 528 | J5: 1 | K5: Севилья кант ПВХ Категория 1 | N5: =IF(Шапка!$D$16<>"Валенсия", IF(D5="","",IF(K5="","",(INDEX(Основной_прайс!$L$3:$CE$6904,MATCH(D5,Основной_прайс!$D$3:$D$6904,0),MATCH(K5,Основной_прайс!$L$2:$CE$2,0))+Лист4!L50)*IF(Процент!$A$1=0,1,Процент!$A$1+1))), IF(D5="","",IF(K5="","",(INDEX(Прайс_Валенсия!$L$3:$CO$8031,MATCH(D5,Прайс_Валенсия!$D$3:$D$8031,0),MATCH(K5,Прайс_Валенсия!$L$2:$CO$2,0))+0)*IF(Процент!$A$1=0,1,Процент!$A$1+1)))) -> 4870.516333 | O5: 4870.516333 | AA5: =IF(Шапка!$D$16<>"Валенсия",IF($D5="","",VLOOKUP($D5,Основной_прайс!$D$3:$K$6120,6,FALSE)),IF($D5="","",VLOOKUP($D5,Прайс_Валенсия!$D$3:$K$7247,6,FALSE))) -> 150 | AB5: =IF(Шапка!$D$16<>"Валенсия",IF($D5="","",VLOOKUP($D5,Основной_прайс!$D$3:$K$6120,7,FALSE)),IF($D5="","",VLOOKUP($D5,Прайс_Валенсия!$D$3:$K$7247,7,FALSE))) -> 720 | AC5: =IF(Шапка!$D$16<>"Валенсия",IF($D5="","",VLOOKUP($D5,Основной_прайс!$D$3:$K$6120,8,FALSE)),IF($D5="","",VLOOKUP($D5,Прайс_Валенсия!$D$3:$K$7247,8,FALSE))) -> 528
A6: 4 | C6: 65 | D6: 65-120(600)-560 | G6: =IF(Шапка!$D$16<>"Валенсия",IF($D6="","",VLOOKUP($D6,Основной_прайс!$D$3:$K$6120,6,FALSE)),IF($D6="","",VLOOKUP($D6,Прайс_Валенсия!$D$3:$K$7247,6,FALSE))) -> 600 | H6: =IF(Шапка!$D$16<>"Валенсия",IF($D6="","",VLOOKUP($D6,Основной_прайс!$D$3:$K$6120,7,FALSE)),IF($D6="","",VLOOKUP($D6,Прайс_Валенсия!$D$3:$K$7247,7,FALSE))) -> 720 | I6: =IF(Шапка!$D$16<>"Валенсия",IF($D6="","",VLOOKUP($D6,Основной_прайс!$D$3:$K$6120,8,FALSE)),IF($D6="","",VLOOKUP($D6,Прайс_Валенсия!$D$3:$K$7247,8,FALSE))) -> 560 | J6: 1 | K6: Севилья кант ПВХ Категория 1 | N6: =IF(Шапка!$D$16<>"Валенсия", IF(D6="","",IF(K6="","",(INDEX(Основной_прайс!$L$3:$CE$6904,MATCH(D6,Основной_прайс!$D$3:$D$6904,0),MATCH(K6,Основной_прайс!$L$2:$CE$2,0))+Лист4!L51)*IF(Процент!$A$1=0,1,Процент!$A$1+1))), IF(D6="","",IF(K6="","",(INDEX(Прайс_Валенсия!$L$3:$CO$8031,MATCH(D6,Прайс_Валенсия!$D$3:$D$8031,0),MATCH(K6,Прайс_Валенсия!$L$2:$CO$2,0))+0)*IF(Процент!$A$1=0,1,Процент!$A$1+1)))) -> 3365.100293 | O6: 3365.100293 | AA6: =IF(Шапка!$D$16<>"Валенсия",IF($D6="","",VLOOKUP($D6,Основной_прайс!$D$3:$K$6120,6,FALSE)),IF($D6="","",VLOOKUP($D6,Прайс_Валенсия!$D$3:$K$7247,6,FALSE))) -> 600 | AB6: =IF(Шапка!$D$16<>"Валенсия",IF($D6="","",VLOOKUP($D6,Основной_прайс!$D$3:$K$6120,7,FALSE)),IF($D6="","",VLOOKUP($D6,Прайс_Валенсия!$D$3:$K$7247,7,FALSE))) -> 720 | AC6: =IF(Шапка!$D$16<>"Валенсия",IF($D6="","",VLOOKUP($D6,Основной_прайс!$D$3:$K$6120,8,FALSE)),IF($D6="","",VLOOKUP($D6,Прайс_Валенсия!$D$3:$K$7247,8,FALSE))) -> 560
A7: 5 | C7: 2 | D7: 2-140(400)-528 | G7: =IF(Шапка!$D$16<>"Валенсия",IF($D7="","",VLOOKUP($D7,Основной_прайс!$D$3:$K$6120,6,FALSE)),IF($D7="","",VLOOKUP($D7,Прайс_Валенсия!$D$3:$K$7247,6,FALSE))) -> 400 | H7: =IF(Шапка!$D$16<>"Валенсия",IF($D7="","",VLOOKUP($D7,Основной_прайс!$D$3:$K$6120,7,FALSE)),IF($D7="","",VLOOKUP($D7,Прайс_Валенсия!$D$3:$K$7247,7,FALSE))) -> 720 | I7: 560 | J7: 1 | K7: Севилья кант ПВХ Категория 1 | N7: =IF(Шапка!$D$16<>"Валенсия", IF(D7="","",IF(K7="","",(INDEX(Основной_прайс!$L$3:$CE$6904,MATCH(D7,Основной_прайс!$D$3:$D$6904,0),MATCH(K7,Основной_прайс!$L$2:$CE$2,0))+Лист4!L52)*IF(Процент!$A$1=0,1,Процент!$A$1+1))), IF(D7="","",IF(K7="","",(INDEX(Прайс_Валенсия!$L$3:$CO$8031,MATCH(D7,Прайс_Валенсия!$D$3:$D$8031,0),MATCH(K7,Прайс_Валенсия!$L$2:$CO$2,0))+0)*IF(Процент!$A$1=0,1,Процент!$A$1+1)))) -> 3727.749896 | O7: 3727.749896 | AA7: =IF(Шапка!$D$16<>"Валенсия",IF($D7="","",VLOOKUP($D7,Основной_прайс!$D$3:$K$6120,6,FALSE)),IF($D7="","",VLOOKUP($D7,Прайс_Валенсия!$D$3:$K$7247,6,FALSE))) -> 400 | AB7: =IF(Шапка!$D$16<>"Валенсия",IF($D7="","",VLOOKUP($D7,Основной_прайс!$D$3:$K$6120,7,FALSE)),IF($D7="","",VLOOKUP($D7,Прайс_Валенсия!$D$3:$K$7247,7,FALSE))) -> 720 | AC7: =IF(Шапка!$D$16<>"Валенсия",IF($D7="","",VLOOKUP($D7,Основной_прайс!$D$3:$K$6120,8,FALSE)),IF($D7="","",VLOOKUP($D7,Прайс_Валенсия!$D$3:$K$7247,8,FALSE))) -> 528
A8: 6 | C8: 128 | D8: 128(460)-600 | G8: =IF(Шапка!$D$16<>"Валенсия",IF($D8="","",VLOOKUP($D8,Основной_прайс!$D$3:$K$6120,6,FALSE)),IF($D8="","",VLOOKUP($D8,Прайс_Валенсия!$D$3:$K$7247,6,FALSE))) -> 600 | H8: =IF(Шапка!$D$16<>"Валенсия",IF($D8="","",VLOOKUP($D8,Основной_прайс!$D$3:$K$6120,7,FALSE)),IF($D8="","",VLOOKUP($D8,Прайс_Валенсия!$D$3:$K$7247,7,FALSE))) -> 460 | I8: =IF(Шапка!$D$16<>"Валенсия",IF($D8="","",VLOOKUP($D8,Основной_прайс!$D$3:$K$6120,8,FALSE)),IF($D8="","",VLOOKUP($D8,Прайс_Валенсия!$D$3:$K$7247,8,FALSE))) -> 292 | J8: 1 | K8: Севилья кант ПВХ Категория 1 | N8: =IF(Шапка!$D$16<>"Валенсия", IF(D8="","",IF(K8="","",(INDEX(Основной_прайс!$L$3:$CE$6904,MATCH(D8,Основной_прайс!$D$3:$D$6904,0),MATCH(K8,Основной_прайс!$L$2:$CE$2,0))+Лист4!L53)*IF(Процент!$A$1=0,1,Процент!$A$1+1))), IF(D8="","",IF(K8="","",(INDEX(Прайс_Валенсия!$L$3:$CO$8031,MATCH(D8,Прайс_Валенсия!$D$3:$D$8031,0),MATCH(K8,Прайс_Валенсия!$L$2:$CO$2,0))+0)*IF(Процент!$A$1=0,1,Процент!$A$1+1)))) -> 2612.636313 | O8: 2612.636313 | AA8: =IF(Шапка!$D$16<>"Валенсия",IF($D8="","",VLOOKUP($D8,Основной_прайс!$D$3:$K$6120,6,FALSE)),IF($D8="","",VLOOKUP($D8,Прайс_Валенсия!$D$3:$K$7247,6,FALSE))) -> 600 | AB8: =IF(Шапка!$D$16<>"Валенсия",IF($D8="","",VLOOKUP($D8,Основной_прайс!$D$3:$K$6120,7,FALSE)),IF($D8="","",VLOOKUP($D8,Прайс_Валенсия!$D$3:$K$7247,7,FALSE))) -> 460 | AC8: =IF(Шапка!$D$16<>"Валенсия",IF($D8="","",VLOOKUP($D8,Основной_прайс!$D$3:$K$6120,8,FALSE)),IF($D8="","",VLOOKUP($D8,Прайс_Валенсия!$D$3:$K$7247,8,FALSE))) -> 292
A9: 7 | C9: 128 | D9: 128(460)-650 | G9: =IF(Шапка!$D$16<>"Валенсия",IF($D9="","",VLOOKUP($D9,Основной_прайс!$D$3:$K$6120,6,FALSE)),IF($D9="","",VLOOKUP($D9,Прайс_Валенсия!$D$3:$K$7247,6,FALSE))) -> 650 | H9: =IF(Шапка!$D$16<>"Валенсия",IF($D9="","",VLOOKUP($D9,Основной_прайс!$D$3:$K$6120,7,FALSE)),IF($D9="","",VLOOKUP($D9,Прайс_Валенсия!$D$3:$K$7247,7,FALSE))) -> 460 | I9: =IF(Шапка!$D$16<>"Валенсия",IF($D9="","",VLOOKUP($D9,Основной_прайс!$D$3:$K$6120,8,FALSE)),IF($D9="","",VLOOKUP($D9,Прайс_Валенсия!$D$3:$K$7247,8,FALSE))) -> 292 | J9: 1 | K9: Севилья кант ПВХ Категория 1 | N9: =IF(Шапка!$D$16<>"Валенсия", IF(D9="","",IF(K9="","",(INDEX(Основной_прайс!$L$3:$CE$6904,MATCH(D9,Основной_прайс!$D$3:$D$6904,0),MATCH(K9,Основной_прайс!$L$2:$CE$2,0))+Лист4!L54)*IF(Процент!$A$1=0,1,Процент!$A$1+1))), IF(D9="","",IF(K9="","",(INDEX(Прайс_Валенсия!$L$3:$CO$8031,MATCH(D9,Прайс_Валенсия!$D$3:$D$8031,0),MATCH(K9,Прайс_Валенсия!$L$2:$CO$2,0))+0)*IF(Процент!$A$1=0,1,Процент!$A$1+1)))) -> 2720.376739 | O9: 2720.376739 | AA9: =IF(Шапка!$D$16<>"Валенсия",IF($D9="","",VLOOKUP($D9,Основной_прайс!$D$3:$K$6120,6,FALSE)),IF($D9="","",VLOOKUP($D9,Прайс_Валенсия!$D$3:$K$7247,6,FALSE))) -> 650 | AB9: =IF(Шапка!$D$16<>"Валенсия",IF($D9="","",VLOOKUP($D9,Основной_прайс!$D$3:$K$6120,7,FALSE)),IF($D9="","",VLOOKUP($D9,Прайс_Валенсия!$D$3:$K$7247,7,FALSE))) -> 460 | AC9: =IF(Шапка!$D$16<>"Валенсия",IF($D9="","",VLOOKUP($D9,Основной_прайс!$D$3:$K$6120,8,FALSE)),IF($D9="","",VLOOKUP($D9,Прайс_Валенсия!$D$3:$K$7247,8,FALSE))) -> 292
A10: 8 | C10: 100 | D10: 100(920)-400 | G10: =IF(Шапка!$D$16<>"Валенсия",IF($D10="","",VLOOKUP($D10,Основной_прайс!$D$3:$K$6120,6,FALSE)),IF($D10="","",VLOOKUP($D10,Прайс_Валенсия!$D$3:$K$7247,6,FALSE))) -> 400 | H10: =IF(Шапка!$D$16<>"Валенсия",IF($D10="","",VLOOKUP($D10,Основной_прайс!$D$3:$K$6120,7,FALSE)),IF($D10="","",VLOOKUP($D10,Прайс_Валенсия!$D$3:$K$7247,7,FALSE))) -> 920 | I10: =IF(Шапка!$D$16<>"Валенсия",IF($D10="","",VLOOKUP($D10,Основной_прайс!$D$3:$K$6120,8,FALSE)),IF($D10="","",VLOOKUP($D10,Прайс_Валенсия!$D$3:$K$7247,8,FALSE))) -> 292 | J10: 2 | K10: Севилья кант ПВХ Категория 1 | N10: =IF(Шапка!$D$16<>"Валенсия", IF(D10="","",IF(K10="","",(INDEX(Основной_прайс!$L$3:$CE$6904,MATCH(D10,Основной_прайс!$D$3:$D$6904,0),MATCH(K10,Основной_прайс!$L$2:$CE$2,0))+Лист4!L55)*IF(Процент!$A$1=0,1,Процент!$A$1+1))), IF(D10="","",IF(K10="","",(INDEX(Прайс_Валенсия!$L$3:$CO$8031,MATCH(D10,Прайс_Валенсия!$D$3:$D$8031,0),MATCH(K10,Прайс_Валенсия!$L$2:$CO$2,0))+0)*IF(Процент!$A$1=0,1,Процент!$A$1+1)))) -> 3229.749128 | O10: 6459.498256 | AA10: =IF(Шапка!$D$16<>"Валенсия",IF($D10="","",VLOOKUP($D10,Основной_прайс!$D$3:$K$6120,6,FALSE)),IF($D10="","",VLOOKUP($D10,Прайс_Валенсия!$D$3:$K$7247,6,FALSE))) -> 400 | AB10: =IF(Шапка!$D$16<>"Валенсия",IF($D10="","",VLOOKUP($D10,Основной_прайс!$D$3:$K$6120,7,FALSE)),IF($D10="","",VLOOKUP($D10,Прайс_Валенсия!$D$3:$K$7247,7,FALSE))) -> 920 | AC10: =IF(Шапка!$D$16<>"Валенсия",IF($D10="","",VLOOKUP($D10,Основной_прайс!$D$3:$K$6120,8,FALSE)),IF($D10="","",VLOOKUP($D10,Прайс_Валенсия!$D$3:$K$7247,8,FALSE))) -> 292
A11: 9 | C11: 121 | D11: 121(920)-600 | G11: =IF(Шапка!$D$16<>"Валенсия",IF($D11="","",VLOOKUP($D11,Основной_прайс!$D$3:$K$6120,6,FALSE)),IF($D11="","",VLOOKUP($D11,Прайс_Валенсия!$D$3:$K$7247,6,FALSE))) -> 600 | H11: =IF(Шапка!$D$16<>"Валенсия",IF($D11="","",VLOOKUP($D11,Основной_прайс!$D$3:$K$6120,7,FALSE)),IF($D11="","",VLOOKUP($D11,Прайс_Валенсия!$D$3:$K$7247,7,FALSE))) -> 920 | I11: =IF(Шапка!$D$16<>"Валенсия",IF($D11="","",VLOOKUP($D11,Основной_прайс!$D$3:$K$6120,8,FALSE)),IF($D11="","",VLOOKUP($D11,Прайс_Валенсия!$D$3:$K$7247,8,FALSE))) -> 600 | J11: 1 | K11: Севилья кант ПВХ Категория 1 | N11: =IF(Шапка!$D$16<>"Валенсия", IF(D11="","",IF(K11="","",(INDEX(Основной_прайс!$L$3:$CE$6904,MATCH(D11,Основной_прайс!$D$3:$D$6904,0),MATCH(K11,Основной_прайс!$L$2:$CE$2,0))+Лист4!L56)*IF(Процент!$A$1=0,1,Процент!$A$1+1))), IF(D11="","",IF(K11="","",(INDEX(Прайс_Валенсия!$L$3:$CO$8031,MATCH(D11,Прайс_Валенсия!$D$3:$D$8031,0),MATCH(K11,Прайс_Валенсия!$L$2:$CO$2,0))+0)*IF(Процент!$A$1=0,1,Процент!$A$1+1)))) -> 4384.899245 | O11: 4384.899245 | AA11: =IF(Шапка!$D$16<>"Валенсия",IF($D11="","",VLOOKUP($D11,Основной_прайс!$D$3:$K$6120,6,FALSE)),IF($D11="","",VLOOKUP($D11,Прайс_Валенсия!$D$3:$K$7247,6,FALSE))) -> 600 | AB11: =IF(Шапка!$D$16<>"Валенсия",IF($D11="","",VLOOKUP($D11,Основной_прайс!$D$3:$K$6120,7,FALSE)),IF($D11="","",VLOOKUP($D11,Прайс_Валенсия!$D$3:$K$7247,7,FALSE))) -> 920 | AC11: =IF(Шапка!$D$16<>"Валенсия",IF($D11="","",VLOOKUP($D11,Основной_прайс!$D$3:$K$6120,8,FALSE)),IF($D11="","",VLOOKUP($D11,Прайс_Валенсия!$D$3:$K$7247,8,FALSE))) -> 600
A12: 10 | C12: 119 | D12: 119(920)-300 | G12: 450 | H12: =IF(Шапка!$D$16<>"Валенсия",IF($D12="","",VLOOKUP($D12,Основной_прайс!$D$3:$K$6120,7,FALSE)),IF($D12="","",VLOOKUP($D12,Прайс_Валенсия!$D$3:$K$7247,7,FALSE))) -> 920 | I12: 292 | J12: 1 | K12: Севилья кант ПВХ Категория 1 | N12: =IF(Шапка!$D$16<>"Валенсия", IF(D12="","",IF(K12="","",(INDEX(Основной_прайс!$L$3:$CE$6904,MATCH(D12,Основной_прайс!$D$3:$D$6904,0),MATCH(K12,Основной_прайс!$L$2:$CE$2,0))+Лист4!L57)*IF(Процент!$A$1=0,1,Процент!$A$1+1))), IF(D12="","",IF(K12="","",(INDEX(Прайс_Валенсия!$L$3:$CO$8031,MATCH(D12,Прайс_Валенсия!$D$3:$D$8031,0),MATCH(K12,Прайс_Валенсия!$L$2:$CO$2,0))+0)*IF(Процент!$A$1=0,1,Процент!$A$1+1)))) -> 1232.283976 | O12: 1232.283976 | AA12: =IF(Шапка!$D$16<>"Валенсия",IF($D12="","",VLOOKUP($D12,Основной_прайс!$D$3:$K$6120,6,FALSE)),IF($D12="","",VLOOKUP($D12,Прайс_Валенсия!$D$3:$K$7247,6,FALSE))) -> 300 | AB12: =IF(Шапка!$D$16<>"Валенсия",IF($D12="","",VLOOKUP($D12,Основной_прайс!$D$3:$K$6120,7,FALSE)),IF($D12="","",VLOOKUP($D12,Прайс_Валенсия!$D$3:$K$7247,7,FALSE))) -> 920 | AC12: =IF(Шапка!$D$16<>"Валенсия",IF($D12="","",VLOOKUP($D12,Основной_прайс!$D$3:$K$6120,8,FALSE)),IF($D12="","",VLOOKUP($D12,Прайс_Валенсия!$D$3:$K$7247,8,FALSE))) -> 292
A13: 11 | G13: =IF(Шапка!$D$16<>"Валенсия",IF($D13="","",VLOOKUP($D13,Основной_прайс!$D$3:$K$6120,6,FALSE)),IF($D13="","",VLOOKUP($D13,Прайс_Валенсия!$D$3:$K$7247,6,FALSE))) ->  | H13: =IF(Шапка!$D$16<>"Валенсия",IF($D13="","",VLOOKUP($D13,Основной_прайс!$D$3:$K$6120,7,FALSE)),IF($D13="","",VLOOKUP($D13,Прайс_Валенсия!$D$3:$K$7247,7,FALSE))) ->  | I13: =IF(Шапка!$D$16<>"Валенсия",IF($D13="","",VLOOKUP($D13,Основной_прайс!$D$3:$K$6120,8,FALSE)),IF($D13="","",VLOOKUP($D13,Прайс_Валенсия!$D$3:$K$7247,8,FALSE))) ->  | N13: =IF(Шапка!$D$16<>"Валенсия", IF(D13="","",IF(K13="","",(INDEX(Основной_прайс!$L$3:$CE$6904,MATCH(D13,Основной_прайс!$D$3:$D$6904,0),MATCH(K13,Основной_прайс!$L$2:$CE$2,0))+Лист4!L58)*IF(Процент!$A$1=0,1,Процент!$A$1+1))), IF(D13="","",IF(K13="","",(INDEX(Прайс_Валенсия!$L$3:$CO$8031,MATCH(D13,Прайс_Валенсия!$D$3:$D$8031,0),MATCH(K13,Прайс_Валенсия!$L$2:$CO$2,0))+0)*IF(Процент!$A$1=0,1,Процент!$A$1+1)))) ->  | AA13: =IF(Шапка!$D$16<>"Валенсия",IF($D13="","",VLOOKUP($D13,Основной_прайс!$D$3:$K$6120,6,FALSE)),IF($D13="","",VLOOKUP($D13,Прайс_Валенсия!$D$3:$K$7247,6,FALSE))) ->  | AB13: =IF(Шапка!$D$16<>"Валенсия",IF($D13="","",VLOOKUP($D13,Основной_прайс!$D$3:$K$6120,7,FALSE)),IF($D13="","",VLOOKUP($D13,Прайс_Валенсия!$D$3:$K$7247,7,FALSE))) ->  | AC13: =IF(Шапка!$D$16<>"Валенсия",IF($D13="","",VLOOKUP($D13,Основной_прайс!$D$3:$K$6120,8,FALSE)),IF($D13="","",VLOOKUP($D13,Прайс_Валенсия!$D$3:$K$7247,8,FALSE))) -> 
A14: 12 | G14: =IF(Шапка!$D$16<>"Валенсия",IF($D14="","",VLOOKUP($D14,Основной_прайс!$D$3:$K$6120,6,FALSE)),IF($D14="","",VLOOKUP($D14,Прайс_Валенсия!$D$3:$K$7247,6,FALSE))) ->  | H14: =IF(Шапка!$D$16<>"Валенсия",IF($D14="","",VLOOKUP($D14,Основной_прайс!$D$3:$K$6120,7,FALSE)),IF($D14="","",VLOOKUP($D14,Прайс_Валенсия!$D$3:$K$7247,7,FALSE))) ->  | I14: =IF(Шапка!$D$16<>"Валенсия",IF($D14="","",VLOOKUP($D14,Основной_прайс!$D$3:$K$6120,8,FALSE)),IF($D14="","",VLOOKUP($D14,Прайс_Валенсия!$D$3:$K$7247,8,FALSE))) ->  | N14: =IF(Шапка!$D$16<>"Валенсия", IF(D14="","",IF(K14="","",(INDEX(Основной_прайс!$L$3:$CE$6904,MATCH(D14,Основной_прайс!$D$3:$D$6904,0),MATCH(K14,Основной_прайс!$L$2:$CE$2,0))+Лист4!L59)*IF(Процент!$A$1=0,1,Процент!$A$1+1))), IF(D14="","",IF(K14="","",(INDEX(Прайс_Валенсия!$L$3:$CO$8031,MATCH(D14,Прайс_Валенсия!$D$3:$D$8031,0),MATCH(K14,Прайс_Валенсия!$L$2:$CO$2,0))+0)*IF(Процент!$A$1=0,1,Процент!$A$1+1)))) ->  | AA14: =IF(Шапка!$D$16<>"Валенсия",IF($D14="","",VLOOKUP($D14,Основной_прайс!$D$3:$K$6120,6,FALSE)),IF($D14="","",VLOOKUP($D14,Прайс_Валенсия!$D$3:$K$7247,6,FALSE))) ->  | AB14: =IF(Шапка!$D$16<>"Валенсия",IF($D14="","",VLOOKUP($D14,Основной_прайс!$D$3:$K$6120,7,FALSE)),IF($D14="","",VLOOKUP($D14,Прайс_Валенсия!$D$3:$K$7247,7,FALSE))) ->  | AC14: =IF(Шапка!$D$16<>"Валенсия",IF($D14="","",VLOOKUP($D14,Основной_прайс!$D$3:$K$6120,8,FALSE)),IF($D14="","",VLOOKUP($D14,Прайс_Валенсия!$D$3:$K$7247,8,FALSE))) -> 
A15: 13 | G15: =IF(Шапка!$D$16<>"Валенсия",IF($D15="","",VLOOKUP($D15,Основной_прайс!$D$3:$K$6120,6,FALSE)),IF($D15="","",VLOOKUP($D15,Прайс_Валенсия!$D$3:$K$7247,6,FALSE))) ->  | H15: =IF(Шапка!$D$16<>"Валенсия",IF($D15="","",VLOOKUP($D15,Основной_прайс!$D$3:$K$6120,7,FALSE)),IF($D15="","",VLOOKUP($D15,Прайс_Валенсия!$D$3:$K$7247,7,FALSE))) ->  | I15: =IF(Шапка!$D$16<>"Валенсия",IF($D15="","",VLOOKUP($D15,Основной_прайс!$D$3:$K$6120,8,FALSE)),IF($D15="","",VLOOKUP($D15,Прайс_Валенсия!$D$3:$K$7247,8,FALSE))) ->  | N15: =IF(Шапка!$D$16<>"Валенсия", IF(D15="","",IF(K15="","",(INDEX(Основной_прайс!$L$3:$CE$6904,MATCH(D15,Основной_прайс!$D$3:$D$6904,0),MATCH(K15,Основной_прайс!$L$2:$CE$2,0))+Лист4!L60)*IF(Процент!$A$1=0,1,Процент!$A$1+1))), IF(D15="","",IF(K15="","",(INDEX(Прайс_Валенсия!$L$3:$CO$8031,MATCH(D15,Прайс_Валенсия!$D$3:$D$8031,0),MATCH(K15,Прайс_Валенсия!$L$2:$CO$2,0))+0)*IF(Процент!$A$1=0,1,Процент!$A$1+1)))) ->  | AA15: =IF(Шапка!$D$16<>"Валенсия",IF($D15="","",VLOOKUP($D15,Основной_прайс!$D$3:$K$6120,6,FALSE)),IF($D15="","",VLOOKUP($D15,Прайс_Валенсия!$D$3:$K$7247,6,FALSE))) ->  | AB15: =IF(Шапка!$D$16<>"Валенсия",IF($D15="","",VLOOKUP($D15,Основной_прайс!$D$3:$K$6120,7,FALSE)),IF($D15="","",VLOOKUP($D15,Прайс_Валенсия!$D$3:$K$7247,7,FALSE))) ->  | AC15: =IF(Шапка!$D$16<>"Валенсия",IF($D15="","",VLOOKUP($D15,Основной_прайс!$D$3:$K$6120,8,FALSE)),IF($D15="","",VLOOKUP($D15,Прайс_Валенсия!$D$3:$K$7247,8,FALSE))) -> 
A16: 14 | G16: =IF(Шапка!$D$16<>"Валенсия",IF($D16="","",VLOOKUP($D16,Основной_прайс!$D$3:$K$6120,6,FALSE)),IF($D16="","",VLOOKUP($D16,Прайс_Валенсия!$D$3:$K$7247,6,FALSE))) ->  | H16: =IF(Шапка!$D$16<>"Валенсия",IF($D16="","",VLOOKUP($D16,Основной_прайс!$D$3:$K$6120,7,FALSE)),IF($D16="","",VLOOKUP($D16,Прайс_Валенсия!$D$3:$K$7247,7,FALSE))) ->  | I16: =IF(Шапка!$D$16<>"Валенсия",IF($D16="","",VLOOKUP($D16,Основной_прайс!$D$3:$K$6120,8,FALSE)),IF($D16="","",VLOOKUP($D16,Прайс_Валенсия!$D$3:$K$7247,8,FALSE))) ->  | N16: =IF(Шапка!$D$16<>"Валенсия", IF(D16="","",IF(K16="","",(INDEX(Основной_прайс!$L$3:$CE$6904,MATCH(D16,Основной_прайс!$D$3:$D$6904,0),MATCH(K16,Основной_прайс!$L$2:$CE$2,0))+Лист4!L61)*IF(Процент!$A$1=0,1,Процент!$A$1+1))), IF(D16="","",IF(K16="","",(INDEX(Прайс_Валенсия!$L$3:$CO$8031,MATCH(D16,Прайс_Валенсия!$D$3:$D$8031,0),MATCH(K16,Прайс_Валенсия!$L$2:$CO$2,0))+0)*IF(Процент!$A$1=0,1,Процент!$A$1+1)))) ->  | AA16: =IF(Шапка!$D$16<>"Валенсия",IF($D16="","",VLOOKUP($D16,Основной_прайс!$D$3:$K$6120,6,FALSE)),IF($D16="","",VLOOKUP($D16,Прайс_Валенсия!$D$3:$K$7247,6,FALSE))) ->  | AB16: =IF(Шапка!$D$16<>"Валенсия",IF($D16="","",VLOOKUP($D16,Основной_прайс!$D$3:$K$6120,7,FALSE)),IF($D16="","",VLOOKUP($D16,Прайс_Валенсия!$D$3:$K$7247,7,FALSE))) ->  | AC16: =IF(Шапка!$D$16<>"Валенсия",IF($D16="","",VLOOKUP($D16,Основной_прайс!$D$3:$K$6120,8,FALSE)),IF($D16="","",VLOOKUP($D16,Прайс_Валенсия!$D$3:$K$7247,8,FALSE))) -> 
A17: 15 | G17: =IF(Шапка!$D$16<>"Валенсия",IF($D17="","",VLOOKUP($D17,Основной_прайс!$D$3:$K$6120,6,FALSE)),IF($D17="","",VLOOKUP($D17,Прайс_Валенсия!$D$3:$K$7247,6,FALSE))) ->  | H17: =IF(Шапка!$D$16<>"Валенсия",IF($D17="","",VLOOKUP($D17,Основной_прайс!$D$3:$K$6120,7,FALSE)),IF($D17="","",VLOOKUP($D17,Прайс_Валенсия!$D$3:$K$7247,7,FALSE))) ->  | I17: =IF(Шапка!$D$16<>"Валенсия",IF($D17="","",VLOOKUP($D17,Основной_прайс!$D$3:$K$6120,8,FALSE)),IF($D17="","",VLOOKUP($D17,Прайс_Валенсия!$D$3:$K$7247,8,FALSE))) ->  | N17: =IF(Шапка!$D$16<>"Валенсия", IF(D17="","",IF(K17="","",(INDEX(Основной_прайс!$L$3:$CE$6904,MATCH(D17,Основной_прайс!$D$3:$D$6904,0),MATCH(K17,Основной_прайс!$L$2:$CE$2,0))+Лист4!L62)*IF(Процент!$A$1=0,1,Процент!$A$1+1))), IF(D17="","",IF(K17="","",(INDEX(Прайс_Валенсия!$L$3:$CO$8031,MATCH(D17,Прайс_Валенсия!$D$3:$D$8031,0),MATCH(K17,Прайс_Валенсия!$L$2:$CO$2,0))+0)*IF(Процент!$A$1=0,1,Процент!$A$1+1)))) ->  | AA17: =IF(Шапка!$D$16<>"Валенсия",IF($D17="","",VLOOKUP($D17,Основной_прайс!$D$3:$K$6120,6,FALSE)),IF($D17="","",VLOOKUP($D17,Прайс_Валенсия!$D$3:$K$7247,6,FALSE))) ->  | AB17: =IF(Шапка!$D$16<>"Валенсия",IF($D17="","",VLOOKUP($D17,Основной_прайс!$D$3:$K$6120,7,FALSE)),IF($D17="","",VLOOKUP($D17,Прайс_Валенсия!$D$3:$K$7247,7,FALSE))) ->  | AC17: =IF(Шапка!$D$16<>"Валенсия",IF($D17="","",VLOOKUP($D17,Основной_прайс!$D$3:$K$6120,8,FALSE)),IF($D17="","",VLOOKUP($D17,Прайс_Валенсия!$D$3:$K$7247,8,FALSE))) -> 
A18: 16 | G18: =IF(Шапка!$D$16<>"Валенсия",IF($D18="","",VLOOKUP($D18,Основной_прайс!$D$3:$K$6120,6,FALSE)),IF($D18="","",VLOOKUP($D18,Прайс_Валенсия!$D$3:$K$7247,6,FALSE))) ->  | H18: =IF(Шапка!$D$16<>"Валенсия",IF($D18="","",VLOOKUP($D18,Основной_прайс!$D$3:$K$6120,7,FALSE)),IF($D18="","",VLOOKUP($D18,Прайс_Валенсия!$D$3:$K$7247,7,FALSE))) ->  | I18: =IF(Шапка!$D$16<>"Валенсия",IF($D18="","",VLOOKUP($D18,Основной_прайс!$D$3:$K$6120,8,FALSE)),IF($D18="","",VLOOKUP($D18,Прайс_Валенсия!$D$3:$K$7247,8,FALSE))) ->  | N18: =IF(Шапка!$D$16<>"Валенсия", IF(D18="","",IF(K18="","",(INDEX(Основной_прайс!$L$3:$CE$6904,MATCH(D18,Основной_прайс!$D$3:$D$6904,0),MATCH(K18,Основной_прайс!$L$2:$CE$2,0))+Лист4!L63)*IF(Процент!$A$1=0,1,Процент!$A$1+1))), IF(D18="","",IF(K18="","",(INDEX(Прайс_Валенсия!$L$3:$CO$8031,MATCH(D18,Прайс_Валенсия!$D$3:$D$8031,0),MATCH(K18,Прайс_Валенсия!$L$2:$CO$2,0))+0)*IF(Процент!$A$1=0,1,Процент!$A$1+1)))) ->  | AA18: =IF(Шапка!$D$16<>"Валенсия",IF($D18="","",VLOOKUP($D18,Основной_прайс!$D$3:$K$6120,6,FALSE)),IF($D18="","",VLOOKUP($D18,Прайс_Валенсия!$D$3:$K$7247,6,FALSE))) ->  | AB18: =IF(Шапка!$D$16<>"Валенсия",IF($D18="","",VLOOKUP($D18,Основной_прайс!$D$3:$K$6120,7,FALSE)),IF($D18="","",VLOOKUP($D18,Прайс_Валенсия!$D$3:$K$7247,7,FALSE))) ->  | AC18: =IF(Шапка!$D$16<>"Валенсия",IF($D18="","",VLOOKUP($D18,Основной_прайс!$D$3:$K$6120,8,FALSE)),IF($D18="","",VLOOKUP($D18,Прайс_Валенсия!$D$3:$K$7247,8,FALSE))) -> 
A19: 17 | G19: =IF(Шапка!$D$16<>"Валенсия",IF($D19="","",VLOOKUP($D19,Основной_прайс!$D$3:$K$6120,6,FALSE)),IF($D19="","",VLOOKUP($D19,Прайс_Валенсия!$D$3:$K$7247,6,FALSE))) ->  | H19: =IF(Шапка!$D$16<>"Валенсия",IF($D19="","",VLOOKUP($D19,Основной_прайс!$D$3:$K$6120,7,FALSE)),IF($D19="","",VLOOKUP($D19,Прайс_Валенсия!$D$3:$K$7247,7,FALSE))) ->  | I19: =IF(Шапка!$D$16<>"Валенсия",IF($D19="","",VLOOKUP($D19,Основной_прайс!$D$3:$K$6120,8,FALSE)),IF($D19="","",VLOOKUP($D19,Прайс_Валенсия!$D$3:$K$7247,8,FALSE))) ->  | N19: =IF(Шапка!$D$16<>"Валенсия", IF(D19="","",IF(K19="","",(INDEX(Основной_прайс!$L$3:$CE$6904,MATCH(D19,Основной_прайс!$D$3:$D$6904,0),MATCH(K19,Основной_прайс!$L$2:$CE$2,0))+Лист4!L64)*IF(Процент!$A$1=0,1,Процент!$A$1+1))), IF(D19="","",IF(K19="","",(INDEX(Прайс_Валенсия!$L$3:$CO$8031,MATCH(D19,Прайс_Валенсия!$D$3:$D$8031,0),MATCH(K19,Прайс_Валенсия!$L$2:$CO$2,0))+0)*IF(Процент!$A$1=0,1,Процент!$A$1+1)))) ->  | AA19: =IF(Шапка!$D$16<>"Валенсия",IF($D19="","",VLOOKUP($D19,Основной_прайс!$D$3:$K$6120,6,FALSE)),IF($D19="","",VLOOKUP($D19,Прайс_Валенсия!$D$3:$K$7247,6,FALSE))) ->  | AB19: =IF(Шапка!$D$16<>"Валенсия",IF($D19="","",VLOOKUP($D19,Основной_прайс!$D$3:$K$6120,7,FALSE)),IF($D19="","",VLOOKUP($D19,Прайс_Валенсия!$D$3:$K$7247,7,FALSE))) ->  | AC19: =IF(Шапка!$D$16<>"Валенсия",IF($D19="","",VLOOKUP($D19,Основной_прайс!$D$3:$K$6120,8,FALSE)),IF($D19="","",VLOOKUP($D19,Прайс_Валенсия!$D$3:$K$7247,8,FALSE))) -> 
A20: 18 | G20: =IF(Шапка!$D$16<>"Валенсия",IF($D20="","",VLOOKUP($D20,Основной_прайс!$D$3:$K$6120,6,FALSE)),IF($D20="","",VLOOKUP($D20,Прайс_Валенсия!$D$3:$K$7247,6,FALSE))) ->  | H20: =IF(Шапка!$D$16<>"Валенсия",IF($D20="","",VLOOKUP($D20,Основной_прайс!$D$3:$K$6120,7,FALSE)),IF($D20="","",VLOOKUP($D20,Прайс_Валенсия!$D$3:$K$7247,7,FALSE))) ->  | I20: =IF(Шапка!$D$16<>"Валенсия",IF($D20="","",VLOOKUP($D20,Основной_прайс!$D$3:$K$6120,8,FALSE)),IF($D20="","",VLOOKUP($D20,Прайс_Валенсия!$D$3:$K$7247,8,FALSE))) ->  | N20: =IF(Шапка!$D$16<>"Валенсия", IF(D20="","",IF(K20="","",(INDEX(Основной_прайс!$L$3:$CE$6904,MATCH(D20,Основной_прайс!$D$3:$D$6904,0),MATCH(K20,Основной_прайс!$L$2:$CE$2,0))+Лист4!L65)*IF(Процент!$A$1=0,1,Процент!$A$1+1))), IF(D20="","",IF(K20="","",(INDEX(Прайс_Валенсия!$L$3:$CO$8031,MATCH(D20,Прайс_Валенсия!$D$3:$D$8031,0),MATCH(K20,Прайс_Валенсия!$L$2:$CO$2,0))+0)*IF(Процент!$A$1=0,1,Процент!$A$1+1)))) ->  | AA20: =IF(Шапка!$D$16<>"Валенсия",IF($D20="","",VLOOKUP($D20,Основной_прайс!$D$3:$K$6120,6,FALSE)),IF($D20="","",VLOOKUP($D20,Прайс_Валенсия!$D$3:$K$7247,6,FALSE))) ->  | AB20: =IF(Шапка!$D$16<>"Валенсия",IF($D20="","",VLOOKUP($D20,Основной_прайс!$D$3:$K$6120,7,FALSE)),IF($D20="","",VLOOKUP($D20,Прайс_Валенсия!$D$3:$K$7247,7,FALSE))) ->  | AC20: =IF(Шапка!$D$16<>"Валенсия",IF($D20="","",VLOOKUP($D20,Основной_прайс!$D$3:$K$6120,8,FALSE)),IF($D20="","",VLOOKUP($D20,Прайс_Валенсия!$D$3:$K$7247,8,FALSE))) -> 
A21: 19 | G21: =IF(Шапка!$D$16<>"Валенсия",IF($D21="","",VLOOKUP($D21,Основной_прайс!$D$3:$K$6120,6,FALSE)),IF($D21="","",VLOOKUP($D21,Прайс_Валенсия!$D$3:$K$7247,6,FALSE))) ->  | H21: =IF(Шапка!$D$16<>"Валенсия",IF($D21="","",VLOOKUP($D21,Основной_прайс!$D$3:$K$6120,7,FALSE)),IF($D21="","",VLOOKUP($D21,Прайс_Валенсия!$D$3:$K$7247,7,FALSE))) ->  | I21: =IF(Шапка!$D$16<>"Валенсия",IF($D21="","",VLOOKUP($D21,Основной_прайс!$D$3:$K$6120,8,FALSE)),IF($D21="","",VLOOKUP($D21,Прайс_Валенсия!$D$3:$K$7247,8,FALSE))) ->  | N21: =IF(Шапка!$D$16<>"Валенсия", IF(D21="","",IF(K21="","",(INDEX(Основной_прайс!$L$3:$CE$6904,MATCH(D21,Основной_прайс!$D$3:$D$6904,0),MATCH(K21,Основной_прайс!$L$2:$CE$2,0))+Лист4!L66)*IF(Процент!$A$1=0,1,Процент!$A$1+1))), IF(D21="","",IF(K21="","",(INDEX(Прайс_Валенсия!$L$3:$CO$8031,MATCH(D21,Прайс_Валенсия!$D$3:$D$8031,0),MATCH(K21,Прайс_Валенсия!$L$2:$CO$2,0))+0)*IF(Процент!$A$1=0,1,Процент!$A$1+1)))) ->  | AA21: =IF(Шапка!$D$16<>"Валенсия",IF($D21="","",VLOOKUP($D21,Основной_прайс!$D$3:$K$6120,6,FALSE)),IF($D21="","",VLOOKUP($D21,Прайс_Валенсия!$D$3:$K$7247,6,FALSE))) ->  | AB21: =IF(Шапка!$D$16<>"Валенсия",IF($D21="","",VLOOKUP($D21,Основной_прайс!$D$3:$K$6120,7,FALSE)),IF($D21="","",VLOOKUP($D21,Прайс_Валенсия!$D$3:$K$7247,7,FALSE))) ->  | AC21: =IF(Шапка!$D$16<>"Валенсия",IF($D21="","",VLOOKUP($D21,Основной_прайс!$D$3:$K$6120,8,FALSE)),IF($D21="","",VLOOKUP($D21,Прайс_Валенсия!$D$3:$K$7247,8,FALSE))) -> 
A22: 20 | G22: =IF(Шапка!$D$16<>"Валенсия",IF($D22="","",VLOOKUP($D22,Основной_прайс!$D$3:$K$6120,6,FALSE)),IF($D22="","",VLOOKUP($D22,Прайс_Валенсия!$D$3:$K$7247,6,FALSE))) ->  | H22: =IF(Шапка!$D$16<>"Валенсия",IF($D22="","",VLOOKUP($D22,Основной_прайс!$D$3:$K$6120,7,FALSE)),IF($D22="","",VLOOKUP($D22,Прайс_Валенсия!$D$3:$K$7247,7,FALSE))) ->  | I22: =IF(Шапка!$D$16<>"Валенсия",IF($D22="","",VLOOKUP($D22,Основной_прайс!$D$3:$K$6120,8,FALSE)),IF($D22="","",VLOOKUP($D22,Прайс_Валенсия!$D$3:$K$7247,8,FALSE))) ->  | N22: =IF(Шапка!$D$16<>"Валенсия", IF(D22="","",IF(K22="","",(INDEX(Основной_прайс!$L$3:$CE$6904,MATCH(D22,Основной_прайс!$D$3:$D$6904,0),MATCH(K22,Основной_прайс!$L$2:$CE$2,0))+Лист4!L67)*IF(Процент!$A$1=0,1,Процент!$A$1+1))), IF(D22="","",IF(K22="","",(INDEX(Прайс_Валенсия!$L$3:$CO$8031,MATCH(D22,Прайс_Валенсия!$D$3:$D$8031,0),MATCH(K22,Прайс_Валенсия!$L$2:$CO$2,0))+0)*IF(Процент!$A$1=0,1,Процент!$A$1+1)))) ->  | AA22: =IF(Шапка!$D$16<>"Валенсия",IF($D22="","",VLOOKUP($D22,Основной_прайс!$D$3:$K$6120,6,FALSE)),IF($D22="","",VLOOKUP($D22,Прайс_Валенсия!$D$3:$K$7247,6,FALSE))) ->  | AB22: =IF(Шапка!$D$16<>"Валенсия",IF($D22="","",VLOOKUP($D22,Основной_прайс!$D$3:$K$6120,7,FALSE)),IF($D22="","",VLOOKUP($D22,Прайс_Валенсия!$D$3:$K$7247,7,FALSE))) ->  | AC22: =IF(Шапка!$D$16<>"Валенсия",IF($D22="","",VLOOKUP($D22,Основной_прайс!$D$3:$K$6120,8,FALSE)),IF($D22="","",VLOOKUP($D22,Прайс_Валенсия!$D$3:$K$7247,8,FALSE))) -> 
A23: 21 | G23: =IF(Шапка!$D$16<>"Валенсия",IF($D23="","",VLOOKUP($D23,Основной_прайс!$D$3:$K$6120,6,FALSE)),IF($D23="","",VLOOKUP($D23,Прайс_Валенсия!$D$3:$K$7247,6,FALSE))) ->  | H23: =IF(Шапка!$D$16<>"Валенсия",IF($D23="","",VLOOKUP($D23,Основной_прайс!$D$3:$K$6120,7,FALSE)),IF($D23="","",VLOOKUP($D23,Прайс_Валенсия!$D$3:$K$7247,7,FALSE))) ->  | I23: =IF(Шапка!$D$16<>"Валенсия",IF($D23="","",VLOOKUP($D23,Основной_прайс!$D$3:$K$6120,8,FALSE)),IF($D23="","",VLOOKUP($D23,Прайс_Валенсия!$D$3:$K$7247,8,FALSE))) ->  | N23: =IF(Шапка!$D$16<>"Валенсия", IF(D23="","",IF(K23="","",(INDEX(Основной_прайс!$L$3:$CE$6904,MATCH(D23,Основной_прайс!$D$3:$D$6904,0),MATCH(K23,Основной_прайс!$L$2:$CE$2,0))+Лист4!L68)*IF(Процент!$A$1=0,1,Процент!$A$1+1))), IF(D23="","",IF(K23="","",(INDEX(Прайс_Валенсия!$L$3:$CO$8031,MATCH(D23,Прайс_Валенсия!$D$3:$D$8031,0),MATCH(K23,Прайс_Валенсия!$L$2:$CO$2,0))+0)*IF(Процент!$A$1=0,1,Процент!$A$1+1)))) ->  | AA23: =IF(Шапка!$D$16<>"Валенсия",IF($D23="","",VLOOKUP($D23,Основной_прайс!$D$3:$K$6120,6,FALSE)),IF($D23="","",VLOOKUP($D23,Прайс_Валенсия!$D$3:$K$7247,6,FALSE))) ->  | AB23: =IF(Шапка!$D$16<>"Валенсия",IF($D23="","",VLOOKUP($D23,Основной_прайс!$D$3:$K$6120,7,FALSE)),IF($D23="","",VLOOKUP($D23,Прайс_Валенсия!$D$3:$K$7247,7,FALSE))) ->  | AC23: =IF(Шапка!$D$16<>"Валенсия",IF($D23="","",VLOOKUP($D23,Основной_прайс!$D$3:$K$6120,8,FALSE)),IF($D23="","",VLOOKUP($D23,Прайс_Валенсия!$D$3:$K$7247,8,FALSE))) -> 
A24: 22 | G24: =IF(Шапка!$D$16<>"Валенсия",IF($D24="","",VLOOKUP($D24,Основной_прайс!$D$3:$K$6120,6,FALSE)),IF($D24="","",VLOOKUP($D24,Прайс_Валенсия!$D$3:$K$7247,6,FALSE))) ->  | H24: =IF(Шапка!$D$16<>"Валенсия",IF($D24="","",VLOOKUP($D24,Основной_прайс!$D$3:$K$6120,7,FALSE)),IF($D24="","",VLOOKUP($D24,Прайс_Валенсия!$D$3:$K$7247,7,FALSE))) ->  | I24: =IF(Шапка!$D$16<>"Валенсия",IF($D24="","",VLOOKUP($D24,Основной_прайс!$D$3:$K$6120,8,FALSE)),IF($D24="","",VLOOKUP($D24,Прайс_Валенсия!$D$3:$K$7247,8,FALSE))) ->  | N24: =IF(Шапка!$D$16<>"Валенсия", IF(D24="","",IF(K24="","",(INDEX(Основной_прайс!$L$3:$CE$6904,MATCH(D24,Основной_прайс!$D$3:$D$6904,0),MATCH(K24,Основной_прайс!$L$2:$CE$2,0))+Лист4!L69)*IF(Процент!$A$1=0,1,Процент!$A$1+1))), IF(D24="","",IF(K24="","",(INDEX(Прайс_Валенсия!$L$3:$CO$8031,MATCH(D24,Прайс_Валенсия!$D$3:$D$8031,0),MATCH(K24,Прайс_Валенсия!$L$2:$CO$2,0))+0)*IF(Процент!$A$1=0,1,Процент!$A$1+1)))) ->  | AA24: =IF(Шапка!$D$16<>"Валенсия",IF($D24="","",VLOOKUP($D24,Основной_прайс!$D$3:$K$6120,6,FALSE)),IF($D24="","",VLOOKUP($D24,Прайс_Валенсия!$D$3:$K$7247,6,FALSE))) ->  | AB24: =IF(Шапка!$D$16<>"Валенсия",IF($D24="","",VLOOKUP($D24,Основной_прайс!$D$3:$K$6120,7,FALSE)),IF($D24="","",VLOOKUP($D24,Прайс_Валенсия!$D$3:$K$7247,7,FALSE))) ->  | AC24: =IF(Шапка!$D$16<>"Валенсия",IF($D24="","",VLOOKUP($D24,Основной_прайс!$D$3:$K$6120,8,FALSE)),IF($D24="","",VLOOKUP($D24,Прайс_Валенсия!$D$3:$K$7247,8,FALSE))) -> 
A25: 23 | G25: =IF(Шапка!$D$16<>"Валенсия",IF($D25="","",VLOOKUP($D25,Основной_прайс!$D$3:$K$6120,6,FALSE)),IF($D25="","",VLOOKUP($D25,Прайс_Валенсия!$D$3:$K$7247,6,FALSE))) ->  | H25: =IF(Шапка!$D$16<>"Валенсия",IF($D25="","",VLOOKUP($D25,Основной_прайс!$D$3:$K$6120,7,FALSE)),IF($D25="","",VLOOKUP($D25,Прайс_Валенсия!$D$3:$K$7247,7,FALSE))) ->  | I25: =IF(Шапка!$D$16<>"Валенсия",IF($D25="","",VLOOKUP($D25,Основной_прайс!$D$3:$K$6120,8,FALSE)),IF($D25="","",VLOOKUP($D25,Прайс_Валенсия!$D$3:$K$7247,8,FALSE))) ->  | N25: =IF(Шапка!$D$16<>"Валенсия", IF(D25="","",IF(K25="","",(INDEX(Основной_прайс!$L$3:$CE$6904,MATCH(D25,Основной_прайс!$D$3:$D$6904,0),MATCH(K25,Основной_прайс!$L$2:$CE$2,0))+Лист4!L70)*IF(Процент!$A$1=0,1,Процент!$A$1+1))), IF(D25="","",IF(K25="","",(INDEX(Прайс_Валенсия!$L$3:$CO$8031,MATCH(D25,Прайс_Валенсия!$D$3:$D$8031,0),MATCH(K25,Прайс_Валенсия!$L$2:$CO$2,0))+0)*IF(Процент!$A$1=0,1,Процент!$A$1+1)))) ->  | AA25: =IF(Шапка!$D$16<>"Валенсия",IF($D25="","",VLOOKUP($D25,Основной_прайс!$D$3:$K$6120,6,FALSE)),IF($D25="","",VLOOKUP($D25,Прайс_Валенсия!$D$3:$K$7247,6,FALSE))) ->  | AB25: =IF(Шапка!$D$16<>"Валенсия",IF($D25="","",VLOOKUP($D25,Основной_прайс!$D$3:$K$6120,7,FALSE)),IF($D25="","",VLOOKUP($D25,Прайс_Валенсия!$D$3:$K$7247,7,FALSE))) ->  | AC25: =IF(Шапка!$D$16<>"Валенсия",IF($D25="","",VLOOKUP($D25,Основной_прайс!$D$3:$K$6120,8,FALSE)),IF($D25="","",VLOOKUP($D25,Прайс_Валенсия!$D$3:$K$7247,8,FALSE))) -> 
A26: 24 | G26: =IF(Шапка!$D$16<>"Валенсия",IF($D26="","",VLOOKUP($D26,Основной_прайс!$D$3:$K$6120,6,FALSE)),IF($D26="","",VLOOKUP($D26,Прайс_Валенсия!$D$3:$K$7247,6,FALSE))) ->  | H26: =IF(Шапка!$D$16<>"Валенсия",IF($D26="","",VLOOKUP($D26,Основной_прайс!$D$3:$K$6120,7,FALSE)),IF($D26="","",VLOOKUP($D26,Прайс_Валенсия!$D$3:$K$7247,7,FALSE))) ->  | I26: =IF(Шапка!$D$16<>"Валенсия",IF($D26="","",VLOOKUP($D26,Основной_прайс!$D$3:$K$6120,8,FALSE)),IF($D26="","",VLOOKUP($D26,Прайс_Валенсия!$D$3:$K$7247,8,FALSE))) ->  | N26: =IF(Шапка!$D$16<>"Валенсия", IF(D26="","",IF(K26="","",(INDEX(Основной_прайс!$L$3:$CE$6904,MATCH(D26,Основной_прайс!$D$3:$D$6904,0),MATCH(K26,Основной_прайс!$L$2:$CE$2,0))+Лист4!L71)*IF(Процент!$A$1=0,1,Процент!$A$1+1))), IF(D26="","",IF(K26="","",(INDEX(Прайс_Валенсия!$L$3:$CO$8031,MATCH(D26,Прайс_Валенсия!$D$3:$D$8031,0),MATCH(K26,Прайс_Валенсия!$L$2:$CO$2,0))+0)*IF(Процент!$A$1=0,1,Процент!$A$1+1)))) ->  | AA26: =IF(Шапка!$D$16<>"Валенсия",IF($D26="","",VLOOKUP($D26,Основной_прайс!$D$3:$K$6120,6,FALSE)),IF($D26="","",VLOOKUP($D26,Прайс_Валенсия!$D$3:$K$7247,6,FALSE))) ->  | AB26: =IF(Шапка!$D$16<>"Валенсия",IF($D26="","",VLOOKUP($D26,Основной_прайс!$D$3:$K$6120,7,FALSE)),IF($D26="","",VLOOKUP($D26,Прайс_Валенсия!$D$3:$K$7247,7,FALSE))) ->  | AC26: =IF(Шапка!$D$16<>"Валенсия",IF($D26="","",VLOOKUP($D26,Основной_прайс!$D$3:$K$6120,8,FALSE)),IF($D26="","",VLOOKUP($D26,Прайс_Валенсия!$D$3:$K$7247,8,FALSE))) -> 
A27: 25 | G27: =IF(Шапка!$D$16<>"Валенсия",IF($D27="","",VLOOKUP($D27,Основной_прайс!$D$3:$K$6120,6,FALSE)),IF($D27="","",VLOOKUP($D27,Прайс_Валенсия!$D$3:$K$7247,6,FALSE))) ->  | H27: =IF(Шапка!$D$16<>"Валенсия",IF($D27="","",VLOOKUP($D27,Основной_прайс!$D$3:$K$6120,7,FALSE)),IF($D27="","",VLOOKUP($D27,Прайс_Валенсия!$D$3:$K$7247,7,FALSE))) ->  | I27: =IF(Шапка!$D$16<>"Валенсия",IF($D27="","",VLOOKUP($D27,Основной_прайс!$D$3:$K$6120,8,FALSE)),IF($D27="","",VLOOKUP($D27,Прайс_Валенсия!$D$3:$K$7247,8,FALSE))) ->  | N27: =IF(Шапка!$D$16<>"Валенсия", IF(D27="","",IF(K27="","",(INDEX(Основной_прайс!$L$3:$CE$6904,MATCH(D27,Основной_прайс!$D$3:$D$6904,0),MATCH(K27,Основной_прайс!$L$2:$CE$2,0))+Лист4!L72)*IF(Процент!$A$1=0,1,Процент!$A$1+1))), IF(D27="","",IF(K27="","",(INDEX(Прайс_Валенсия!$L$3:$CO$8031,MATCH(D27,Прайс_Валенсия!$D$3:$D$8031,0),MATCH(K27,Прайс_Валенсия!$L$2:$CO$2,0))+0)*IF(Процент!$A$1=0,1,Процент!$A$1+1)))) ->  | AA27: =IF(Шапка!$D$16<>"Валенсия",IF($D27="","",VLOOKUP($D27,Основной_прайс!$D$3:$K$6120,6,FALSE)),IF($D27="","",VLOOKUP($D27,Прайс_Валенсия!$D$3:$K$7247,6,FALSE))) ->  | AB27: =IF(Шапка!$D$16<>"Валенсия",IF($D27="","",VLOOKUP($D27,Основной_прайс!$D$3:$K$6120,7,FALSE)),IF($D27="","",VLOOKUP($D27,Прайс_Валенсия!$D$3:$K$7247,7,FALSE))) ->  | AC27: =IF(Шапка!$D$16<>"Валенсия",IF($D27="","",VLOOKUP($D27,Основной_прайс!$D$3:$K$6120,8,FALSE)),IF($D27="","",VLOOKUP($D27,Прайс_Валенсия!$D$3:$K$7247,8,FALSE))) -> 
A28: 26 | G28: =IF(Шапка!$D$16<>"Валенсия",IF($D28="","",VLOOKUP($D28,Основной_прайс!$D$3:$K$6120,6,FALSE)),IF($D28="","",VLOOKUP($D28,Прайс_Валенсия!$D$3:$K$7247,6,FALSE))) ->  | H28: =IF(Шапка!$D$16<>"Валенсия",IF($D28="","",VLOOKUP($D28,Основной_прайс!$D$3:$K$6120,7,FALSE)),IF($D28="","",VLOOKUP($D28,Прайс_Валенсия!$D$3:$K$7247,7,FALSE))) ->  | I28: =IF(Шапка!$D$16<>"Валенсия",IF($D28="","",VLOOKUP($D28,Основной_прайс!$D$3:$K$6120,8,FALSE)),IF($D28="","",VLOOKUP($D28,Прайс_Валенсия!$D$3:$K$7247,8,FALSE))) ->  | N28: =IF(Шапка!$D$16<>"Валенсия", IF(D28="","",IF(K28="","",(INDEX(Основной_прайс!$L$3:$CE$6904,MATCH(D28,Основной_прайс!$D$3:$D$6904,0),MATCH(K28,Основной_прайс!$L$2:$CE$2,0))+Лист4!L73)*IF(Процент!$A$1=0,1,Процент!$A$1+1))), IF(D28="","",IF(K28="","",(INDEX(Прайс_Валенсия!$L$3:$CO$8031,MATCH(D28,Прайс_Валенсия!$D$3:$D$8031,0),MATCH(K28,Прайс_Валенсия!$L$2:$CO$2,0))+0)*IF(Процент!$A$1=0,1,Процент!$A$1+1)))) ->  | AA28: =IF(Шапка!$D$16<>"Валенсия",IF($D28="","",VLOOKUP($D28,Основной_прайс!$D$3:$K$6120,6,FALSE)),IF($D28="","",VLOOKUP($D28,Прайс_Валенсия!$D$3:$K$7247,6,FALSE))) ->  | AB28: =IF(Шапка!$D$16<>"Валенсия",IF($D28="","",VLOOKUP($D28,Основной_прайс!$D$3:$K$6120,7,FALSE)),IF($D28="","",VLOOKUP($D28,Прайс_Валенсия!$D$3:$K$7247,7,FALSE))) ->  | AC28: =IF(Шапка!$D$16<>"Валенсия",IF($D28="","",VLOOKUP($D28,Основной_прайс!$D$3:$K$6120,8,FALSE)),IF($D28="","",VLOOKUP($D28,Прайс_Валенсия!$D$3:$K$7247,8,FALSE))) -> 
A29: 27 | G29: =IF(Шапка!$D$16<>"Валенсия",IF($D29="","",VLOOKUP($D29,Основной_прайс!$D$3:$K$6120,6,FALSE)),IF($D29="","",VLOOKUP($D29,Прайс_Валенсия!$D$3:$K$7247,6,FALSE))) ->  | H29: =IF(Шапка!$D$16<>"Валенсия",IF($D29="","",VLOOKUP($D29,Основной_прайс!$D$3:$K$6120,7,FALSE)),IF($D29="","",VLOOKUP($D29,Прайс_Валенсия!$D$3:$K$7247,7,FALSE))) ->  | I29: =IF(Шапка!$D$16<>"Валенсия",IF($D29="","",VLOOKUP($D29,Основной_прайс!$D$3:$K$6120,8,FALSE)),IF($D29="","",VLOOKUP($D29,Прайс_Валенсия!$D$3:$K$7247,8,FALSE))) ->  | N29: =IF(Шапка!$D$16<>"Валенсия", IF(D29="","",IF(K29="","",(INDEX(Основной_прайс!$L$3:$CE$6904,MATCH(D29,Основной_прайс!$D$3:$D$6904,0),MATCH(K29,Основной_прайс!$L$2:$CE$2,0))+Лист4!L74)*IF(Процент!$A$1=0,1,Процент!$A$1+1))), IF(D29="","",IF(K29="","",(INDEX(Прайс_Валенсия!$L$3:$CO$8031,MATCH(D29,Прайс_Валенсия!$D$3:$D$8031,0),MATCH(K29,Прайс_Валенсия!$L$2:$CO$2,0))+0)*IF(Процент!$A$1=0,1,Процент!$A$1+1)))) ->  | AA29: =IF(Шапка!$D$16<>"Валенсия",IF($D29="","",VLOOKUP($D29,Основной_прайс!$D$3:$K$6120,6,FALSE)),IF($D29="","",VLOOKUP($D29,Прайс_Валенсия!$D$3:$K$7247,6,FALSE))) ->  | AB29: =IF(Шапка!$D$16<>"Валенсия",IF($D29="","",VLOOKUP($D29,Основной_прайс!$D$3:$K$6120,7,FALSE)),IF($D29="","",VLOOKUP($D29,Прайс_Валенсия!$D$3:$K$7247,7,FALSE))) ->  | AC29: =IF(Шапка!$D$16<>"Валенсия",IF($D29="","",VLOOKUP($D29,Основной_прайс!$D$3:$K$6120,8,FALSE)),IF($D29="","",VLOOKUP($D29,Прайс_Валенсия!$D$3:$K$7247,8,FALSE))) -> 
A30: 28 | G30: =IF(Шапка!$D$16<>"Валенсия",IF($D30="","",VLOOKUP($D30,Основной_прайс!$D$3:$K$6120,6,FALSE)),IF($D30="","",VLOOKUP($D30,Прайс_Валенсия!$D$3:$K$7247,6,FALSE))) ->  | H30: =IF(Шапка!$D$16<>"Валенсия",IF($D30="","",VLOOKUP($D30,Основной_прайс!$D$3:$K$6120,7,FALSE)),IF($D30="","",VLOOKUP($D30,Прайс_Валенсия!$D$3:$K$7247,7,FALSE))) ->  | I30: =IF(Шапка!$D$16<>"Валенсия",IF($D30="","",VLOOKUP($D30,Основной_прайс!$D$3:$K$6120,8,FALSE)),IF($D30="","",VLOOKUP($D30,Прайс_Валенсия!$D$3:$K$7247,8,FALSE))) ->  | N30: =IF(Шапка!$D$16<>"Валенсия", IF(D30="","",IF(K30="","",(INDEX(Основной_прайс!$L$3:$CE$6904,MATCH(D30,Основной_прайс!$D$3:$D$6904,0),MATCH(K30,Основной_прайс!$L$2:$CE$2,0))+Лист4!L75)*IF(Процент!$A$1=0,1,Процент!$A$1+1))), IF(D30="","",IF(K30="","",(INDEX(Прайс_Валенсия!$L$3:$CO$8031,MATCH(D30,Прайс_Валенсия!$D$3:$D$8031,0),MATCH(K30,Прайс_Валенсия!$L$2:$CO$2,0))+0)*IF(Процент!$A$1=0,1,Процент!$A$1+1)))) ->  | AA30: =IF(Шапка!$D$16<>"Валенсия",IF($D30="","",VLOOKUP($D30,Основной_прайс!$D$3:$K$6120,6,FALSE)),IF($D30="","",VLOOKUP($D30,Прайс_Валенсия!$D$3:$K$7247,6,FALSE))) ->  | AB30: =IF(Шапка!$D$16<>"Валенсия",IF($D30="","",VLOOKUP($D30,Основной_прайс!$D$3:$K$6120,7,FALSE)),IF($D30="","",VLOOKUP($D30,Прайс_Валенсия!$D$3:$K$7247,7,FALSE))) ->  | AC30: =IF(Шапка!$D$16<>"Валенсия",IF($D30="","",VLOOKUP($D30,Основной_прайс!$D$3:$K$6120,8,FALSE)),IF($D30="","",VLOOKUP($D30,Прайс_Валенсия!$D$3:$K$7247,8,FALSE))) -> 
K31: Итого стандартные модули | O31: =SUM(O3:O30) -> 45638.54422
K32: Скидка | N32: 0 | O32: =O31*N32 -> 0
K33: Итого с учетом скидки | O33: =O31-O32 -> 45638.54422
A35: 2.Нестандартные модули
A36: № | B36: ПРИМЕЧАНИЕ | C36: Номер поз. | D36: Тип | G36: Ширина | H36: Высота | I36: Глубина | J36: Кол-во | K36: Коллекция | N36: Цена | O36: Сумма
A37: 1 | O37: =IF(N37="","",N37*J37) -> 
A38: 2
A39: 3
A40: 4
A41: 5
A42: 6
A43: 7
A44: 8
A45: 9
A46: 10
A47: 11
A48: 12
A49: 13
A50: 14
A51: 15
K52: Итого нестандартные модули | O52: =SUM(O37:O51) -> 0
K53: Скидка | N53: 0 | O53: =O52*N53 -> 0
K54: Итого с учетом скидки | O54: =O52-O53 -> 0
A56: 3.Дополнительная комплектация
A57: № | B57: Наименование | E57: Кол-во | F57: Цена | G57: Сумма | J57: № | K57: Наименование | L57: Кол-во | N57: Цена | O57: Сумма
A58: 1 | B58: Ручка рейлинг мебельная R-302 | E58: 12 | F58: 65 | G58: =IF(F58="","",F58*E58) -> 780 | J58: 17 | O58: =IF(L58="","",N58*L58) -> 
A59: 2 | B59: мойка U-502/цвет 302 песочный | E59: 1 | F59: 4198 | G59: 4198 | J59: 18 | O59: =IF(L59="","",N59*L59) -> 
A60: 3 | B60: столешница 2 категории до 600, еврозапил | E60: 2,8 | F60: 1431 | G60: 4006.8 | J60: 19
A61: 4 | B61: кромка для столешницы 4026 Аламбра | E61: 4,000 | F61: 560 | G61: 2240 | J61: 20
A62: 5 | B62: стяжки для столешницы | E62: 2 | F62: 172 | G62: 344 | J62: 21
A63: 6 | B63: плинтус №5 | E63: 1 | F63: 1595 | G63: 1595 | J63: 22
A64: 7 | B64: заглушки к плинтусу | E64: 1 | F64: 361 | G64: 361 | J64: 23
A65: 8 | B65: цоколь ЦОКОЛЬ REHAU 1164L ВЫБЕЛЕННЫЙ ДУБ(100ММ.) | E65: 1 | F65: 1059 | G65: 1059 | J65: 24
A66: 9 | B66: заглушки торц. к цоколю | E66: 2 | F66: 41 | G66: 82 | J66: 25
A67: 10 | B67: угол 90 град к цоколю (внутренний) | E67: 1 | F67: 55 | G67: 55 | J67: 26
A68: 11 | J68: 27
A69: 12 | J69: 28
A70: 13 | J70: 29
A71: 14 | J71: 30
A72: 15 | J72: 31
A73: 16 | J73: 32
K74: Итого дополнительная комплектация | O74: =(SUM(O58:O73)+SUM(G58:G73))+Лист4!G76+Лист4!H77 -> 14720.8
K75: Скидка | N75: 0 | O75: =O74*N75 -> 0
K76: Итого с учетом скидки | O76: =O74-O75 -> 14720.8

Sheet Основной_прайс
CT1: 1200 | CU1: 800 | CV1: 97
B2: Номер модуля | E2: Наименование модуля | G2: Рисунок модуля | H2: верх_низ | I2: ШИРИНА КОРПУСА | J2: ВЫСОТА КОРПУСА | K2: ГЛУБИНА КОРПУСА | L2: Севилья в Al профиле Категория 1 | M2: Севилья в Al профиле Категория 2 | N2: Севилья в Al профиле Категория 3 | O2: Севилья в Al профиле Категория 4 | P2: Севилья в Al профиле Категория 5 | Q2: Севилья в ЦВЕТНОМ профиле Категория 1 | R2: Севилья в ЦВЕТНОМl профиле Категория 2 | S2: Севилья в ЦВЕТНОМ профиле Категория 3 | T2: Севилья в ЦВЕТНОМ профиле Категория 4 | U2: Севилья в ЦВЕТНОМ профиле Категория 5 | V2: Севилья кант ПВХ Категория 1 | W2: Севилья кант ПВХ Категория 2 | X2: Севилья кант ПВХ Категория 3 | Y2: Севилья кант ПВХ Категория 4 | Z2: Севилья кант ПВХ Категория 5 | AA2: Севилья в кромке ABS Категория 1 | AB2: Севилья в кромке ABS Категория 2 | AC2: Севилья в кромке ABS Категория 3 | AD2: Севилья в кромке ABS Категория 4 | AE2: Севилья в кромке ABS Категория 5 | AF2: Севилья в 3D канте Категория 1 | AG2: Севилья в 3D канте Категория 2 | AH2: Севилья в 3D канте Категория 3 | AI2: Севилья в 3D канте Категория 4 | AJ2: Севилья в 3D канте Категория 5 | AK2: Помпея Категория 1 | AL2: Помпея Категория 2 | AM2: Помпея Категория 3 | AN2: Помпея Категория 4 ПАТИНА | AO2: Помпея Категория 6 Асти 19 мм | AP2: Аликанте Высокий глянец 16 мм | AQ2: Аликанте Матовая 16 мм | AR2: Аликанте ЖЕМЧУГ, ПЕРЛАМУТР 16 мм | AS2: Аликанте Спецэффект №1 16 мм | AT2: Аликанте Спецэффект №2 16 мм | AU2: Аликанте Спецэффект №3 16 мм | AV2: Аликанте Спецэффект №4 16 мм | AW2: Аликанте Спецэффект №5 16 мм | AX2: Аликанте Палаццио глянцевая 16 мм | AY2: Аликанте Палаццио матовая 16 мм | AZ2: Аликанте Спецэффект №2 + Фотопечать 16 мм | BA2: Аликанте Фотопечать 16 мм | BB2: Аликанте Высокий глянец 19 мм | BC2: Аликанте Матовая 19 мм | BD2: АликантеЖЕМЧУГ, ПЕРЛАМУТР 19 мм | BE2: Аликанте Спецэффект №1 19 мм | BF2: Аликанте Спецэффект №2 19 мм и Эффект ХРОМ | BG2: Аликанте Спецэффект №3 19 мм | BH2: Аликанте Спецэффект №4 19 мм | BI2: Аликанте Спецэффект №5 19 мм | BJ2: Аликанте Паллацио глянцевая 19 мм | BK2: Аликанте Паллацио матовая 19 мм | BL2: Аликанте Спецэффект №2 + Фотопечать 19 мм | BM2: Аликанте Фотопечать 19 мм | BN2: Аликанте Асти 19 мм | BO2: Аликанте Монреаль 19 мм | BP2: Аликанте Ампир 19 мм | BQ2: Барселона (Модера) | BR2: Барселона (Эра) | BS2: Барселона Высокий глянец (Модера-мыло) | BT2: Барселона Высокий глянец (Арче, Техно, Техно-Горизонталь, Модера-горизонталь) | BU2: Барселона спецэффект №1 (Арче, Техно, Техно-Горизонталь) | BV2: Барселона спецэффект №2 (Арче, Техно, Техно-Горизонталь) | BW2: Барселона спецэффект №3 (Арче, Техно, Техно-Горизонталь) | BX2: Барселона спецэффект №4 (Арче, Техно, Техно-Горизонталь) | BY2: Барселона спецэффект №5 (Арче, Техно, Техно-Горизонталь) | BZ2: Толедо БАВАРИЯ дуб тонирование | CA2: Толедо БАВАРИЯ дуб эмаль + патина | CB2: Толедо ШАЛЕ дуб тонирование | CC2: Толедо ШАЛЕ дуб эмаль + патина | CD2: Галисия | CE2: ВЕРДЕ | CG2: основной прайс | CQ2: Квадратура для пересчета под врезную ручку каталог Севилья ("Ф" отсутствует) | CS2: Погонаж на позицию | CT2: Профиль 901307 | CU2: Профиль 901304 | CV2: Севилья
A3: 1 | B3: 1 | C3: =IF(B3<>0,LOOKUP(,-CODE(B$3:B3),B$3:B3),C2) -> 1 | D3: 1(300)-528 | E3: Тумба кухонная однодверный, полка ЛДСП | F3: =IF(E3<>0,LOOKUP(,-CODE(E$3:E3),E$3:E3),F2) -> Тумба кухонная однодверный, полка ЛДСП | H3: 1 | I3: 300 | J3: 720 | K3: 528 | L3: 2545.100182 | M3: 2677.724819 | N3: 3511.036846 | O3: 3969.856761 | P3: 4586.982963 | Q3: 2593.436182 | R3: 2726.060819 | S3: 3559.372846 | T3: 4018.192761 | U3: 4635.318963 | V3: 2473.868182 | W3: 2606.492819 | X3: 3513.138834 | Y3: 3991.076246 | Z3: 4633.91604 | AA3: 2849.590691 | AB3: 3004.319434 | AC3: 3976.516799 | AD3: 4511.8067 | AE3: 5231.787269 | AF3: 3200.103437 | AG3: 3343.780127 | AH3: 4246.534823 | AI3: 4743.589731 | AJ3: 5412.143116 | AK3: 2098.282522 | AL3: 2253.01848 | AM3: 2346.393627 | AN3: 2653.155888 | AO3: 2767.401376 | AP3: 3147.168382 | AQ3: 2840.325377 | AR3: 3253.490051 | AS3: 3738.30509 | AT3: 3964.437763 | AU3: 4577.505689 | AV3: 5044.130718 | AW3: 5496.913529 | AX3: 4016.327951 | AY3: 3586.987417 | AZ3: 4765.688987 | BA3: 4067.108062 | BB3: 3147.168382 | BC3: 2840.325377 | BD3: 3311.775271 | BE3: 3738.30509 | BF3: 3964.437763 | BG3: 4577.505689 | BH3: 5044.130718 | BI3: 5496.913529 | BJ3: 3996.79744 | BK3: 3580.084569 | BL3: 4884.377443 | BM3: 4067.108062 | BN3: 3661.486587 | BO3: 3376.199583 | BP3: 4873.377017 | BQ3: 3308.955802 | BR3: 4301.075645 | BS3: 3576.458324 | BT3: 3804.058627 | BU3: 4602.168494 | BV3: 4974.620273 | BW3: 5626.697142 | BX3: 6163.315925 | BY3: 6684.016158 | BZ3: 5618.177609 | CA3: 6879.755849 | CB3: 7094.062409 | CC3: 8015.984969 | CD3: 3375.893001 | CE3: 2157.261129 | CG3: =INDIRECT(ADDRESS(2,ROW()+9)) -> Севилья в Al профиле Категория 1 | CH3: 1 | CI3: =IF(CH3<>0,LOOKUP(,-CODE(CH$3:CH3),CH$3:CH3),CI2) -> 1 | CQ3: =$I3*$J3/1000000 -> 0.216 | CR3: =IFERROR(CQ3*300,"Ф") -> 64.8 | CS3: =IFERROR(($I3+CR3-CR3)/1000,"Ф") -> 0.3 | CT3: =IFERROR($CS3*$CT$1,"Ф") -> 360 | CU3: ф | CV3: =IFERROR($CR3+CT3,"Ф") -> 424.8
A4: 0 | B4: 0 | C4: =IF(B4<>0,LOOKUP(,-CODE(B$3:B4),B$3:B4),C3) -> 1 | D4: 1(350)-528 | E4: Тумба кухонная однодверный, полка ЛДСП | F4: =IF(E4<>0,LOOKUP(,-CODE(E$3:E4),E$3:E4),F3) -> Тумба кухонная однодверный, полка ЛДСП | H4: 1 | I4: 350 | J4: 720 | K4: 528 | L4: 2726.128067 | M4: 2881.080085 | N4: 3854.680331 | O4: 4390.742657 | P4: 5111.762159 | Q4: 2776.744067 | R4: 2931.696085 | S4: 3905.296331 | T4: 4441.358657 | U4: 5162.378159 | V4: 2651.536067 | W4: 2806.488085 | X4: 3864.894641 | Y4: 4423.292897 | Z4: 5174.354878 | AA4: 3057.525261 | AB4: 3238.302615 | AC4: 4374.169569 | AD4: 4999.575616 | AE4: 5840.765035 | AF4: 3418.299664 | AG4: 3586.16435 | AH4: 4640.89795 | AI4: 5221.632136 | AJ4: 6002.736597 | AK4: 2225.538211 | AL4: 2399.762325 | AM4: 2504.897566 | AN4: 2864.811735 | AO4: 2997.06487 | AP4: 3459.149702 | AQ4: 3100.649625 | AR4: 3583.370642 | AS4: 4149.804374 | AT4: 4414.00652 | AU4: 5130.284535 | AV4: 5675.465966 | AW4: 6204.47484 | AX4: 4474.63243 | AY4: 3973.012346 | AZ4: 5350.148523 | BA4: 4533.961382 | BB4: 3459.149702 | BC4: 3100.649625 | BD4: 3651.468188 | BE4: 4149.804374 | BF4: 4414.00652 | BG4: 5130.284535 | BH4: 5675.465966 | BI4: 6204.47484 | BJ4: 4451.813954 | BK4: 3964.947402 | BL4: 5488.8182 | BM4: 4533.961382 | BN4: 4060.053463 | BO4: 3726.738344 | BP4: 5311.127872 | BQ4: 3648.174061 | BR4: 4807.317447 | BS4: 3960.710677 | BT4: 4226.62753 | BU4: 5159.099327 | BV4: 5594.253427 | BW4: 6356.107546 | BX4: 6983.066192 | BY4: 7591.426396 | BZ4: 6339.523464 | CA4: 7811.364744 | CB4: 8061.389064 | CC4: 9136.965384 | CD4: 3647.698165 | CE4: 2267.168904 | CG4: =INDIRECT(ADDRESS(2,ROW()+9)) -> Севилья в Al профиле Категория 2 | CH4: 0 | CI4: =IF(CH4<>0,LOOKUP(,-CODE(CH$3:CH4),CH$3:CH4),CI3) -> 1 | CQ4: 0.252 | CR4: =IFERROR(CQ4*300,"Ф") -> 75.6 | CS4: =IFERROR(($I4+CR4-CR4)/1000,"Ф") -> 0.35 | CT4: 420 | CU4: ф | CV4: =IFERROR($CR4+CT4,"Ф") -> 495.6
A5: 0 | B5: 0 | C5: =IF(B5<>0,LOOKUP(,-CODE(B$3:B5),B$3:B5),C4) -> 1 | D5: 1(400)-528 | E5: Тумба кухонная однодверный, полка ЛДСП | F5: =IF(E5<>0,LOOKUP(,-CODE(E$3:E5),E$3:E5),F4) -> Тумба кухонная однодверный, полка ЛДСП | H5: 1 | I5: 400 | J5: 720 | K5: 528 | L5: 2907.155953 | M5: 3084.43535 | N5: 4198.323817 | O5: 4811.628552 | P5: 5636.541354 | Q5: 2960.051953 | R5: 3137.33135 | S5: 4251.219817 | T5: 4864.524552 | U5: 5689.437354 | V5: 2829.203953 | W5: 3006.48335 | X5: 4216.650448 | Y5: 4855.509547 | Z5: 5714.793716 | AA5: 3265.459832 | AB5: 3472.285795 | AC5: 4771.82234 | AD5: 5487.344531 | AE5: 6449.7428 | AF5: 3636.495892 | AG5: 3828.548573 | AH5: 5035.261078 | AI5: 5699.674542 | AJ5: 6593.330077 | AK5: 2352.7939 | AL5: 2546.50617 | AM5: 2663.401505 | AN5: 3076.467582 | AO5: 3226.728365 | AP5: 3771.131022 | AQ5: 3360.973873 | AR5: 3913.251232 | AS5: 4561.303658 | AT5: 4863.575278 | AU5: 5683.063382 | AV5: 6306.801215 | AW5: 6912.036151 | AX5: 4932.93691 | AY5: 4359.037274 | AZ5: 5934.608059 | BA5: 5000.814702 | BB5: 3771.131022 | BC5: 3360.973873 | BD5: 3991.161105 | BE5: 4561.303658 | BF5: 4863.575278 | BG5: 5683.063382 | BH5: 6306.801215 | BI5: 6912.036151 | BJ5: 4906.830469 | BK5: 4349.810234 | BL5: 6093.258958 | BM5: 5000.814702 | BN5: 4458.620339 | BO5: 4077.277105 | BP5: 3964.942726 | BQ5: 3987.39232 | BR5: 5313.559249 | BS5: 4344.963031 | BT5: 4649.196433 | BU5: 5716.03016 | BV5: 6213.88658 | BW5: 7085.51795 | BX5: 7802.816458 | BY5: 8498.836635 | BZ5: 6858.900679 | CA5: 8476.308679 | CB5: 8751.060679 | CC5: 9933.012679 | CD5: 3943.503329 | CE5: 2377.076679 | CG5: Севилья в Al профиле Категория 3 | CH5: 0 | CI5: =IF(CH5<>0,LOOKUP(,-CODE(CH$3:CH5),CH$3:CH5),CI4) -> 1 | CQ5: 0.288 | CR5: 86.4 | CS5: 0.4 | CT5: 480 | CU5: ф | CV5: 566.4
A6: 0 | B6: 0 | C6: =IF(B6<>0,LOOKUP(,-CODE(B$3:B6),B$3:B6),C5) -> 1 | D6: 1(450)-528 | E6: Тумба кухонная однодверный, полка ЛДСП | F6: =IF(E6<>0,LOOKUP(,-CODE(E$3:E6),E$3:E6),F5) -> Тумба кухонная однодверный, полка ЛДСП | H6: 1 | I6: 450 | J6: 720 | K6: 528 | L6: 3088.183838 | M6: 3287.790615 | N6: 4541.967302 | O6: 5232.514448 | P6: 6161.32055 | Q6: 3143.359838 | R6: 3342.966615 | S6: 4597.143302 | T6: 5287.690448 | U6: 6216.49655 | V6: 3006.871838 | W6: 3206.478615 | X6: 4568.406254 | Y6: 5287.726197 | Z6: 6255.232554 | AA6: 3473.394402 | AB6: 3706.268975 | AC6: 5169.47511 | AD6: 5975.113446 | AE6: 7058.720565 | AF6: 3854.69212 | AG6: 4070.932795 | AH6: 5429.624206 | AI6: 6177.716947 | AJ6: 7183.923557 | AK6: 2480.049589 | AL6: 2693.250014 | AM6: 2821.905444 | AN6: 3288.123429 | AO6: 3456.39186 | AP6: 4083.112341 | AQ6: 3621.298121 | AR6: 4243.131823 | AS6: 4972.802942 | AT6: 5313.144036 | AU6: 6235.842228 | AV6: 6938.136463 | AW6: 7619.597462 | AX6: 5391.241389 | AY6: 4745.062202 | AZ6: 6519.067595 | BA6: 5467.668021 | BB6: 4083.112341 | BC6: 3621.298121 | BD6: 4330.854022 | BE6: 4972.802942 | BF6: 5313.144036 | BG6: 6235.842228 | BH6: 6938.136463 | BI6: 7619.597462 | BJ6: 5361.846983 | BK6: 4734.673067 | BL6: 6697.699716 | BM6: 5467.668021 | BN6: 4857.187215 | BO6: 4427.815866 | BP6: 6186.62958 | BQ6: 4326.610579 | BR6: 5819.801051 | BS6: 4729.215384 | BT6: 5071.765336 | BU6: 6272.960994 | BV6: 6833.519733 | BW6: 7814.928354 | BX6: 8622.566724 | BY6: 9406.246873 | BZ6: 7555.000455 | CA6: 9374.584455 | CB6: 9683.680455 | CC6: 11013.37645 | CD6: 4239.308493 | CE6: 2486.984455 | CG6: Севилья в Al профиле Категория 4 | CH6: 0 | CI6: =IF(CH6<>0,LOOKUP(,-CODE(CH$3:CH6),CH$3:CH6),CI5) -> 1 | CQ6: 0.324 | CR6: 97.2 | CS6: 0.45 | CT6: 540 | CU6: ф | CV6: 637.2
A7: 0 | B7: 0 | C7: =IF(B7<>0,LOOKUP(,-CODE(B$3:B7),B$3:B7),C6) -> 1 | D7: 1(500)-528 | E7: Тумба кухонная однодверный, полка ЛДСП | F7: =IF(E7<>0,LOOKUP(,-CODE(E$3:E7),E$3:E7),F6) -> Тумба кухонная однодверный, полка ЛДСП | H7: 1 | I7: 500 | J7: 720 | K7: 528 | L7: 3269.211724 | M7: 3491.145881 | N7: 4885.610788 | O7: 5653.400343 | P7: 6686.099745 | Q7: 3326.667724 | R7: 3548.601881 | S7: 4943.066788 | T7: 5710.856343 | U7: 6743.555745 | V7: 3184.539724 | W7: 3406.473881 | X7: 4920.162061 | Y7: 5719.942848 | Z7: 6795.671391 | AA7: 3681.328972 | AB7: 3940.252156 | AC7: 5567.12788 | AD7: 6462.882362 | AE7: 7667.698331 | AF7: 4072.888348 | AG7: 4313.317018 | AH7: 5823.987334 | AI7: 6655.759352 | AJ7: 7774.517038 | AK7: 2607.305278 | AL7: 2839.993859 | AM7: 2980.409383 | AN7: 3499.779276 | AO7: 3686.055355 | AP7: 4395.093661 | AQ7: 3881.622369 | AR7: 4573.012414 | AS7: 5384.302226 | AT7: 5762.712793 | AU7: 6788.621074 | AV7: 7569.471711 | AW7: 8327.158772 | AX7: 5849.545868 | AY7: 5131.08713 | AZ7: 7103.527131 | BA7: 5934.521341 | BB7: 4395.093661 | BC7: 3881.622369 | BD7: 4670.546939 | BE7: 5384.302226 | BF7: 5762.712793 | BG7: 6788.621074 | BH7: 7569.471711 | BI7: 8327.158772 | BJ7: 5816.863498 | BK7: 5119.535899 | BL7: 7302.140473 | BM7: 5934.521341 | BN7: 5255.754091 | BO7: 4778.354627 | BP7: 6624.380434 | BQ7: 4665.828838 | BR7: 6326.042852 | BS7: 5113.467738 | BT7: 5494.334239 | BU7: 6829.891827 | BV7: 7453.152886 | BW7: 8544.338758 | BX7: 9442.316991 | BY7: 10313.65711 | BZ7: 8251.10023 | CA7: 10272.86023 | CB7: 10616.30023 | CC7: 12093.74023 | CD7: 4535.113657 | CE7: 2596.89223 | CG7: Севилья в Al профиле Категория 5 | CH7: 0 | CI7: =IF(CH7<>0,LOOKUP(,-CODE(CH$3:CH7),CH$3:CH7),CI6) -> 1 | CQ7: 0.36 | CR7: 108 | CS7: 0.5 | CT7: 600 | CU7: ф | CV7: 708
A8: 0 | B8: 0 | C8: =IF(B8<>0,LOOKUP(,-CODE(B$3:B8),B$3:B8),C7) -> 1 | D8: 1(550)-528 | E8: Тумба кухонная однодверный, полка ЛДСП | F8: =IF(E8<>0,LOOKUP(,-CODE(E$3:E8),E$3:E8),F7) -> Тумба кухонная однодверный, полка ЛДСП | H8: 1 | I8: 550 | J8: 720 | K8: 528 | L8: 3450.239609 | M8: 3694.501146 | N8: 5229.254273 | O8: 6074.286238 | P8: 7210.87894 | Q8: 3509.975609 | R8: 3754.237146 | S8: 5288.990273 | T8: 6134.022238 | U8: 7270.61494 | V8: 3362.207609 | W8: 3606.469146 | X8: 5271.917867 | Y8: 6152.159498 | Z8: 7336.110229 | AA8: 3889.263543 | AB8: 4174.235336 | AC8: 5964.780651 | AD8: 6950.651277 | AE8: 8276.676096 | AF8: 4291.084576 | AG8: 4555.701241 | AH8: 6218.350462 | AI8: 7133.801758 | AJ8: 8365.110518 | AK8: 2734.560967 | AL8: 2986.737704 | AM8: 3138.913321 | AN8: 3711.435122 | AO8: 3915.718849 | AP8: 4707.074981 | AQ8: 4141.946617 | AR8: 4902.893004 | AS8: 5795.801511 | AT8: 6212.281551 | AU8: 7341.39992 | AV8: 8200.806959 | AW8: 9034.720083 | AX8: 6307.850348 | AY8: 5517.112059 | AZ8: 7687.986667 | BA8: 6401.374661 | BB8: 4707.074981 | BC8: 4141.946617 | BD8: 5010.239856 | BE8: 5795.801511 | BF8: 6212.281551 | BG8: 7341.39992 | BH8: 8200.806959 | BI8: 9034.720083 | BJ8: 6271.880013 | BK8: 5504.398732 | BL8: 7906.581231 | BM8: 6401.374661 | BN8: 5654.320967 | BO8: 5128.893388 | BP8: 7062.131289 | BQ8: 5005.047097 | BR8: 6832.284654 | BS8: 5497.720092 | BT8: 5916.903142 | BU8: 7386.822661 | BV8: 8072.78604 | BW8: 9273.749162 | BX8: 10262.06726 | BY8: 11221.06735 | BZ8: 8947.200006 | CA8: 11171.13601 | CB8: 11548.92001 | CC8: 13174.10401 | CD8: 4830.918821 | CE8: 2706.800006 | CG8: Севилья в ЦВЕТНОМ профиле Категория 1 | CH8: 0 | CI8: =IF(CH8<>0,LOOKUP(,-CODE(CH$3:CH8),CH$3:CH8),CI7) -> 1 | CQ8: 0.396 | CR8: 118.8 | CS8: 0.55 | CT8: 660 | CU8: ф | CV8: 778.8
A9: 0 | B9: 0 | C9: =IF(B9<>0,LOOKUP(,-CODE(B$3:B9),B$3:B9),C8) -> 1 | D9: 1(600)-528 | E9: Тумба кухонная однодверный, полка ЛДСП | F9: =IF(E9<>0,LOOKUP(,-CODE(E$3:E9),E$3:E9),F8) -> Тумба кухонная однодверный, полка ЛДСП | H9: 1 | I9: 600 | J9: 720 | K9: 528 | L9: 3631.267494 | M9: 3897.856411 | N9: 5572.897758 | O9: 6495.172134 | P9: 7735.658136 | Q9: 3693.283494 | R9: 3959.872411 | S9: 5634.913758 | T9: 6557.188134 | U9: 7797.674136 | V9: 3539.875494 | W9: 3806.464411 | X9: 5623.673674 | Y9: 6584.376148 | Z9: 7876.549067 | AA9: 4097.198113 | AB9: 4408.218517 | AC9: 6362.433421 | AD9: 7438.420192 | AE9: 8885.653861 | AF9: 4509.280804 | AG9: 4798.085464 | AH9: 6612.71359 | AI9: 7611.844163 | AJ9: 8955.703999 | AK9: 2861.816656 | AL9: 3133.481549 | AM9: 3297.41726 | AN9: 3923.090969 | AO9: 4145.382344 | AP9: 5019.0563 | AQ9: 4402.270865 | AR9: 5232.773595 | AS9: 6207.300795 | AT9: 6661.850308 | AU9: 7894.178766 | AV9: 8832.142208 | AW9: 9742.281394 | AX9: 6766.154827 | AY9: 5903.136987 | AZ9: 8272.446203 | BA9: 6868.22798 | BB9: 5019.0563 | BC9: 4402.270865 | BD9: 5349.932773 | BE9: 6207.300795 | BF9: 6661.850308 | BG9: 7894.178766 | BH9: 8832.142208 | BI9: 9742.281394 | BJ9: 6726.896527 | BK9: 5889.261565 | BL9: 8511.021988 | BM9: 6868.22798 | BN9: 6052.887843 | BO9: 5479.432149 | BP9: 7499.882143 | BQ9: 5344.265356 | BR9: 7338.526456 | BS9: 5881.972445 | BT9: 6339.472045 | BU9: 7943.753494 | BV9: 8692.419193 | BW9: 10003.15957 | BX9: 11081.81752 | BY9: 12128.47759 | BZ9: 9643.299781 | CA9: 12069.41178 | CB9: 12481.53978 | CC9: 14254.46778 | CD9: 5126.723985 | CE9: 2816.707781 | CG9: Севилья в ЦВЕТНОМl профиле Категория 2 | CH9: 0 | CI9: =IF(CH9<>0,LOOKUP(,-CODE(CH$3:CH9),CH$3:CH9),CI8) -> 1 | CQ9: 0.432 | CR9: 129.6 | CS9: 0.6 | CT9: 720 | CU9: ф | CV9: 849.6
A10: 3/2 | B10: 2 | C10: =IF(B10<>0,LOOKUP(,-CODE(B$3:B10),B$3:B10),C9) -> 2 | D10: 2-140(300)-528 | E10: Тумба кухонная однодверный с метабоксом, Н - 140/180 мм, полка ЛДСП | F10: =IF(E10<>0,LOOKUP(,-CODE(E$3:E10),E$3:E10),F9) -> Тумба кухонная однодверный с метабоксом, Н - 140/180 мм, полка ЛДСП | H10: 1 | I10: 300 | J10: 720 | K10: 528 | L10: 3393.514938 | M10: 3525.584661 | N10: 4355.410026 | O10: 4812.310193 | P10: 5426.854277 | Q10: 3456.442938 | R10: 3588.512661 | S10: 4418.338026 | T10: 4875.238193 | U10: 5489.782277 | V10: 3300.778938 | W10: 3432.848661 | X10: 4337.907337 | Y10: 4813.84501 | Z10: 5453.995098 | AA10: 3758.244332 | AB10: 3912.325675 | AC10: 4880.455268 | AD10: 5413.505463 | AE10: 6130.473561 | AF10: 4230.413635 | AG10: 4373.489168 | AH10: 5272.466647 | AI10: 5767.441828 | AJ10: 6433.197919 | AK10: 2898.131798 | AL10: 3071.807286 | AM10: 3176.611459 | AN10: 3477.587447 | AO10: 3595.013403 | AP10: 3918.314167 | AQ10: 3612.755023 | AR10: 4024.190975 | AS10: 4506.977499 | AT10: 4732.16401 | AU10: 5342.666799 | AV10: 5807.339422 | AW10: 6258.227744 | AX10: 4783.837084 | AY10: 4356.292955 | AZ10: 5530.062719 | BA10: 4834.404727 | BB10: 3918.314167 | BC10: 3612.755023 | BD10: 4082.232323 | BE10: 4506.977499 | BF10: 4732.16401 | BG10: 5342.666799 | BH10: 5807.339422 | BI10: 6258.227744 | BJ10: 4764.388291 | BK10: 4349.418989 | BL10: 5648.25457 | BM10: 4834.404727 | BN10: 4430.480412 | BO10: 0 | BP10: 5360.108138 | BQ10: 4079.424652 | BR10: 0 | BS10: 4345.807916 | BT10: 4572.455917 | BU10: 5367.226411 | BV10: 5738.119816 | BW10: 6387.46833 | BX10: 6921.841846 | BY10: 7440.363416 | BZ10: 6417.553375 | CA10: 7686.207775 | CB10: 7901.716375 | CC10: 8828.809975 | CD10: 4142.935616 | CE10: 2934.490575 | CG10: Севилья в ЦВЕТНОМ профиле Категория 3 | CH10: 1 | CI10: =IF(CH10<>0,LOOKUP(,-CODE(CH$3:CH10),CH$3:CH10),CI9) -> 1 | CQ10: Ф | CR10: Ф | CS10: Ф | CT10: Ф | CU10: ф | CV10: Ф
B11: 0 | C11: =IF(B11<>0,LOOKUP(,-CODE(B$3:B11),B$3:B11),C10) -> 2 | D11: 2-140(350)-528 | E11: Тумба кухонная однодверный с метабоксом, Н - 140/180 мм, полка ЛДСП | F11: =IF(E11<>0,LOOKUP(,-CODE(E$3:E11),E$3:E11),F10) -> Тумба кухонная однодверный с метабоксом, Н - 140/180 мм, полка ЛДСП | H11: 1 | I11: 350 | J11: 720 | K11: 528 | L11: 3613.720417 | M11: 3768.024099 | N11: 4737.550705 | O11: 5271.370092 | P11: 5989.372776 | Q11: 3681.208417 | R11: 3835.512099 | S11: 4805.038705 | T11: 5338.858092 | U11: 6056.860776 | V11: 3514.264417 | W11: 3668.568099 | X11: 4725.093758 | Y11: 5281.155619 | Z11: 6029.075082 | AA11: 4014.763581 | AB11: 4194.784543 | AC11: 5325.898917 | AD11: 5948.688201 | AE11: 6786.357999 | AF11: 4516.205999 | AG11: 4683.368321 | AH11: 5733.688811 | AI11: 6311.993146 | AJ11: 7089.829387 | AK11: 3056.284191 | AL11: 3251.833166 | AM11: 3369.836857 | AN11: 3723.175263 | AO11: 3858.994288 | AP11: 4257.356956 | AQ11: 3900.35688 | AR11: 4381.058144 | AS11: 4945.121861 | AT11: 5208.218558 | AU11: 5921.499594 | AV11: 6464.399931 | AW11: 6991.195379 | AX11: 5268.590803 | AY11: 4769.069547 | AZ11: 6140.443649 | BA11: 5327.671516 | BB11: 4257.356956 | BC11: 3900.35688 | BD11: 4448.870763 | BE11: 4945.121861 | BF11: 5208.218558 | BG11: 5921.499594 | BH11: 6464.399931 | BI11: 6991.195379 | BJ11: 5245.867802 | BK11: 4761.038348 | BL11: 6278.533118 | BM11: 5327.671516 | BN11: 4855.746476 | BO11: 0 | BP11: 5824.818331 | BQ11: 4445.590419 | BR11: 0 | BS11: 4756.81935 | BT11: 5021.62358 | BU11: 5950.193822 | BV11: 6383.527193 | BW11: 7142.193638 | BX11: 7766.529026 | BY11: 8372.34379 | BZ11: 7170.676034 | CA11: 8650.772834 | CB11: 8902.199534 | CC11: 9983.808734 | CD11: 4475.650608 | CE11: 3072.913434 | CG11: Севилья в ЦВЕТНОМ профиле Категория 4 | CH11: 0 | CI11: =IF(CH11<>0,LOOKUP(,-CODE(CH$3:CH11),CH$3:CH11),CI10) -> 1 | CQ11: Ф | CR11: Ф | CS11: =IFERROR(($I11+CR11-CR11)/1000,"Ф") -> Ф | CT11: Ф | CU11: ф | CV11: Ф
B12: 0 | C12: =IF(B12<>0,LOOKUP(,-CODE(B$3:B12),B$3:B12),C11) -> 2 | D12: 2-140(400)-528 | E12: Тумба кухонная однодверный с метабоксом, Н - 140/180 мм, полка ЛДСП | F12: =IF(E12<>0,LOOKUP(,-CODE(E$3:E12),E$3:E12),F11) -> Тумба кухонная однодверный с метабоксом, Н - 140/180 мм, полка ЛДСП | H12: 1 | I12: 400 | J12: 720 | K12: 528 | L12: 3833.925896 | M12: 4010.463538 | N12: 5119.691384 | O12: 5730.42999 | P12: 6551.891274 | Q12: 3905.973896 | R12: 4082.511538 | S12: 5191.739384 | T12: 5802.47799 | U12: 6623.939274 | V12: 3727.749896 | W12: 3904.287538 | X12: 5112.280179 | Y12: 5748.466228 | Z12: 6604.155065 | AA12: 4271.282829 | AB12: 4477.243412 | AC12: 5771.342565 | AD12: 6483.87094 | AE12: 7442.242438 | AF12: 4801.998362 | AG12: 4993.247475 | AH12: 6194.910974 | AI12: 6856.544465 | AJ12: 7746.460856 | AK12: 3214.436584 | AL12: 3431.859046 | AM12: 3563.062256 | AN12: 3968.763079 | AO12: 4122.975173 | AP12: 4596.399746 | AQ12: 4187.958736 | AR12: 4737.925312 | AS12: 5383.266222 | AT12: 5684.273106 | AU12: 6500.33239 | AV12: 7121.460441 | AW12: 7724.163013 | AX12: 5753.344522 | AY12: 5181.84614 | AZ12: 6750.824578 | BA12: 5820.938306 | BB12: 4596.399746 | BC12: 4187.958736 | BD12: 4815.509202 | BE12: 5383.266222 | BF12: 5684.273106 | BG12: 6500.33239 | BH12: 7121.460441 | BI12: 7724.163013 | BJ12: 5727.347313 | BK12: 5172.657707 | BL12: 6908.811666 | BM12: 5820.938306 | BN12: 5281.012539 | BO12: 0 | BP12: 6289.528523 | BQ12: 4811.756186 | BR12: 0 | BS12: 5167.830785 | BT12: 5470.791244 | BU12: 6533.161232 | BV12: 7028.93457 | BW12: 7896.918947 | BX12: 8611.216206 | BY12: 9304.324164 | BZ12: 7761.101733 | CA12: 9400.524453 | CB12: 9679.016133 | CC12: 10877.05581 | CD12: 4808.3656 | CE12: 3211.336293 | CG12: Севилья в ЦВЕТНОМ профиле Категория 5 | CH12: 0 | CI12: =IF(CH12<>0,LOOKUP(,-CODE(CH$3:CH12),CH$3:CH12),CI11) -> 1 | CQ12: Ф | CR12: Ф | CS12: Ф | CT12: Ф | CU12: ф | CV12: Ф
B13: 0 | C13: =IF(B13<>0,LOOKUP(,-CODE(B$3:B13),B$3:B13),C12) -> 2 | D13: 2-140(450)-528 | E13: Тумба кухонная однодверный с метабоксом, Н - 140/180 мм, полка ЛДСП | F13: =IF(E13<>0,LOOKUP(,-CODE(E$3:E13),E$3:E13),F12) -> Тумба кухонная однодверный с метабоксом, Н - 140/180 мм, полка ЛДСП | H13: 1 | I13: 450 | J13: 720 | K13: 528 | L13: 4054.131374 | M13: 4252.902977 | N13: 5501.832062 | O13: 6189.489889 | P13: 7114.409773 | Q13: 4130.739374 | R13: 4329.510977 | S13: 5578.440062 | T13: 6266.097889 | U13: 7191.017773 | V13: 3941.235374 | W13: 4140.006977 | X13: 5499.4666 | Y13: 6215.776836 | Z13: 7179.235049 | AA13: 4527.802078 | AB13: 4759.702281 | AC13: 6216.786214 | AD13: 7019.053679 | AE13: 8098.126877 | AF13: 5087.790726 | AG13: 5303.126629 | AH13: 6656.133138 | AI13: 7401.095784 | AJ13: 8403.092325 | AK13: 3372.588977 | AL13: 3611.884926 | AM13: 3756.287654 | AN13: 4214.350896 | AO13: 4386.956057 | AP13: 4935.442536 | AQ13: 4475.560593 | AR13: 5094.792481 | AS13: 5821.410583 | AT13: 6160.327654 | AU13: 7079.165185 | AV13: 7778.52095 | AW13: 8457.130648 | AX13: 6238.098241 | AY13: 5594.622733 | AZ13: 7361.205508 | BA13: 6314.205096 | BB13: 4935.442536 | BC13: 4475.560593 | BD13: 5182.147641 | BE13: 5821.410583 | BF13: 6160.327654 | BG13: 7079.165185 | BH13: 7778.52095 | BI13: 8457.130648 | BJ13: 6208.826824 | BK13: 5584.277066 | BL13: 7539.090214 | BM13: 6314.205096 | BN13: 5706.278603 | BO13: 0 | BP13: 6754.238716 | BQ13: 5177.921953 | BR13: 0 | BS13: 5578.84222 | BT13: 5919.958908 | BU13: 7116.128642 | BV13: 7674.341947 | BW13: 8651.644256 | BX13: 9455.903386 | BY13: 10236.30454 | BZ13: 8493.887271 | CA13: 10338.23783 | CB13: 10651.54097 | CC13: 11999.33561 | CD13: 5141.080593 | CE13: 3349.759151 | CG13: Севилья кант ПВХ Категория 1 | CH13: 0 | CI13: =IF(CH13<>0,LOOKUP(,-CODE(CH$3:CH13),CH$3:CH13),CI12) -> 1 | CQ13: Ф | CR13: Ф | CS13: Ф | CT13: Ф | CU13: ф | CV13: Ф
B14: 0 | C14: =IF(B14<>0,LOOKUP(,-CODE(B$3:B14),B$3:B14),C13) -> 2 | D14: 2-140(500)-528 | E14: Тумба кухонная однодверный с метабоксом, Н - 140/180 мм, полка ЛДСП | F14: =IF(E14<>0,LOOKUP(,-CODE(E$3:E14),E$3:E14),F13) -> Тумба кухонная однодверный с метабоксом, Н - 140/180 мм, полка ЛДСП | H14: 1 | I14: 500 | J14: 720 | K14: 528 | L14: 4274.336853 | M14: 4495.342415 | N14: 5883.972741 | O14: 6648.549788 | P14: 7676.928272 | Q14: 4355.504853 | R14: 4576.510415 | S14: 5965.140741 | T14: 6729.717788 | U14: 7758.096272 | V14: 4154.720853 | W14: 4375.726415 | X14: 5886.653021 | Y14: 6683.087445 | Z14: 7754.315033 | AA14: 4784.321327 | AB14: 5042.16115 | AC14: 6662.229863 | AD14: 7554.236417 | AE14: 8754.011315 | AF14: 5373.58309 | AG14: 5613.005782 | AH14: 7117.355302 | AI14: 7945.647103 | AJ14: 9059.723794 | AK14: 3530.74137 | AL14: 3791.910806 | AM14: 3949.513052 | AN14: 4459.938712 | AO14: 4650.936942 | AP14: 5274.485326 | AQ14: 4763.16245 | AR14: 5451.659649 | AS14: 6259.554944 | AT14: 6636.382203 | AU14: 7657.99798 | AV14: 8435.58146 | AW14: 9190.098282 | AX14: 6722.85196 | AY14: 6007.399325 | AZ14: 7971.586438 | BA14: 6807.471886 | BB14: 5274.485326 | BC14: 4763.16245 | BD14: 5548.78608 | BE14: 6259.554944 | BF14: 6636.382203 | BG14: 7657.99798 | BH14: 8435.58146 | BI14: 9190.098282 | BJ14: 6690.306335 | BK14: 5995.896426 | BL14: 8169.368763 | BM14: 6807.471886 | BN14: 6131.544666 | BO14: 0 | BP14: 7218.948908 | BQ14: 5544.08772 | BR14: 0 | BS14: 5989.853654 | BT14: 6369.126571 | BU14: 7699.096052 | BV14: 8319.749325 | BW14: 9406.369565 | BX14: 10300.59057 | BY14: 11168.28491 | BZ14: 9226.67281 | CA14: 11275.95121 | CB14: 11624.06581 | CC14: 13121.61541 | CD14: 5473.795585 | CE14: 3488.18201 | CG14: Севилья кант ПВХ Категория 2 | CH14: 0 | CI14: =IF(CH14<>0,LOOKUP(,-CODE(CH$3:CH14),CH$3:CH14),CI13) -> 1 | CQ14: Ф | CR14: Ф | CS14: Ф | CT14: Ф | CU14: ф | CV14: Ф
B15: 0 | C15: =IF(B15<>0,LOOKUP(,-CODE(B$3:B15),B$3:B15),C14) -> 2 | D15: 2-140(550)-528 | E15: Тумба кухонная однодверный с метабоксом, Н - 140/180 мм, полка ЛДСП | F15: =IF(E15<>0,LOOKUP(,-CODE(E$3:E15),E$3:E15),F14) -> Тумба кухонная однодверный с метабоксом, Н - 140/180 мм, полка ЛДСП | H15: 1 | I15: 550 | J15: 720 | K15: 528 | L15: 4494.542332 | M15: 4737.781854 | N15: 6266.11342 | O15: 7107.609686 | P15: 8239.44677 | Q15: 4580.270332 | R15: 4823.509854 | S15: 6351.84142 | T15: 7193.337686 | U15: 8325.17477 | V15: 4368.206332 | W15: 4611.445854 | X15: 6273.839443 | Y15: 7150.398054 | Z15: 8329.395016 | AA15: 5040.840575 | AB15: 5324.620018 | AC15: 7107.673511 | AD15: 8089.419156 | AE15: 9409.895754 | AF15: 5659.375454 | AG15: 5922.884936 | AH15: 7578.577466 | AI15: 8490.198421 | AJ15: 9716.355262 | AK15: 3688.893763 | AL15: 3971.936686 | AM15: 4142.73845 | AN15: 4705.526528 | AO15: 4914.917827 | AP15: 5613.528116 | AQ15: 5050.764306 | AR15: 5808.526817 | AS15: 6697.699305 | AT15: 7112.436751 | AU15: 8236.830776 | AV15: 9092.641969 | AW15: 9923.065917 | AX15: 7207.605678 | AY15: 6420.175918 | AZ15: 8581.967368 | BA15: 7300.738676 | BB15: 5613.528116 | BC15: 5050.764306 | BD15: 5915.424519 | BE15: 6697.699305 | BF15: 7112.436751 | BG15: 8236.830776 | BH15: 9092.641969 | BI15: 9923.065917 | BJ15: 7171.785847 | BK15: 6407.515785 | BL15: 8799.647311 | BM15: 7300.738676 | BN15: 6556.81073 | BO15: 0 | BP15: 7683.659101 | BQ15: 5910.253487 | BR15: 0 | BS15: 6400.865089 | BT15: 6818.294235 | BU15: 8282.063463 | BV15: 8965.156702 | BW15: 10161.09487 | BX15: 11145.27775 | BY15: 12100.26529 | BZ15: 9959.458349 | CA15: 12213.66459 | CB15: 12596.59065 | CC15: 14243.89521 | CD15: 5806.510578 | CE15: 3626.604869 | CG15: Севилья кант ПВХ Категория 3 | CH15: 0 | CI15: =IF(CH15<>0,LOOKUP(,-CODE(CH$3:CH15),CH$3:CH15),CI14) -> 1 | CQ15: Ф | CR15: Ф | CS15: Ф | CT15: Ф | CU15: ф | CV15: Ф
B16: 0 | C16: =IF(B16<>0,LOOKUP(,-CODE(B$3:B16),B$3:B16),C15) -> 2 | D16: 2-140(600)-528 | E16: Тумба кухонная однодверный с метабоксом, Н - 140/180 мм, полка ЛДСП | F16: =IF(E16<>0,LOOKUP(,-CODE(E$3:E16),E$3:E16),F15) -> Тумба кухонная однодверный с метабоксом, Н - 140/180 мм, полка ЛДСП | H16: 1 | I16: 600 | J16: 720 | K16: 528 | L16: 4714.74781 | M16: 4980.221293 | N16: 6648.254098 | O16: 7566.669585 | P16: 8801.965269 | Q16: 4805.03581 | R16: 5070.509293 | S16: 6738.542098 | T16: 7656.957585 | U16: 8892.253269 | V16: 4581.69181 | W16: 4847.165293 | X16: 6661.025864 | Y16: 7617.708663 | Z16: 8904.475 | AA16: 5297.359824 | AB16: 5607.078887 | AC16: 7553.11716 | AD16: 8624.601895 | AE16: 10065.78019 | AF16: 5945.167817 | AG16: 6232.76409 | AH16: 8039.799629 | AI16: 9034.74974 | AJ16: 10372.98673 | AK16: 3847.046156 | AL16: 4151.962566 | AM16: 4335.963848 | AN16: 4951.114345 | AO16: 5178.898712 | AP16: 5952.570906 | AQ16: 5338.366163 | AR16: 6165.393986 | AS16: 7135.843666 | AT16: 7588.491299 | AU16: 8815.663571 | AV16: 9749.702479 | AW16: 10656.03355 | AX16: 7692.359397 | AY16: 6832.95251 | AZ16: 9192.348298 | BA16: 7794.005466 | BB16: 5952.570906 | BC16: 5338.366163 | BD16: 6282.062958 | BE16: 7135.843666 | BF16: 7588.491299 | BG16: 8815.663571 | BH16: 9749.702479 | BI16: 10656.03355 | BJ16: 7653.265358 | BK16: 6819.135144 | BL16: 9429.925859 | BM16: 7794.005466 | BN16: 6982.076794 | BO16: 0 | BP16: 8148.369293 | BQ16: 6276.419255 | BR16: 0 | BS16: 6811.876523 | BT16: 7267.461899 | BU16: 8865.030873 | BV16: 9610.564079 | BW16: 10915.82018 | BX16: 11989.96493 | BY16: 13032.24566 | BZ16: 10692.24389 | CA16: 13151.37797 | CB16: 13569.11549 | CC16: 15366.17501 | CD16: 6139.22557 | CE16: 3765.027728 | CG16: Севилья кант ПВХ Категория 4 | CH16: 0 | CI16: =IF(CH16<>0,LOOKUP(,-CODE(CH$3:CH16),CH$3:CH16),CI15) -> 1 | CQ16: Ф | CR16: Ф | CS16: Ф | CT16: Ф | CU16: ф | CV16: Ф
A17: 3/1 | B17: 0 | C17: =IF(B17<>0,LOOKUP(,-CODE(B$3:B17),B$3:B17),C16) -> 2 | D17: 2-180(300)-528 | E17: Тумба кухонная однодверный с метабоксом, Н - 140/180 мм, полка ЛДСП | F17: =IF(E17<>0,LOOKUP(,-CODE(E$3:E17),E$3:E17),F16) -> Тумба кухонная однодверный с метабоксом, Н - 140/180 мм, полка ЛДСП | H17: 1 | I17: 300 | J17: 720 | K17: 528 | L17: 3393.514938 | M17: 3525.584661 | N17: 4355.410026 | O17: 4812.310193 | P17: 5426.854277 | Q17: 3456.442938 | R17: 3588.512661 | S17: 4418.338026 | T17: 4875.238193 | U17: 5489.782277 | V17: 3300.778938 | W17: 3432.848661 | X17: 4337.907337 | Y17: 4813.84501 | Z17: 5453.995098 | AA17: 3758.244332 | AB17: 3912.325675 | AC17: 4880.455268 | AD17: 5413.505463 | AE17: 6130.473561 | AF17: 4230.413635 | AG17: 4373.489168 | AH17: 5272.466647 | AI17: 5767.441828 | AJ17: 6433.197919 | AK17: 2898.131798 | AL17: 3071.807286 | AM17: 3176.611459 | AN17: 3477.587447 | AO17: 3595.013403 | AP17: 3918.314167 | AQ17: 3612.755023 | AR17: 4024.190975 | AS17: 4506.977499 | AT17: 4732.16401 | AU17: 5342.666799 | AV17: 5807.339422 | AW17: 6258.227744 | AX17: 4783.837084 | AY17: 4356.292955 | AZ17: 5530.062719 | BA17: 4834.404727 | BB17: 3918.314167 | BC17: 3612.755023 | BD17: 4082.232323 | BE17: 4506.977499 | BF17: 4732.16401 | BG17: 5342.666799 | BH17: 5807.339422 | BI17: 6258.227744 | BJ17: 4764.388291 | BK17: 4349.418989 | BL17: 5648.25457 | BM17: 4834.404727 | BN17: 4430.480412 | BO17: 4146.387078 | BP17: 5927.724138 | BQ17: 4079.424652 | BR17: 5067.393366 | BS17: 4345.807916 | BT17: 4572.455917 | BU17: 5367.226411 | BV17: 5738.119816 | BW17: 6387.46833 | BX17: 6921.841846 | BY17: 7440.363416 | BZ17: 6423.864895 | CA17: 7694.541055 | CB17: 7910.393095 | CC17: 8838.964135 | CD17: 4233.694701 | CE17: 2934.474575 | CG17: Севилья кант ПВХ Категория 5 | CH17: 0 | CI17: =IF(CH17<>0,LOOKUP(,-CODE(CH$3:CH17),CH$3:CH17),CI16) -> 1 | CQ17: =$I17*$J17/1000000 -> 0.216 | CR17: 64.8 | CS17: =IFERROR(($I17+CR17-CR17)*2/1000,"Ф") -> 0.6 | CT17: 720 | CU17: ф | CV17: 784.8
B18: 0 | C18: =IF(B18<>0,LOOKUP(,-CODE(B$3:B18),B$3:B18),C17) -> 2 | D18: 2-180(350)-528 | E18: Тумба кухонная однодверный с метабоксом, Н - 140/180 мм, полка ЛДСП | F18: =IF(E18<>0,LOOKUP(,-CODE(E$3:E18),E$3:E18),F17) -> Тумба кухонная однодверный с метабоксом, Н - 140/180 мм, полка ЛДСП | H18: 1 | I18: 350 | J18: 720 | K18: 528 | L18: 3613.720417 | M18: 3768.024099 | N18: 4737.550705 | O18: 5271.370092 | P18: 5989.372776 | Q18: 3681.208417 | R18: 3835.512099 | S18: 4805.038705 | T18: 5338.858092 | U18: 6056.860776 | V18: 3514.264417 | W18: 3668.568099 | X18: 4725.093758 | Y18: 5281.155619 | Z18: 6029.075082 | AA18: 4014.763581 | AB18: 4194.784543 | AC18: 5325.898917 | AD18: 5948.688201 | AE18: 6786.357999 | AF18: 4516.205999 | AG18: 4683.368321 | AH18: 5733.688811 | AI18: 6311.993146 | AJ18: 7089.829387 | AK18: 3056.284191 | AL18: 3251.833166 | AM18: 3369.836857 | AN18: 3723.175263 | AO18: 3858.994288 | AP18: 4257.356956 | AQ18: 3900.35688 | AR18: 4381.058144 | AS18: 4945.121861 | AT18: 5208.218558 | AU18: 5921.499594 | AV18: 6464.399931 | AW18: 6991.195379 | AX18: 5268.590803 | AY18: 4769.069547 | AZ18: 6140.443649 | BA18: 5327.671516 | BB18: 4257.356956 | BC18: 3900.35688 | BD18: 4448.870763 | BE18: 4945.121861 | BF18: 5208.218558 | BG18: 5921.499594 | BH18: 6464.399931 | BI18: 6991.195379 | BJ18: 5245.867802 | BK18: 4761.038348 | BL18: 6278.533118 | BM18: 5327.671516 | BN18: 4855.746476 | BO18: 4523.825981 | BP18: 6493.794331 | BQ18: 4445.590419 | BR18: 5599.883833 | BS18: 4756.81935 | BT18: 5021.62358 | BU18: 5950.193822 | BV18: 6383.527193 | BW18: 7142.193638 | BX18: 7766.529026 | BY18: 8372.34379 | BZ18: 7178.039474 | CA18: 8660.494994 | CB18: 8912.322374 | CC18: 9995.655254 | CD18: 4579.314387 | CE18: 3073.017434 | CG18: Севилья в кромке ABS Категория 1 | CH18: 0 | CI18: =IF(CH18<>0,LOOKUP(,-CODE(CH$3:CH18),CH$3:CH18),CI17) -> 1 | CQ18: 0.252 | CR18: 75.6 | CS18: =IFERROR(($I18+CR18-CR18)*2/1000,"Ф") -> 0.7 | CT18: 840 | CU18: ф | CV18: 915.6
B19: 0 | C19: =IF(B19<>0,LOOKUP(,-CODE(B$3:B19),B$3:B19),C18) -> 2 | D19: 2-180(400)-528 | E19: Тумба кухонная однодверный с метабоксом, Н - 140/180 мм, полка ЛДСП | F19: =IF(E19<>0,LOOKUP(,-CODE(E$3:E19),E$3:E19),F18) -> Тумба кухонная однодверный с метабоксом, Н - 140/180 мм, полка ЛДСП | H19: 1 | I19: 400 | J19: 720 | K19: 528 | L19: 3833.925896 | M19: 4010.463538 | N19: 5119.691384 | O19: 5730.42999 | P19: 6551.891274 | Q19: 3905.973896 | R19: 4082.511538 | S19: 5191.739384 | T19: 5802.47799 | U19: 6623.939274 | V19: 3727.749896 | W19: 3904.287538 | X19: 5112.280179 | Y19: 5748.466228 | Z19: 6604.155065 | AA19: 4271.282829 | AB19: 4477.243412 | AC19: 5771.342565 | AD19: 6483.87094 | AE19: 7442.242438 | AF19: 4801.998362 | AG19: 4993.247475 | AH19: 6194.910974 | AI19: 6856.544465 | AJ19: 7746.460856 | AK19: 3214.436584 | AL19: 3431.859046 | AM19: 3563.062256 | AN19: 3968.763079 | AO19: 4122.975173 | AP19: 4596.399746 | AQ19: 4187.958736 | AR19: 4737.925312 | AS19: 5383.266222 | AT19: 5684.273106 | AU19: 6500.33239 | AV19: 7121.460441 | AW19: 7724.163013 | AX19: 5753.344522 | AY19: 5181.84614 | AZ19: 6750.824578 | BA19: 5820.938306 | BB19: 4596.399746 | BC19: 4187.958736 | BD19: 4815.509202 | BE19: 5383.266222 | BF19: 5684.273106 | BG19: 6500.33239 | BH19: 7121.460441 | BI19: 7724.163013 | BJ19: 5727.347313 | BK19: 5172.657707 | BL19: 6908.811666 | BM19: 5820.938306 | BN19: 5281.012539 | BO19: 4901.264884 | BP19: 7059.864523 | BQ19: 4811.756186 | BR19: 6132.374299 | BS19: 5167.830785 | BT19: 5470.791244 | BU19: 6533.161232 | BV19: 7028.93457 | BW19: 7896.918947 | BX19: 8611.216206 | BY19: 9304.324164 | BZ19: 7780.737573 | CA19: 9426.450213 | CB19: 9706.010373 | CC19: 10908.64653 | CD19: 4924.934073 | CE19: 3211.560293 | CG19: Севилья в кромке ABS Категория 2 | CH19: 0 | CI19: =IF(CH19<>0,LOOKUP(,-CODE(CH$3:CH19),CH$3:CH19),CI18) -> 1 | CQ19: 0.288 | CR19: 86.4 | CS19: 0.8 | CT19: 960 | CU19: ф | CV19: 1046.4
B20: 0 | C20: =IF(B20<>0,LOOKUP(,-CODE(B$3:B20),B$3:B20),C19) -> 2 | D20: 2-180(450)-528 | E20: Тумба кухонная однодверный с метабоксом, Н - 140/180 мм, полка ЛДСП | F20: =IF(E20<>0,LOOKUP(,-CODE(E$3:E20),E$3:E20),F19) -> Тумба кухонная однодверный с метабоксом, Н - 140/180 мм, полка ЛДСП | H20: 1 | I20: 450 | J20: 720 | K20: 528 | L20: 4054.131374 | M20: 4252.902977 | N20: 5501.832062 | O20: 6189.489889 | P20: 7114.409773 | Q20: 4130.739374 | R20: 4329.510977 | S20: 5578.440062 | T20: 6266.097889 | U20: 7191.017773 | V20: 3941.235374 | W20: 4140.006977 | X20: 5499.4666 | Y20: 6215.776836 | Z20: 7179.235049 | AA20: 4527.802078 | AB20: 4759.702281 | AC20: 6216.786214 | AD20: 7019.053679 | AE20: 8098.126877 | AF20: 5087.790726 | AG20: 5303.126629 | AH20: 6656.133138 | AI20: 7401.095784 | AJ20: 8403.092325 | AK20: 3372.588977 | AL20: 3611.884926 | AM20: 3756.287654 | AN20: 4214.350896 | AO20: 4386.956057 | AP20: 4935.442536 | AQ20: 4475.560593 | AR20: 5094.792481 | AS20: 5821.410583 | AT20: 6160.327654 | AU20: 7079.165185 | AV20: 7778.52095 | AW20: 8457.130648 | AX20: 6238.098241 | AY20: 5594.622733 | AZ20: 7361.205508 | BA20: 6314.205096 | BB20: 4935.442536 | BC20: 4475.560593 | BD20: 5182.147641 | BE20: 5821.410583 | BF20: 6160.327654 | BG20: 7079.165185 | BH20: 7778.52095 | BI20: 8457.130648 | BJ20: 6208.826824 | BK20: 5584.277066 | BL20: 7539.090214 | BM20: 6314.205096 | BN20: 5706.278603 | BO20: 5278.703787 | BP20: 7625.934716 | BQ20: 5177.921953 | BR20: 6664.864766 | BS20: 5578.84222 | BT20: 5919.958908 | BU20: 7116.128642 | BV20: 7674.341947 | BW20: 8651.644256 | BX20: 9455.903386 | BY20: 10236.30454 | BZ20: 8515.977591 | CA20: 10367.40431 | CB20: 10681.90949 | CC20: 12034.87517 | CD20: 5270.55376 | CE20: 3350.103151 | CG20: Севилья в кромке ABS Категория 3 | CH20: 0 | CI20: =IF(CH20<>0,LOOKUP(,-CODE(CH$3:CH20),CH$3:CH20),CI19) -> 1 | CQ20: 0.324 | CR20: 97.2 | CS20: 0.9 | CT20: 1080 | CU20: ф | CV20: 1177.2
B21: 0 | C21: =IF(B21<>0,LOOKUP(,-CODE(B$3:B21),B$3:B21),C20) -> 2 | D21: 2-180(500)-528 | E21: Тумба кухонная однодверный с метабоксом, Н - 140/180 мм, полка ЛДСП | F21: =IF(E21<>0,LOOKUP(,-CODE(E$3:E21),E$3:E21),F20) -> Тумба кухонная однодверный с метабоксом, Н - 140/180 мм, полка ЛДСП | H21: 1 | I21: 500 | J21: 720 | K21: 528 | L21: 4274.336853 | M21: 4495.342415 | N21: 5883.972741 | O21: 6648.549788 | P21: 7676.928272 | Q21: 4355.504853 | R21: 4576.510415 | S21: 5965.140741 | T21: 6729.717788 | U21: 7758.096272 | V21: 4154.720853 | W21: 4375.726415 | X21: 5886.653021 | Y21: 6683.087445 | Z21: 7754.315033 | AA21: 4784.321327 | AB21: 5042.16115 | AC21: 6662.229863 | AD21: 7554.236417 | AE21: 8754.011315 | AF21: 5373.58309 | AG21: 5613.005782 | AH21: 7117.355302 | AI21: 7945.647103 | AJ21: 9059.723794 | AK21: 3530.74137 | AL21: 3791.910806 | AM21: 3949.513052 | AN21: 4459.938712 | AO21: 4650.936942 | AP21: 5274.485326 | AQ21: 4763.16245 | AR21: 5451.659649 | AS21: 6259.554944 | AT21: 6636.382203 | AU21: 7657.99798 | AV21: 8435.58146 | AW21: 9190.098282 | AX21: 6722.85196 | AY21: 6007.399325 | AZ21: 7971.586438 | BA21: 6807.471886 | BB21: 5274.485326 | BC21: 4763.16245 | BD21: 5548.78608 | BE21: 6259.554944 | BF21: 6636.382203 | BG21: 7657.99798 | BH21: 8435.58146 | BI21: 9190.098282 | BJ21: 6690.306335 | BK21: 5995.896426 | BL21: 8169.368763 | BM21: 6807.471886 | BN21: 6131.544666 | BO21: 5656.14269 | BP21: 8192.004908 | BQ21: 5544.08772 | BR21: 7197.355232 | BS21: 5989.853654 | BT21: 6369.126571 | BU21: 7699.096052 | BV21: 8319.749325 | BW21: 9406.369565 | BX21: 10300.59057 | BY21: 11168.28491 | BZ21: 9251.21761 | CA21: 11308.35841 | CB21: 11657.80861 | CC21: 13161.10381 | CD21: 5616.173446 | CE21: 3488.64601 | CG21: Севилья в кромке ABS Категория 4 | CH21: 0 | CI21: =IF(CH21<>0,LOOKUP(,-CODE(CH$3:CH21),CH$3:CH21),CI20) -> 1 | CQ21: 0.36 | CR21: 108 | CS21: 1 | CT21: 1200 | CU21: ф | CV21: 1308
B22: 0 | C22: =IF(B22<>0,LOOKUP(,-CODE(B$3:B22),B$3:B22),C21) -> 2 | D22: 2-180(550)-528 | E22: Тумба кухонная однодверный с метабоксом, Н - 140/180 мм, полка ЛДСП | F22: =IF(E22<>0,LOOKUP(,-CODE(E$3:E22),E$3:E22),F21) -> Тумба кухонная однодверный с метабоксом, Н - 140/180 мм, полка ЛДСП | H22: 1 | I22: 550 | J22: 720 | K22: 528 | L22: 4494.542332 | M22: 4737.781854 | N22: 6266.11342 | O22: 7107.609686 | P22: 8239.44677 | Q22: 4580.270332 | R22: 4823.509854 | S22: 6351.84142 | T22: 7193.337686 | U22: 8325.17477 | V22: 4368.206332 | W22: 4611.445854 | X22: 6273.839443 | Y22: 7150.398054 | Z22: 8329.395016 | AA22: 5040.840575 | AB22: 5324.620018 | AC22: 7107.673511 | AD22: 8089.419156 | AE22: 9409.895754 | AF22: 5659.375454 | AG22: 5922.884936 | AH22: 7578.577466 | AI22: 8490.198421 | AJ22: 9716.355262 | AK22: 3688.893763 | AL22: 3971.936686 | AM22: 4142.73845 | AN22: 4705.526528 | AO22: 4914.917827 | AP22: 5613.528116 | AQ22: 5050.764306 | AR22: 5808.526817 | AS22: 6697.699305 | AT22: 7112.436751 | AU22: 8236.830776 | AV22: 9092.641969 | AW22: 9923.065917 | AX22: 7207.605678 | AY22: 6420.175918 | AZ22: 8581.967368 | BA22: 7300.738676 | BB22: 5613.528116 | BC22: 5050.764306 | BD22: 5915.424519 | BE22: 6697.699305 | BF22: 7112.436751 | BG22: 8236.830776 | BH22: 9092.641969 | BI22: 9923.065917 | BJ22: 7171.785847 | BK22: 6407.515785 | BL22: 8799.647311 | BM22: 7300.738676 | BN22: 6556.81073 | BO22: 6033.581593 | BP22: 8758.075101 | BQ22: 5910.253487 | BR22: 7729.845699 | BS22: 6400.865089 | BT22: 6818.294235 | BU22: 8282.063463 | BV22: 8965.156702 | BW22: 10161.09487 | BX22: 11145.27775 | BY22: 12100.26529 | BZ22: 9986.457629 | CA22: 12249.31251 | CB22: 12633.70773 | CC22: 14287.33245 | CD22: 5961.793132 | CE22: 3627.188869 | CG22: Севилья в кромке ABS Категория 5 | CH22: 0 | CI22: =IF(CH22<>0,LOOKUP(,-CODE(CH$3:CH22),CH$3:CH22),CI21) -> 1 | CQ22: 0.396 | CR22: 118.8 | CS22: 1.1 | CT22: 1320 | CU22: ф | CV22: 1438.8
B23: 0 | C23: =IF(B23<>0,LOOKUP(,-CODE(B$3:B23),B$3:B23),C22) -> 2 | D23: 2-180(600)-528 | E23: Тумба кухонная однодверный с метабоксом, Н - 140/180 мм, полка ЛДСП | F23: =IF(E23<>0,LOOKUP(,-CODE(E$3:E23),E$3:E23),F22) -> Тумба кухонная однодверный с метабоксом, Н - 140/180 мм, полка ЛДСП | H23: 1 | I23: 600 | J23: 720 | K23: 528 | L23: 4714.74781 | M23: 4980.221293 | N23: 6648.254098 | O23: 7566.669585 | P23: 8801.965269 | Q23: 4805.03581 | R23: 5070.509293 | S23: 6738.542098 | T23: 7656.957585 | U23: 8892.253269 | V23: 4581.69181 | W23: 4847.165293 | X23: 6661.025864 | Y23: 7617.708663 | Z23: 8904.475 | AA23: 5297.359824 | AB23: 5607.078887 | AC23: 7553.11716 | AD23: 8624.601895 | AE23: 10065.78019 | AF23: 5945.167817 | AG23: 6232.76409 | AH23: 8039.799629 | AI23: 9034.74974 | AJ23: 10372.98673 | AK23: 3847.046156 | AL23: 4151.962566 | AM23: 4335.963848 | AN23: 4951.114345 | AO23: 5178.898712 | AP23: 5952.570906 | AQ23: 5338.366163 | AR23: 6165.393986 | AS23: 7135.843666 | AT23: 7588.491299 | AU23: 8815.663571 | AV23: 9749.702479 | AW23: 10656.03355 | AX23: 7692.359397 | AY23: 6832.95251 | AZ23: 9192.348298 | BA23: 7794.005466 | BB23: 5952.570906 | BC23: 5338.366163 | BD23: 6282.062958 | BE23: 7135.843666 | BF23: 7588.491299 | BG23: 8815.663571 | BH23: 9749.702479 | BI23: 10656.03355 | BJ23: 7653.265358 | BK23: 6819.135144 | BL23: 9429.925859 | BM23: 7794.005466 | BN23: 6982.076794 | BO23: 6411.020496 | BP23: 9324.145293 | BQ23: 6276.419255 | BR23: 8262.336165 | BS23: 6811.876523 | BT23: 7267.461899 | BU23: 8865.030873 | BV23: 9610.564079 | BW23: 10915.82018 | BX23: 11989.96493 | BY23: 13032.24566 | BZ23: 10721.69765 | CA23: 13190.26661 | CB23: 13609.60685 | CC23: 15413.56109 | CD23: 6307.412818 | CE23: 3765.731728 | CG23: Севилья в 3D канте Категория 1 | CH23: 0 | CI23: =IF(CH23<>0,LOOKUP(,-CODE(CH$3:CH23),CH$3:CH23),CI22) -> 1 | CQ23: 0.432 | CR23: 129.6 | CS23: 1.2 | CT23: 1440 | CU23: ф | CV23: 1569.6
A24: 4/2 | B24: 3 | C24: =IF(B24<>0,LOOKUP(,-CODE(B$3:B24),B$3:B24),C23) -> 3 | D24: 3-140(300)-528 | E24: Тумба кухонная однодверный с леграбоксом, Н - 140/180 мм, полка ЛДСП | F24: =IF(E24<>0,LOOKUP(,-CODE(E$3:E24),E$3:E24),F23) -> Тумба кухонная однодверный с леграбоксом, Н - 140/180 мм, полка ЛДСП | H24: 1 | I24: 300 | J24: 720 | K24: 528 | L24: 5191.964985 | M24: 5324.034707 | N24: 6153.860073 | O24: 6610.76024 | P24: 7225.304324 | Q24: 5254.892985 | R24: 5386.962707 | S24: 6216.788073 | T24: 6673.68824 | U24: 7288.232324 | V24: 5099.228985 | W24: 5231.298707 | X24: 6136.357383 | Y24: 6612.295057 | Z24: 7252.445145 | AA24: 5556.694379 | AB24: 5710.775721 | AC24: 6678.905315 | AD24: 7211.955509 | AE24: 7928.923607 | AF24: 6028.863682 | AG24: 6171.939214 | AH24: 7070.916694 | AI24: 7565.891874 | AJ24: 8231.647965 | AK24: 4696.581845 | AL24: 4870.257332 | AM24: 4975.061506 | AN24: 5276.037494 | AO24: 5393.46345 | AP24: 5716.764213 | AQ24: 5411.20507 | AR24: 5822.641022 | AS24: 6305.427546 | AT24: 6530.614057 | AU24: 7141.116846 | AV24: 7605.789468 | AW24: 8056.677791 | AX24: 6582.287131 | AY24: 6154.743001 | AZ24: 7328.512765 | BA24: 6632.854773 | BB24: 5716.764213 | BC24: 5411.20507 | BD24: 5880.68237 | BE24: 6305.427546 | BF24: 6530.614057 | BG24: 7141.116846 | BH24: 7605.789468 | BI24: 8056.677791 | BJ24: 6562.838338 | BK24: 6147.869035 | BL24: 7446.704617 | BM24: 6632.854773 | BN24: 6228.930459 | BO24: 0 | BP24: 7158.558185 | BQ24: 5877.874698 | BR24: 0 | BS24: 6144.257963 | BT24: 6370.905963 | BU24: 7165.676458 | BV24: 7536.569862 | BW24: 8185.918376 | BX24: 8720.291892 | BY24: 9238.813463 | BZ24: 8216.003422 | CA24: 9484.657822 | CB24: 9700.166422 | CC24: 10627.26002 | CD24: 5941.385662 | CE24: 4732.940622 | CG24: Севилья в 3D канте Категория 2 | CH24: 1 | CI24: =IF(CH24<>0,LOOKUP(,-CODE(CH$3:CH24),CH$3:CH24),CI23) -> 1 | CQ24: Ф | CR24: Ф | CS24: Ф | CT24: Ф | CU24: ф | CV24: Ф
B25: 0 | C25: =IF(B25<>0,LOOKUP(,-CODE(B$3:B25),B$3:B25),C24) -> 3 | D25: 3-140(350)-528 | E25: Тумба кухонная однодверный с леграбоксом, Н - 140/180 мм, полка ЛДСП | F25: =IF(E25<>0,LOOKUP(,-CODE(E$3:E25),E$3:E25),F24) -> Тумба кухонная однодверный с леграбоксом, Н - 140/180 мм, полка ЛДСП | H25: 1 | I25: 350 | J25: 720 | K25: 528 | L25: 5411.776714 | M25: 5566.080396 | N25: 6535.607002 | O25: 7069.426388 | P25: 7787.429072 | Q25: 5479.264714 | R25: 5633.568396 | S25: 6603.095002 | T25: 7136.914388 | U25: 7854.917072 | V25: 5312.320714 | W25: 5466.624396 | X25: 6523.150054 | Y25: 7079.211916 | Z25: 7827.131378 | AA25: 5812.819877 | AB25: 5992.84084 | AC25: 7123.955213 | AD25: 7746.744498 | AE25: 8584.414296 | AF25: 6314.262295 | AG25: 6481.424618 | AH25: 7531.745107 | AI25: 8110.049443 | AJ25: 8887.885684 | AK25: 4854.340488 | AL25: 5049.889462 | AM25: 5167.893154 | AN25: 5521.23156 | AO25: 5657.050585 | AP25: 6055.413253 | AQ25: 5698.413176 | AR25: 6179.11444 | AS25: 6743.178157 | AT25: 7006.274855 | AU25: 7719.555891 | AV25: 8262.456228 | AW25: 8789.251675 | AX25: 7066.6471 | AY25: 6567.125844 | AZ25: 7938.499945 | BA25: 7125.727813 | BB25: 6055.413253 | BC25: 5698.413176 | BD25: 6246.927059 | BE25: 6743.178157 | BF25: 7006.274855 | BG25: 7719.555891 | BH25: 8262.456228 | BI25: 8789.251675 | BJ25: 7043.924099 | BK25: 6559.094645 | BL25: 8076.589415 | BM25: 7125.727813 | BN25: 6653.802772 | BO25: 0 | BP25: 7622.874627 | BQ25: 6243.646715 | BR25: 0 | BS25: 6554.875647 | BT25: 6819.679877 | BU25: 7748.250118 | BV25: 8181.58349 | BW25: 8940.249935 | BX25: 9564.585322 | BY25: 10170.40009 | BZ25: 8968.732331 | CA25: 10448.82913 | CB25: 10700.25583 | CC25: 11781.86503 | CD25: 6273.706905 | CE25: 4870.969731 | CG25: Севилья в 3D канте Категория 3 | CH25: 0 | CI25: =IF(CH25<>0,LOOKUP(,-CODE(CH$3:CH25),CH$3:CH25),CI24) -> 1 | CQ25: Ф | CR25: Ф | CS25: Ф | CT25: Ф | CU25: ф | CV25: Ф
B26: 0 | C26: =IF(B26<>0,LOOKUP(,-CODE(B$3:B26),B$3:B26),C25) -> 3 | D26: 3-140(400)-528 | E26: Тумба кухонная однодверный с леграбоксом, Н - 140/180 мм, полка ЛДСП | F26: =IF(E26<>0,LOOKUP(,-CODE(E$3:E26),E$3:E26),F25) -> Тумба кухонная однодверный с леграбоксом, Н - 140/180 мм, полка ЛДСП | H26: 1 | I26: 400 | J26: 720 | K26: 528 | L26: 5631.588442 | M26: 5808.126085 | N26: 6917.35393 | O26: 7528.092537 | P26: 8349.553821 | Q26: 5703.636442 | R26: 5880.174085 | S26: 6989.40193 | T26: 7600.140537 | U26: 8421.601821 | V26: 5525.412442 | W26: 5701.950085 | X26: 6909.942726 | Y26: 7546.128774 | Z26: 8401.817612 | AA26: 6068.945376 | AB26: 6274.905959 | AC26: 7569.005112 | AD26: 8281.533487 | AE26: 9239.904985 | AF26: 6599.660909 | AG26: 6790.910022 | AH26: 7992.573521 | AI26: 8654.207012 | AJ26: 9544.123403 | AK26: 5012.099131 | AL26: 5229.521593 | AM26: 5360.724802 | AN26: 5766.425626 | AO26: 5920.637719 | AP26: 6394.062293 | AQ26: 5985.621283 | AR26: 6535.587859 | AS26: 7180.928768 | AT26: 7481.935653 | AU26: 8297.994936 | AV26: 8919.122987 | AW26: 9521.82556 | AX26: 7551.007069 | AY26: 6979.508687 | AZ26: 8548.487125 | BA26: 7618.600853 | BB26: 6394.062293 | BC26: 5985.621283 | BD26: 6613.171748 | BE26: 7180.928768 | BF26: 7481.935653 | BG26: 8297.994936 | BH26: 8919.122987 | BI26: 9521.82556 | BJ26: 7525.00986 | BK26: 6970.320254 | BL26: 8706.474213 | BM26: 7618.600853 | BN26: 7078.675086 | BO26: 0 | BP26: 8087.19107 | BQ26: 6609.418733 | BR26: 0 | BS26: 6965.493332 | BT26: 7268.453791 | BU26: 8330.823779 | BV26: 8826.597117 | BW26: 9694.581494 | BX26: 10408.87875 | BY26: 11101.98671 | BZ26: 9558.764279 | CA26: 11198.187 | CB26: 11476.67868 | CC26: 12674.71836 | CD26: 6606.028147 | CE26: 5008.998839 | CG26: Севилья в 3D канте Категория 4 | CH26: 0 | CI26: =IF(CH26<>0,LOOKUP(,-CODE(CH$3:CH26),CH$3:CH26),CI25) -> 1 | CQ26: Ф | CR26: Ф | CS26: Ф | CT26: Ф | CU26: ф | CV26: Ф
B27: 0 | C27: =IF(B27<>0,LOOKUP(,-CODE(B$3:B27),B$3:B27),C26) -> 3 | D27: 3-140(450)-528 | E27: Тумба кухонная однодверный с леграбоксом, Н - 140/180 мм, полка ЛДСП | F27: =IF(E27<>0,LOOKUP(,-CODE(E$3:E27),E$3:E27),F26) -> Тумба кухонная однодверный с леграбоксом, Н - 140/180 мм, полка ЛДСП | H27: 1 | I27: 450 | J27: 720 | K27: 528 | L27: 5851.400171 | M27: 6050.171773 | N27: 7299.100859 | O27: 7986.758686 | P27: 8911.67857 | Q27: 5928.008171 | R27: 6126.779773 | S27: 7375.708859 | T27: 8063.366686 | U27: 8988.28657 | V27: 5738.504171 | W27: 5937.275773 | X27: 7296.735397 | Y27: 8013.045633 | Z27: 8976.503846 | AA27: 6325.070875 | AB27: 6556.971078 | AC27: 8014.055011 | AD27: 8816.322475 | AE27: 9895.395673 | AF27: 6885.059523 | AG27: 7100.395425 | AH27: 8453.401935 | AI27: 9198.364581 | AJ27: 10200.36112 | AK27: 5169.857774 | AL27: 5409.153723 | AM27: 5553.55645 | AN27: 6011.619692 | AO27: 6184.224854 | AP27: 6732.711333 | AQ27: 6272.82939 | AR27: 6892.061277 | AS27: 7618.679379 | AT27: 7957.596451 | AU27: 8876.433982 | AV27: 9575.789747 | AW27: 10254.39944 | AX27: 8035.367037 | AY27: 7391.891529 | AZ27: 9158.474305 | BA27: 8111.473893 | BB27: 6732.711333 | BC27: 6272.82939 | BD27: 6979.416438 | BE27: 7618.679379 | BF27: 7957.596451 | BG27: 8876.433982 | BH27: 9575.789747 | BI27: 10254.39944 | BJ27: 8006.095621 | BK27: 7381.545863 | BL27: 9336.359011 | BM27: 8111.473893 | BN27: 7503.5474 | BO27: 0 | BP27: 8551.507512 | BQ27: 6975.19075 | BR27: 0 | BS27: 7376.111016 | BT27: 7717.227704 | BU27: 8913.397439 | BV27: 9471.610744 | BW27: 10448.91305 | BX27: 11253.17218 | BY27: 12033.57334 | BZ27: 10291.15607 | CA27: 12135.50663 | CB27: 12448.80977 | CC27: 13796.60441 | CD27: 6938.34939 | CE27: 5147.027948 | CG27: Севилья в 3D канте Категория 5 | CH27: 0 | CI27: =IF(CH27<>0,LOOKUP(,-CODE(CH$3:CH27),CH$3:CH27),CI26) -> 1 | CQ27: Ф | CR27: Ф | CS27: Ф | CT27: Ф | CU27: ф | CV27: Ф
B28: 0 | C28: =IF(B28<>0,LOOKUP(,-CODE(B$3:B28),B$3:B28),C27) -> 3 | D28: 3-140(500)-528 | E28: Тумба кухонная однодверный с леграбоксом, Н - 140/180 мм, полка ЛДСП | F28: =IF(E28<>0,LOOKUP(,-CODE(E$3:E28),E$3:E28),F27) -> Тумба кухонная однодверный с леграбоксом, Н - 140/180 мм, полка ЛДСП | H28: 1 | I28: 500 | J28: 720 | K28: 528 | L28: 6071.2119 | M28: 6292.217462 | N28: 7680.847788 | O28: 8445.424834 | P28: 9473.803318 | Q28: 6152.3799 | R28: 6373.385462 | S28: 7762.015788 | T28: 8526.592834 | U28: 9554.971318 | V28: 5951.5959 | W28: 6172.601462 | X28: 7683.528068 | Y28: 8479.962492 | Z28: 9551.190079 | AA28: 6581.196373 | AB28: 6839.036196 | AC28: 8459.104909 | AD28: 9351.111464 | AE28: 10550.88636 | AF28: 7170.458137 | AG28: 7409.880829 | AH28: 8914.230349 | AI28: 9742.522149 | AJ28: 10856.59884 | AK28: 5327.616417 | AL28: 5588.785853 | AM28: 5746.388099 | AN28: 6256.813759 | AO28: 6447.811989 | AP28: 7071.360373 | AQ28: 6560.037496 | AR28: 7248.534696 | AS28: 8056.42999 | AT28: 8433.257249 | AU28: 9454.873027 | AV28: 10232.45651 | AW28: 10986.97333 | AX28: 8519.727006 | AY28: 7804.274372 | AZ28: 9768.461485 | BA28: 8604.346933 | BB28: 7071.360373 | BC28: 6560.037496 | BD28: 7345.661127 | BE28: 8056.42999 | BF28: 8433.257249 | BG28: 9454.873027 | BH28: 10232.45651 | BI28: 10986.97333 | BJ28: 8487.181382 | BK28: 7792.771472 | BL28: 9966.243809 | BM28: 8604.346933 | BN28: 7928.419713 | BO28: 0 | BP28: 9015.823955 | BQ28: 7340.962767 | BR28: 0 | BS28: 7786.728701 | BT28: 8166.001618 | BU28: 9495.971099 | BV28: 10116.62437 | BW28: 11203.24461 | BX28: 12097.46561 | BY28: 12965.15996 | BZ28: 11023.54786 | CA28: 13072.82626 | CB28: 13420.94086 | CC28: 14918.49046 | CD28: 7270.670632 | CE28: 5285.057057 | CG28: Помпея Категория 1 | CH28: 0 | CI28: =IF(CH28<>0,LOOKUP(,-CODE(CH$3:CH28),CH$3:CH28),CI27) -> 1 | CQ28: Ф | CR28: Ф | CS28: Ф | CT28: Ф | CU28: ф | CV28: Ф
B29: 0 | C29: =IF(B29<>0,LOOKUP(,-CODE(B$3:B29),B$3:B29),C28) -> 3 | D29: 3-140(550)-528 | E29: Тумба кухонная однодверный с леграбоксом, Н - 140/180 мм, полка ЛДСП | F29: =IF(E29<>0,LOOKUP(,-CODE(E$3:E29),E$3:E29),F28) -> Тумба кухонная однодверный с леграбоксом, Н - 140/180 мм, полка ЛДСП | H29: 1 | I29: 550 | J29: 720 | K29: 528 | L29: 6291.023628 | M29: 6534.263151 | N29: 8062.594716 | O29: 8904.090983 | P29: 10035.92807 | Q29: 6376.751628 | R29: 6619.991151 | S29: 8148.322716 | T29: 8989.818983 | U29: 10121.65607 | V29: 6164.687628 | W29: 6407.927151 | X29: 8070.320739 | Y29: 8946.879351 | Z29: 10125.87631 | AA29: 6837.321872 | AB29: 7121.101315 | AC29: 8904.154808 | AD29: 9885.900453 | AE29: 11206.37705 | AF29: 7455.85675 | AG29: 7719.366233 | AH29: 9375.058762 | AI29: 10286.67972 | AJ29: 11512.83656 | AK29: 5485.37506 | AL29: 5768.417983 | AM29: 5939.219747 | AN29: 6502.007825 | AO29: 6711.399124 | AP29: 7410.009413 | AQ29: 6847.245603 | AR29: 7605.008114 | AS29: 8494.180601 | AT29: 8908.918047 | AU29: 10033.31207 | AV29: 10889.12327 | AW29: 11719.54721 | AX29: 9004.086975 | AY29: 8216.657214 | AZ29: 10378.44866 | BA29: 9097.219973 | BB29: 7410.009413 | BC29: 6847.245603 | BD29: 7711.905816 | BE29: 8494.180601 | BF29: 8908.918047 | BG29: 10033.31207 | BH29: 10889.12327 | BI29: 11719.54721 | BJ29: 8968.267143 | BK29: 8203.997082 | BL29: 10596.12861 | BM29: 9097.219973 | BN29: 8353.292027 | BO29: 0 | BP29: 9480.140397 | BQ29: 7706.734784 | BR29: 0 | BS29: 8197.346385 | BT29: 8614.775532 | BU29: 10078.54476 | BV29: 10761.638 | BW29: 11957.57617 | BX29: 12941.75904 | BY29: 13896.74658 | BZ29: 11755.93965 | CA29: 14010.14589 | CB29: 14393.07195 | CC29: 16040.37651 | CD29: 7602.991874 | CE29: 5423.086166 | CG29: Помпея Категория 2 | CH29: 0 | CI29: =IF(CH29<>0,LOOKUP(,-CODE(CH$3:CH29),CH$3:CH29),CI28) -> 1 | CQ29: Ф | CR29: Ф | CS29: Ф | CT29: Ф | CU29: ф | CV29: Ф
B30: 0 | C30: =IF(B30<>0,LOOKUP(,-CODE(B$3:B30),B$3:B30),C29) -> 3 | D30: 3-140(600)-528 | E30: Тумба кухонная однодверный с леграбоксом, Н - 140/180 мм, полка ЛДСП | F30: =IF(E30<>0,LOOKUP(,-CODE(E$3:E30),E$3:E30),F29) -> Тумба кухонная однодверный с леграбоксом, Н - 140/180 мм, полка ЛДСП | H30: 1 | I30: 600 | J30: 720 | K30: 528 | L30: 6510.835357 | M30: 6776.308839 | N30: 8444.341645 | O30: 9362.757132 | P30: 10598.05282 | Q30: 6601.123357 | R30: 6866.596839 | S30: 8534.629645 | T30: 9453.045132 | U30: 10688.34082 | V30: 6377.779357 | W30: 6643.252839 | X30: 8457.11341 | Y30: 9413.796209 | Z30: 10700.56255 | AA30: 7093.447371 | AB30: 7403.166434 | AC30: 9349.204707 | AD30: 10420.68944 | AE30: 11861.86774 | AF30: 7741.255364 | AG30: 8028.851637 | AH30: 9835.887176 | AI30: 10830.83729 | AJ30: 12169.07428 | AK30: 5643.133703 | AL30: 5948.050113 | AM30: 6132.051395 | AN30: 6747.201891 | AO30: 6974.986258 | AP30: 7748.658453 | AQ30: 7134.45371 | AR30: 7961.481533 | AS30: 8931.931213 | AT30: 9384.578845 | AU30: 10611.75112 | AV30: 11545.79003 | AW30: 12452.1211 | AX30: 9488.446944 | AY30: 8629.040057 | AZ30: 10988.43584 | BA30: 9590.093013 | BB30: 7748.658453 | BC30: 7134.45371 | BD30: 8078.150505 | BE30: 8931.931213 | BF30: 9384.578845 | BG30: 10611.75112 | BH30: 11545.79003 | BI30: 12452.1211 | BJ30: 9449.352904 | BK30: 8615.222691 | BL30: 11226.01341 | BM30: 9590.093013 | BN30: 8778.16434 | BO30: 0 | BP30: 9944.45684 | BQ30: 8072.506801 | BR30: 0 | BS30: 8607.96407 | BT30: 9063.549445 | BU30: 10661.11842 | BV30: 11406.65163 | BW30: 12711.90773 | BX30: 13786.05247 | BY30: 14828.33321 | BZ30: 12488.33143 | CA30: 14947.46551 | CB30: 15365.20303 | CC30: 17162.26255 | CD30: 7935.313117 | CE30: 5561.115274 | CG30: Помпея Категория 3 | CH30: 0 | CI30: =IF(CH30<>0,LOOKUP(,-CODE(CH$3:CH30),CH$3:CH30),CI29) -> 1 | CQ30: Ф | CR30: Ф | CS30: Ф | CT30: Ф | CU30: ф | CV30: Ф
A31: 4/1 | B31: 0 | C31: =IF(B31<>0,LOOKUP(,-CODE(B$3:B31),B$3:B31),C30) -> 3 | D31: 3-180(300)-528 | E31: Тумба кухонная однодверный с леграбоксом, Н - 140/180 мм, полка ЛДСП | F31: =IF(E31<>0,LOOKUP(,-CODE(E$3:E31),E$3:E31),F30) -> Тумба кухонная однодверный с леграбоксом, Н - 140/180 мм, полка ЛДСП | H31: 1 | I31: 300 | J31: 720 | K31: 528 | L31: 5191.964985 | M31: 5324.034707 | N31: 6153.860073 | O31: 6610.76024 | P31: 7225.304324 | Q31: 5254.892985 | R31: 5386.962707 | S31: 6216.788073 | T31: 6673.68824 | U31: 7288.232324 | V31: 5099.228985 | W31: 5231.298707 | X31: 6136.357383 | Y31: 6612.295057 | Z31: 7252.445145 | AA31: 5556.694379 | AB31: 5710.775721 | AC31: 6678.905315 | AD31: 7211.955509 | AE31: 7928.923607 | AF31: 6028.863682 | AG31: 6171.939214 | AH31: 7070.916694 | AI31: 7565.891874 | AJ31: 8231.647965 | AK31: 4696.581845 | AL31: 4870.257332 | AM31: 4975.061506 | AN31: 5276.037494 | AO31: 5393.46345 | AP31: 5716.764213 | AQ31: 5411.20507 | AR31: 5822.641022 | AS31: 6305.427546 | AT31: 6530.614057 | AU31: 7141.116846 | AV31: 7605.789468 | AW31: 8056.677791 | AX31: 6582.287131 | AY31: 6154.743001 | AZ31: 7328.512765 | BA31: 6632.854773 | BB31: 5716.764213 | BC31: 5411.20507 | BD31: 5880.68237 | BE31: 6305.427546 | BF31: 6530.614057 | BG31: 7141.116846 | BH31: 7605.789468 | BI31: 8056.677791 | BJ31: 6562.838338 | BK31: 6147.869035 | BL31: 7446.704617 | BM31: 6632.854773 | BN31: 6228.930459 | BO31: 5944.837125 | BP31: 7726.174185 | BQ31: 5877.874698 | BR31: 6865.843413 | BS31: 6144.257963 | BT31: 6370.905963 | BU31: 7165.676458 | BV31: 7536.569862 | BW31: 8185.918376 | BX31: 8720.291892 | BY31: 9238.813463 | BZ31: 8222.314942 | CA31: 9492.991102 | CB31: 9708.843142 | CC31: 10637.41418 | CD31: 6032.144748 | CE31: 4732.924622 | CG31: Помпея Категория 4 ПАТИНА | CH31: 0 | CI31: =IF(CH31<>0,LOOKUP(,-CODE(CH$3:CH31),CH$3:CH31),CI30) -> 1 | CQ31: =$I31*$J31/1000000 -> 0.216 | CR31: 64.8 | CS31: 0.6 | CT31: 720 | CU31: ф | CV31: 784.8
B32: 0 | C32: =IF(B32<>0,LOOKUP(,-CODE(B$3:B32),B$3:B32),C31) -> 3 | D32: 3-180(350)-528 | E32: Тумба кухонная однодверный с леграбоксом, Н - 140/180 мм, полка ЛДСП | F32: =IF(E32<>0,LOOKUP(,-CODE(E$3:E32),E$3:E32),F31) -> Тумба кухонная однодверный с леграбоксом, Н - 140/180 мм, полка ЛДСП | H32: 1 | I32: 350 | J32: 720 | K32: 528 | L32: 5411.776714 | M32: 5566.080396 | N32: 6535.607002 | O32: 7069.426388 | P32: 7787.429072 | Q32: 5479.264714 | R32: 5633.568396 | S32: 6603.095002 | T32: 7136.914388 | U32: 7854.917072 | V32: 5312.320714 | W32: 5466.624396 | X32: 6523.150054 | Y32: 7079.211916 | Z32: 7827.131378 | AA32: 5812.819877 | AB32: 5992.84084 | AC32: 7123.955213 | AD32: 7746.744498 | AE32: 8584.414296 | AF32: 6314.262295 | AG32: 6481.424618 | AH32: 7531.745107 | AI32: 8110.049443 | AJ32: 8887.885684 | AK32: 4854.340488 | AL32: 5049.889462 | AM32: 5167.893154 | AN32: 5521.23156 | AO32: 5657.050585 | AP32: 6055.413253 | AQ32: 5698.413176 | AR32: 6179.11444 | AS32: 6743.178157 | AT32: 7006.274855 | AU32: 7719.555891 | AV32: 8262.456228 | AW32: 8789.251675 | AX32: 7066.6471 | AY32: 6567.125844 | AZ32: 7938.499945 | BA32: 7125.727813 | BB32: 6055.413253 | BC32: 5698.413176 | BD32: 6246.927059 | BE32: 6743.178157 | BF32: 7006.274855 | BG32: 7719.555891 | BH32: 8262.456228 | BI32: 8789.251675 | BJ32: 7043.924099 | BK32: 6559.094645 | BL32: 8076.589415 | BM32: 7125.727813 | BN32: 6653.802772 | BO32: 6321.882278 | BP32: 8291.850627 | BQ32: 6243.646715 | BR32: 7397.940129 | BS32: 6554.875647 | BT32: 6819.679877 | BU32: 7748.250118 | BV32: 8181.58349 | BW32: 8940.249935 | BX32: 9564.585322 | BY32: 10170.40009 | BZ32: 8976.095771 | CA32: 10458.55129 | CB32: 10710.37867 | CC32: 11793.71155 | CD32: 6377.370684 | CE32: 4871.073731 | CG32: Помпея Категория 6 Асти 19 мм | CH32: 0 | CI32: =IF(CH32<>0,LOOKUP(,-CODE(CH$3:CH32),CH$3:CH32),CI31) -> 1 | CQ32: 0.252 | CR32: 75.6 | CS32: 0.7 | CT32: 840 | CU32: ф | CV32: 915.6
B33: 0 | C33: =IF(B33<>0,LOOKUP(,-CODE(B$3:B33),B$3:B33),C32) -> 3 | D33: 3-180(400)-528 | E33: Тумба кухонная однодверный с леграбоксом, Н - 140/180 мм, полка ЛДСП | F33: =IF(E33<>0,LOOKUP(,-CODE(E$3:E33),E$3:E33),F32) -> Тумба кухонная однодверный с леграбоксом, Н - 140/180 мм, полка ЛДСП | H33: 1 | I33: 400 | J33: 720 | K33: 528 | L33: 5631.588442 | M33: 5808.126085 | N33: 6917.35393 | O33: 7528.092537 | P33: 8349.553821 | Q33: 5703.636442 | R33: 5880.174085 | S33: 6989.40193 | T33: 7600.140537 | U33: 8421.601821 | V33: 5525.412442 | W33: 5701.950085 | X33: 6909.942726 | Y33: 7546.128774 | Z33: 8401.817612 | AA33: 6068.945376 | AB33: 6274.905959 | AC33: 7569.005112 | AD33: 8281.533487 | AE33: 9239.904985 | AF33: 6599.660909 | AG33: 6790.910022 | AH33: 7992.573521 | AI33: 8654.207012 | AJ33: 9544.123403 | AK33: 5012.099131 | AL33: 5229.521593 | AM33: 5360.724802 | AN33: 5766.425626 | AO33: 5920.637719 | AP33: 6394.062293 | AQ33: 5985.621283 | AR33: 6535.587859 | AS33: 7180.928768 | AT33: 7481.935653 | AU33: 8297.994936 | AV33: 8919.122987 | AW33: 9521.82556 | AX33: 7551.007069 | AY33: 6979.508687 | AZ33: 8548.487125 | BA33: 7618.600853 | BB33: 6394.062293 | BC33: 5985.621283 | BD33: 6613.171748 | BE33: 7180.928768 | BF33: 7481.935653 | BG33: 8297.994936 | BH33: 8919.122987 | BI33: 9521.82556 | BJ33: 7525.00986 | BK33: 6970.320254 | BL33: 8706.474213 | BM33: 7618.600853 | BN33: 7078.675086 | BO33: 6698.927431 | BP33: 8857.52707 | BQ33: 6609.418733 | BR33: 7930.036846 | BS33: 6965.493332 | BT33: 7268.453791 | BU33: 8330.823779 | BV33: 8826.597117 | BW33: 9694.581494 | BX33: 10408.87875 | BY33: 11101.98671 | BZ33: 9578.400119 | CA33: 11224.11276 | CB33: 11503.67292 | CC33: 12706.30908 | CD33: 6722.59662 | CE33: 5009.222839 | CG33: Аликанте Высокий глянец 16 мм | CH33: 0 | CI33: =IF(CH33<>0,LOOKUP(,-CODE(CH$3:CH33),CH$3:CH33),CI32) -> 1 | CQ33: 0.288 | CR33: 86.4 | CS33: 0.8 | CT33: 960 | CU33: ф | CV33: 1046.4
B34: 0 | C34: =IF(B34<>0,LOOKUP(,-CODE(B$3:B34),B$3:B34),C33) -> 3 | D34: 3-180(450)-528 | E34: Тумба кухонная однодверный с леграбоксом, Н - 140/180 мм, полка ЛДСП | F34: =IF(E34<>0,LOOKUP(,-CODE(E$3:E34),E$3:E34),F33) -> Тумба кухонная однодверный с леграбоксом, Н - 140/180 мм, полка ЛДСП | H34: 1 | I34: 450 | J34: 720 | K34: 528 | L34: 5851.400171 | M34: 6050.171773 | N34: 7299.100859 | O34: 7986.758686 | P34: 8911.67857 | Q34: 5928.008171 | R34: 6126.779773 | S34: 7375.708859 | T34: 8063.366686 | U34: 8988.28657 | V34: 5738.504171 | W34: 5937.275773 | X34: 7296.735397 | Y34: 8013.045633 | Z34: 8976.503846 | AA34: 6325.070875 | AB34: 6556.971078 | AC34: 8014.055011 | AD34: 8816.322475 | AE34: 9895.395673 | AF34: 6885.059523 | AG34: 7100.395425 | AH34: 8453.401935 | AI34: 9198.364581 | AJ34: 10200.36112 | AK34: 5169.857774 | AL34: 5409.153723 | AM34: 5553.55645 | AN34: 6011.619692 | AO34: 6184.224854 | AP34: 6732.711333 | AQ34: 6272.82939 | AR34: 6892.061277 | AS34: 7618.679379 | AT34: 7957.596451 | AU34: 8876.433982 | AV34: 9575.789747 | AW34: 10254.39944 | AX34: 8035.367037 | AY34: 7391.891529 | AZ34: 9158.474305 | BA34: 8111.473893 | BB34: 6732.711333 | BC34: 6272.82939 | BD34: 6979.416438 | BE34: 7618.679379 | BF34: 7957.596451 | BG34: 8876.433982 | BH34: 9575.789747 | BI34: 10254.39944 | BJ34: 8006.095621 | BK34: 7381.545863 | BL34: 9336.359011 | BM34: 8111.473893 | BN34: 7503.5474 | BO34: 7075.972584 | BP34: 9423.203512 | BQ34: 6975.19075 | BR34: 8462.133562 | BS34: 7376.111016 | BT34: 7717.227704 | BU34: 8913.397439 | BV34: 9471.610744 | BW34: 10448.91305 | BX34: 11253.17218 | BY34: 12033.57334 | BZ34: 10313.24639 | CA34: 12164.67311 | CB34: 12479.17829 | CC34: 13832.14397 | CD34: 7067.822556 | CE34: 5147.371948 | CG34: Аликанте Матовая 16 мм | CH34: 0 | CI34: =IF(CH34<>0,LOOKUP(,-CODE(CH$3:CH34),CH$3:CH34),CI33) -> 1 | CQ34: 0.324 | CR34: 97.2 | CS34: 0.9 | CT34: 1080 | CU34: ф | CV34: 1177.2
B35: 0 | C35: =IF(B35<>0,LOOKUP(,-CODE(B$3:B35),B$3:B35),C34) -> 3 | D35: 3-180(500)-528 | E35: Тумба кухонная однодверный с леграбоксом, Н - 140/180 мм, полка ЛДСП | F35: =IF(E35<>0,LOOKUP(,-CODE(E$3:E35),E$3:E35),F34) -> Тумба кухонная однодверный с леграбоксом, Н - 140/180 мм, полка ЛДСП | H35: 1 | I35: 500 | J35: 720 | K35: 528 | L35: 6071.2119 | M35: 6292.217462 | N35: 7680.847788 | O35: 8445.424834 | P35: 9473.803318 | Q35: 6152.3799 | R35: 6373.385462 | S35: 7762.015788 | T35: 8526.592834 | U35: 9554.971318 | V35: 5951.5959 | W35: 6172.601462 | X35: 7683.528068 | Y35: 8479.962492 | Z35: 9551.190079 | AA35: 6581.196373 | AB35: 6839.036196 | AC35: 8459.104909 | AD35: 9351.111464 | AE35: 10550.88636 | AF35: 7170.458137 | AG35: 7409.880829 | AH35: 8914.230349 | AI35: 9742.522149 | AJ35: 10856.59884 | AK35: 5327.616417 | AL35: 5588.785853 | AM35: 5746.388099 | AN35: 6256.813759 | AO35: 6447.811989 | AP35: 7071.360373 | AQ35: 6560.037496 | AR35: 7248.534696 | AS35: 8056.42999 | AT35: 8433.257249 | AU35: 9454.873027 | AV35: 10232.45651 | AW35: 10986.97333 | AX35: 8519.727006 | AY35: 7804.274372 | AZ35: 9768.461485 | BA35: 8604.346933 | BB35: 7071.360373 | BC35: 6560.037496 | BD35: 7345.661127 | BE35: 8056.42999 | BF35: 8433.257249 | BG35: 9454.873027 | BH35: 10232.45651 | BI35: 10986.97333 | BJ35: 8487.181382 | BK35: 7792.771472 | BL35: 9966.243809 | BM35: 8604.346933 | BN35: 7928.419713 | BO35: 7453.017737 | BP35: 9988.879955 | BQ35: 7340.962767 | BR35: 8994.230279 | BS35: 7786.728701 | BT35: 8166.001618 | BU35: 9495.971099 | BV35: 10116.62437 | BW35: 11203.24461 | BX35: 12097.46561 | BY35: 12965.15996 | BZ35: 11048.09266 | CA35: 13105.23346 | CB35: 13454.68366 | CC35: 14957.97886 | CD35: 7413.048493 | CE35: 5285.521057 | CG35: Аликанте ЖЕМЧУГ, ПЕРЛАМУТР 16 мм | CH35: 0 | CI35: =IF(CH35<>0,LOOKUP(,-CODE(CH$3:CH35),CH$3:CH35),CI34) -> 1 | CQ35: 0.36 | CR35: 108 | CS35: 1 | CT35: 1200 | CU35: ф | CV35: 1308
B36: 0 | C36: =IF(B36<>0,LOOKUP(,-CODE(B$3:B36),B$3:B36),C35) -> 3 | D36: 3-180(550)-528 | E36: Тумба кухонная однодверный с леграбоксом, Н - 140/180 мм, полка ЛДСП | F36: =IF(E36<>0,LOOKUP(,-CODE(E$3:E36),E$3:E36),F35) -> Тумба кухонная однодверный с леграбоксом, Н - 140/180 мм, полка ЛДСП | H36: 1 | I36: 550 | J36: 720 | K36: 528 | L36: 6291.023628 | M36: 6534.263151 | N36: 8062.594716 | O36: 8904.090983 | P36: 10035.92807 | Q36: 6376.751628 | R36: 6619.991151 | S36: 8148.322716 | T36: 8989.818983 | U36: 10121.65607 | V36: 6164.687628 | W36: 6407.927151 | X36: 8070.320739 | Y36: 8946.879351 | Z36: 10125.87631 | AA36: 6837.321872 | AB36: 7121.101315 | AC36: 8904.154808 | AD36: 9885.900453 | AE36: 11206.37705 | AF36: 7455.85675 | AG36: 7719.366233 | AH36: 9375.058762 | AI36: 10286.67972 | AJ36: 11512.83656 | AK36: 5485.37506 | AL36: 5768.417983 | AM36: 5939.219747 | AN36: 6502.007825 | AO36: 6711.399124 | AP36: 7410.009413 | AQ36: 6847.245603 | AR36: 7605.008114 | AS36: 8494.180601 | AT36: 8908.918047 | AU36: 10033.31207 | AV36: 10889.12327 | AW36: 11719.54721 | AX36: 9004.086975 | AY36: 8216.657214 | AZ36: 10378.44866 | BA36: 9097.219973 | BB36: 7410.009413 | BC36: 6847.245603 | BD36: 7711.905816 | BE36: 8494.180601 | BF36: 8908.918047 | BG36: 10033.31207 | BH36: 10889.12327 | BI36: 11719.54721 | BJ36: 8968.267143 | BK36: 8203.997082 | BL36: 10596.12861 | BM36: 9097.219973 | BN36: 8353.292027 | BO36: 7830.06289 | BP36: 10554.5564 | BQ36: 7706.734784 | BR36: 9526.326995 | BS36: 8197.346385 | BT36: 8614.775532 | BU36: 10078.54476 | BV36: 10761.638 | BW36: 11957.57617 | BX36: 12941.75904 | BY36: 13896.74658 | BZ36: 11782.93893 | CA36: 14045.79381 | CB36: 14430.18903 | CC36: 16083.81375 | CD36: 7758.274429 | CE36: 5423.670166 | CG36: Аликанте Спецэффект №1 16 мм | CH36: 0 | CI36: =IF(CH36<>0,LOOKUP(,-CODE(CH$3:CH36),CH$3:CH36),CI35) -> 1 | CQ36: 0.396 | CR36: 118.8 | CS36: 1.1 | CT36: 1320 | CU36: ф | CV36: 1438.8
B37: 0 | C37: =IF(B37<>0,LOOKUP(,-CODE(B$3:B37),B$3:B37),C36) -> 3 | D37: 3-180(600)-528 | E37: Тумба кухонная однодверный с леграбоксом, Н - 140/180 мм, полка ЛДСП | F37: =IF(E37<>0,LOOKUP(,-CODE(E$3:E37),E$3:E37),F36) -> Тумба кухонная однодверный с леграбоксом, Н - 140/180 мм, полка ЛДСП | H37: 1 | I37: 600 | J37: 720 | K37: 528 | L37: 6510.835357 | M37: 6776.308839 | N37: 8444.341645 | O37: 9362.757132 | P37: 10598.05282 | Q37: 6601.123357 | R37: 6866.596839 | S37: 8534.629645 | T37: 9453.045132 | U37: 10688.34082 | V37: 6377.779357 | W37: 6643.252839 | X37: 8457.11341 | Y37: 9413.796209 | Z37: 10700.56255 | AA37: 7093.447371 | AB37: 7403.166434 | AC37: 9349.204707 | AD37: 10420.68944 | AE37: 11861.86774 | AF37: 7741.255364 | AG37: 8028.851637 | AH37: 9835.887176 | AI37: 10830.83729 | AJ37: 12169.07428 | AK37: 5643.133703 | AL37: 5948.050113 | AM37: 6132.051395 | AN37: 6747.201891 | AO37: 6974.986258 | AP37: 7748.658453 | AQ37: 7134.45371 | AR37: 7961.481533 | AS37: 8931.931213 | AT37: 9384.578845 | AU37: 10611.75112 | AV37: 11545.79003 | AW37: 12452.1211 | AX37: 9488.446944 | AY37: 8629.040057 | AZ37: 10988.43584 | BA37: 9590.093013 | BB37: 7748.658453 | BC37: 7134.45371 | BD37: 8078.150505 | BE37: 8931.931213 | BF37: 9384.578845 | BG37: 10611.75112 | BH37: 11545.79003 | BI37: 12452.1211 | BJ37: 9449.352904 | BK37: 8615.222691 | BL37: 11226.01341 | BM37: 9590.093013 | BN37: 8778.16434 | BO37: 8207.108043 | BP37: 11120.23284 | BQ37: 8072.506801 | BR37: 10058.42371 | BS37: 8607.96407 | BT37: 9063.549445 | BU37: 10661.11842 | BV37: 11406.65163 | BW37: 12711.90773 | BX37: 13786.05247 | BY37: 14828.33321 | BZ37: 12517.78519 | CA37: 14986.35415 | CB37: 15405.69439 | CC37: 17209.64863 | CD37: 8103.500365 | CE37: 5561.819274 | CG37: =INDIRECT(ADDRESS(2,ROW()+9)) -> Аликанте Спецэффект №2 16 мм | CH37: 0 | CI37: =IF(CH37<>0,LOOKUP(,-CODE(CH$3:CH37),CH$3:CH37),CI36) -> 1 | CQ37: 0.432 | CR37: 129.6 | CS37: 1.2 | CT37: 1440 | CU37: ф | CV37: 1569.6
A38: 6 | B38: 4 | C38: =IF(B38<>0,LOOKUP(,-CODE(B$3:B38),B$3:B38),C37) -> 4 | D38: 4(600)-528 | E38: Тумба кухонная двухдверный, полка ЛДСП | F38: =IF(E38<>0,LOOKUP(,-CODE(E$3:E38),E$3:E38),F37) -> Тумба кухонная двухдверный, полка ЛДСП | H38: 1 | I38: 600 | J38: 720 | K38: 528 | L38: 4160.247888 | M38: 4425.497162 | N38: 6092.121216 | O38: 7009.761046 | P38: 8244.01345 | Q38: 4256.919888 | R38: 4522.169162 | S38: 6188.793216 | T38: 7106.433046 | U38: 8340.68545 | V38: 4017.783888 | W38: 4283.033162 | X38: 6096.325192 | Y38: 7052.200016 | Z38: 8337.879603 | AA38: 4769.228905 | AB38: 5078.686392 | AC38: 7023.081121 | AD38: 8093.660924 | AE38: 9533.622062 | AF38: 5470.254397 | AG38: 5757.607777 | AH38: 7563.117169 | AI38: 8557.226985 | AJ38: 9894.333756 | AK38: 3268.064099 | AL38: 3578.705305 | AM38: 3766.161204 | AN38: 4379.416925 | AO38: 4608.126301 | AP38: 5364.384288 | AQ38: 4750.698277 | AR38: 5577.027626 | AS38: 6546.657704 | AT38: 6998.923049 | AU38: 8225.058902 | AV38: 9158.308959 | AW38: 10063.87458 | AX38: 7102.703425 | AY38: 6244.022358 | AZ38: 8601.425497 | BA38: 7204.263648 | BB38: 5364.384288 | BC38: 4750.698277 | BD38: 5693.598065 | BE38: 6546.657704 | BF38: 6998.923049 | BG38: 8225.058902 | BH38: 9158.308959 | BI38: 10063.87458 | BJ38: 7063.642403 | BK38: 6230.216661 | BL38: 8838.802409 | BM38: 7204.263648 | BN38: 6393.020697 | BO38: 5822.44669 | BP38: 8816.801558 | BQ38: 5687.959127 | BR38: 7672.198814 | BS38: 6222.964171 | BT38: 6678.164777 | BU38: 8274.384511 | BV38: 9019.28807 | BW38: 10323.44181 | BX38: 11396.67937 | BY38: 12438.07984 | BZ38: 10306.40274 | CA38: 12829.55922 | CB38: 13258.17234 | CC38: 15102.01746 | CD38: 5801.833525 | CE38: 3300.569781 | CG38: Аликанте Спецэффект №3 16 мм | CH38: 2 | CI38: =IF(CH38<>0,LOOKUP(,-CODE(CH$3:CH38),CH$3:CH38),CI37) -> 2 | CQ38: 0.432 | CR38: 129.6 | CS38: 1.2 | CT38: 1440 | CU38: ф | CV38: 1569.6
A39: 0 | B39: 0 | C39: =IF(B39<>0,LOOKUP(,-CODE(B$3:B39),B$3:B39),C38) -> 4 | D39: 4(650)-528 | E39: Тумба кухонная двухдверный, полка ЛДСП | F39: =IF(E39<>0,LOOKUP(,-CODE(E$3:E39),E$3:E39),F38) -> Тумба кухонная двухдверный, полка ЛДСП | H39: 1 | I39: 650 | J39: 720 | K39: 528 | L39: 4341.275773 | M39: 4628.852427 | N39: 6435.764701 | O39: 7430.646942 | P39: 8768.792646 | Q39: 4440.227773 | R39: 4727.804427 | S39: 6534.716701 | T39: 7529.598942 | U39: 8867.744646 | V39: 4195.451773 | W39: 4483.028427 | X39: 6448.080999 | Y39: 7484.416666 | Z39: 8878.318441 | AA39: 4977.163476 | AB39: 5312.669573 | AC39: 7420.733892 | AD39: 8581.429839 | AE39: 10142.59983 | AF39: 5688.450624 | AG39: 5999.992 | AH39: 7957.480296 | AI39: 9035.269391 | AJ39: 10484.92724 | AK39: 3395.319788 | AL39: 3725.449149 | AM39: 3924.665143 | AN39: 4591.072772 | AO39: 4837.789796 | AP39: 5676.365607 | AQ39: 5011.022525 | AR39: 5906.908217 | AS39: 6958.156988 | AT39: 7448.491807 | AU39: 8777.837748 | AV39: 9789.644208 | AW39: 10771.43589 | AX39: 7561.007904 | AY39: 6630.047286 | AZ39: 9185.885033 | BA39: 7671.116967 | BB39: 5676.365607 | BC39: 5011.022525 | BD39: 6033.290982 | BE39: 6958.156988 | BF39: 7448.491807 | BG39: 8777.837748 | BH39: 9789.644208 | BI39: 10771.43589 | BJ39: 7518.658917 | BK39: 6615.079494 | BL39: 9443.243167 | BM39: 7671.116967 | BN39: 6791.587573 | BO39: 6172.985451 | BP39: 9254.552412 | BQ39: 6027.177386 | BR39: 8178.440616 | BS39: 6607.216524 | BT39: 7100.73368 | BU39: 8831.315344 | BV39: 9638.921223 | BW39: 11052.85221 | BX39: 12216.42964 | BY39: 13345.49008 | BZ39: 11027.7486 | CA39: 13761.16812 | CB39: 14225.499 | CC39: 16222.99788 | CD39: 6097.638689 | CE39: 3403.477556 | CG39: Аликанте Спецэффект №4 16 мм | CH39: 0 | CI39: =IF(CH39<>0,LOOKUP(,-CODE(CH$3:CH39),CH$3:CH39),CI38) -> 2 | CQ39: 0.468 | CR39: 140.4 | CS39: 1.3 | CT39: 1560 | CU39: ф | CV39: 1700.4
A40: 0 | B40: 0 | C40: =IF(B40<>0,LOOKUP(,-CODE(B$3:B40),B$3:B40),C39) -> 4 | D40: 4(700)-528 | E40: Тумба кухонная двухдверный, полка ЛДСП | F40: =IF(E40<>0,LOOKUP(,-CODE(E$3:E40),E$3:E40),F39) -> Тумба кухонная двухдверный, полка ЛДСП | H40: 1 | I40: 700 | J40: 720 | K40: 528 | L40: 4522.303658 | M40: 4832.207693 | N40: 6779.408186 | O40: 7851.532837 | P40: 9293.571841 | Q40: 4623.535658 | R40: 4933.439693 | S40: 6880.640186 | T40: 7952.764837 | U40: 9394.803841 | V40: 4373.119658 | W40: 4683.023693 | X40: 6799.836805 | Y40: 7916.633317 | Z40: 9418.757279 | AA40: 5185.098046 | AB40: 5546.652753 | AC40: 7818.386662 | AD40: 9069.198755 | AE40: 10751.57759 | AF40: 5906.646852 | AG40: 6242.376223 | AH40: 8351.843424 | AI40: 9513.311796 | AJ40: 11075.52072 | AK40: 3522.575477 | AL40: 3872.192994 | AM40: 4083.169082 | AN40: 4802.728618 | AO40: 5067.45329 | AP40: 5988.346927 | AQ40: 5271.346773 | AR40: 6236.788807 | AS40: 7369.656272 | AT40: 7898.060564 | AU40: 9330.616594 | AV40: 10420.97946 | AW40: 11478.9972 | AX40: 8019.312384 | AY40: 7016.072215 | AZ40: 9770.344569 | BA40: 8137.970287 | BB40: 5988.346927 | BC40: 5271.346773 | BD40: 6372.983899 | BE40: 7369.656272 | BF40: 7898.060564 | BG40: 9330.616594 | BH40: 10420.97946 | BI40: 11478.9972 | BJ40: 7973.675432 | BK40: 6999.942327 | BL40: 10047.68392 | BM40: 8137.970287 | BN40: 7190.154449 | BO40: 6523.524212 | BP40: 9692.303267 | BQ40: 6366.395645 | BR40: 8684.682418 | BS40: 6991.468878 | BT40: 7523.302584 | BU40: 9388.246177 | BV40: 10258.55438 | BW40: 11782.26262 | BX40: 13036.17991 | BY40: 14252.90032 | BZ40: 11749.09445 | CA40: 14692.77701 | CB40: 15192.82565 | CC40: 17343.97829 | CD40: 6393.443853 | CE40: 3506.385332 | CG40: Аликанте Спецэффект №5 16 мм | CH40: 0 | CI40: =IF(CH40<>0,LOOKUP(,-CODE(CH$3:CH40),CH$3:CH40),CI39) -> 2 | CQ40: 0.504 | CR40: 151.2 | CS40: 1.4 | CT40: 1680 | CU40: ф | CV40: 1831.2
A41: 0 | B41: 0 | C41: =IF(B41<>0,LOOKUP(,-CODE(B$3:B41),B$3:B41),C40) -> 4 | D41: 4(750)-528 | E41: Тумба кухонная двухдверный, полка ЛДСП | F41: =IF(E41<>0,LOOKUP(,-CODE(E$3:E41),E$3:E41),F40) -> Тумба кухонная двухдверный, полка ЛДСП | H41: 1 | I41: 750 | J41: 720 | K41: 528 | L41: 4703.331544 | M41: 5035.562958 | N41: 7123.051672 | O41: 8272.418733 | P41: 9818.351037 | Q41: 4806.843544 | R41: 5139.074958 | S41: 7226.563672 | T41: 8375.930733 | U41: 9921.863037 | V41: 4550.787544 | W41: 4883.018958 | X41: 7151.592612 | Y41: 8348.849967 | Z41: 9959.196117 | AA41: 5393.032617 | AB41: 5780.635933 | AC41: 8216.039433 | AD41: 9556.96767 | AE41: 11360.55536 | AF41: 6124.84308 | AG41: 6484.760446 | AH41: 8746.206552 | AI41: 9991.354201 | AJ41: 11666.1142 | AK41: 3649.831166 | AL41: 4018.936839 | AM41: 4241.673021 | AN41: 5014.384465 | AO41: 5297.116785 | AP41: 6300.328247 | AQ41: 5531.671021 | AR41: 6566.669398 | AS41: 7781.155556 | AT41: 8347.629322 | AU41: 9883.395441 | AV41: 11052.3147 | AW41: 12186.55851 | AX41: 8477.616863 | AY41: 7402.097143 | AZ41: 10354.80411 | BA41: 8604.823607 | BB41: 6300.328247 | BC41: 5531.671021 | BD41: 6712.676816 | BE41: 7781.155556 | BF41: 8347.629322 | BG41: 9883.395441 | BH41: 11052.3147 | BI41: 12186.55851 | BJ41: 8428.691947 | BK41: 7384.805159 | BL41: 10652.12468 | BM41: 8604.823607 | BN41: 7588.721325 | BO41: 6874.062973 | BP41: 10130.05412 | BQ41: 6705.613904 | BR41: 9190.924219 | BS41: 7375.721232 | BT41: 7945.871487 | BU41: 9945.177011 | BV41: 10878.18753 | BW41: 12511.67302 | BX41: 13855.93017 | BY41: 15160.31055 | BZ41: 12470.44031 | CA41: 15624.38591 | CB41: 16160.15231 | CC41: 18464.95871 | CD41: 6689.249017 | CE41: 3609.293107 | CG41: Аликанте Палаццио глянцевая 16 мм | CH41: 0 | CI41: =IF(CH41<>0,LOOKUP(,-CODE(CH$3:CH41),CH$3:CH41),CI40) -> 2 | CQ41: 0.54 | CR41: 162 | CS41: 1.5 | CT41: 1800 | CU41: ф | CV41: 1962
A42: 0 | B42: 0 | C42: =IF(B42<>0,LOOKUP(,-CODE(B$3:B42),B$3:B42),C41) -> 4 | D42: 4(800)-528 | E42: Тумба кухонная двухдверный, полка ЛДСП | F42: =IF(E42<>0,LOOKUP(,-CODE(E$3:E42),E$3:E42),F41) -> Тумба кухонная двухдверный, полка ЛДСП | H42: 1 | I42: 800 | J42: 720 | K42: 528 | L42: 4884.359429 | M42: 5238.918224 | N42: 7466.695157 | O42: 8693.304628 | P42: 10343.13023 | Q42: 4990.151429 | R42: 5344.710224 | S42: 7572.487157 | T42: 8799.096628 | U42: 10448.92223 | V42: 4728.455429 | W42: 5083.014224 | X42: 7503.348419 | Y42: 8781.066617 | Z42: 10499.63495 | AA42: 5600.967187 | AB42: 6014.619114 | AC42: 8613.692203 | AD42: 10044.73659 | AE42: 11969.53312 | AF42: 6343.039308 | AG42: 6727.144669 | AH42: 9140.56968 | AI42: 10469.39661 | AJ42: 12256.70768 | AK42: 3777.086855 | AL42: 4165.680684 | AM42: 4400.17696 | AN42: 5226.040312 | AO42: 5526.78028 | AP42: 6612.309566 | AQ42: 5791.995269 | AR42: 6896.549988 | AS42: 8192.65484 | AT42: 8797.198079 | AU42: 10436.17429 | AV42: 11683.64995 | AW42: 12894.11983 | AX42: 8935.921343 | AY42: 7788.122071 | AZ42: 10939.26364 | BA42: 9071.676926 | BB42: 6612.309566 | BC42: 5791.995269 | BD42: 7052.369733 | BE42: 8192.65484 | BF42: 8797.198079 | BG42: 10436.17429 | BH42: 11683.64995 | BI42: 12894.11983 | BJ42: 8883.708461 | BK42: 7769.667992 | BL42: 11256.56544 | BM42: 9071.676926 | BN42: 7987.288201 | BO42: 7224.601734 | BP42: 10567.80498 | BQ42: 7044.832164 | BR42: 9697.166021 | BS42: 7759.973585 | BT42: 8368.44039 | BU42: 10502.10784 | BV42: 11497.82068 | BW42: 13241.08342 | BX42: 14675.68044 | BY42: 16067.72079 | BZ42: 12787.84888 | CA42: 16022.66488 | CB42: 16572.16888 | CC42: 18936.07288 | CD42: 6985.054181 | CE42: 3712.200882 | CG42: Аликанте Палаццио матовая 16 мм | CH42: 0 | CI42: =IF(CH42<>0,LOOKUP(,-CODE(CH$3:CH42),CH$3:CH42),CI41) -> 2 | CQ42: 0.576 | CR42: 172.8 | CS42: 1.6 | CT42: 1920 | CU42: ф | CV42: 2092.8
A43: 0 | B43: 0 | C43: =IF(B43<>0,LOOKUP(,-CODE(B$3:B43),B$3:B43),C42) -> 4 | D43: 4(850)-528 | E43: Тумба кухонная двухдверный, полка ЛДСП | F43: =IF(E43<>0,LOOKUP(,-CODE(E$3:E43),E$3:E43),F42) -> Тумба кухонная двухдверный, полка ЛДСП | H43: 1 | I43: 850 | J43: 720 | K43: 528 | L43: 5065.387314 | M43: 5442.273489 | N43: 7810.338642 | O43: 9114.190523 | P43: 10867.90943 | Q43: 5173.459314 | R43: 5550.345489 | S43: 7918.410642 | T43: 9222.262523 | U43: 10975.98143 | V43: 4906.123314 | W43: 5283.009489 | X43: 7855.104225 | Y43: 9213.283268 | Z43: 11040.07379 | AA43: 5808.901757 | AB43: 6248.602294 | AC43: 9011.344973 | AD43: 10532.5055 | AE43: 12578.51089 | AF43: 6561.235536 | AG43: 6969.528891 | AH43: 9534.932808 | AI43: 10947.43901 | AJ43: 12847.30116 | AK43: 3904.342544 | AL43: 4312.424529 | AM43: 4558.680899 | AN43: 5437.696159 | AO43: 5756.443775 | AP43: 6924.290886 | AQ43: 6052.319517 | AR43: 7226.430579 | AS43: 8604.154124 | AT43: 9246.766837 | AU43: 10988.95313 | AV43: 12314.9852 | AW43: 13601.68114 | AX43: 9394.225822 | AY43: 8174.146999 | AZ43: 11523.72318 | BA43: 9538.530246 | BB43: 6924.290886 | BC43: 6052.319517 | BD43: 7392.06265 | BE43: 8604.154124 | BF43: 9246.766837 | BG43: 10988.95313 | BH43: 12314.9852 | BI43: 13601.68114 | BJ43: 9338.724976 | BK43: 8154.530824 | BL43: 11861.0062 | BM43: 9538.530246 | BN43: 8385.855077 | BO43: 7575.140495 | BP43: 11005.55583 | BQ43: 7384.050423 | BR43: 10203.40782 | BS43: 8144.225939 | BT43: 8791.009293 | BU43: 11059.03868 | BV43: 12117.45384 | BW43: 13970.49383 | BX43: 15495.43071 | BY43: 16975.13103 | BZ43: 13483.94866 | CA43: 16920.94066 | CB43: 17504.78866 | CC43: 20016.43666 | CD43: 7280.859345 | CE43: 3815.108658 | CG43: Аликанте Спецэффект №2 + Фотопечать 16 мм | CH43: 0 | CI43: =IF(CH43<>0,LOOKUP(,-CODE(CH$3:CH43),CH$3:CH43),CI42) -> 2 | CQ43: 0.612 | CR43: 183.6 | CS43: 1.7 | CT43: 2040 | CU43: ф | CV43: 2223.6
A44: 0 | B44: 0 | C44: =IF(B44<>0,LOOKUP(,-CODE(B$3:B44),B$3:B44),C43) -> 4 | D44: 4(900)-528 | E44: Тумба кухонная двухдверный, полка ЛДСП | F44: =IF(E44<>0,LOOKUP(,-CODE(E$3:E44),E$3:E44),F43) -> Тумба кухонная двухдверный, полка ЛДСП | H44: 1 | I44: 900 | J44: 720 | K44: 528 | L44: 5246.4152 | M44: 5645.628754 | N44: 8153.982128 | O44: 9535.076419 | P44: 11392.68862 | Q44: 5356.7672 | R44: 5755.980754 | S44: 8264.334128 | T44: 9645.428419 | U44: 11503.04062 | V44: 5083.7912 | W44: 5483.004754 | X44: 8206.860032 | Y44: 9645.499918 | Z44: 11580.51263 | AA44: 6016.836328 | AB44: 6482.585474 | AC44: 9408.997744 | AD44: 11020.27442 | AE44: 13187.48865 | AF44: 6779.431764 | AG44: 7211.913114 | AH44: 9929.295936 | AI44: 11425.48142 | AJ44: 13437.89464 | AK44: 4031.598233 | AL44: 4459.168373 | AM44: 4717.184837 | AN44: 5649.352006 | AO44: 5986.107269 | AP44: 7236.272206 | AQ44: 6312.643765 | AR44: 7556.31117 | AS44: 9015.653408 | AT44: 9696.335595 | AU44: 11541.73198 | AV44: 12946.32045 | AW44: 14309.24245 | AX44: 9852.530301 | AY44: 8560.171928 | AZ44: 12108.18271 | BA44: 10005.38357 | BB44: 7236.272206 | BC44: 6312.643765 | BD44: 7731.755567 | BE44: 9015.653408 | BF44: 9696.335595 | BG44: 11541.73198 | BH44: 12946.32045 | BI44: 14309.24245 | BJ44: 9793.74149 | BK44: 8539.393657 | BL44: 12465.44695 | BM44: 10005.38357 | BN44: 8784.421953 | BO44: 7925.679256 | BP44: 11443.30668 | BQ44: 7723.268682 | BR44: 10709.64962 | BS44: 8528.478292 | BT44: 9213.578196 | BU44: 11615.96951 | BV44: 12737.08699 | BW44: 14699.90423 | BX44: 16315.18097 | BY44: 17882.54127 | BZ44: 14180.04843 | CA44: 17819.21643 | CB44: 18437.40843 | CC44: 21096.80043 | CD44: 7576.664509 | CE44: 3918.016433 | CG44: Аликанте Фотопечать 16 мм | CH44: 0 | CI44: =IF(CH44<>0,LOOKUP(,-CODE(CH$3:CH44),CH$3:CH44),CI43) -> 2 | CQ44: 0.648 | CR44: 194.4 | CS44: 1.8 | CT44: 2160 | CU44: ф | CV44: 2354.4
A45: 0 | B45: 0 | C45: =IF(B45<>0,LOOKUP(,-CODE(B$3:B45),B$3:B45),C44) -> 4 | D45: 4(950)-528 | E45: Тумба кухонная двухдверный, полка ЛДСП | F45: =IF(E45<>0,LOOKUP(,-CODE(E$3:E45),E$3:E45),F44) -> Тумба кухонная двухдверный, полка ЛДСП | H45: 1 | I45: 950 | J45: 720 | K45: 528 | L45: 5427.443085 | M45: 5848.98402 | N45: 8497.625613 | O45: 9955.962314 | P45: 11917.46782 | Q45: 5540.075085 | R45: 5961.61602 | S45: 8610.257613 | T45: 10068.59431 | U45: 12030.09982 | V45: 5261.459085 | W45: 5683.00002 | X45: 8558.615838 | Y45: 10077.71657 | Z45: 12120.95147 | AA45: 6224.770898 | AB45: 6716.568655 | AC45: 9806.650514 | AD45: 11508.04333 | AE45: 13796.46642 | AF45: 6997.627992 | AG45: 7454.297337 | AH45: 10323.65906 | AI45: 11903.52382 | AJ45: 14028.48812 | AK45: 4158.853922 | AL45: 4605.912218 | AM45: 4875.688776 | AN45: 5861.007852 | AO45: 6215.770764 | AP45: 7548.253526 | AQ45: 6572.968013 | AR45: 7886.19176 | AS45: 9427.152692 | AT45: 10145.90435 | AU45: 12094.51083 | AV45: 13577.6557 | AW45: 15016.80376 | AX45: 10310.83478 | AY45: 8946.196856 | AZ45: 12692.64225 | BA45: 10472.23689 | BB45: 7548.253526 | BC45: 6572.968013 | BD45: 8071.448484 | BE45: 9427.152692 | BF45: 10145.90435 | BG45: 12094.51083 | BH45: 13577.6557 | BI45: 15016.80376 | BJ45: 10248.758 | BK45: 8924.25649 | BL45: 13069.88771 | BM45: 10472.23689 | BN45: 9182.988829 | BO45: 8276.218017 | BP45: 11881.05754 | BQ45: 8062.486941 | BR45: 11215.89143 | BS45: 8912.730646 | BT45: 9636.147099 | BU45: 12172.90034 | BV45: 13356.72014 | BW45: 15429.31464 | BX45: 17134.93124 | BY45: 18789.95151 | BZ45: 14876.14821 | CA45: 18717.49221 | CB45: 19370.02821 | CC45: 22177.16421 | CD45: 7872.469673 | CE45: 4020.924208 | CG45: Аликанте Высокий глянец 19 мм | CH45: 0 | CI45: =IF(CH45<>0,LOOKUP(,-CODE(CH$3:CH45),CH$3:CH45),CI44) -> 2 | CQ45: 0.684 | CR45: 205.2 | CS45: 1.9 | CT45: 2280 | CU45: ф | CV45: 2485.2
A46: 0 | B46: 0 | C46: =IF(B46<>0,LOOKUP(,-CODE(B$3:B46),B$3:B46),C45) -> 4 | D46: 4(1000)-528 | E46: Тумба кухонная двухдверный, полка ЛДСП | F46: =IF(E46<>0,LOOKUP(,-CODE(E$3:E46),E$3:E46),F45) -> Тумба кухонная двухдверный, полка ЛДСП | H46: 1 | I46: 1000 | J46: 720 | K46: 528 | L46: 5608.470971 | M46: 6052.339285 | N46: 8841.269099 | O46: 10376.84821 | P46: 12442.24701 | Q46: 5723.382971 | R46: 6167.251285 | S46: 8956.181099 | T46: 10491.76021 | U46: 12557.15901 | V46: 5439.126971 | W46: 5882.995285 | X46: 8910.371645 | Y46: 10509.93322 | Z46: 12661.39031 | AA46: 6432.705468 | AB46: 6950.551835 | AC46: 10204.30328 | AD46: 11995.81225 | AE46: 14405.44418 | AF46: 7215.824219 | AG46: 7696.68156 | AH46: 10718.02219 | AI46: 12381.56623 | AJ46: 14619.0816 | AK46: 4286.109611 | AL46: 4752.656063 | AM46: 5034.192715 | AN46: 6072.663699 | AO46: 6445.434259 | AP46: 7860.234845 | AQ46: 6833.292261 | AR46: 8216.072351 | AS46: 9838.651976 | AT46: 10595.47311 | AU46: 12647.28967 | AV46: 14208.99095 | AW46: 15724.36507 | AX46: 10769.13926 | AY46: 9332.221784 | AZ46: 13277.10178 | BA46: 10939.09021 | BB46: 7860.234845 | BC46: 6833.292261 | BD46: 8411.141402 | BE46: 9838.651976 | BF46: 10595.47311 | BG46: 12647.28967 | BH46: 14208.99095 | BI46: 15724.36507 | BJ46: 10703.77452 | BK46: 9309.119322 | BL46: 13674.32847 | BM46: 10939.09021 | BN46: 9581.555705 | BO46: 8626.756778 | BP46: 12318.80839 | BQ46: 8401.7052 | BR46: 11722.13323 | BS46: 9296.983 | BT46: 10058.716 | BU46: 12729.83118 | BV46: 13976.3533 | BW46: 16158.72504 | BX46: 17954.6815 | BY46: 19697.36175 | BZ46: 15572.24798 | CA46: 19615.76798 | CB46: 20302.64798 | CC46: 23257.52798 | CD46: 8168.274837 | CE46: 4123.831984 | CG46: Аликанте Матовая 19 мм | CH46: 0 | CI46: =IF(CH46<>0,LOOKUP(,-CODE(CH$3:CH46),CH$3:CH46),CI45) -> 2 | CQ46: 0.72 | CR46: 216 | CS46: 2 | CT46: 2400 | CU46: ф | CV46: 2616
A47: 8/2 | B47: 5 | C47: =IF(B47<>0,LOOKUP(,-CODE(B$3:B47),B$3:B47),C46) -> 5 | D47: 5-140(600)-528 | E47: Тумба кухонная двухдверный с двумя метабоксами, Н - 140/180 мм, полка ЛДСП | F47: =IF(E47<>0,LOOKUP(,-CODE(E$3:E47),E$3:E47),F46) -> Тумба кухонная двухдверный с двумя метабоксами, Н - 140/180 мм, полка ЛДСП | H47: 1 | I47: 600 | J47: 720 | K47: 528 | L47: 6124.39016 | M47: 6388.529605 | N47: 8048.180336 | O47: 8961.980669 | P47: 10191.06884 | Q47: 6250.24616 | R47: 6514.385605 | S47: 8174.036336 | T47: 9087.836669 | U47: 10316.92484 | V47: 5938.91816 | W47: 6203.057605 | X47: 8013.174957 | Y47: 8965.050304 | Z47: 10245.35048 | AA47: 6853.848947 | AB47: 7162.011633 | AC47: 9098.270819 | AD47: 10164.37121 | AE47: 11598.3074 | AF47: 7798.187554 | AG47: 8084.338619 | AH47: 9882.293578 | AI47: 10872.24394 | AJ47: 12203.75612 | AK47: 5135.253077 | AL47: 5483.916462 | AM47: 5694.31678 | AN47: 6295.967052 | AO47: 6531.064099 | AP47: 7173.988617 | AQ47: 6562.87033 | AR47: 7385.742234 | AS47: 8351.315282 | AT47: 8801.688304 | AU47: 10022.69388 | AV47: 10952.03913 | AW47: 11853.81577 | AX47: 8905.034452 | AY47: 8049.946193 | AZ47: 10397.48572 | BA47: 9006.169737 | BB47: 7173.988617 | BC47: 6562.87033 | BD47: 7501.82493 | BE47: 8351.315282 | BF47: 8801.688304 | BG47: 10022.69388 | BH47: 10952.03913 | BI47: 11853.81577 | BJ47: 8866.136865 | BK47: 8036.198261 | BL47: 10633.86942 | BM47: 9006.169737 | BN47: 8198.321108 | BO47: 0 | BP47: 10057.57656 | BQ47: 7496.209587 | BR47: 0 | BS47: 8028.976115 | BT47: 8482.272117 | BU47: 10071.81311 | BV47: 10813.59991 | BW47: 12112.29694 | BX47: 13181.04397 | BY47: 14218.08712 | BZ47: 12172.46703 | CA47: 14709.77583 | CB47: 15140.79303 | CC47: 16994.98023 | CD47: 7651.231515 | CE47: 5206.341434 | CG47: =INDIRECT(ADDRESS(2,ROW()+9)) -> АликантеЖЕМЧУГ, ПЕРЛАМУТР 19 мм | CH47: 2 | CI47: =IF(CH47<>0,LOOKUP(,-CODE(CH$3:CH47),CH$3:CH47),CI46) -> 2 | CQ47: Ф | CR47: Ф | CS47: Ф | CT47: Ф | CU47: ф | CV47: Ф
B48: 0 | C48: =IF(B48<>0,LOOKUP(,-CODE(B$3:B48),B$3:B48),C47) -> 5 | D48: 5-140(650)-528 | E48: Тумба кухонная двухдверный с двумя метабоксами, Н - 140/180 мм, полка ЛДСП | F48: =IF(E48<>0,LOOKUP(,-CODE(E$3:E48),E$3:E48),F47) -> Тумба кухонная двухдверный с двумя метабоксами, Н - 140/180 мм, полка ЛДСП | H48: 1 | I48: 650 | J48: 720 | K48: 528 | L48: 6349.696305 | M48: 6636.06971 | N48: 8435.421681 | O48: 9426.141235 | P48: 10758.688 | Q48: 6480.112305 | R48: 6766.48571 | S48: 8565.837681 | T48: 9556.557235 | U48: 10889.104 | V48: 6157.504305 | W48: 6443.87771 | X48: 8405.462045 | Y48: 9437.46158 | Z48: 10825.53113 | AA48: 7115.468863 | AB48: 7449.571168 | AC48: 9548.815135 | AD48: 10704.65461 | AE48: 12259.29251 | AF48: 8089.080584 | AG48: 8399.318439 | AH48: 10348.61641 | AI48: 11421.89592 | AJ48: 12865.48826 | AK48: 5298.506137 | AL48: 5669.043008 | AM48: 5892.642845 | AN48: 6546.655535 | AO48: 6800.14565 | AP48: 7518.132073 | AQ48: 6855.572853 | AR48: 7747.710069 | AS48: 8794.56031 | AT48: 9282.843519 | AU48: 10606.62734 | AV48: 11614.2003 | AW48: 12591.88407 | AX48: 9394.888838 | AY48: 8467.823452 | AZ48: 11012.96732 | BA48: 9504.537193 | BB48: 7518.132073 | BC48: 6855.572853 | BD48: 7873.564036 | BE48: 8794.56031 | BF48: 9282.843519 | BG48: 10606.62734 | BH48: 11614.2003 | BI48: 12591.88407 | BJ48: 9352.717043 | BK48: 8452.918287 | BL48: 11269.24864 | BM48: 9504.537193 | BN48: 8628.687838 | BO48: 0 | BP48: 10527.38742 | BQ48: 7867.476021 | BR48: 0 | BS48: 8445.088216 | BT48: 8936.540447 | BU48: 10659.88118 | BV48: 11464.10796 | BW48: 12872.12292 | BX48: 14030.83182 | BY48: 15155.16816 | BZ48: 12930.69036 | CA48: 15679.44156 | CB48: 16146.37686 | CC48: 18155.07966 | CD48: 7989.047174 | CE48: 5349.86496 | CG48: Аликанте Спецэффект №1 19 мм | CH48: 0 | CI48: =IF(CH48<>0,LOOKUP(,-CODE(CH$3:CH48),CH$3:CH48),CI47) -> 2 | CQ48: Ф | CR48: Ф | CS48: Ф | CT48: Ф | CU48: ф | CV48: Ф
B49: 0 | C49: =IF(B49<>0,LOOKUP(,-CODE(B$3:B49),B$3:B49),C48) -> 5 | D49: 5-140(700)-528 | E49: Тумба кухонная двухдверный с двумя метабоксами, Н - 140/180 мм, полка ЛДСП | F49: =IF(E49<>0,LOOKUP(,-CODE(E$3:E49),E$3:E49),F48) -> Тумба кухонная двухдверный с двумя метабоксами, Н - 140/180 мм, полка ЛДСП | H49: 1 | I49: 700 | J49: 720 | K49: 528 | L49: 6575.002451 | M49: 6883.609815 | N49: 8822.663027 | O49: 9890.3018 | P49: 11326.30717 | Q49: 6709.978451 | R49: 7018.585815 | S49: 8957.639027 | T49: 10025.2778 | U49: 11461.28317 | V49: 6376.090451 | W49: 6684.697815 | X49: 8797.749132 | Y49: 9909.872855 | Z49: 11405.71178 | AA49: 7377.088778 | AB49: 7737.130704 | AC49: 9999.35945 | AD49: 11244.93802 | AE49: 12920.27762 | AF49: 8379.973614 | AG49: 8714.29826 | AH49: 10814.93924 | AI49: 11971.54791 | AJ49: 13527.22039 | AK49: 5461.759197 | AL49: 5854.169555 | AM49: 6090.96891 | AN49: 6797.344018 | AO49: 7069.227202 | AP49: 7862.27553 | AQ49: 7148.275376 | AR49: 8109.677904 | AS49: 9237.805338 | AT49: 9763.998733 | AU49: 11190.56081 | AV49: 12276.36148 | AW49: 13329.95237 | AX49: 9884.743223 | AY49: 8885.700711 | AZ49: 11628.44891 | BA49: 10002.90465 | BB49: 7862.27553 | BC49: 7148.275376 | BD49: 8245.303142 | BE49: 9237.805338 | BF49: 9763.998733 | BG49: 11190.56081 | BH49: 12276.36148 | BI49: 13329.95237 | BJ49: 9839.297221 | BK49: 8869.638313 | BL49: 11904.62785 | BM49: 10002.90465 | BN49: 9059.054568 | BO49: 0 | BP49: 10997.19828 | BQ49: 8238.742454 | BR49: 0 | BS49: 8861.200318 | BT49: 9390.808778 | BU49: 11247.94926 | BV49: 12114.616 | BW49: 13631.94889 | BX49: 14880.61967 | BY49: 16092.2492 | BZ49: 13688.91368 | CA49: 16649.10728 | CB49: 17151.96068 | CC49: 19315.17908 | CD49: 8326.862833 | CE49: 5493.388485 | CG49: Аликанте Спецэффект №2 19 мм и Эффект ХРОМ | CH49: 0 | CI49: =IF(CH49<>0,LOOKUP(,-CODE(CH$3:CH49),CH$3:CH49),CI48) -> 2 | CQ49: Ф | CR49: Ф | CS49: Ф | CT49: Ф | CU49: ф | CV49: Ф
B50: 0 | C50: =IF(B50<>0,LOOKUP(,-CODE(B$3:B50),B$3:B50),C49) -> 5 | D50: 5-140(750)-528 | E50: Тумба кухонная двухдверный с двумя метабоксами, Н - 140/180 мм, полка ЛДСП | F50: =IF(E50<>0,LOOKUP(,-CODE(E$3:E50),E$3:E50),F49) -> Тумба кухонная двухдверный с двумя метабоксами, Н - 140/180 мм, полка ЛДСП | H50: 1 | I50: 750 | J50: 720 | K50: 528 | L50: 6800.308596 | M50: 7131.149921 | N50: 9209.904372 | O50: 10354.46237 | P50: 11893.92633 | Q50: 6939.844596 | R50: 7270.685921 | S50: 9349.440372 | T50: 10493.99837 | U50: 12033.46233 | V50: 6594.676596 | W50: 6925.517921 | X50: 9190.03622 | Y50: 10382.28413 | Z50: 11985.89243 | AA50: 7638.708693 | AB50: 8024.690239 | AC50: 10449.90377 | AD50: 11785.22142 | AE50: 13581.26272 | AF50: 8670.866645 | AG50: 9029.27808 | AH50: 11281.26207 | AI50: 12521.1999 | AJ50: 14188.95253 | AK50: 5625.012256 | AL50: 6039.296102 | AM50: 6289.294974 | AN50: 7048.032501 | AO50: 7338.308753 | AP50: 8206.418986 | AQ50: 7440.9779 | AR50: 8471.645739 | AS50: 9681.050366 | AT50: 10245.15395 | AU50: 11774.49427 | AV50: 12938.52266 | AW50: 14068.02068 | AX50: 10374.59761 | AY50: 9303.577971 | AZ50: 12243.93051 | BA50: 10501.27211 | BB50: 8206.418986 | BC50: 7440.9779 | BD50: 8617.042248 | BE50: 9681.050366 | BF50: 10245.15395 | BG50: 11774.49427 | BH50: 12938.52266 | BI50: 14068.02068 | BJ50: 10325.8774 | BK50: 9286.358338 | BL50: 12540.00707 | BM50: 10501.27211 | BN50: 9489.421299 | BO50: 0 | BP50: 11467.00914 | BQ50: 8610.008888 | BR50: 0 | BS50: 9277.312419 | BT50: 9845.077108 | BU50: 11836.01734 | BV50: 12765.12405 | BW50: 14391.77487 | BX50: 15730.40752 | BY50: 17029.33024 | BZ50: 14447.13701 | CA50: 17618.77301 | CB50: 18157.54451 | CC50: 20475.27851 | CD50: 8664.678492 | CE50: 5636.91201 | CG50: Аликанте Спецэффект №3 19 мм | CH50: 0 | CI50: =IF(CH50<>0,LOOKUP(,-CODE(CH$3:CH50),CH$3:CH50),CI49) -> 2 | CQ50: Ф | CR50: Ф | CS50: Ф | CT50: Ф | CU50: ф | CV50: Ф
B51: 0 | C51: =IF(B51<>0,LOOKUP(,-CODE(B$3:B51),B$3:B51),C50) -> 5 | D51: 5-140(800)-528 | E51: Тумба кухонная двухдверный с двумя метабоксами, Н - 140/180 мм, полка ЛДСП | F51: =IF(E51<>0,LOOKUP(,-CODE(E$3:E51),E$3:E51),F50) -> Тумба кухонная двухдверный с двумя метабоксами, Н - 140/180 мм, полка ЛДСП | H51: 1 | I51: 800 | J51: 720 | K51: 528 | L51: 7025.614741 | M51: 7378.690026 | N51: 9597.145717 | O51: 10818.62293 | P51: 12461.5455 | Q51: 7169.710741 | R51: 7522.786026 | S51: 9741.241717 | T51: 10962.71893 | U51: 12605.6415 | V51: 6813.262741 | W51: 7166.338026 | X51: 9582.323308 | Y51: 10854.69541 | Z51: 12566.07308 | AA51: 7900.328609 | AB51: 8312.249774 | AC51: 10900.44808 | AD51: 12325.50483 | AE51: 14242.24783 | AF51: 8961.759675 | AG51: 9344.2579 | AH51: 11747.5849 | AI51: 13070.85188 | AJ51: 14850.68466 | AK51: 5788.265316 | AL51: 6224.422649 | AM51: 6487.621039 | AN51: 7298.720984 | AO51: 7607.390304 | AP51: 8550.562443 | AQ51: 7733.680423 | AR51: 8833.613574 | AS51: 10124.29539 | AT51: 10726.30916 | AU51: 12358.42773 | AV51: 13600.68383 | AW51: 14806.08898 | AX51: 10864.45199 | AY51: 9721.45523 | AZ51: 12859.41211 | BA51: 10999.63956 | BB51: 8550.562443 | BC51: 7733.680423 | BD51: 8988.781354 | BE51: 10124.29539 | BF51: 10726.30916 | BG51: 12358.42773 | BH51: 13600.68383 | BI51: 14806.08898 | BJ51: 10812.45758 | BK51: 9703.078364 | BL51: 13175.38628 | BM51: 10999.63956 | BN51: 9919.788029 | BO51: 0 | BP51: 11936.82 | BQ51: 8981.275322 | BR51: 0 | BS51: 9693.42452 | BT51: 10299.34544 | BU51: 12424.08541 | BV51: 13415.63209 | BW51: 15151.60084 | BX51: 16580.19536 | BY51: 17966.41128 | BZ51: 14879.96642 | CA51: 18158.81186 | CB51: 18715.79522 | CC51: 21111.87458 | CD51: 9002.494151 | CE51: 5780.435536 | CG51: Аликанте Спецэффект №4 19 мм | CH51: 0 | CI51: =IF(CH51<>0,LOOKUP(,-CODE(CH$3:CH51),CH$3:CH51),CI50) -> 2 | CQ51: Ф | CR51: Ф | CS51: Ф | CT51: Ф | CU51: ф | CV51: Ф
B52: 0 | C52: =IF(B52<>0,LOOKUP(,-CODE(B$3:B52),B$3:B52),C51) -> 5 | D52: 5-140(850)-528 | E52: Тумба кухонная двухдверный с двумя метабоксами, Н - 140/180 мм, полка ЛДСП | F52: =IF(E52<>0,LOOKUP(,-CODE(E$3:E52),E$3:E52),F51) -> Тумба кухонная двухдверный с двумя метабоксами, Н - 140/180 мм, полка ЛДСП | H52: 1 | I52: 850 | J52: 720 | K52: 528 | L52: 7250.920887 | M52: 7626.230131 | N52: 9984.387063 | O52: 11282.7835 | P52: 13029.16466 | Q52: 7399.576887 | R52: 7774.886131 | S52: 10133.04306 | T52: 11431.4395 | U52: 13177.82066 | V52: 7031.848887 | W52: 7407.158131 | X52: 9974.610396 | Y52: 11327.10668 | Z52: 13146.25373 | AA52: 8161.948524 | AB52: 8599.80931 | AC52: 11350.9924 | AD52: 12865.78824 | AE52: 14903.23293 | AF52: 9252.652705 | AG52: 9659.237721 | AH52: 12213.90773 | AI52: 13620.50387 | AJ52: 15512.4168 | AK52: 5951.518376 | AL52: 6409.549196 | AM52: 6685.947104 | AN52: 7549.409467 | AO52: 7876.471856 | AP52: 8894.705899 | AQ52: 8026.382946 | AR52: 9195.581409 | AS52: 10567.54042 | AT52: 11207.46438 | AU52: 12942.36119 | AV52: 14262.84501 | AW52: 15544.15728 | AX52: 11354.30638 | AY52: 10139.33249 | AZ52: 13474.8937 | BA52: 11498.00702 | BB52: 8894.705899 | BC52: 8026.382946 | BD52: 9360.520459 | BE52: 10567.54042 | BF52: 11207.46438 | BG52: 12942.36119 | BH52: 14262.84501 | BI52: 15544.15728 | BJ52: 11299.03775 | BK52: 10119.79839 | BL52: 13810.7655 | BM52: 11498.00702 | BN52: 10350.15476 | BO52: 0 | BP52: 12406.63086 | BQ52: 9352.541756 | BR52: 0 | BS52: 10109.53662 | BT52: 10753.61377 | BU52: 13012.15349 | BV52: 14066.14013 | BW52: 15911.42682 | BX52: 17429.98321 | BY52: 18903.49232 | BZ52: 15617.85262 | CA52: 19101.6259 | CB52: 19693.42072 | CC52: 22239.25504 | CD52: 9340.30981 | CE52: 5923.959061 | CG52: Аликанте Спецэффект №5 19 мм | CH52: 0 | CI52: =IF(CH52<>0,LOOKUP(,-CODE(CH$3:CH52),CH$3:CH52),CI51) -> 2 | CQ52: Ф | CR52: Ф | CS52: Ф | CT52: Ф | CU52: ф | CV52: Ф
B53: 0 | C53: =IF(B53<>0,LOOKUP(,-CODE(B$3:B53),B$3:B53),C52) -> 5 | D53: 5-140(900)-528 | E53: Тумба кухонная двухдверный с двумя метабоксами, Н - 140/180 мм, полка ЛДСП | F53: =IF(E53<>0,LOOKUP(,-CODE(E$3:E53),E$3:E53),F52) -> Тумба кухонная двухдверный с двумя метабоксами, Н - 140/180 мм, полка ЛДСП | H53: 1 | I53: 900 | J53: 720 | K53: 528 | L53: 7476.227032 | M53: 7873.770237 | N53: 10371.62841 | O53: 11746.94406 | P53: 13596.78383 | Q53: 7629.443032 | R53: 8026.986237 | S53: 10524.84441 | T53: 11900.16006 | U53: 13749.99983 | V53: 7250.435032 | W53: 7647.978237 | X53: 10366.89748 | Y53: 11799.51796 | Z53: 13726.43438 | AA53: 8423.56844 | AB53: 8887.368845 | AC53: 11801.53671 | AD53: 13406.07164 | AE53: 15564.21804 | AF53: 9543.545736 | AG53: 9974.217541 | AH53: 12680.23056 | AI53: 14170.15585 | AJ53: 16174.14893 | AK53: 6114.771435 | AL53: 6594.675742 | AM53: 6884.273169 | AN53: 7800.09795 | AO53: 8145.553407 | AP53: 9238.849356 | AQ53: 8319.085469 | AR53: 9557.549245 | AS53: 11010.78545 | AT53: 11688.61959 | AU53: 13526.29465 | AV53: 14925.00618 | AW53: 16282.22558 | AX53: 11844.16076 | AY53: 10557.20975 | AZ53: 14090.3753 | BA53: 11996.37448 | BB53: 9238.849356 | BC53: 8319.085469 | BD53: 9732.259565 | BE53: 11010.78545 | BF53: 11688.61959 | BG53: 13526.29465 | BH53: 14925.00618 | BI53: 16282.22558 | BJ53: 11785.61793 | BK53: 10536.51842 | BL53: 14446.14471 | BM53: 11996.37448 | BN53: 10780.52149 | BO53: 0 | BP53: 12876.44171 | BQ53: 9723.80819 | BR53: 0 | BS53: 10525.64872 | BT53: 11207.8821 | BU53: 13600.22157 | BV53: 14716.64818 | BW53: 16671.2528 | BX53: 18279.77106 | BY53: 19840.57336 | BZ53: 16355.73883 | CA53: 20044.43995 | CB53: 20671.04623 | CC53: 23366.63551 | CD53: 9678.125469 | CE53: 6067.482586 | CG53: Аликанте Паллацио глянцевая 19 мм | CH53: 0 | CI53: =IF(CH53<>0,LOOKUP(,-CODE(CH$3:CH53),CH$3:CH53),CI52) -> 2 | CQ53: Ф | CR53: Ф | CS53: Ф | CT53: Ф | CU53: ф | CV53: Ф
B54: 0 | C54: =IF(B54<>0,LOOKUP(,-CODE(B$3:B54),B$3:B54),C53) -> 5 | D54: 5-140(950)-528 | E54: Тумба кухонная двухдверный с двумя метабоксами, Н - 140/180 мм, полка ЛДСП | F54: =IF(E54<>0,LOOKUP(,-CODE(E$3:E54),E$3:E54),F53) -> Тумба кухонная двухдверный с двумя метабоксами, Н - 140/180 мм, полка ЛДСП | H54: 1 | I54: 950 | J54: 720 | K54: 528 | L54: 7701.533177 | M54: 8121.310342 | N54: 10758.86975 | O54: 12211.10463 | P54: 14164.40299 | Q54: 7859.309177 | R54: 8279.086342 | S54: 10916.64575 | T54: 12368.88063 | U54: 14322.17899 | V54: 7469.021177 | W54: 7888.798342 | X54: 10759.18457 | Y54: 12271.92923 | Z54: 14306.61503 | AA54: 8685.188355 | AB54: 9174.928381 | AC54: 12252.08103 | AD54: 13946.35505 | AE54: 16225.20314 | AF54: 9834.438766 | AG54: 10289.19736 | AH54: 13146.55339 | AI54: 14719.80784 | AJ54: 16835.88107 | AK54: 6278.024495 | AL54: 6779.802289 | AM54: 7082.599234 | AN54: 8050.786433 | AO54: 8414.634958 | AP54: 9582.992813 | AQ54: 8611.787993 | AR54: 9919.51708 | AS54: 11454.03048 | AT54: 12169.77481 | AU54: 14110.22812 | AV54: 15587.16736 | AW54: 17020.29388 | AX54: 12334.01515 | AY54: 10975.08701 | AZ54: 14705.8569 | BA54: 12494.74193 | BB54: 9582.992813 | BC54: 8611.787993 | BD54: 10103.99867 | BE54: 11454.03048 | BF54: 12169.77481 | BG54: 14110.22812 | BH54: 15587.16736 | BI54: 17020.29388 | BJ54: 12272.19811 | BK54: 10953.23844 | BL54: 15081.52393 | BM54: 12494.74193 | BN54: 11210.88822 | BO54: 0 | BP54: 13346.25257 | BQ54: 10095.07462 | BR54: 0 | BS54: 10941.76082 | BT54: 11662.15043 | BU54: 14188.28964 | BV54: 15367.15622 | BW54: 17431.07877 | BX54: 19129.5589 | BY54: 20777.6544 | BZ54: 17093.62503 | CA54: 20987.25399 | CB54: 21648.67173 | CC54: 24494.01597 | CD54: 10015.94113 | CE54: 6211.006112 | CG54: Аликанте Паллацио матовая 19 мм | CH54: 0 | CI54: =IF(CH54<>0,LOOKUP(,-CODE(CH$3:CH54),CH$3:CH54),CI53) -> 2 | CQ54: Ф | CR54: Ф | CS54: Ф | CT54: Ф | CU54: ф | CV54: Ф
B55: 0 | C55: =IF(B55<>0,LOOKUP(,-CODE(B$3:B55),B$3:B55),C54) -> 5 | D55: 5-140(1000)-528 | E55: Тумба кухонная двухдверный с двумя метабоксами, Н - 140/180 мм, полка ЛДСП | F55: =IF(E55<>0,LOOKUP(,-CODE(E$3:E55),E$3:E55),F54) -> Тумба кухонная двухдверный с двумя метабоксами, Н - 140/180 мм, полка ЛДСП | H55: 1 | I55: 1000 | J55: 720 | K55: 528 | L55: 7926.839323 | M55: 8368.850448 | N55: 11146.1111 | O55: 12675.26519 | P55: 14732.02216 | Q55: 8089.175323 | R55: 8531.186448 | S55: 11308.4471 | T55: 12837.60119 | U55: 14894.35816 | V55: 7687.607323 | W55: 8129.618448 | X55: 11151.47166 | Y55: 12744.34051 | Z55: 14886.79568 | AA55: 8946.80827 | AB55: 9462.487916 | AC55: 12702.62534 | AD55: 14486.63845 | AE55: 16886.18825 | AF55: 10125.3318 | AG55: 10604.17718 | AH55: 13612.87622 | AI55: 15269.45982 | AJ55: 17497.6132 | AK55: 6441.277555 | AL55: 6964.928836 | AM55: 7280.925299 | AN55: 8301.474916 | AO55: 8683.71651 | AP55: 9927.136269 | AQ55: 8904.490516 | AR55: 10281.48491 | AS55: 11897.2755 | AT55: 12650.93002 | AU55: 14694.16158 | AV55: 16249.32854 | AW55: 17758.36218 | AX55: 12823.86954 | AY55: 11392.96427 | AZ55: 15321.33849 | BA55: 12993.10939 | BB55: 9927.136269 | BC55: 8904.490516 | BD55: 10475.73778 | BE55: 11897.2755 | BF55: 12650.93002 | BG55: 14694.16158 | BH55: 16249.32854 | BI55: 17758.36218 | BJ55: 12758.77829 | BK55: 11369.95847 | BL55: 15716.90314 | BM55: 12993.10939 | BN55: 11641.25495 | BO55: 0 | BP55: 13816.06343 | BQ55: 10466.34106 | BR55: 0 | BS55: 11357.87292 | BT55: 12116.41876 | BU55: 14776.35772 | BV55: 16017.66427 | BW55: 18190.90475 | BX55: 19979.34675 | BY55: 21714.73544 | BZ55: 17831.51124 | CA55: 21930.06804 | CB55: 22626.29724 | CC55: 25621.39644 | CD55: 10353.75679 | CE55: 6354.529637 | CG55: Аликанте Спецэффект №2 + Фотопечать 19 мм | CH55: 0 | CI55: =IF(CH55<>0,LOOKUP(,-CODE(CH$3:CH55),CH$3:CH55),CI54) -> 2 | CQ55: Ф | CR55: Ф | CS55: Ф | CT55: Ф | CU55: ф | CV55: Ф
A56: 8/1 | B56: 0 | C56: =IF(B56<>0,LOOKUP(,-CODE(B$3:B56),B$3:B56),C55) -> 5 | D56: 5-180(600)-528 | E56: Тумба кухонная двухдверный с двумя метабоксами, Н - 140/180 мм, полка ЛДСП | F56: =IF(E56<>0,LOOKUP(,-CODE(E$3:E56),E$3:E56),F55) -> Тумба кухонная двухдверный с двумя метабоксами, Н - 140/180 мм, полка ЛДСП | H56: 1 | I56: 600 | J56: 720 | K56: 528 | L56: 6124.39016 | M56: 6388.529605 | N56: 8048.180336 | O56: 8961.980669 | P56: 10191.06884 | Q56: 6250.24616 | R56: 6514.385605 | S56: 8174.036336 | T56: 9087.836669 | U56: 10316.92484 | V56: 5938.91816 | W56: 6203.057605 | X56: 8013.174957 | Y56: 8965.050304 | Z56: 10245.35048 | AA56: 6853.848947 | AB56: 7162.011633 | AC56: 9098.270819 | AD56: 10164.37121 | AE56: 11598.3074 | AF56: 7798.187554 | AG56: 8084.338619 | AH56: 9882.293578 | AI56: 10872.24394 | AJ56: 12203.75612 | AK56: 5135.253077 | AL56: 5483.916462 | AM56: 5694.31678 | AN56: 6295.967052 | AO56: 6531.064099 | AP56: 7173.988617 | AQ56: 6562.87033 | AR56: 7385.742234 | AS56: 8351.315282 | AT56: 8801.688304 | AU56: 10022.69388 | AV56: 10952.03913 | AW56: 11853.81577 | AX56: 8905.034452 | AY56: 8049.946193 | AZ56: 10397.48572 | BA56: 9006.169737 | BB56: 7173.988617 | BC56: 6562.87033 | BD56: 7501.82493 | BE56: 8351.315282 | BF56: 8801.688304 | BG56: 10022.69388 | BH56: 10952.03913 | BI56: 11853.81577 | BJ56: 8866.136865 | BK56: 8036.198261 | BL56: 10633.86942 | BM56: 9006.169737 | BN56: 8198.321108 | BO56: 7630.13444 | BP56: 11192.80856 | BQ56: 7496.209587 | BR56: 9472.147015 | BS56: 8028.976115 | BT56: 8482.272117 | BU56: 10071.81311 | BV56: 10813.59991 | BW56: 12112.29694 | BX56: 13181.04397 | BY56: 14218.08712 | BZ56: 12185.09007 | CA56: 14726.44239 | CB56: 15158.14647 | CC56: 17015.28855 | CD56: 7860.749686 | CE56: 5206.309434 | CG56: Аликанте Фотопечать 19 мм | CH56: 0 | CI56: =IF(CH56<>0,LOOKUP(,-CODE(CH$3:CH56),CH$3:CH56),CI55) -> 2 | CQ56: =$I56*$J56/1000000 -> 0.432 | CR56: 129.6 | CS56: 1.2 | CT56: 1440 | CU56: ф | CV56: 1569.6
B57: 0 | C57: =IF(B57<>0,LOOKUP(,-CODE(B$3:B57),B$3:B57),C56) -> 5 | D57: 5-180(650)-528 | E57: Тумба кухонная двухдверный с двумя метабоксами, Н - 140/180 мм, полка ЛДСП | F57: =IF(E57<>0,LOOKUP(,-CODE(E$3:E57),E$3:E57),F56) -> Тумба кухонная двухдверный с двумя метабоксами, Н - 140/180 мм, полка ЛДСП | H57: 1 | I57: 650 | J57: 720 | K57: 528 | L57: 6349.696305 | M57: 6636.06971 | N57: 8435.421681 | O57: 9426.141235 | P57: 10758.688 | Q57: 6480.112305 | R57: 6766.48571 | S57: 8565.837681 | T57: 9556.557235 | U57: 10889.104 | V57: 6157.504305 | W57: 6443.87771 | X57: 8405.462045 | Y57: 9437.46158 | Z57: 10825.53113 | AA57: 7115.468863 | AB57: 7449.571168 | AC57: 9548.815135 | AD57: 10704.65461 | AE57: 12259.29251 | AF57: 8089.080584 | AG57: 8399.318439 | AH57: 10348.61641 | AI57: 11421.89592 | AJ57: 12865.48826 | AK57: 5298.506137 | AL57: 5669.043008 | AM57: 5892.642845 | AN57: 6546.655535 | AO57: 6800.14565 | AP57: 7518.132073 | AQ57: 6855.572853 | AR57: 7747.710069 | AS57: 8794.56031 | AT57: 9282.843519 | AU57: 10606.62734 | AV57: 11614.2003 | AW57: 12591.88407 | AX57: 9394.888838 | AY57: 8467.823452 | AZ57: 11012.96732 | BA57: 9504.537193 | BB57: 7518.132073 | BC57: 6855.572853 | BD57: 7873.564036 | BE57: 8794.56031 | BF57: 9282.843519 | BG57: 10606.62734 | BH57: 11614.2003 | BI57: 12591.88407 | BJ57: 9352.717043 | BK57: 8452.918287 | BL57: 11269.24864 | BM57: 9504.537193 | BN57: 8628.687838 | BO57: 8012.67401 | BP57: 11763.97942 | BQ57: 7867.476021 | BR57: 10009.73815 | BS57: 8445.088216 | BT57: 8936.540447 | BU57: 10659.88118 | BV57: 11464.10796 | BW57: 12872.12292 | BX57: 14030.83182 | BY57: 15155.16816 | BZ57: 12944.36532 | CA57: 15697.497 | CB57: 16165.17642 | CC57: 18177.08034 | CD57: 8211.470038 | CE57: 5349.95296 | CG57: Аликанте Асти 19 мм | CH57: 0 | CI57: =IF(CH57<>0,LOOKUP(,-CODE(CH$3:CH57),CH$3:CH57),CI56) -> 2 | CQ57: 0.468 | CR57: 140.4 | CS57: 1.3 | CT57: 1560 | CU57: ф | CV57: 1700.4
B58: 0 | C58: =IF(B58<>0,LOOKUP(,-CODE(B$3:B58),B$3:B58),C57) -> 5 | D58: 5-180(700)-528 | F58: =IF(E58<>0,LOOKUP(,-CODE(E$3:E58),E$3:E58),F57) -> Тумба кухонная двухдверный с двумя метабоксами, Н - 140/180 мм, полка ЛДСП | H58: 1 | I58: 700 | J58: 720 | K58: 528 | L58: 6575.002451 | M58: 6883.609815 | N58: 8822.663027 | O58: 9890.3018 | P58: 11326.30717 | Q58: 6709.978451 | R58: 7018.585815 | S58: 8957.639027 | T58: 10025.2778 | U58: 11461.28317 | V58: 6376.090451 | W58: 6684.697815 | X58: 8797.749132 | Y58: 9909.872855 | Z58: 11405.71178 | AA58: 7377.088778 | AB58: 7737.130704 | AC58: 9999.35945 | AD58: 11244.93802 | AE58: 12920.27762 | AF58: 8379.973614 | AG58: 8714.29826 | AH58: 10814.93924 | AI58: 11971.54791 | AJ58: 13527.22039 | AK58: 5461.759197 | AL58: 5854.169555 | AM58: 6090.96891 | AN58: 6797.344018 | AO58: 7069.227202 | AP58: 7862.27553 | AQ58: 7148.275376 | AR58: 8109.677904 | AS58: 9237.805338 | AT58: 9763.998733 | AU58: 11190.56081 | AV58: 12276.36148 | AW58: 13329.95237 | AX58: 9884.743223 | AY58: 8885.700711 | AZ58: 11628.44891 | BA58: 10002.90465 | BB58: 7862.27553 | BC58: 7148.275376 | BD58: 8245.303142 | BE58: 9237.805338 | BF58: 9763.998733 | BG58: 11190.56081 | BH58: 12276.36148 | BI58: 13329.95237 | BJ58: 9839.297221 | BK58: 8869.638313 | BL58: 11904.62785 | BM58: 10002.90465 | BN58: 9059.054568 | BO58: 8395.213579 | BP58: 12335.15028 | BQ58: 8238.742454 | BR58: 10547.32928 | BS58: 8861.200318 | BT58: 9390.808778 | BU58: 11247.94926 | BV58: 12114.616 | BW58: 13631.94889 | BX58: 14880.61967 | BY58: 16092.2492 | BZ58: 13703.64056 | CA58: 16668.5516 | CB58: 17172.20636 | CC58: 19338.87212 | CD58: 8562.190391 | CE58: 5493.596485 | CG58: Аликанте Монреаль 19 мм | CH58: 0 | CI58: =IF(CH58<>0,LOOKUP(,-CODE(CH$3:CH58),CH$3:CH58),CI57) -> 2 | CQ58: 0.504 | CR58: 151.2 | CS58: 1.4 | CT58: 1680 | CU58: ф | CV58: 1831.2
B59: 0 | C59: =IF(B59<>0,LOOKUP(,-CODE(B$3:B59),B$3:B59),C58) -> 5 | D59: 5-180(750)-528 | F59: =IF(E59<>0,LOOKUP(,-CODE(E$3:E59),E$3:E59),F58) -> Тумба кухонная двухдверный с двумя метабоксами, Н - 140/180 мм, полка ЛДСП | H59: 1 | I59: 750 | J59: 720 | K59: 528 | L59: 6800.308596 | M59: 7131.149921 | N59: 9209.904372 | O59: 10354.46237 | P59: 11893.92633 | Q59: 6939.844596 | R59: 7270.685921 | S59: 9349.440372 | T59: 10493.99837 | U59: 12033.46233 | V59: 6594.676596 | W59: 6925.517921 | X59: 9190.03622 | Y59: 10382.28413 | Z59: 11985.89243 | AA59: 7638.708693 | AB59: 8024.690239 | AC59: 10449.90377 | AD59: 11785.22142 | AE59: 13581.26272 | AF59: 8670.866645 | AG59: 9029.27808 | AH59: 11281.26207 | AI59: 12521.1999 | AJ59: 14188.95253 | AK59: 5625.012256 | AL59: 6039.296102 | AM59: 6289.294974 | AN59: 7048.032501 | AO59: 7338.308753 | AP59: 8206.418986 | AQ59: 7440.9779 | AR59: 8471.645739 | AS59: 9681.050366 | AT59: 10245.15395 | AU59: 11774.49427 | AV59: 12938.52266 | AW59: 14068.02068 | AX59: 10374.59761 | AY59: 9303.577971 | AZ59: 12243.93051 | BA59: 10501.27211 | BB59: 8206.418986 | BC59: 7440.9779 | BD59: 8617.042248 | BE59: 9681.050366 | BF59: 10245.15395 | BG59: 11774.49427 | BH59: 12938.52266 | BI59: 14068.02068 | BJ59: 10325.8774 | BK59: 9286.358338 | BL59: 12540.00707 | BM59: 10501.27211 | BN59: 9489.421299 | BO59: 8777.753149 | BP59: 12906.32114 | BQ59: 8610.008888 | BR59: 11084.92042 | BS59: 9277.312419 | BT59: 9845.077108 | BU59: 11836.01734 | BV59: 12765.12405 | BW59: 14391.77487 | BX59: 15730.40752 | BY59: 17029.33024 | BZ59: 14462.91581 | CA59: 17639.60621 | CB59: 18179.23631 | CC59: 20500.66391 | CD59: 8912.910744 | CE59: 5637.24001 | CG59: Аликанте Ампир 19 мм | CH59: 0 | CI59: =IF(CH59<>0,LOOKUP(,-CODE(CH$3:CH59),CH$3:CH59),CI58) -> 2 | CQ59: 0.54 | CR59: 162 | CS59: 1.5 | CT59: 1800 | CU59: ф | CV59: 1962
B60: 0 | C60: =IF(B60<>0,LOOKUP(,-CODE(B$3:B60),B$3:B60),C59) -> 5 | D60: 5-180(800)-528 | F60: =IF(E60<>0,LOOKUP(,-CODE(E$3:E60),E$3:E60),F59) -> Тумба кухонная двухдверный с двумя метабоксами, Н - 140/180 мм, полка ЛДСП | H60: 1 | I60: 800 | J60: 720 | K60: 528 | L60: 7025.614741 | M60: 7378.690026 | N60: 9597.145717 | O60: 10818.62293 | P60: 12461.5455 | Q60: 7169.710741 | R60: 7522.786026 | S60: 9741.241717 | T60: 10962.71893 | U60: 12605.6415 | V60: 6813.262741 | W60: 7166.338026 | X60: 9582.323308 | Y60: 10854.69541 | Z60: 12566.07308 | AA60: 7900.328609 | AB60: 8312.249774 | AC60: 10900.44808 | AD60: 12325.50483 | AE60: 14242.24783 | AF60: 8961.759675 | AG60: 9344.2579 | AH60: 11747.5849 | AI60: 13070.85188 | AJ60: 14850.68466 | AK60: 5788.265316 | AL60: 6224.422649 | AM60: 6487.621039 | AN60: 7298.720984 | AO60: 7607.390304 | AP60: 8550.562443 | AQ60: 7733.680423 | AR60: 8833.613574 | AS60: 10124.29539 | AT60: 10726.30916 | AU60: 12358.42773 | AV60: 13600.68383 | AW60: 14806.08898 | AX60: 10864.45199 | AY60: 9721.45523 | AZ60: 12859.41211 | BA60: 10999.63956 | BB60: 8550.562443 | BC60: 7733.680423 | BD60: 8988.781354 | BE60: 10124.29539 | BF60: 10726.30916 | BG60: 12358.42773 | BH60: 13600.68383 | BI60: 14806.08898 | BJ60: 10812.45758 | BK60: 9703.078364 | BL60: 13175.38628 | BM60: 10999.63956 | BN60: 9919.788029 | BO60: 9160.292719 | BP60: 13477.492 | BQ60: 8981.275322 | BR60: 11622.51155 | BS60: 9693.42452 | BT60: 10299.34544 | BU60: 12424.08541 | BV60: 13415.63209 | BW60: 15151.60084 | BX60: 16580.19536 | BY60: 17966.41128 | BZ60: 14919.2381 | CA60: 18210.66338 | CB60: 18769.7837 | CC60: 21175.05602 | CD60: 9263.631097 | CE60: 5780.883536 | CG60: Барселона (Модера) | CH60: 0 | CI60: =IF(CH60<>0,LOOKUP(,-CODE(CH$3:CH60),CH$3:CH60),CI59) -> 2 | CQ60: 0.576 | CR60: 172.8 | CS60: 1.6 | CT60: 1920 | CU60: ф | CV60: 2092.8
B61: 0 | C61: =IF(B61<>0,LOOKUP(,-CODE(B$3:B61),B$3:B61),C60) -> 5 | D61: 5-180(850)-528 | F61: =IF(E61<>0,LOOKUP(,-CODE(E$3:E61),E$3:E61),F60) -> Тумба кухонная двухдверный с двумя метабоксами, Н - 140/180 мм, полка ЛДСП | H61: 1 | I61: 850 | J61: 720 | K61: 528 | L61: 7250.920887 | M61: 7626.230131 | N61: 9984.387063 | O61: 11282.7835 | P61: 13029.16466 | Q61: 7399.576887 | R61: 7774.886131 | S61: 10133.04306 | T61: 11431.4395 | U61: 13177.82066 | V61: 7031.848887 | W61: 7407.158131 | X61: 9974.610396 | Y61: 11327.10668 | Z61: 13146.25373 | AA61: 8161.948524 | AB61: 8599.80931 | AC61: 11350.9924 | AD61: 12865.78824 | AE61: 14903.23293 | AF61: 9252.652705 | AG61: 9659.237721 | AH61: 12213.90773 | AI61: 13620.50387 | AJ61: 15512.4168 | AK61: 5951.518376 | AL61: 6409.549196 | AM61: 6685.947104 | AN61: 7549.409467 | AO61: 7876.471856 | AP61: 8894.705899 | AQ61: 8026.382946 | AR61: 9195.581409 | AS61: 10567.54042 | AT61: 11207.46438 | AU61: 12942.36119 | AV61: 14262.84501 | AW61: 15544.15728 | AX61: 11354.30638 | AY61: 10139.33249 | AZ61: 13474.8937 | BA61: 11498.00702 | BB61: 8894.705899 | BC61: 8026.382946 | BD61: 9360.520459 | BE61: 10567.54042 | BF61: 11207.46438 | BG61: 12942.36119 | BH61: 14262.84501 | BI61: 15544.15728 | BJ61: 11299.03775 | BK61: 10119.79839 | BL61: 13810.7655 | BM61: 11498.00702 | BN61: 10350.15476 | BO61: 9542.832288 | BP61: 14048.66286 | BQ61: 9352.541756 | BR61: 12160.10268 | BS61: 10109.53662 | BT61: 10753.61377 | BU61: 13012.15349 | BV61: 14066.14013 | BW61: 15911.42682 | BX61: 17429.98321 | BY61: 18903.49232 | BZ61: 15659.57878 | CA61: 19156.71814 | CB61: 19750.78348 | CC61: 22306.38532 | CD61: 9614.35145 | CE61: 5924.527061 | CG61: =INDIRECT(ADDRESS(2,ROW()+9)) -> Барселона (Эра) | CH61: 0 | CI61: =IF(CH61<>0,LOOKUP(,-CODE(CH$3:CH61),CH$3:CH61),CI60) -> 2 | CQ61: 0.612 | CR61: 183.6 | CS61: 1.7 | CT61: 2040 | CU61: ф | CV61: 2223.6
B62: 0 | C62: =IF(B62<>0,LOOKUP(,-CODE(B$3:B62),B$3:B62),C61) -> 5 | D62: 5-180(900)-528 | F62: =IF(E62<>0,LOOKUP(,-CODE(E$3:E62),E$3:E62),F61) -> Тумба кухонная двухдверный с двумя метабоксами, Н - 140/180 мм, полка ЛДСП | H62: 1 | I62: 900 | J62: 720 | K62: 528 | L62: 7476.227032 | M62: 7873.770237 | N62: 10371.62841 | O62: 11746.94406 | P62: 13596.78383 | Q62: 7629.443032 | R62: 8026.986237 | S62: 10524.84441 | T62: 11900.16006 | U62: 13749.99983 | V62: 7250.435032 | W62: 7647.978237 | X62: 10366.89748 | Y62: 11799.51796 | Z62: 13726.43438 | AA62: 8423.56844 | AB62: 8887.368845 | AC62: 11801.53671 | AD62: 13406.07164 | AE62: 15564.21804 | AF62: 9543.545736 | AG62: 9974.217541 | AH62: 12680.23056 | AI62: 14170.15585 | AJ62: 16174.14893 | AK62: 6114.771435 | AL62: 6594.675742 | AM62: 6884.273169 | AN62: 7800.09795 | AO62: 8145.553407 | AP62: 9238.849356 | AQ62: 8319.085469 | AR62: 9557.549245 | AS62: 11010.78545 | AT62: 11688.61959 | AU62: 13526.29465 | AV62: 14925.00618 | AW62: 16282.22558 | AX62: 11844.16076 | AY62: 10557.20975 | AZ62: 14090.3753 | BA62: 11996.37448 | BB62: 9238.849356 | BC62: 8319.085469 | BD62: 9732.259565 | BE62: 11010.78545 | BF62: 11688.61959 | BG62: 13526.29465 | BH62: 14925.00618 | BI62: 16282.22558 | BJ62: 11785.61793 | BK62: 10536.51842 | BL62: 14446.14471 | BM62: 11996.37448 | BN62: 10780.52149 | BO62: 9925.371858 | BP62: 14619.83371 | BQ62: 9723.80819 | BR62: 12697.69381 | BS62: 10525.64872 | BT62: 11207.8821 | BU62: 13600.22157 | BV62: 14716.64818 | BW62: 16671.2528 | BX62: 18279.77106 | BY62: 19840.57336 | BZ62: 16399.91947 | CA62: 20102.77291 | CB62: 20731.78327 | CC62: 23437.71463 | CD62: 9965.071803 | CE62: 6068.170586 | CG62: Барселона Высокий глянец (Модера-мыло) | CH62: 0 | CI62: =IF(CH62<>0,LOOKUP(,-CODE(CH$3:CH62),CH$3:CH62),CI61) -> 2 | CQ62: 0.648 | CR62: 194.4 | CS62: 1.8 | CT62: 2160 | CU62: ф | CV62: 2354.4
B63: 0 | C63: =IF(B63<>0,LOOKUP(,-CODE(B$3:B63),B$3:B63),C62) -> 5 | D63: 5-180(950)-528 | F63: =IF(E63<>0,LOOKUP(,-CODE(E$3:E63),E$3:E63),F62) -> Тумба кухонная двухдверный с двумя метабоксами, Н - 140/180 мм, полка ЛДСП | H63: 1 | I63: 950 | J63: 720 | K63: 528 | L63: 7701.533177 | M63: 8121.310342 | N63: 10758.86975 | O63: 12211.10463 | P63: 14164.40299 | Q63: 7859.309177 | R63: 8279.086342 | S63: 10916.64575 | T63: 12368.88063 | U63: 14322.17899 | V63: 7469.021177 | W63: 7888.798342 | X63: 10759.18457 | Y63: 12271.92923 | Z63: 14306.61503 | AA63: 8685.188355 | AB63: 9174.928381 | AC63: 12252.08103 | AD63: 13946.35505 | AE63: 16225.20314 | AF63: 9834.438766 | AG63: 10289.19736 | AH63: 13146.55339 | AI63: 14719.80784 | AJ63: 16835.88107 | AK63: 6278.024495 | AL63: 6779.802289 | AM63: 7082.599234 | AN63: 8050.786433 | AO63: 8414.634958 | AP63: 9582.992813 | AQ63: 8611.787993 | AR63: 9919.51708 | AS63: 11454.03048 | AT63: 12169.77481 | AU63: 14110.22812 | AV63: 15587.16736 | AW63: 17020.29388 | AX63: 12334.01515 | AY63: 10975.08701 | AZ63: 14705.8569 | BA63: 12494.74193 | BB63: 9582.992813 | BC63: 8611.787993 | BD63: 10103.99867 | BE63: 11454.03048 | BF63: 12169.77481 | BG63: 14110.22812 | BH63: 15587.16736 | BI63: 17020.29388 | BJ63: 12272.19811 | BK63: 10953.23844 | BL63: 15081.52393 | BM63: 12494.74193 | BN63: 11210.88822 | BO63: 10307.91143 | BP63: 15191.00457 | BQ63: 10095.07462 | BR63: 13235.28495 | BS63: 10941.76082 | BT63: 11662.15043 | BU63: 14188.28964 | BV63: 15367.15622 | BW63: 17431.07877 | BX63: 19129.5589 | BY63: 20777.6544 | BZ63: 17140.26015 | CA63: 21048.82767 | CB63: 21712.78305 | CC63: 24569.04393 | CD63: 10315.79216 | CE63: 6211.814112 | CG63: Барселона Высокий глянец (Арче, Техно, Техно-Горизонталь, Модера-горизонталь) | CH63: 0 | CI63: =IF(CH63<>0,LOOKUP(,-CODE(CH$3:CH63),CH$3:CH63),CI62) -> 2 | CQ63: 0.684 | CR63: 205.2 | CS63: 1.9 | CT63: 2280 | CU63: ф | CV63: 2485.2
B64: 0 | C64: =IF(B64<>0,LOOKUP(,-CODE(B$3:B64),B$3:B64),C63) -> 5 | D64: 5-180(1000)-528 | F64: =IF(E64<>0,LOOKUP(,-CODE(E$3:E64),E$3:E64),F63) -> Тумба кухонная двухдверный с двумя метабоксами, Н - 140/180 мм, полка ЛДСП | H64: 1 | I64: 1000 | J64: 720 | K64: 528 | L64: 7926.839323 | M64: 8368.850448 | N64: 11146.1111 | O64: 12675.26519 | P64: 14732.02216 | Q64: 8089.175323 | R64: 8531.186448 | S64: 11308.4471 | T64: 12837.60119 | U64: 14894.35816 | V64: 7687.607323 | W64: 8129.618448 | X64: 11151.47166 | Y64: 12744.34051 | Z64: 14886.79568 | AA64: 8946.80827 | AB64: 9462.487916 | AC64: 12702.62534 | AD64: 14486.63845 | AE64: 16886.18825 | AF64: 10125.3318 | AG64: 10604.17718 | AH64: 13612.87622 | AI64: 15269.45982 | AJ64: 17497.6132 | AK64: 6441.277555 | AL64: 6964.928836 | AM64: 7280.925299 | AN64: 8301.474916 | AO64: 8683.71651 | AP64: 9927.136269 | AQ64: 8904.490516 | AR64: 10281.48491 | AS64: 11897.2755 | AT64: 12650.93002 | AU64: 14694.16158 | AV64: 16249.32854 | AW64: 17758.36218 | AX64: 12823.86954 | AY64: 11392.96427 | AZ64: 15321.33849 | BA64: 12993.10939 | BB64: 9927.136269 | BC64: 8904.490516 | BD64: 10475.73778 | BE64: 11897.2755 | BF64: 12650.93002 | BG64: 14694.16158 | BH64: 16249.32854 | BI64: 17758.36218 | BJ64: 12758.77829 | BK64: 11369.95847 | BL64: 15716.90314 | BM64: 12993.10939 | BN64: 11641.25495 | BO64: 10690.451 | BP64: 15762.17543 | BQ64: 10466.34106 | BR64: 13772.87608 | BS64: 11357.87292 | BT64: 12116.41876 | BU64: 14776.35772 | BV64: 16017.66427 | BW64: 18190.90475 | BX64: 19979.34675 | BY64: 21714.73544 | BZ64: 17880.60084 | CA64: 21994.88244 | CB64: 22693.78284 | CC64: 25700.37324 | CD64: 10666.51251 | CE64: 6355.457637 | CG64: Барселона спецэффект №1 (Арче, Техно, Техно-Горизонталь) | CH64: 0 | CI64: =IF(CH64<>0,LOOKUP(,-CODE(CH$3:CH64),CH$3:CH64),CI63) -> 2 | CQ64: 0.72 | CR64: 216 | CS64: 2 | CT64: 2400 | CU64: ф | CV64: 2616
A65: 219/2 | B65: 6 | C65: =IF(B65<>0,LOOKUP(,-CODE(B$3:B65),B$3:B65),C64) -> 6 | D65: 6-140(600)-528 | E65: Тумба кухонная двухдверный с двумя леграбоксами, Н - 140/180 мм, полка ЛДСП | F65: =IF(E65<>0,LOOKUP(,-CODE(E$3:E65),E$3:E65),F64) -> Тумба кухонная двухдверный с двумя леграбоксами, Н - 140/180 мм, полка ЛДСП | H65: 1 | I65: 600 | J65: 720 | K65: 528 | L65: 9721.290253 | M65: 9985.429698 | N65: 11645.08043 | O65: 12558.88076 | P65: 13787.96893 | Q65: 9847.146253 | R65: 10111.2857 | S65: 11770.93643 | T65: 12684.73676 | U65: 13913.82493 | V65: 9535.818253 | W65: 9799.957698 | X65: 11610.07505 | Y65: 12561.9504 | Z65: 13842.25057 | AA65: 10450.74904 | AB65: 10758.91173 | AC65: 12695.17091 | AD65: 13761.2713 | AE65: 15195.2075 | AF65: 11395.08765 | AG65: 11681.23871 | AH65: 13479.19367 | AI65: 14469.14403 | AJ65: 15800.65621 | AK65: 8732.15317 | AL65: 9080.816555 | AM65: 9291.216873 | AN65: 9892.867145 | AO65: 10127.96419 | AP65: 10770.88871 | AQ65: 10159.77042 | AR65: 10982.64233 | AS65: 11948.21538 | AT65: 12398.5884 | AU65: 13619.59397 | AV65: 14548.93922 | AW65: 15450.71586 | AX65: 12501.93455 | AY65: 11646.84629 | AZ65: 13994.38581 | BA65: 12603.06983 | BB65: 10770.88871 | BC65: 10159.77042 | BD65: 11098.72502 | BE65: 11948.21538 | BF65: 12398.5884 | BG65: 13619.59397 | BH65: 14548.93922 | BI65: 15450.71586 | BJ65: 12463.03696 | BK65: 11633.09835 | BL65: 14230.76952 | BM65: 12603.06983 | BN65: 11795.2212 | BO65: 0 | BP65: 13654.47665 | BQ65: 11093.10968 | BR65: 0 | BS65: 11625.87621 | BT65: 12079.17221 | BU65: 13668.7132 | BV65: 14410.50001 | BW65: 15709.19704 | BX65: 16777.94407 | BY65: 17814.98721 | BZ65: 15769.36713 | CA65: 18306.67593 | CB65: 18737.69313 | CC65: 20591.88033 | CD65: 11248.13161 | CE65: 8803.241528 | CG65: Барселона спецэффект №2 (Арче, Техно, Техно-Горизонталь) | CH65: 2 | CI65: =IF(CH65<>0,LOOKUP(,-CODE(CH$3:CH65),CH$3:CH65),CI64) -> 2 | CQ65: Ф | CR65: Ф | CS65: Ф | CT65: Ф | CU65: ф | CV65: Ф
B66: 0 | C66: =IF(B66<>0,LOOKUP(,-CODE(B$3:B66),B$3:B66),C65) -> 6 | D66: 6-140(650)-528 | E66: Тумба кухонная двухдверный с двумя леграбоксами, Н - 140/180 мм, полка ЛДСП | F66: =IF(E66<>0,LOOKUP(,-CODE(E$3:E66),E$3:E66),F65) -> Тумба кухонная двухдверный с двумя леграбоксами, Н - 140/180 мм, полка ЛДСП | H66: 1 | I66: 650 | J66: 720 | K66: 528 | L66: 9946.202648 | M66: 10232.57605 | N66: 12031.92802 | O66: 13022.64758 | P66: 14355.19435 | Q66: 10076.61865 | R66: 10362.99205 | S66: 12162.34402 | T66: 13153.06358 | U66: 14485.61035 | V66: 9754.010648 | W66: 10040.38405 | X66: 12001.96839 | Y66: 13033.96792 | Z66: 14422.03747 | AA66: 10711.97521 | AB66: 11046.07751 | AC66: 13145.32148 | AD66: 14301.16096 | AE66: 15855.79885 | AF66: 11685.58693 | AG66: 11995.82478 | AH66: 13945.12275 | AI66: 15018.40227 | AJ66: 16461.9946 | AK66: 8895.01248 | AL66: 9265.549352 | AM66: 9489.149188 | AN66: 10143.16188 | AO66: 10396.65199 | AP66: 11114.63842 | AQ66: 10452.0792 | AR66: 11344.21641 | AS66: 12391.06665 | AT66: 12879.34986 | AU66: 14203.13369 | AV66: 15210.70665 | AW66: 16188.39042 | AX66: 12991.39518 | AY66: 12064.3298 | AZ66: 14609.47366 | BA66: 13101.04354 | BB66: 11114.63842 | BC66: 10452.0792 | BD66: 11470.07038 | BE66: 12391.06665 | BF66: 12879.34986 | BG66: 14203.13369 | BH66: 15210.70665 | BI66: 16188.39042 | BJ66: 12949.22339 | BK66: 12049.42463 | BL66: 14865.75498 | BM66: 13101.04354 | BN66: 12225.19418 | BO66: 0 | BP66: 14123.89376 | BQ66: 11463.98236 | BR66: 0 | BS66: 12041.59456 | BT66: 12533.04679 | BU66: 14256.38753 | BV66: 15060.6143 | BW66: 16468.62926 | BX66: 17627.33816 | BY66: 18751.6745 | BZ66: 16527.1967 | CA66: 19275.9479 | CB66: 19742.8832 | CC66: 21751.586 | CD66: 11585.55352 | CE66: 8946.371303 | CG66: Барселона спецэффект №3 (Арче, Техно, Техно-Горизонталь) | CH66: 0 | CI66: =IF(CH66<>0,LOOKUP(,-CODE(CH$3:CH66),CH$3:CH66),CI65) -> 2 | CQ66: Ф | CR66: Ф | CS66: Ф | CT66: Ф | CU66: ф | CV66: Ф
B67: 0 | C67: =IF(B67<>0,LOOKUP(,-CODE(B$3:B67),B$3:B67),C66) -> 6 | D67: 6-140(700)-528 | E67: Тумба кухонная двухдверный с двумя леграбоксами, Н - 140/180 мм, полка ЛДСП | F67: =IF(E67<>0,LOOKUP(,-CODE(E$3:E67),E$3:E67),F66) -> Тумба кухонная двухдверный с двумя леграбоксами, Н - 140/180 мм, полка ЛДСП | H67: 1 | I67: 700 | J67: 720 | K67: 528 | L67: 10171.11504 | M67: 10479.72241 | N67: 12418.77562 | O67: 13486.41439 | P67: 14922.41976 | Q67: 10306.09104 | R67: 10614.69841 | S67: 12553.75162 | T67: 13621.39039 | U67: 15057.39576 | V67: 9972.203044 | W67: 10280.81041 | X67: 12393.86173 | Y67: 13505.98545 | Z67: 15001.82437 | AA67: 10973.20137 | AB67: 11333.2433 | AC67: 13595.47204 | AD67: 14841.05061 | AE67: 16516.39021 | AF67: 11976.08621 | AG67: 12310.41085 | AH67: 14411.05183 | AI67: 15567.6605 | AJ67: 17123.33299 | AK67: 9057.87179 | AL67: 9450.282148 | AM67: 9687.081503 | AN67: 10393.45661 | AO67: 10665.33979 | AP67: 11458.38812 | AQ67: 10744.38797 | AR67: 11705.7905 | AS67: 12833.91793 | AT67: 13360.11133 | AU67: 14786.6734 | AV67: 15872.47407 | AW67: 16926.06497 | AX67: 13480.85582 | AY67: 12481.8133 | AZ67: 15224.56151 | BA67: 13599.01724 | BB67: 11458.38812 | BC67: 10744.38797 | BD67: 11841.41574 | BE67: 12833.91793 | BF67: 13360.11133 | BG67: 14786.6734 | BH67: 15872.47407 | BI67: 16926.06497 | BJ67: 13435.40981 | BK67: 12465.75091 | BL67: 15500.74045 | BM67: 13599.01724 | BN67: 12655.16716 | BO67: 0 | BP67: 14593.31087 | BQ67: 11834.85505 | BR67: 0 | BS67: 12457.31291 | BT67: 12986.92137 | BU67: 14844.06185 | BV67: 15710.7286 | BW67: 17228.06149 | BX67: 18476.73226 | BY67: 19688.36179 | BZ67: 17285.02628 | CA67: 20245.21988 | CB67: 20748.07328 | CC67: 22911.29168 | CD67: 11922.97543 | CE67: 9089.501078 | CG67: Барселона спецэффект №4 (Арче, Техно, Техно-Горизонталь) | CH67: 0 | CI67: =IF(CH67<>0,LOOKUP(,-CODE(CH$3:CH67),CH$3:CH67),CI66) -> 2 | CQ67: Ф | CR67: Ф | CS67: Ф | CT67: =IFERROR($CS67*$CT$1,"Ф") -> Ф | CU67: ф | CV67: Ф
B68: 0 | C68: =IF(B68<>0,LOOKUP(,-CODE(B$3:B68),B$3:B68),C67) -> 6 | D68: 6-140(750)-528 | E68: Тумба кухонная двухдверный с двумя леграбоксами, Н - 140/180 мм, полка ЛДСП | F68: =IF(E68<>0,LOOKUP(,-CODE(E$3:E68),E$3:E68),F67) -> Тумба кухонная двухдверный с двумя леграбоксами, Н - 140/180 мм, полка ЛДСП | H68: 1 | I68: 750 | J68: 720 | K68: 528 | L68: 10396.02744 | M68: 10726.86876 | N68: 12805.62322 | O68: 13950.18121 | P68: 15489.64518 | Q68: 10535.56344 | R68: 10866.40476 | S68: 12945.15922 | T68: 14089.71721 | U68: 15629.18118 | V68: 10190.39544 | W68: 10521.23676 | X68: 12785.75506 | Y68: 13978.00297 | Z68: 15581.61127 | AA68: 11234.42754 | AB68: 11620.40908 | AC68: 14045.62261 | AD68: 15380.94027 | AE68: 17176.98156 | AF68: 12266.58549 | AG68: 12624.99692 | AH68: 14876.98091 | AI68: 16116.91874 | AJ68: 17784.67137 | AK68: 9220.7311 | AL68: 9635.014945 | AM68: 9885.013818 | AN68: 10643.75134 | AO68: 10934.0276 | AP68: 11802.13783 | AQ68: 11036.69674 | AR68: 12067.36458 | AS68: 13276.76921 | AT68: 13840.87279 | AU68: 15370.21311 | AV68: 16534.2415 | AW68: 17663.73952 | AX68: 13970.31645 | AY68: 12899.29681 | AZ68: 15839.64935 | BA68: 14096.99095 | BB68: 11802.13783 | BC68: 11036.69674 | BD68: 12212.76109 | BE68: 13276.76921 | BF68: 13840.87279 | BG68: 15370.21311 | BH68: 16534.2415 | BI68: 17663.73952 | BJ68: 13921.59624 | BK68: 12882.07718 | BL68: 16135.72591 | BM68: 14096.99095 | BN68: 13085.14014 | BO68: 0 | BP68: 15062.72798 | BQ68: 12205.72773 | BR68: 0 | BS68: 12873.03126 | BT68: 13440.79595 | BU68: 15431.73618 | BV68: 16360.84289 | BW68: 17987.49371 | BX68: 19326.12636 | BY68: 20625.04908 | BZ68: 18042.85585 | CA68: 21214.49185 | CB68: 21753.26335 | CC68: 24070.99735 | CD68: 12260.39734 | CE68: 9232.630854 | CG68: =INDIRECT(ADDRESS(2,ROW()+9)) -> Барселона спецэффект №5 (Арче, Техно, Техно-Горизонталь) | CH68: 0 | CI68: =IF(CH68<>0,LOOKUP(,-CODE(CH$3:CH68),CH$3:CH68),CI67) -> 2 | CQ68: Ф | CR68: =IFERROR(CQ68*300,"Ф") -> Ф | CS68: Ф | CT68: Ф | CU68: ф | CV68: =IFERROR($CR68+CT68,"Ф") -> Ф
B69: 0 | C69: =IF(B69<>0,LOOKUP(,-CODE(B$3:B69),B$3:B69),C68) -> 6 | D69: 6-140(800)-528 | E69: Тумба кухонная двухдверный с двумя леграбоксами, Н - 140/180 мм, полка ЛДСП | F69: =IF(E69<>0,LOOKUP(,-CODE(E$3:E69),E$3:E69),F68) -> Тумба кухонная двухдверный с двумя леграбоксами, Н - 140/180 мм, полка ЛДСП | H69: 1 | I69: 800 | J69: 720 | K69: 528 | L69: 10620.93983 | M69: 10974.01512 | N69: 13192.47081 | O69: 14413.94802 | P69: 16056.87059 | Q69: 10765.03583 | R69: 11118.11112 | S69: 13336.56681 | T69: 14558.04402 | U69: 16200.96659 | V69: 10408.58783 | W69: 10761.66312 | X69: 13177.6484 | Y69: 14450.0205 | Z69: 16161.39817 | AA69: 11495.6537 | AB69: 11907.57487 | AC69: 14495.77317 | AD69: 15920.82992 | AE69: 17837.57292 | AF69: 12557.08477 | AG69: 12939.58299 | AH69: 15342.90999 | AI69: 16666.17697 | AJ69: 18446.00976 | AK69: 9383.590409 | AL69: 9819.747742 | AM69: 10082.94613 | AN69: 10894.04608 | AO69: 11202.7154 | AP69: 12145.88754 | AQ69: 11329.00552 | AR69: 12428.93867 | AS69: 13719.62049 | AT69: 14321.63426 | AU69: 15953.75282 | AV69: 17196.00892 | AW69: 18401.41407 | AX69: 14459.77709 | AY69: 13316.78032 | AZ69: 16454.7372 | BA69: 14594.96466 | BB69: 12145.88754 | BC69: 11329.00552 | BD69: 12584.10645 | BE69: 13719.62049 | BF69: 14321.63426 | BG69: 15953.75282 | BH69: 17196.00892 | BI69: 18401.41407 | BJ69: 14407.78267 | BK69: 13298.40346 | BL69: 16770.71138 | BM69: 14594.96466 | BN69: 13515.11312 | BO69: 0 | BP69: 15532.14509 | BQ69: 12576.60042 | BR69: 0 | BS69: 13288.74961 | BT69: 13894.67053 | BU69: 16019.41051 | BV69: 17010.95718 | BW69: 18746.92594 | BX69: 20175.52046 | BY69: 21561.73637 | BZ69: 18475.29151 | CA69: 21754.13695 | CB69: 22311.12031 | CC69: 24707.19967 | CD69: 12597.81924 | CE69: 9375.760629 | CG69: =INDIRECT(ADDRESS(2,ROW()+9)) -> Толедо БАВАРИЯ дуб тонирование | CH69: 0 | CI69: =IF(CH69<>0,LOOKUP(,-CODE(CH$3:CH69),CH$3:CH69),CI68) -> 2 | CQ69: Ф | CR69: Ф | CS69: Ф | CT69: Ф | CU69: ф | CV69: Ф
B70: 0 | C70: =IF(B70<>0,LOOKUP(,-CODE(B$3:B70),B$3:B70),C69) -> 6 | D70: 6-140(850)-528 | E70: Тумба кухонная двухдверный с двумя леграбоксами, Н - 140/180 мм, полка ЛДСП | F70: =IF(E70<>0,LOOKUP(,-CODE(E$3:E70),E$3:E70),F69) -> Тумба кухонная двухдверный с двумя леграбоксами, Н - 140/180 мм, полка ЛДСП | H70: 1 | I70: 850 | J70: 720 | K70: 528 | L70: 10845.85223 | M70: 11221.16147 | N70: 13579.31841 | O70: 14877.71484 | P70: 16624.09601 | Q70: 10994.50823 | R70: 11369.81747 | S70: 13727.97441 | T70: 15026.37084 | U70: 16772.75201 | V70: 10626.78023 | W70: 11002.08947 | X70: 13569.54174 | Y70: 14922.03802 | Z70: 16741.18507 | AA70: 11756.87987 | AB70: 12194.74065 | AC70: 14945.92374 | AD70: 16460.71958 | AE70: 18498.16427 | AF70: 12847.58405 | AG70: 13254.16906 | AH70: 15808.83907 | AI70: 17215.43521 | AJ70: 19107.34814 | AK70: 9546.449719 | AL70: 10004.48054 | AM70: 10280.87845 | AN70: 11144.34081 | AO70: 11471.4032 | AP70: 12489.63724 | AQ70: 11621.31429 | AR70: 12790.51275 | AS70: 14162.47176 | AT70: 14802.39572 | AU70: 16537.29253 | AV70: 17857.77635 | AW70: 19139.08862 | AX70: 14949.23772 | AY70: 13734.26383 | AZ70: 17069.82505 | BA70: 15092.93836 | BB70: 12489.63724 | BC70: 11621.31429 | BD70: 12955.4518 | BE70: 14162.47176 | BF70: 14802.39572 | BG70: 16537.29253 | BH70: 17857.77635 | BI70: 19139.08862 | BJ70: 14893.9691 | BK70: 13714.72973 | BL70: 17405.69684 | BM70: 15092.93836 | BN70: 13945.0861 | BO70: 0 | BP70: 16001.5622 | BQ70: 12947.4731 | BR70: 0 | BS70: 13704.46796 | BT70: 14348.54511 | BU70: 16607.08483 | BV70: 17661.07148 | BW70: 19506.35816 | BX70: 21024.91455 | BY70: 22498.42366 | BZ70: 19212.78396 | CA70: 22696.55724 | CB70: 23288.35206 | CC70: 25834.18638 | CD70: 12935.24115 | CE70: 9518.890404 | CG70: =INDIRECT(ADDRESS(2,ROW()+9)) -> Толедо БАВАРИЯ дуб эмаль + патина | CH70: 0 | CI70: =IF(CH70<>0,LOOKUP(,-CODE(CH$3:CH70),CH$3:CH70),CI69) -> 2 | CQ70: Ф | CR70: Ф | CS70: Ф | CT70: Ф | CU70: ф | CV70: Ф
B71: 0 | C71: =IF(B71<>0,LOOKUP(,-CODE(B$3:B71),B$3:B71),C70) -> 6 | D71: 6-140(900)-528 | E71: Тумба кухонная двухдверный с двумя леграбоксами, Н - 140/180 мм, полка ЛДСП | F71: =IF(E71<>0,LOOKUP(,-CODE(E$3:E71),E$3:E71),F70) -> Тумба кухонная двухдверный с двумя леграбоксами, Н - 140/180 мм, полка ЛДСП | H71: 1 | I71: 900 | J71: 720 | K71: 528 | L71: 11070.76463 | M71: 11468.30783 | N71: 13966.166 | O71: 15341.48165 | P71: 17191.32142 | Q71: 11223.98063 | R71: 11621.52383 | S71: 14119.382 | T71: 15494.69765 | U71: 17344.53742 | V71: 10844.97263 | W71: 11242.51583 | X71: 13961.43508 | Y71: 15394.05555 | Z71: 17320.97197 | AA71: 12018.10603 | AB71: 12481.90644 | AC71: 15396.0743 | AD71: 17000.60923 | AE71: 19158.75563 | AF71: 13138.08333 | AG71: 13568.75513 | AH71: 16274.76815 | AI71: 17764.69344 | AJ71: 19768.68653 | AK71: 9709.309029 | AL71: 10189.21334 | AM71: 10478.81076 | AN71: 11394.63554 | AO71: 11740.091 | AP71: 12833.38695 | AQ71: 11913.62306 | AR71: 13152.08684 | AS71: 14605.32304 | AT71: 15283.15719 | AU71: 17120.83225 | AV71: 18519.54378 | AW71: 19876.76317 | AX71: 15438.69836 | AY71: 14151.74734 | AZ71: 17684.91289 | BA71: 15590.91207 | BB71: 12833.38695 | BC71: 11913.62306 | BD71: 13326.79716 | BE71: 14605.32304 | BF71: 15283.15719 | BG71: 17120.83225 | BH71: 18519.54378 | BI71: 19876.76317 | BJ71: 15380.15553 | BK71: 14131.05601 | BL71: 18040.68231 | BM71: 15590.91207 | BN71: 14375.05908 | BO71: 0 | BP71: 16470.97931 | BQ71: 13318.34578 | BR71: 0 | BS71: 14120.18632 | BT71: 14802.41969 | BU71: 17194.75916 | BV71: 18311.18577 | BW71: 20265.79039 | BX71: 21874.30865 | BY71: 23435.11095 | BZ71: 19950.27642 | CA71: 23638.97754 | CB71: 24265.58382 | CC71: 26961.1731 | CD71: 13272.66306 | CE71: 9662.02018 | CG71: =INDIRECT(ADDRESS(2,ROW()+9)) -> Толедо ШАЛЕ дуб тонирование | CH71: 0 | CI71: =IF(CH71<>0,LOOKUP(,-CODE(CH$3:CH71),CH$3:CH71),CI70) -> 2 | CQ71: Ф | CR71: Ф | CS71: Ф | CT71: Ф | CU71: ф | CV71: Ф
B72: 0 | C72: =IF(B72<>0,LOOKUP(,-CODE(B$3:B72),B$3:B72),C71) -> 6 | D72: 6-140(950)-528 | E72: Тумба кухонная двухдверный с двумя леграбоксами, Н - 140/180 мм, полка ЛДСП | F72: =IF(E72<>0,LOOKUP(,-CODE(E$3:E72),E$3:E72),F71) -> Тумба кухонная двухдверный с двумя леграбоксами, Н - 140/180 мм, полка ЛДСП | H72: 1 | I72: 950 | J72: 720 | K72: 528 | L72: 11295.67702 | M72: 11715.45419 | N72: 14353.0136 | O72: 15805.24847 | P72: 17758.54684 | Q72: 11453.45302 | R72: 11873.23019 | S72: 14510.7896 | T72: 15963.02447 | U72: 17916.32284 | V72: 11063.16502 | W72: 11482.94219 | X72: 14353.32842 | Y72: 15866.07308 | Z72: 17900.75888 | AA72: 12279.3322 | AB72: 12769.07222 | AC72: 15846.22487 | AD72: 17540.49889 | AE72: 19819.34699 | AF72: 13428.58261 | AG72: 13883.3412 | AH72: 16740.69723 | AI72: 18313.95168 | AJ72: 20430.02491 | AK72: 9872.168338 | AL72: 10373.94613 | AM72: 10676.74308 | AN72: 11644.93028 | AO72: 12008.7788 | AP72: 13177.13666 | AQ72: 12205.93184 | AR72: 13513.66092 | AS72: 15048.17432 | AT72: 15763.91865 | AU72: 17704.37196 | AV72: 19181.3112 | AW72: 20614.43772 | AX72: 15928.15899 | AY72: 14569.23085 | AZ72: 18300.00074 | BA72: 16088.88578 | BB72: 13177.13666 | BC72: 12205.93184 | BD72: 13698.14251 | BE72: 15048.17432 | BF72: 15763.91865 | BG72: 17704.37196 | BH72: 19181.3112 | BI72: 20614.43772 | BJ72: 15866.34195 | BK72: 14547.38229 | BL72: 18675.66777 | BM72: 16088.88578 | BN72: 14805.03206 | BO72: 0 | BP72: 16940.39642 | BQ72: 13689.21847 | BR72: 0 | BS72: 14535.90467 | BT72: 15256.29427 | BU72: 17782.43349 | BV72: 18961.30007 | BW72: 21025.22261 | BX72: 22723.70275 | BY72: 24371.79824 | BZ72: 20687.76888 | CA72: 24581.39784 | CB72: 25242.81558 | CC72: 28088.15982 | CD72: 13610.08497 | CE72: 9805.149955 | CG72: Толедо ШАЛЕ дуб эмаль + патина | CH72: 0 | CI72: =IF(CH72<>0,LOOKUP(,-CODE(CH$3:CH72),CH$3:CH72),CI71) -> 2 | CQ72: Ф | CR72: Ф | CS72: Ф | CT72: Ф | CU72: ф | CV72: Ф
B73: 0 | C73: =IF(B73<>0,LOOKUP(,-CODE(B$3:B73),B$3:B73),C72) -> 6 | D73: 6-140(1000)-528 | E73: Тумба кухонная двухдверный с двумя леграбоксами, Н - 140/180 мм, полка ЛДСП | F73: =IF(E73<>0,LOOKUP(,-CODE(E$3:E73),E$3:E73),F72) -> Тумба кухонная двухдверный с двумя леграбоксами, Н - 140/180 мм, полка ЛДСП | H73: 1 | I73: 1000 | J73: 720 | K73: 528 | L73: 11520.58942 | M73: 11962.60054 | N73: 14739.86119 | O73: 16269.01529 | P73: 18325.77225 | Q73: 11682.92542 | R73: 12124.93654 | S73: 14902.19719 | T73: 16431.35129 | U73: 18488.10825 | V73: 11281.35742 | W73: 11723.36854 | X73: 14745.22175 | Y73: 16338.0906 | Z73: 18480.54578 | AA73: 12540.55836 | AB73: 13056.23801 | AC73: 16296.37544 | AD73: 18080.38854 | AE73: 20479.93834 | AF73: 13719.08189 | AG73: 14197.92728 | AH73: 17206.62631 | AI73: 18863.20992 | AJ73: 21091.3633 | AK73: 10035.02765 | AL73: 10558.67893 | AM73: 10874.67539 | AN73: 11895.22501 | AO73: 12277.4666 | AP73: 13520.88636 | AQ73: 12498.24061 | AR73: 13875.23501 | AS73: 15491.0256 | AT73: 16244.68012 | AU73: 18287.91167 | AV73: 19843.07863 | AW73: 21352.11227 | AX73: 16417.61963 | AY73: 14986.71436 | AZ73: 18915.08859 | BA73: 16586.85948 | BB73: 13520.88636 | BC73: 12498.24061 | BD73: 14069.48787 | BE73: 15491.0256 | BF73: 16244.68012 | BG73: 18287.91167 | BH73: 19843.07863 | BI73: 21352.11227 | BJ73: 16352.52838 | BK73: 14963.70856 | BL73: 19310.65324 | BM73: 16586.85948 | BN73: 15235.00504 | BO73: 0 | BP73: 17409.81353 | BQ73: 14060.09115 | BR73: 0 | BS73: 14951.62302 | BT73: 15710.16885 | BU73: 18370.10781 | BV73: 19611.41436 | BW73: 21784.65484 | BX73: 23573.09684 | BY73: 25308.48554 | BZ73: 21425.26133 | CA73: 25523.81813 | CB73: 26220.04733 | CC73: 29215.14653 | CD73: 13947.50688 | CE73: 9948.27973 | CG73: Галисия | CH73: 0 | CI73: =IF(CH73<>0,LOOKUP(,-CODE(CH$3:CH73),CH$3:CH73),CI72) -> 2 | CQ73: Ф | CR73: Ф | CS73: Ф | CT73: Ф | CU73: ф | CV73: Ф
A74: 219/1 | B74: 0 | C74: =IF(B74<>0,LOOKUP(,-CODE(B$3:B74),B$3:B74),C73) -> 6 | D74: 6-180(600)-528 | E74: Тумба кухонная двухдверный с двумя леграбоксами, Н - 140/180 мм, полка ЛДСП | F74: =IF(E74<>0,LOOKUP(,-CODE(E$3:E74),E$3:E74),F73) -> Тумба кухонная двухдверный с двумя леграбоксами, Н - 140/180 мм, полка ЛДСП | H74: 1 | I74: 600 | J74: 720 | K74: 528 | L74: 9721.290253 | M74: 9985.429698 | N74: 11645.08043 | O74: 12558.88076 | P74: 13787.96893 | Q74: 9847.146253 | R74: 10111.2857 | S74: 11770.93643 | T74: 12684.73676 | U74: 13913.82493 | V74: 9535.818253 | W74: 9799.957698 | X74: 11610.07505 | Y74: 12561.9504 | Z74: 13842.25057 | AA74: 10450.74904 | AB74: 10758.91173 | AC74: 12695.17091 | AD74: 13761.2713 | AE74: 15195.2075 | AF74: 11395.08765 | AG74: 11681.23871 | AH74: 13479.19367 | AI74: 14469.14403 | AJ74: 15800.65621 | AK74: 8732.15317 | AL74: 9080.816555 | AM74: 9291.216873 | AN74: 9892.867145 | AO74: 10127.96419 | AP74: 10770.88871 | AQ74: 10159.77042 | AR74: 10982.64233 | AS74: 11948.21538 | AT74: 12398.5884 | AU74: 13619.59397 | AV74: 14548.93922 | AW74: 15450.71586 | AX74: 12501.93455 | AY74: 11646.84629 | AZ74: 13994.38581 | BA74: 12603.06983 | BB74: 10770.88871 | BC74: 10159.77042 | BD74: 11098.72502 | BE74: 11948.21538 | BF74: 12398.5884 | BG74: 13619.59397 | BH74: 14548.93922 | BI74: 15450.71586 | BJ74: 12463.03696 | BK74: 11633.09835 | BL74: 14230.76952 | BM74: 12603.06983 | BN74: 11795.2212 | BO74: 11227.03453 | BP74: 14789.70865 | BQ74: 11093.10968 | BR74: 13069.04711 | BS74: 11625.87621 | BT74: 12079.17221 | BU74: 13668.7132 | BV74: 14410.50001 | BW74: 15709.19704 | BX74: 16777.94407 | BY74: 17814.98721 | BZ74: 15781.99017 | CA74: 18323.34249 | CB74: 18755.04657 | CC74: 20612.18865 | CD74: 11457.64978 | CE74: 8803.209528 | CG74: ВЕРДЕ | CH74: 0 | CI74: =IF(CH74<>0,LOOKUP(,-CODE(CH$3:CH74),CH$3:CH74),CI73) -> 2 | CQ74: =$I74*$J74/1000000 -> 0.432 | CR74: 129.6 | CS74: 1.2 | CT74: 1440 | CU74: ф | CV74: 1569.6
B75: 0 | C75: =IF(B75<>0,LOOKUP(,-CODE(B$3:B75),B$3:B75),C74) -> 6 | D75: 6-180(650)-528 | E75: Тумба кухонная двухдверный с двумя леграбоксами, Н - 140/180 мм, полка ЛДСП | F75: =IF(E75<>0,LOOKUP(,-CODE(E$3:E75),E$3:E75),F74) -> Тумба кухонная двухдверный с двумя леграбоксами, Н - 140/180 мм, полка ЛДСП | H75: 1 | I75: 650 | J75: 720 | K75: 528 | L75: 9946.202648 | M75: 10232.57605 | N75: 12031.92802 | O75: 13022.64758 | P75: 14355.19435 | Q75: 10076.61865 | R75: 10362.99205 | S75: 12162.34402 | T75: 13153.06358 | U75: 14485.61035 | V75: 9754.010648 | W75: 10040.38405 | X75: 12001.96839 | Y75: 13033.96792 | Z75: 14422.03747 | AA75: 10711.97521 | AB75: 11046.07751 | AC75: 13145.32148 | AD75: 14301.16096 | AE75: 15855.79885 | AF75: 11685.58693 | AG75: 11995.82478 | AH75: 13945.12275 | AI75: 15018.40227 | AJ75: 16461.9946 | AK75: 8895.01248 | AL75: 9265.549352 | AM75: 9489.149188 | AN75: 10143.16188 | AO75: 10396.65199 | AP75: 11114.63842 | AQ75: 10452.0792 | AR75: 11344.21641 | AS75: 12391.06665 | AT75: 12879.34986 | AU75: 14203.13369 | AV75: 15210.70665 | AW75: 16188.39042 | AX75: 12991.39518 | AY75: 12064.3298 | AZ75: 14609.47366 | BA75: 13101.04354 | BB75: 11114.63842 | BC75: 10452.0792 | BD75: 11470.07038 | BE75: 12391.06665 | BF75: 12879.34986 | BG75: 14203.13369 | BH75: 15210.70665 | BI75: 16188.39042 | BJ75: 12949.22339 | BK75: 12049.42463 | BL75: 14865.75498 | BM75: 13101.04354 | BN75: 12225.19418 | BO75: 11609.18035 | BP75: 15360.48576 | BQ75: 11463.98236 | BR75: 13606.24449 | BS75: 12041.59456 | BT75: 12533.04679 | BU75: 14256.38753 | BV75: 15060.6143 | BW75: 16468.62926 | BX75: 17627.33816 | BY75: 18751.6745 | BZ75: 16540.87166 | CA75: 19294.00334 | CB75: 19761.68276 | CC75: 21773.58668 | CD75: 11807.97638 | CE75: 8946.459303 | CG75: 0 | CH75: 0 | CI75: =IF(CH75<>0,LOOKUP(,-CODE(CH$3:CH75),CH$3:CH75),CI74) -> 2 | CQ75: 0.468 | CR75: 140.4 | CS75: 1.3 | CT75: 1560 | CU75: ф | CV75: 1700.4
B76: 0 | C76: =IF(B76<>0,LOOKUP(,-CODE(B$3:B76),B$3:B76),C75) -> 6 | D76: 6-180(700)-528 | E76: Тумба кухонная двухдверный с двумя леграбоксами, Н - 140/180 мм, полка ЛДСП | F76: =IF(E76<>0,LOOKUP(,-CODE(E$3:E76),E$3:E76),F75) -> Тумба кухонная двухдверный с двумя леграбоксами, Н - 140/180 мм, полка ЛДСП | H76: 1 | I76: 700 | J76: 720 | K76: 528 | L76: 10171.11504 | M76: 10479.72241 | N76: 12418.77562 | O76: 13486.41439 | P76: 14922.41976 | Q76: 10306.09104 | R76: 10614.69841 | S76: 12553.75162 | T76: 13621.39039 | U76: 15057.39576 | V76: 9972.203044 | W76: 10280.81041 | X76: 12393.86173 | Y76: 13505.98545 | Z76: 15001.82437 | AA76: 10973.20137 | AB76: 11333.2433 | AC76: 13595.47204 | AD76: 14841.05061 | AE76: 16516.39021 | AF76: 11976.08621 | AG76: 12310.41085 | AH76: 14411.05183 | AI76: 15567.6605 | AJ76: 17123.33299 | AK76: 9057.87179 | AL76: 9450.282148 | AM76: 9687.081503 | AN76: 10393.45661 | AO76: 10665.33979 | AP76: 11458.38812 | AQ76: 10744.38797 | AR76: 11705.7905 | AS76: 12833.91793 | AT76: 13360.11133 | AU76: 14786.6734 | AV76: 15872.47407 | AW76: 16926.06497 | AX76: 13480.85582 | AY76: 12481.8133 | AZ76: 15224.56151 | BA76: 13599.01724 | BB76: 11458.38812 | BC76: 10744.38797 | BD76: 11841.41574 | BE76: 12833.91793 | BF76: 13360.11133 | BG76: 14786.6734 | BH76: 15872.47407 | BI76: 16926.06497 | BJ76: 13435.40981 | BK76: 12465.75091 | BL76: 15500.74045 | BM76: 13599.01724 | BN76: 12655.16716 | BO76: 11991.32617 | BP76: 15931.26287 | BQ76: 11834.85505 | BR76: 14143.44188 | BS76: 12457.31291 | BT76: 12986.92137 | BU76: 14844.06185 | BV76: 15710.7286 | BW76: 17228.06149 | BX76: 18476.73226 | BY76: 19688.36179 | BZ76: 17299.75316 | CA76: 20264.6642 | CB76: 20768.31896 | CC76: 22934.98472 | CD76: 12158.30298 | CE76: 9089.709078 | CG76: основной прайс | CH76: 0 | CI76: =IF(CH76<>0,LOOKUP(,-CODE(CH$3:CH76),CH$3:CH76),CI75) -> 2 | CQ76: 0.504 | CR76: 151.2 | CS76: 1.4 | CT76: 1680 | CU76: ф | CV76: 1831.2
B77: 0 | C77: =IF(B77<>0,LOOKUP(,-CODE(B$3:B77),B$3:B77),C76) -> 6 | D77: 6-180(750)-528 | E77: Тумба кухонная двухдверный с двумя леграбоксами, Н - 140/180 мм, полка ЛДСП | F77: =IF(E77<>0,LOOKUP(,-CODE(E$3:E77),E$3:E77),F76) -> Тумба кухонная двухдверный с двумя леграбоксами, Н - 140/180 мм, полка ЛДСП | H77: 1 | I77: 750 | J77: 720 | K77: 528 | L77: 10396.02744 | M77: 10726.86876 | N77: 12805.62322 | O77: 13950.18121 | P77: 15489.64518 | Q77: 10535.56344 | R77: 10866.40476 | S77: 12945.15922 | T77: 14089.71721 | U77: 15629.18118 | V77: 10190.39544 | W77: 10521.23676 | X77: 12785.75506 | Y77: 13978.00297 | Z77: 15581.61127 | AA77: 11234.42754 | AB77: 11620.40908 | AC77: 14045.62261 | AD77: 15380.94027 | AE77: 17176.98156 | AF77: 12266.58549 | AG77: 12624.99692 | AH77: 14876.98091 | AI77: 16116.91874 | AJ77: 17784.67137 | AK77: 9220.7311 | AL77: 9635.014945 | AM77: 9885.013818 | AN77: 10643.75134 | AO77: 10934.0276 | AP77: 11802.13783 | AQ77: 11036.69674 | AR77: 12067.36458 | AS77: 13276.76921 | AT77: 13840.87279 | AU77: 15370.21311 | AV77: 16534.2415 | AW77: 17663.73952 | AX77: 13970.31645 | AY77: 12899.29681 | AZ77: 15839.64935 | BA77: 14096.99095 | BB77: 11802.13783 | BC77: 11036.69674 | BD77: 12212.76109 | BE77: 13276.76921 | BF77: 13840.87279 | BG77: 15370.21311 | BH77: 16534.2415 | BI77: 17663.73952 | BJ77: 13921.59624 | BK77: 12882.07718 | BL77: 16135.72591 | BM77: 14096.99095 | BN77: 13085.14014 | BO77: 12373.47199 | BP77: 16502.03998 | BQ77: 12205.72773 | BR77: 14680.63926 | BS77: 12873.03126 | BT77: 13440.79595 | BU77: 15431.73618 | BV77: 16360.84289 | BW77: 17987.49371 | BX77: 19326.12636 | BY77: 20625.04908 | BZ77: 18058.63465 | CA77: 21235.32505 | CB77: 21774.95515 | CC77: 24096.38275 | CD77: 12508.62959 | CE77: 9232.958854 | CG77: =INDIRECT(ADDRESS(2,ROW()+9)) -> 0 | CH77: 0 | CI77: =IF(CH77<>0,LOOKUP(,-CODE(CH$3:CH77),CH$3:CH77),CI76) -> 2 | CQ77: 0.54 | CR77: 162 | CS77: 1.5 | CT77: 1800 | CU77: ф | CV77: 1962
B78: 0 | C78: =IF(B78<>0,LOOKUP(,-CODE(B$3:B78),B$3:B78),C77) -> 6 | D78: 6-180(800)-528 | E78: Тумба кухонная двухдверный с двумя леграбоксами, Н - 140/180 мм, полка ЛДСП | F78: =IF(E78<>0,LOOKUP(,-CODE(E$3:E78),E$3:E78),F77) -> Тумба кухонная двухдверный с двумя леграбоксами, Н - 140/180 мм, полка ЛДСП | H78: 1 | I78: 800 | J78: 720 | K78: 528 | L78: 10620.93983 | M78: 10974.01512 | N78: 13192.47081 | O78: 14413.94802 | P78: 16056.87059 | Q78: 10765.03583 | R78: 11118.11112 | S78: 13336.56681 | T78: 14558.04402 | U78: 16200.96659 | V78: 10408.58783 | W78: 10761.66312 | X78: 13177.6484 | Y78: 14450.0205 | Z78: 16161.39817 | AA78: 11495.6537 | AB78: 11907.57487 | AC78: 14495.77317 | AD78: 15920.82992 | AE78: 17837.57292 | AF78: 12557.08477 | AG78: 12939.58299 | AH78: 15342.90999 | AI78: 16666.17697 | AJ78: 18446.00976 | AK78: 9383.590409 | AL78: 9819.747742 | AM78: 10082.94613 | AN78: 10894.04608 | AO78: 11202.7154 | AP78: 12145.88754 | AQ78: 11329.00552 | AR78: 12428.93867 | AS78: 13719.62049 | AT78: 14321.63426 | AU78: 15953.75282 | AV78: 17196.00892 | AW78: 18401.41407 | AX78: 14459.77709 | AY78: 13316.78032 | AZ78: 16454.7372 | BA78: 14594.96466 | BB78: 12145.88754 | BC78: 11329.00552 | BD78: 12584.10645 | BE78: 13719.62049 | BF78: 14321.63426 | BG78: 15953.75282 | BH78: 17196.00892 | BI78: 18401.41407 | BJ78: 14407.78267 | BK78: 13298.40346 | BL78: 16770.71138 | BM78: 14594.96466 | BN78: 13515.11312 | BO78: 12755.61781 | BP78: 17072.81709 | BQ78: 12576.60042 | BR78: 15217.83664 | BS78: 13288.74961 | BT78: 13894.67053 | BU78: 16019.41051 | BV78: 17010.95718 | BW78: 18746.92594 | BX78: 20175.52046 | BY78: 21561.73637 | BZ78: 18514.56319 | CA78: 21805.98847 | CB78: 22365.10879 | CC78: 24770.38111 | CD78: 12858.95619 | CE78: 9376.208629 | CH78: 0 | CI78: =IF(CH78<>0,LOOKUP(,-CODE(CH$3:CH78),CH$3:CH78),CI77) -> 2 | CQ78: 0.576 | CR78: 172.8 | CS78: 1.6 | CT78: 1920 | CU78: ф | CV78: 2092.8
B79: 0 | C79: =IF(B79<>0,LOOKUP(,-CODE(B$3:B79),B$3:B79),C78) -> 6 | D79: 6-180(850)-528 | E79: Тумба кухонная двухдверный с двумя леграбоксами, Н - 140/180 мм, полка ЛДСП | F79: =IF(E79<>0,LOOKUP(,-CODE(E$3:E79),E$3:E79),F78) -> Тумба кухонная двухдверный с двумя леграбоксами, Н - 140/180 мм, полка ЛДСП | H79: 1 | I79: 850 | J79: 720 | K79: 528 | L79: 10845.85223 | M79: 11221.16147 | N79: 13579.31841 | O79: 14877.71484 | P79: 16624.09601 | Q79: 10994.50823 | R79: 11369.81747 | S79: 13727.97441 | T79: 15026.37084 | U79: 16772.75201 | V79: 10626.78023 | W79: 11002.08947 | X79: 13569.54174 | Y79: 14922.03802 | Z79: 16741.18507 | AA79: 11756.87987 | AB79: 12194.74065 | AC79: 14945.92374 | AD79: 16460.71958 | AE79: 18498.16427 | AF79: 12847.58405 | AG79: 13254.16906 | AH79: 15808.83907 | AI79: 17215.43521 | AJ79: 19107.34814 | AK79: 9546.449719 | AL79: 10004.48054 | AM79: 10280.87845 | AN79: 11144.34081 | AO79: 11471.4032 | AP79: 12489.63724 | AQ79: 11621.31429 | AR79: 12790.51275 | AS79: 14162.47176 | AT79: 14802.39572 | AU79: 16537.29253 | AV79: 17857.77635 | AW79: 19139.08862 | AX79: 14949.23772 | AY79: 13734.26383 | AZ79: 17069.82505 | BA79: 15092.93836 | BB79: 12489.63724 | BC79: 11621.31429 | BD79: 12955.4518 | BE79: 14162.47176 | BF79: 14802.39572 | BG79: 16537.29253 | BH79: 17857.77635 | BI79: 19139.08862 | BJ79: 14893.9691 | BK79: 13714.72973 | BL79: 17405.69684 | BM79: 15092.93836 | BN79: 13945.0861 | BO79: 13137.76363 | BP79: 17643.5942 | BQ79: 12947.4731 | BR79: 15755.03402 | BS79: 13704.46796 | BT79: 14348.54511 | BU79: 16607.08483 | BV79: 17661.07148 | BW79: 19506.35816 | BX79: 21024.91455 | BY79: 22498.42366 | BZ79: 19254.51012 | CA79: 22751.64948 | CB79: 23345.71482 | CC79: 25901.31666 | CD79: 13209.28279 | CE79: 9519.458404 | CH79: 0 | CI79: =IF(CH79<>0,LOOKUP(,-CODE(CH$3:CH79),CH$3:CH79),CI78) -> 2 | CQ79: 0.612 | CR79: 183.6 | CS79: 1.7 | CT79: 2040 | CU79: ф | CV79: 2223.6
B80: 0 | C80: =IF(B80<>0,LOOKUP(,-CODE(B$3:B80),B$3:B80),C79) -> 6 | D80: 6-180(900)-528 | E80: Тумба кухонная двухдверный с двумя леграбоксами, Н - 140/180 мм, полка ЛДСП | F80: =IF(E80<>0,LOOKUP(,-CODE(E$3:E80),E$3:E80),F79) -> Тумба кухонная двухдверный с двумя леграбоксами, Н - 140/180 мм, полка ЛДСП | H80: 1 | I80: 900 | J80: 720 | K80: 528 | L80: 11070.76463 | M80: 11468.30783 | N80: 13966.166 | O80: 15341.48165 | P80: 17191.32142 | Q80: 11223.98063 | R80: 11621.52383 | S80: 14119.382 | T80: 15494.69765 | U80: 17344.53742 | V80: 10844.97263 | W80: 11242.51583 | X80: 13961.43508 | Y80: 15394.05555 | Z80: 17320.97197 | AA80: 12018.10603 | AB80: 12481.90644 | AC80: 15396.0743 | AD80: 17000.60923 | AE80: 19158.75563 | AF80: 13138.08333 | AG80: 13568.75513 | AH80: 16274.76815 | AI80: 17764.69344 | AJ80: 19768.68653 | AK80: 9709.309029 | AL80: 10189.21334 | AM80: 10478.81076 | AN80: 11394.63554 | AO80: 11740.091 | AP80: 12833.38695 | AQ80: 11913.62306 | AR80: 13152.08684 | AS80: 14605.32304 | AT80: 15283.15719 | AU80: 17120.83225 | AV80: 18519.54378 | AW80: 19876.76317 | AX80: 15438.69836 | AY80: 14151.74734 | AZ80: 17684.91289 | BA80: 15590.91207 | BB80: 12833.38695 | BC80: 11913.62306 | BD80: 13326.79716 | BE80: 14605.32304 | BF80: 15283.15719 | BG80: 17120.83225 | BH80: 18519.54378 | BI80: 19876.76317 | BJ80: 15380.15553 | BK80: 14131.05601 | BL80: 18040.68231 | BM80: 15590.91207 | BN80: 14375.05908 | BO80: 13519.90945 | BP80: 18214.37131 | BQ80: 13318.34578 | BR80: 16292.23141 | BS80: 14120.18632 | BT80: 14802.41969 | BU80: 17194.75916 | BV80: 18311.18577 | BW80: 20265.79039 | BX80: 21874.30865 | BY80: 23435.11095 | BZ80: 19994.45706 | CA80: 23697.3105 | CB80: 24326.32086 | CC80: 27032.25222 | CD80: 13559.6094 | CE80: 9662.70818 | CH80: 0 | CI80: =IF(CH80<>0,LOOKUP(,-CODE(CH$3:CH80),CH$3:CH80),CI79) -> 2 | CQ80: 0.648 | CR80: 194.4 | CS80: 1.8 | CT80: 2160 | CU80: ф | CV80: 2354.4
B81: 0 | C81: =IF(B81<>0,LOOKUP(,-CODE(B$3:B81),B$3:B81),C80) -> 6 | D81: 6-180(950)-528 | E81: Тумба кухонная двухдверный с двумя леграбоксами, Н - 140/180 мм, полка ЛДСП | F81: =IF(E81<>0,LOOKUP(,-CODE(E$3:E81),E$3:E81),F80) -> Тумба кухонная двухдверный с двумя леграбоксами, Н - 140/180 мм, полка ЛДСП | H81: 1 | I81: 950 | J81: 720 | K81: 528 | L81: 11295.67702 | M81: 11715.45419 | N81: 14353.0136 | O81: 15805.24847 | P81: 17758.54684 | Q81: 11453.45302 | R81: 11873.23019 | S81: 14510.7896 | T81: 15963.02447 | U81: 17916.32284 | V81: 11063.16502 | W81: 11482.94219 | X81: 14353.32842 | Y81: 15866.07308 | Z81: 17900.75888 | AA81: 12279.3322 | AB81: 12769.07222 | AC81: 15846.22487 | AD81: 17540.49889 | AE81: 19819.34699 | AF81: 13428.58261 | AG81: 13883.3412 | AH81: 16740.69723 | AI81: 18313.95168 | AJ81: 20430.02491 | AK81: 9872.168338 | AL81: 10373.94613 | AM81: 10676.74308 | AN81: 11644.93028 | AO81: 12008.7788 | AP81: 13177.13666 | AQ81: 12205.93184 | AR81: 13513.66092 | AS81: 15048.17432 | AT81: 15763.91865 | AU81: 17704.37196 | AV81: 19181.3112 | AW81: 20614.43772 | AX81: 15928.15899 | AY81: 14569.23085 | AZ81: 18300.00074 | BA81: 16088.88578 | BB81: 13177.13666 | BC81: 12205.93184 | BD81: 13698.14251 | BE81: 15048.17432 | BF81: 15763.91865 | BG81: 17704.37196 | BH81: 19181.3112 | BI81: 20614.43772 | BJ81: 15866.34195 | BK81: 14547.38229 | BL81: 18675.66777 | BM81: 16088.88578 | BN81: 14805.03206 | BO81: 13902.05527 | BP81: 18785.14842 | BQ81: 13689.21847 | BR81: 16829.42879 | BS81: 14535.90467 | BT81: 15256.29427 | BU81: 17782.43349 | BV81: 18961.30007 | BW81: 21025.22261 | BX81: 22723.70275 | BY81: 24371.79824 | BZ81: 20734.404 | CA81: 24642.97152 | CB81: 25306.9269 | CC81: 28163.18778 | CD81: 13909.936 | CE81: 9805.957955 | CH81: 0 | CI81: =IF(CH81<>0,LOOKUP(,-CODE(CH$3:CH81),CH$3:CH81),CI80) -> 2 | CQ81: 0.684 | CR81: 205.2 | CS81: 1.9 | CT81: 2280 | CU81: ф | CV81: 2485.2
B82: 0 | C82: =IF(B82<>0,LOOKUP(,-CODE(B$3:B82),B$3:B82),C81) -> 6 | D82: 6-180(1000)-528 | E82: Тумба кухонная двухдверный с двумя леграбоксами, Н - 140/180 мм, полка ЛДСП | F82: =IF(E82<>0,LOOKUP(,-CODE(E$3:E82),E$3:E82),F81) -> Тумба кухонная двухдверный с двумя леграбоксами, Н - 140/180 мм, полка ЛДСП | H82: 1 | I82: 1000 | J82: 720 | K82: 528 | L82: 11520.58942 | M82: 11962.60054 | N82: 14739.86119 | O82: 16269.01529 | P82: 18325.77225 | Q82: 11682.92542 | R82: 12124.93654 | S82: 14902.19719 | T82: 16431.35129 | U82: 18488.10825 | V82: 11281.35742 | W82: 11723.36854 | X82: 14745.22175 | Y82: 16338.0906 | Z82: 18480.54578 | AA82: 12540.55836 | AB82: 13056.23801 | AC82: 16296.37544 | AD82: 18080.38854 | AE82: 20479.93834 | AF82: 13719.08189 | AG82: 14197.92728 | AH82: 17206.62631 | AI82: 18863.20992 | AJ82: 21091.3633 | AK82: 10035.02765 | AL82: 10558.67893 | AM82: 10874.67539 | AN82: 11895.22501 | AO82: 12277.4666 | AP82: 13520.88636 | AQ82: 12498.24061 | AR82: 13875.23501 | AS82: 15491.0256 | AT82: 16244.68012 | AU82: 18287.91167 | AV82: 19843.07863 | AW82: 21352.11227 | AX82: 16417.61963 | AY82: 14986.71436 | AZ82: 18915.08859 | BA82: 16586.85948 | BB82: 13520.88636 | BC82: 12498.24061 | BD82: 14069.48787 | BE82: 15491.0256 | BF82: 16244.68012 | BG82: 18287.91167 | BH82: 19843.07863 | BI82: 21352.11227 | BJ82: 16352.52838 | BK82: 14963.70856 | BL82: 19310.65324 | BM82: 16586.85948 | BN82: 15235.00504 | BO82: 14284.20109 | BP82: 19355.92553 | BQ82: 14060.09115 | BR82: 17366.62617 | BS82: 14951.62302 | BT82: 15710.16885 | BU82: 18370.10781 | BV82: 19611.41436 | BW82: 21784.65484 | BX82: 23573.09684 | BY82: 25308.48554 | BZ82: 21474.35093 | CA82: 25588.63253 | CB82: 26287.53293 | CC82: 29294.12333 | CD82: 14260.2626 | CE82: 9949.20773 | CH82: 0 | CI82: =IF(CH82<>0,LOOKUP(,-CODE(CH$3:CH82),CH$3:CH82),CI81) -> 2 | CQ82: 0.72 | CR82: 216 | CS82: =IFERROR(($I82+CR82-CR82)*2/1000,"Ф") -> 2 | CT82: 2400 | CU82: ф | CV82: 2616
A83: 10/2 | B83: 7 | C83: =IF(B83<>0,LOOKUP(,-CODE(B$3:B83),B$3:B83),C82) -> 7 | D83: 7-140(600)-528 | E83: Тумба кухонная двухдверный с метабоксом, Н - 140/180 мм, полка ЛДСП | F83: =IF(E83<>0,LOOKUP(,-CODE(E$3:E83),E$3:E83),F82) -> Тумба кухонная двухдверный с метабоксом, Н - 140/180 мм, полка ЛДСП | H83: 1 | I83: 600 | J83: 720 | K83: 528 | L83: 5248.362453 | M83: 5512.501898 | N83: 7172.152629 | O83: 8085.952963 | P83: 9315.041131 | Q83: 5374.218453 | R83: 5638.357898 | S83: 7298.008629 | T83: 8211.808963 | U83: 9440.897131 | V83: 5062.890453 | W83: 5327.029898 | X83: 7137.14725 | Y83: 8089.022598 | Z83: 9369.322773 | AA83: 5977.821241 | AB83: 6285.983926 | AC83: 8222.243113 | AD83: 9288.343502 | AE83: 10722.2797 | AF83: 6922.159847 | AG83: 7208.310912 | AH83: 9006.265871 | AI83: 9996.216232 | AJ83: 11327.72841 | AK83: 4267.409853 | AL83: 4622.666293 | AM83: 4837.045179 | AN83: 5437.179806 | AO83: 5673.508315 | AP83: 6297.96091 | AQ83: 5686.842623 | AR83: 6509.714527 | AS83: 7475.287576 | AT83: 7925.660597 | AU83: 9146.666175 | AV83: 10076.01142 | AW83: 10977.78806 | AX83: 8029.006746 | AY83: 7173.918486 | AZ83: 9521.458014 | BA83: 8130.14203 | BB83: 6297.96091 | BC83: 5686.842623 | BD83: 6625.797224 | BE83: 7475.287576 | BF83: 7925.660597 | BG83: 9146.666175 | BH83: 10076.01142 | BI83: 10977.78806 | BJ83: 7990.109159 | BK83: 7160.170554 | BL83: 9757.841717 | BM83: 8130.14203 | BN83: 7322.293401 | BO83: 0 | BP83: 9181.548853 | BQ83: 6620.18188 | BR83: 0 | BS83: 7152.948409 | BT83: 7606.24441 | BU83: 9195.7854 | BV83: 9937.572208 | BW83: 11236.26924 | BX83: 12305.01627 | BY83: 13342.05941 | BZ83: 11296.43933 | CA83: 13833.74813 | CB83: 14264.76533 | CC83: 16118.95253 | CD83: 6753.520681 | CE83: 4330.313728 | CH83: 2 | CI83: =IF(CH83<>0,LOOKUP(,-CODE(CH$3:CH83),CH$3:CH83),CI82) -> 2 | CQ83: Ф | CR83: Ф | CS83: Ф | CT83: Ф | CU83: ф | CV83: Ф
B84: 0 | C84: =IF(B84<>0,LOOKUP(,-CODE(B$3:B84),B$3:B84),C83) -> 7 | D84: 7-140(650)-528 | E84: Тумба кухонная двухдверный с метабоксом, Н - 140/180 мм, полка ЛДСП | F84: =IF(E84<>0,LOOKUP(,-CODE(E$3:E84),E$3:E84),F83) -> Тумба кухонная двухдверный с метабоксом, Н - 140/180 мм, полка ЛДСП | H84: 1 | I84: 650 | J84: 720 | K84: 528 | L84: 5468.567932 | M84: 5754.941337 | N84: 7554.293308 | O84: 8545.012861 | P84: 9877.559629 | Q84: 5598.983932 | R84: 5885.357337 | S84: 7684.709308 | T84: 8675.428861 | U84: 10007.97563 | V84: 5276.375932 | W84: 5562.749337 | X84: 7524.333671 | Y84: 8556.333206 | Z84: 9944.402756 | AA84: 6234.340489 | AB84: 6568.442795 | AC84: 8667.686761 | AD84: 9823.526241 | AE84: 11378.16414 | AF84: 7207.952211 | AG84: 7518.190066 | AH84: 9467.488035 | AI84: 10540.76755 | AJ84: 11984.35988 | AK84: 4427.338907 | AL84: 4805.900032 | AM84: 5034.342091 | AN84: 5686.510125 | AO84: 5941.499023 | AP84: 6637.0037 | AQ84: 5974.44448 | AR84: 6866.581696 | AS84: 7913.431937 | AT84: 8401.715145 | AU84: 9725.49897 | AV84: 10733.07193 | AW84: 11710.7557 | AX84: 8513.760464 | AY84: 7586.695079 | AZ84: 10131.83894 | BA84: 8623.40882 | BB84: 6637.0037 | BC84: 5974.44448 | BD84: 6992.435663 | BE84: 7913.431937 | BF84: 8401.715145 | BG84: 9725.49897 | BH84: 10733.07193 | BI84: 11710.7557 | BJ84: 8471.58867 | BK84: 7571.789913 | BL84: 10388.12027 | BM84: 8623.40882 | BN84: 7747.559465 | BO84: 0 | BP84: 9646.259046 | BQ84: 6986.347647 | BR84: 0 | BS84: 7563.959843 | BT84: 8055.412074 | BU84: 9778.75281 | BV84: 10582.97959 | BW84: 11990.99454 | BX84: 13149.70345 | BY84: 14274.03978 | BZ84: 12049.56199 | CA84: 14798.31319 | CB84: 15265.24849 | CC84: 17273.95129 | CD84: 7086.235673 | CE84: 4468.736586 | CH84: 0 | CI84: =IF(CH84<>0,LOOKUP(,-CODE(CH$3:CH84),CH$3:CH84),CI83) -> 2 | CQ84: Ф | CR84: Ф | CS84: Ф | CT84: Ф | CU84: ф | CV84: Ф
B85: 0 | C85: =IF(B85<>0,LOOKUP(,-CODE(B$3:B85),B$3:B85),C84) -> 7 | D85: 7-140(700)-528 | E85: Тумба кухонная двухдверный с метабоксом, Н - 140/180 мм, полка ЛДСП | F85: =IF(E85<>0,LOOKUP(,-CODE(E$3:E85),E$3:E85),F84) -> Тумба кухонная двухдверный с метабоксом, Н - 140/180 мм, полка ЛДСП | H85: 1 | I85: 700 | J85: 720 | K85: 528 | L85: 5688.773411 | M85: 5997.380775 | N85: 7936.433987 | O85: 9004.07276 | P85: 10440.07813 | Q85: 5823.749411 | R85: 6132.356775 | S85: 8071.409987 | T85: 9139.04876 | U85: 10575.05413 | V85: 5489.861411 | W85: 5798.468775 | X85: 7911.520092 | Y85: 9023.643815 | Z85: 10519.48274 | AA85: 6490.859738 | AB85: 6850.901664 | AC85: 9113.13041 | AD85: 10358.70898 | AE85: 12034.04858 | AF85: 7493.744574 | AG85: 7828.06922 | AH85: 9928.710198 | AI85: 11085.31887 | AJ85: 12640.99135 | AK85: 4587.26796 | AL85: 4989.133772 | AM85: 5231.639003 | AN85: 5935.840444 | AO85: 6209.489732 | AP85: 6976.04649 | AQ85: 6262.046336 | AR85: 7223.448864 | AS85: 8351.576298 | AT85: 8877.769693 | AU85: 10304.33177 | AV85: 11390.13244 | AW85: 12443.72333 | AX85: 8998.514183 | AY85: 7999.471671 | AZ85: 10742.21987 | BA85: 9116.67561 | BB85: 6976.04649 | BC85: 6262.046336 | BD85: 7359.074102 | BE85: 8351.576298 | BF85: 8877.769693 | BG85: 10304.33177 | BH85: 11390.13244 | BI85: 12443.72333 | BJ85: 8953.068181 | BK85: 7983.409273 | BL85: 11018.39881 | BM85: 9116.67561 | BN85: 8172.825528 | BO85: 0 | BP85: 10110.96924 | BQ85: 7352.513414 | BR85: 0 | BS85: 7974.971278 | BT85: 8504.579738 | BU85: 10361.72022 | BV85: 11228.38696 | BW85: 12745.71985 | BX85: 13994.39063 | BY85: 15206.02016 | BZ85: 12802.68464 | CA85: 15762.87824 | CB85: 16265.73164 | CC85: 18428.95004 | CD85: 7418.950666 | CE85: 4607.159445 | CH85: 0 | CI85: =IF(CH85<>0,LOOKUP(,-CODE(CH$3:CH85),CH$3:CH85),CI84) -> 2 | CQ85: Ф | CR85: Ф | CS85: Ф | CT85: Ф | CU85: ф | CV85: Ф
B86: 0 | C86: =IF(B86<>0,LOOKUP(,-CODE(B$3:B86),B$3:B86),C85) -> 7 | D86: 7-140(750)-528 | E86: Тумба кухонная двухдверный с метабоксом, Н - 140/180 мм, полка ЛДСП | F86: =IF(E86<>0,LOOKUP(,-CODE(E$3:E86),E$3:E86),F85) -> Тумба кухонная двухдверный с метабоксом, Н - 140/180 мм, полка ЛДСП | H86: 1 | I86: 750 | J86: 720 | K86: 528 | L86: 5908.978889 | M86: 6239.820214 | N86: 8318.574665 | O86: 9463.132659 | P86: 11002.59663 | Q86: 6048.514889 | R86: 6379.356214 | S86: 8458.110665 | T86: 9602.668659 | U86: 11142.13263 | V86: 5703.346889 | W86: 6034.188214 | X86: 8298.706514 | Y86: 9490.954424 | Z86: 11094.56272 | AA86: 6747.378987 | AB86: 7133.360532 | AC86: 9558.574059 | AD86: 10893.89172 | AE86: 12689.93301 | AF86: 7779.536938 | AG86: 8137.948373 | AH86: 10389.93236 | AI86: 11629.87019 | AJ86: 13297.62282 | AK86: 4747.197014 | AL86: 5172.367511 | AM86: 5428.935915 | AN86: 6185.170762 | AO86: 6477.480441 | AP86: 7315.08928 | AQ86: 6549.648193 | AR86: 7580.316033 | AS86: 8789.720659 | AT86: 9353.824242 | AU86: 10883.16456 | AV86: 12047.19295 | AW86: 13176.69097 | AX86: 9483.267902 | AY86: 8412.248264 | AZ86: 11352.6008 | BA86: 9609.9424 | BB86: 7315.08928 | BC86: 6549.648193 | BD86: 7725.712541 | BE86: 8789.720659 | BF86: 9353.824242 | BG86: 10883.16456 | BH86: 12047.19295 | BI86: 13176.69097 | BJ86: 9434.547692 | BK86: 8395.028632 | BL86: 11648.67736 | BM86: 9609.9424 | BN86: 8598.091592 | BO86: 0 | BP86: 10575.67943 | BQ86: 7718.679181 | BR86: 0 | BS86: 8385.982712 | BT86: 8953.747401 | BU86: 10944.68763 | BV86: 11873.79434 | BW86: 13500.44516 | BX86: 14839.07781 | BY86: 16138.00053 | BZ86: 13555.8073 | CA86: 16727.4433 | CB86: 17266.2148 | CC86: 19583.9488 | CD86: 7751.665658 | CE86: 4745.582304 | CH86: 0 | CI86: =IF(CH86<>0,LOOKUP(,-CODE(CH$3:CH86),CH$3:CH86),CI85) -> 2 | CQ86: Ф | CR86: Ф | CS86: Ф | CT86: Ф | CU86: ф | CV86: Ф
B87: 0 | C87: =IF(B87<>0,LOOKUP(,-CODE(B$3:B87),B$3:B87),C86) -> 7 | D87: 7-140(800)-528 | E87: Тумба кухонная двухдверный с метабоксом, Н - 140/180 мм, полка ЛДСП | F87: =IF(E87<>0,LOOKUP(,-CODE(E$3:E87),E$3:E87),F86) -> Тумба кухонная двухдверный с метабоксом, Н - 140/180 мм, полка ЛДСП | H87: 1 | I87: 800 | J87: 720 | K87: 528 | L87: 6129.184368 | M87: 6482.259653 | N87: 8700.715344 | O87: 9922.192558 | P87: 11565.11513 | Q87: 6273.280368 | R87: 6626.355653 | S87: 8844.811344 | T87: 10066.28856 | U87: 11709.21113 | V87: 5916.832368 | W87: 6269.907653 | X87: 8685.892935 | Y87: 9958.265032 | Z87: 11669.64271 | AA87: 7003.898236 | AB87: 7415.819401 | AC87: 10004.01771 | AD87: 11429.07446 | AE87: 13345.81745 | AF87: 8065.329302 | AG87: 8447.827527 | AH87: 10851.15453 | AI87: 12174.42151 | AJ87: 13954.25429 | AK87: 4907.126067 | AL87: 5355.60125 | AM87: 5626.232826 | AN87: 6434.501081 | AO87: 6745.47115 | AP87: 7654.13207 | AQ87: 6837.25005 | AR87: 7937.183201 | AS87: 9227.86502 | AT87: 9829.87879 | AU87: 11461.99736 | AV87: 12704.25346 | AW87: 13909.6586 | AX87: 9968.021621 | AY87: 8825.024857 | AZ87: 11962.98173 | BA87: 10103.20919 | BB87: 7654.13207 | BC87: 6837.25005 | BD87: 8092.35098 | BE87: 9227.86502 | BF87: 9829.87879 | BG87: 11461.99736 | BH87: 12704.25346 | BI87: 13909.6586 | BJ87: 9916.027203 | BK87: 8806.647991 | BL87: 12278.95591 | BM87: 10103.20919 | BN87: 9023.357656 | BO87: 0 | BP87: 11040.38962 | BQ87: 8084.844949 | BR87: 0 | BS87: 8796.994147 | BT87: 9402.915065 | BU87: 11527.65504 | BV87: 12519.20172 | BW87: 14255.17047 | BX87: 15683.76499 | BY87: 17069.98091 | BZ87: 13983.53604 | CA87: 17262.38148 | CB87: 17819.36484 | CC87: 20215.4442 | CD87: 8084.380651 | CE87: 4884.005162 | CH87: 0 | CI87: =IF(CH87<>0,LOOKUP(,-CODE(CH$3:CH87),CH$3:CH87),CI86) -> 2 | CQ87: Ф | CR87: Ф | CS87: Ф | CT87: Ф | CU87: ф | CV87: Ф
B88: 0 | C88: =IF(B88<>0,LOOKUP(,-CODE(B$3:B88),B$3:B88),C87) -> 7 | D88: 7-140(850)-528 | E88: Тумба кухонная двухдверный с метабоксом, Н - 140/180 мм, полка ЛДСП | F88: =IF(E88<>0,LOOKUP(,-CODE(E$3:E88),E$3:E88),F87) -> Тумба кухонная двухдверный с метабоксом, Н - 140/180 мм, полка ЛДСП | H88: 1 | I88: 850 | J88: 720 | K88: 528 | L88: 6349.389847 | M88: 6724.699091 | N88: 9082.856023 | O88: 10381.25246 | P88: 12127.63362 | Q88: 6498.045847 | R88: 6873.355091 | S88: 9231.512023 | T88: 10529.90846 | U88: 12276.28962 | V88: 6130.317847 | W88: 6505.627091 | X88: 9073.079356 | Y88: 10425.57564 | Z88: 12244.72269 | AA88: 7260.417484 | AB88: 7698.27827 | AC88: 10449.46136 | AD88: 11964.2572 | AE88: 14001.70189 | AF88: 8351.121665 | AG88: 8757.706681 | AH88: 11312.37669 | AI88: 12718.97283 | AJ88: 14610.88576 | AK88: 5067.055121 | AL88: 5538.83499 | AM88: 5823.529738 | AN88: 6683.8314 | AO88: 7013.461858 | AP88: 7993.174859 | AQ88: 7124.851906 | AR88: 8294.050369 | AS88: 9666.009381 | AT88: 10305.93334 | AU88: 12040.83015 | AV88: 13361.31397 | AW88: 14642.62624 | AX88: 10452.77534 | AY88: 9237.801449 | AZ88: 12573.36266 | BA88: 10596.47598 | BB88: 7993.174859 | BC88: 7124.851906 | BD88: 8458.989419 | BE88: 9666.009381 | BF88: 10305.93334 | BG88: 12040.83015 | BH88: 13361.31397 | BI88: 14642.62624 | BJ88: 10397.50671 | BK88: 9218.26735 | BL88: 12909.23446 | BM88: 10596.47598 | BN88: 9448.623719 | BO88: 0 | BP88: 11505.09982 | BQ88: 8451.010716 | BR88: 0 | BS88: 9208.005581 | BT88: 9852.082729 | BU88: 12110.62245 | BV88: 13164.60909 | BW88: 15009.89578 | BX88: 16528.45217 | BY88: 18001.96128 | BZ88: 14716.32158 | CA88: 18200.09486 | CB88: 18791.88968 | CC88: 21337.724 | CD88: 8417.095643 | CE88: 5022.428021 | CH88: 0 | CI88: =IF(CH88<>0,LOOKUP(,-CODE(CH$3:CH88),CH$3:CH88),CI87) -> 2 | CQ88: Ф | CR88: Ф | CS88: Ф | CT88: Ф | CU88: ф | CV88: Ф
B89: 0 | C89: =IF(B89<>0,LOOKUP(,-CODE(B$3:B89),B$3:B89),C88) -> 7 | D89: 7-140(900)-528 | E89: Тумба кухонная двухдверный с метабоксом, Н - 140/180 мм, полка ЛДСП | F89: =IF(E89<>0,LOOKUP(,-CODE(E$3:E89),E$3:E89),F88) -> Тумба кухонная двухдверный с метабоксом, Н - 140/180 мм, полка ЛДСП | H89: 1 | I89: 900 | J89: 720 | K89: 528 | L89: 6569.595325 | M89: 6967.13853 | N89: 9464.996701 | O89: 10840.31235 | P89: 12690.15212 | Q89: 6722.811325 | R89: 7120.35453 | S89: 9618.212701 | T89: 10993.52835 | U89: 12843.36812 | V89: 6343.803325 | W89: 6741.34653 | X89: 9460.265777 | Y89: 10892.88625 | Z89: 12819.80267 | AA89: 7516.936733 | AB89: 7980.737139 | AC89: 10894.905 | AD89: 12499.43993 | AE89: 14657.58633 | AF89: 8636.914029 | AG89: 9067.585834 | AH89: 11773.59885 | AI89: 13263.52414 | AJ89: 15267.51723 | AK89: 5226.984174 | AL89: 5722.068729 | AM89: 6020.82665 | AN89: 6933.161718 | AO89: 7281.452567 | AP89: 8332.217649 | AQ89: 7412.453763 | AR89: 8650.917538 | AS89: 10104.15374 | AT89: 10781.98789 | AU89: 12619.66295 | AV89: 14018.37448 | AW89: 15375.59387 | AX89: 10937.52906 | AY89: 9650.578042 | AZ89: 13183.74359 | BA89: 11089.74277 | BB89: 8332.217649 | BC89: 7412.453763 | BD89: 8825.627859 | BE89: 10104.15374 | BF89: 10781.98789 | BG89: 12619.66295 | BH89: 14018.37448 | BI89: 15375.59387 | BJ89: 10878.98623 | BK89: 9629.88671 | BL89: 13539.51301 | BM89: 11089.74277 | BN89: 9873.889783 | BO89: 0 | BP89: 11969.81001 | BQ89: 8817.176483 | BR89: 0 | BS89: 9619.017016 | BT89: 10301.25039 | BU89: 12693.58986 | BV89: 13810.01647 | BW89: 15764.62109 | BX89: 17373.13935 | BY89: 18933.94165 | BZ89: 15449.10712 | CA89: 19137.80824 | CB89: 19764.41452 | CC89: 22460.0038 | CD89: 8749.810636 | CE89: 5160.85088 | CH89: 0 | CI89: =IF(CH89<>0,LOOKUP(,-CODE(CH$3:CH89),CH$3:CH89),CI88) -> 2 | CQ89: Ф | CR89: Ф | CS89: Ф | CT89: Ф | CU89: ф | CV89: Ф
B90: 0 | C90: =IF(B90<>0,LOOKUP(,-CODE(B$3:B90),B$3:B90),C89) -> 7 | D90: 7-140(950)-528 | E90: Тумба кухонная двухдверный с метабоксом, Н - 140/180 мм, полка ЛДСП | F90: =IF(E90<>0,LOOKUP(,-CODE(E$3:E90),E$3:E90),F89) -> Тумба кухонная двухдверный с метабоксом, Н - 140/180 мм, полка ЛДСП | H90: 1 | I90: 950 | J90: 720 | K90: 528 | L90: 6789.800804 | M90: 7209.577969 | N90: 9847.13738 | O90: 11299.37225 | P90: 13252.67062 | Q90: 6947.576804 | R90: 7367.353969 | S90: 10004.91338 | T90: 11457.14825 | U90: 13410.44662 | V90: 6557.288804 | W90: 6977.065969 | X90: 9847.452198 | Y90: 11360.19686 | Z90: 13394.88266 | AA90: 7773.455982 | AB90: 8263.196007 | AC90: 11340.34865 | AD90: 13034.62267 | AE90: 15313.47077 | AF90: 8922.706393 | AG90: 9377.464988 | AH90: 12234.82102 | AI90: 13808.07546 | AJ90: 15924.1487 | AK90: 5386.913228 | AL90: 5905.302468 | AM90: 6218.123562 | AN90: 7182.492037 | AO90: 7549.443276 | AP90: 8671.260439 | AQ90: 7700.055619 | AR90: 9007.784706 | AS90: 10542.2981 | AT90: 11258.04243 | AU90: 13198.49574 | AV90: 14675.43499 | AW90: 16108.56151 | AX90: 11422.28278 | AY90: 10063.35463 | AZ90: 13794.12452 | BA90: 11583.00956 | BB90: 8671.260439 | BC90: 7700.055619 | BD90: 9192.266298 | BE90: 10542.2981 | BF90: 11258.04243 | BG90: 13198.49574 | BH90: 14675.43499 | BI90: 16108.56151 | BJ90: 11360.46574 | BK90: 10041.50607 | BL90: 14169.79155 | BM90: 11583.00956 | BN90: 10299.15585 | BO90: 0 | BP90: 12434.5202 | BQ90: 9183.34225 | BR90: 0 | BS90: 10030.02845 | BT90: 10750.41806 | BU90: 13276.55727 | BV90: 14455.42385 | BW90: 16519.3464 | BX90: 18217.82653 | BY90: 19865.92203 | BZ90: 16181.89266 | CA90: 20075.52162 | CB90: 20736.93936 | CC90: 23582.2836 | CD90: 9082.525628 | CE90: 5299.273738 | CH90: 0 | CI90: =IF(CH90<>0,LOOKUP(,-CODE(CH$3:CH90),CH$3:CH90),CI89) -> 2 | CQ90: Ф | CR90: Ф | CS90: Ф | CT90: Ф | CU90: ф | CV90: Ф
B91: 0 | C91: =IF(B91<>0,LOOKUP(,-CODE(B$3:B91),B$3:B91),C90) -> 7 | D91: 7-140(1000)-528 | E91: Тумба кухонная двухдверный с метабоксом, Н - 140/180 мм, полка ЛДСП | F91: =IF(E91<>0,LOOKUP(,-CODE(E$3:E91),E$3:E91),F90) -> Тумба кухонная двухдверный с метабоксом, Н - 140/180 мм, полка ЛДСП | H91: 1 | I91: 1000 | J91: 720 | K91: 528 | L91: 7010.006283 | M91: 7452.017408 | N91: 10229.27806 | O91: 11758.43215 | P91: 13815.18912 | Q91: 7172.342283 | R91: 7614.353408 | S91: 10391.61406 | T91: 11920.76815 | U91: 13977.52512 | V91: 6770.774283 | W91: 7212.785408 | X91: 10234.63862 | Y91: 11827.50747 | Z91: 13969.96264 | AA91: 8029.97523 | AB91: 8545.654876 | AC91: 11785.7923 | AD91: 13569.80541 | AE91: 15969.35521 | AF91: 9208.498757 | AG91: 9687.344142 | AH91: 12696.04318 | AI91: 14352.62678 | AJ91: 16580.78016 | AK91: 5546.842281 | AL91: 6088.536208 | AM91: 6415.420474 | AN91: 7431.822356 | AO91: 7817.433984 | AP91: 9010.303229 | AQ91: 7987.657476 | AR91: 9364.651875 | AS91: 10980.44246 | AT91: 11734.09698 | AU91: 13777.32854 | AV91: 15332.4955 | AW91: 16841.52914 | AX91: 11907.0365 | AY91: 10476.13123 | AZ91: 14404.50545 | BA91: 12076.27635 | BB91: 9010.303229 | BC91: 7987.657476 | BD91: 9558.904737 | BE91: 10980.44246 | BF91: 11734.09698 | BG91: 13777.32854 | BH91: 15332.4955 | BI91: 16841.52914 | BJ91: 11841.94525 | BK91: 10453.12543 | BL91: 14800.0701 | BM91: 12076.27635 | BN91: 10724.42191 | BO91: 0 | BP91: 12899.23039 | BQ91: 9549.508017 | BR91: 0 | BS91: 10441.03988 | BT91: 11199.58572 | BU91: 13859.52468 | BV91: 15100.83123 | BW91: 17274.07171 | BX91: 19062.51371 | BY91: 20797.9024 | BZ91: 16914.6782 | CA91: 21013.235 | CB91: 21709.4642 | CC91: 24704.5634 | CD91: 9415.240621 | CE91: 5437.696597 | CH91: 0 | CI91: =IF(CH91<>0,LOOKUP(,-CODE(CH$3:CH91),CH$3:CH91),CI90) -> 2 | CQ91: Ф | CR91: Ф | CS91: Ф | CT91: Ф | CU91: ф | CV91: Ф
A92: 10/1 | B92: 0 | C92: =IF(B92<>0,LOOKUP(,-CODE(B$3:B92),B$3:B92),C91) -> 7 | D92: 7-180(600)-528 | E92: Тумба кухонная двухдверный с метабоксом, Н - 140/180 мм, полка ЛДСП | F92: =IF(E92<>0,LOOKUP(,-CODE(E$3:E92),E$3:E92),F91) -> Тумба кухонная двухдверный с метабоксом, Н - 140/180 мм, полка ЛДСП | H92: 1 | I92: 600 | J92: 720 | K92: 528 | L92: 5248.362453 | M92: 5512.501898 | N92: 7172.152629 | O92: 8085.952963 | P92: 9315.041131 | Q92: 5374.218453 | R92: 5638.357898 | S92: 7298.008629 | T92: 8211.808963 | U92: 9440.897131 | V92: 5062.890453 | W92: 5327.029898 | X92: 7137.14725 | Y92: 8089.022598 | Z92: 9369.322773 | AA92: 5977.821241 | AB92: 6285.983926 | AC92: 8222.243113 | AD92: 9288.343502 | AE92: 10722.2797 | AF92: 6922.159847 | AG92: 7208.310912 | AH92: 9006.265871 | AI92: 9996.216232 | AJ92: 11327.72841 | AK92: 4283.920951 | AL92: 4652.477998 | AM92: 4874.883112 | AN92: 5471.960129 | AO92: 5710.772946 | AP92: 6297.96091 | AQ92: 5686.842623 | AR92: 6509.714527 | AS92: 7475.287576 | AT92: 7925.660597 | AU92: 9146.666175 | AV92: 10076.01142 | AW92: 10977.78806 | AX92: 8029.006746 | AY92: 7173.918486 | AZ92: 9521.458014 | BA92: 8130.14203 | BB92: 6297.96091 | BC92: 5686.842623 | BD92: 6625.797224 | BE92: 7475.287576 | BF92: 7925.660597 | BG92: 9146.666175 | BH92: 10076.01142 | BI92: 10977.78806 | BJ92: 7990.109159 | BK92: 7160.170554 | BL92: 9757.841717 | BM92: 8130.14203 | BN92: 7322.293401 | BO92: 6754.106734 | BP92: 10276.23685 | BQ92: 6620.18188 | BR92: 8596.119309 | BS92: 7152.948409 | BT92: 7606.24441 | BU92: 9195.7854 | BV92: 9937.572208 | BW92: 11236.26924 | BX92: 12305.01627 | BY92: 13342.05941 | BZ92: 11309.06237 | CA92: 13850.41469 | CB92: 14282.11877 | CC92: 16139.26085 | CD92: 6866.571359 | CE92: 4330.281728 | CH92: 0 | CI92: =IF(CH92<>0,LOOKUP(,-CODE(CH$3:CH92),CH$3:CH92),CI91) -> 2 | CQ92: =$I92*$J92/1000000 -> 0.432 | CR92: 129.6 | CS92: 1.2 | CT92: 1440 | CU92: ф | CV92: 1569.6
B93: 0 | C93: =IF(B93<>0,LOOKUP(,-CODE(B$3:B93),B$3:B93),C92) -> 7 | D93: 7-180(650)-528 | E93: Тумба кухонная двухдверный с метабоксом, Н - 140/180 мм, полка ЛДСП | F93: =IF(E93<>0,LOOKUP(,-CODE(E$3:E93),E$3:E93),F92) -> Тумба кухонная двухдверный с метабоксом, Н - 140/180 мм, полка ЛДСП | H93: 1 | I93: 650 | J93: 720 | K93: 528 | L93: 5468.567932 | M93: 5754.941337 | N93: 7554.293308 | O93: 8545.012861 | P93: 9877.559629 | Q93: 5598.983932 | R93: 5885.357337 | S93: 7684.709308 | T93: 8675.428861 | U93: 10007.97563 | V93: 5276.375932 | W93: 5562.749337 | X93: 7524.333671 | Y93: 8556.333206 | Z93: 9944.402756 | AA93: 6234.340489 | AB93: 6568.442795 | AC93: 8667.686761 | AD93: 9823.526241 | AE93: 11378.16414 | AF93: 7207.952211 | AG93: 7518.190066 | AH93: 9467.488035 | AI93: 10540.76755 | AJ93: 11984.35988 | AK93: 4445.034445 | AL93: 4837.85031 | AM93: 5074.894366 | AN93: 5723.785449 | AO93: 5981.436871 | AP93: 6637.0037 | AQ93: 5974.44448 | AR93: 6866.581696 | AS93: 7913.431937 | AT93: 8401.715145 | AU93: 9725.49897 | AV93: 10733.07193 | AW93: 11710.7557 | AX93: 8513.760464 | AY93: 7586.695079 | AZ93: 10131.83894 | BA93: 8623.40882 | BB93: 6637.0037 | BC93: 5974.44448 | BD93: 6992.435663 | BE93: 7913.431937 | BF93: 8401.715145 | BG93: 9725.49897 | BH93: 10733.07193 | BI93: 11710.7557 | BJ93: 8471.58867 | BK93: 7571.789913 | BL93: 10388.12027 | BM93: 8623.40882 | BN93: 7747.559465 | BO93: 7131.545636 | BP93: 10842.30705 | BQ93: 6986.347647 | BR93: 9128.609775 | BS93: 7563.959843 | BT93: 8055.412074 | BU93: 9778.75281 | BV93: 10582.97959 | BW93: 11990.99454 | BX93: 13149.70345 | BY93: 14274.03978 | BZ93: 12063.23695 | CA93: 14816.36863 | CB93: 15284.04805 | CC93: 17295.95197 | CD93: 7212.191046 | CE93: 4468.824586 | CH93: 0 | CI93: =IF(CH93<>0,LOOKUP(,-CODE(CH$3:CH93),CH$3:CH93),CI92) -> 2 | CQ93: 0.468 | CR93: 140.4 | CS93: 1.3 | CT93: 1560 | CU93: ф | CV93: 1700.4
B94: 0 | C94: =IF(B94<>0,LOOKUP(,-CODE(B$3:B94),B$3:B94),C93) -> 7 | D94: 7-180(700)-528 | E94: Тумба кухонная двухдверный с метабоксом, Н - 140/180 мм, полка ЛДСП | F94: =IF(E94<>0,LOOKUP(,-CODE(E$3:E94),E$3:E94),F93) -> Тумба кухонная двухдверный с метабоксом, Н - 140/180 мм, полка ЛДСП | H94: 1 | I94: 700 | J94: 720 | K94: 528 | L94: 5688.773411 | M94: 5997.380775 | N94: 7936.433987 | O94: 9004.07276 | P94: 10440.07813 | Q94: 5823.749411 | R94: 6132.356775 | S94: 8071.409987 | T94: 9139.04876 | U94: 10575.05413 | V94: 5489.861411 | W94: 5798.468775 | X94: 7911.520092 | Y94: 9023.643815 | Z94: 10519.48274 | AA94: 6490.859738 | AB94: 6850.901664 | AC94: 9113.13041 | AD94: 10358.70898 | AE94: 12034.04858 | AF94: 7493.744574 | AG94: 7828.06922 | AH94: 9928.710198 | AI94: 11085.31887 | AJ94: 12640.99135 | AK94: 4606.147939 | AL94: 5023.222622 | AM94: 5274.905621 | AN94: 5975.610769 | AO94: 6252.100795 | AP94: 6976.04649 | AQ94: 6262.046336 | AR94: 7223.448864 | AS94: 8351.576298 | AT94: 8877.769693 | AU94: 10304.33177 | AV94: 11390.13244 | AW94: 12443.72333 | AX94: 8998.514183 | AY94: 7999.471671 | AZ94: 10742.21987 | BA94: 9116.67561 | BB94: 6976.04649 | BC94: 6262.046336 | BD94: 7359.074102 | BE94: 8351.576298 | BF94: 8877.769693 | BG94: 10304.33177 | BH94: 11390.13244 | BI94: 12443.72333 | BJ94: 8953.068181 | BK94: 7983.409273 | BL94: 11018.39881 | BM94: 9116.67561 | BN94: 8172.825528 | BO94: 7508.984539 | BP94: 11408.37724 | BQ94: 7352.513414 | BR94: 9661.100242 | BS94: 7974.971278 | BT94: 8504.579738 | BU94: 10361.72022 | BV94: 11228.38696 | BW94: 12745.71985 | BX94: 13994.39063 | BY94: 15206.02016 | BZ94: 12817.41152 | CA94: 15782.32256 | CB94: 16285.97732 | CC94: 18452.64308 | CD94: 7557.810732 | CE94: 4607.367445 | CH94: 0 | CI94: =IF(CH94<>0,LOOKUP(,-CODE(CH$3:CH94),CH$3:CH94),CI93) -> 2 | CQ94: 0.504 | CR94: 151.2 | CS94: 1.4 | CT94: 1680 | CU94: ф | CV94: 1831.2
B95: 0 | C95: =IF(B95<>0,LOOKUP(,-CODE(B$3:B95),B$3:B95),C94) -> 7 | D95: 7-180(750)-528 | E95: Тумба кухонная двухдверный с метабоксом, Н - 140/180 мм, полка ЛДСП | F95: =IF(E95<>0,LOOKUP(,-CODE(E$3:E95),E$3:E95),F94) -> Тумба кухонная двухдверный с метабоксом, Н - 140/180 мм, полка ЛДСП | H95: 1 | I95: 750 | J95: 720 | K95: 528 | L95: 5908.978889 | M95: 6239.820214 | N95: 8318.574665 | O95: 9463.132659 | P95: 11002.59663 | Q95: 6048.514889 | R95: 6379.356214 | S95: 8458.110665 | T95: 9602.668659 | U95: 11142.13263 | V95: 5703.346889 | W95: 6034.188214 | X95: 8298.706514 | Y95: 9490.954424 | Z95: 11094.56272 | AA95: 6747.378987 | AB95: 7133.360532 | AC95: 9558.574059 | AD95: 10893.89172 | AE95: 12689.93301 | AF95: 7779.536938 | AG95: 8137.948373 | AH95: 10389.93236 | AI95: 11629.87019 | AJ95: 13297.62282 | AK95: 4767.261433 | AL95: 5208.594934 | AM95: 5474.916875 | AN95: 6227.436089 | AO95: 6522.76472 | AP95: 7315.08928 | AQ95: 6549.648193 | AR95: 7580.316033 | AS95: 8789.720659 | AT95: 9353.824242 | AU95: 10883.16456 | AV95: 12047.19295 | AW95: 13176.69097 | AX95: 9483.267902 | AY95: 8412.248264 | AZ95: 11352.6008 | BA95: 9609.9424 | BB95: 7315.08928 | BC95: 6549.648193 | BD95: 7725.712541 | BE95: 8789.720659 | BF95: 9353.824242 | BG95: 10883.16456 | BH95: 12047.19295 | BI95: 13176.69097 | BJ95: 9434.547692 | BK95: 8395.028632 | BL95: 11648.67736 | BM95: 9609.9424 | BN95: 8598.091592 | BO95: 7886.423442 | BP95: 11974.44743 | BQ95: 7718.679181 | BR95: 10193.59071 | BS95: 8385.982712 | BT95: 8953.747401 | BU95: 10944.68763 | BV95: 11873.79434 | BW95: 13500.44516 | BX95: 14839.07781 | BY95: 16138.00053 | BZ95: 13571.5861 | CA95: 16748.2765 | CB95: 17287.9066 | CC95: 19609.3342 | CD95: 7903.430418 | CE95: 4745.910304 | CH95: 0 | CI95: =IF(CH95<>0,LOOKUP(,-CODE(CH$3:CH95),CH$3:CH95),CI94) -> 2 | CQ95: 0.54 | CR95: 162 | CS95: 1.5 | CT95: 1800 | CU95: ф | CV95: 1962
B96: 0 | C96: =IF(B96<>0,LOOKUP(,-CODE(B$3:B96),B$3:B96),C95) -> 7 | D96: 7-180(800)-528 | E96: Тумба кухонная двухдверный с метабоксом, Н - 140/180 мм, полка ЛДСП | F96: =IF(E96<>0,LOOKUP(,-CODE(E$3:E96),E$3:E96),F95) -> Тумба кухонная двухдверный с метабоксом, Н - 140/180 мм, полка ЛДСП | H96: 1 | I96: 800 | J96: 720 | K96: 528 | L96: 6129.184368 | M96: 6482.259653 | N96: 8700.715344 | O96: 9922.192558 | P96: 11565.11513 | Q96: 6273.280368 | R96: 6626.355653 | S96: 8844.811344 | T96: 10066.28856 | U96: 11709.21113 | V96: 5916.832368 | W96: 6269.907653 | X96: 8685.892935 | Y96: 9958.265032 | Z96: 11669.64271 | AA96: 7003.898236 | AB96: 7415.819401 | AC96: 10004.01771 | AD96: 11429.07446 | AE96: 13345.81745 | AF96: 8065.329302 | AG96: 8447.827527 | AH96: 10851.15453 | AI96: 12174.42151 | AJ96: 13954.25429 | AK96: 4928.374926 | AL96: 5393.967246 | AM96: 5674.928129 | AN96: 6479.26141 | AO96: 6793.428645 | AP96: 7654.13207 | AQ96: 6837.25005 | AR96: 7937.183201 | AS96: 9227.86502 | AT96: 9829.87879 | AU96: 11461.99736 | AV96: 12704.25346 | AW96: 13909.6586 | AX96: 9968.021621 | AY96: 8825.024857 | AZ96: 11962.98173 | BA96: 10103.20919 | BB96: 7654.13207 | BC96: 6837.25005 | BD96: 8092.35098 | BE96: 9227.86502 | BF96: 9829.87879 | BG96: 11461.99736 | BH96: 12704.25346 | BI96: 13909.6586 | BJ96: 9916.027203 | BK96: 8806.647991 | BL96: 12278.95591 | BM96: 10103.20919 | BN96: 9023.357656 | BO96: 8263.862345 | BP96: 12540.51762 | BQ96: 8084.844949 | BR96: 10726.08117 | BS96: 8796.994147 | BT96: 9402.915065 | BU96: 11527.65504 | BV96: 12519.20172 | BW96: 14255.17047 | BX96: 15683.76499 | BY96: 17069.98091 | BZ96: 14022.80772 | CA96: 17314.233 | CB96: 17873.35332 | CC96: 20278.62564 | CD96: 8249.050104 | CE96: 4884.453162 | CH96: 0 | CI96: =IF(CH96<>0,LOOKUP(,-CODE(CH$3:CH96),CH$3:CH96),CI95) -> 2 | CQ96: 0.576 | CR96: 172.8 | CS96: 1.6 | CT96: 1920 | CU96: ф | CV96: 2092.8
B97: 0 | C97: =IF(B97<>0,LOOKUP(,-CODE(B$3:B97),B$3:B97),C96) -> 7 | D97: 7-180(850)-528 | E97: Тумба кухонная двухдверный с метабоксом, Н - 140/180 мм, полка ЛДСП | F97: =IF(E97<>0,LOOKUP(,-CODE(E$3:E97),E$3:E97),F96) -> Тумба кухонная двухдверный с метабоксом, Н - 140/180 мм, полка ЛДСП | H97: 1 | I97: 850 | J97: 720 | K97: 528 | L97: 6349.389847 | M97: 6724.699091 | N97: 9082.856023 | O97: 10381.25246 | P97: 12127.63362 | Q97: 6498.045847 | R97: 6873.355091 | S97: 9231.512023 | T97: 10529.90846 | U97: 12276.28962 | V97: 6130.317847 | W97: 6505.627091 | X97: 9073.079356 | Y97: 10425.57564 | Z97: 12244.72269 | AA97: 7260.417484 | AB97: 7698.27827 | AC97: 10449.46136 | AD97: 11964.2572 | AE97: 14001.70189 | AF97: 8351.121665 | AG97: 8757.706681 | AH97: 11312.37669 | AI97: 12718.97283 | AJ97: 14610.88576 | AK97: 5089.48842 | AL97: 5579.339558 | AM97: 5874.939383 | AN97: 6731.08673 | AO97: 7064.092569 | AP97: 7993.174859 | AQ97: 7124.851906 | AR97: 8294.050369 | AS97: 9666.009381 | AT97: 10305.93334 | AU97: 12040.83015 | AV97: 13361.31397 | AW97: 14642.62624 | AX97: 10452.77534 | AY97: 9237.801449 | AZ97: 12573.36266 | BA97: 10596.47598 | BB97: 7993.174859 | BC97: 7124.851906 | BD97: 8458.989419 | BE97: 9666.009381 | BF97: 10305.93334 | BG97: 12040.83015 | BH97: 13361.31397 | BI97: 14642.62624 | BJ97: 10397.50671 | BK97: 9218.26735 | BL97: 12909.23446 | BM97: 10596.47598 | BN97: 9448.623719 | BO97: 8641.301248 | BP97: 13106.58782 | BQ97: 8451.010716 | BR97: 11258.57164 | BS97: 9208.005581 | BT97: 9852.082729 | BU97: 12110.62245 | BV97: 13164.60909 | BW97: 15009.89578 | BX97: 16528.45217 | BY97: 18001.96128 | BZ97: 14758.04774 | CA97: 18255.1871 | CB97: 18849.25244 | CC97: 21404.85428 | CD97: 8594.66979 | CE97: 5022.996021 | CH97: 0 | CI97: =IF(CH97<>0,LOOKUP(,-CODE(CH$3:CH97),CH$3:CH97),CI96) -> 2 | CQ97: 0.612 | CR97: 183.6 | CS97: 1.7 | CT97: 2040 | CU97: ф | CV97: 2223.6
B98: 0 | C98: =IF(B98<>0,LOOKUP(,-CODE(B$3:B98),B$3:B98),C97) -> 7 | D98: 7-180(900)-528 | E98: Тумба кухонная двухдверный с метабоксом, Н - 140/180 мм, полка ЛДСП | F98: =IF(E98<>0,LOOKUP(,-CODE(E$3:E98),E$3:E98),F97) -> Тумба кухонная двухдверный с метабоксом, Н - 140/180 мм, полка ЛДСП | H98: 1 | I98: 900 | J98: 720 | K98: 528 | L98: 6569.595325 | M98: 6967.13853 | N98: 9464.996701 | O98: 10840.31235 | P98: 12690.15212 | Q98: 6722.811325 | R98: 7120.35453 | S98: 9618.212701 | T98: 10993.52835 | U98: 12843.36812 | V98: 6343.803325 | W98: 6741.34653 | X98: 9460.265777 | Y98: 10892.88625 | Z98: 12819.80267 | AA98: 7516.936733 | AB98: 7980.737139 | AC98: 10894.905 | AD98: 12499.43993 | AE98: 14657.58633 | AF98: 8636.914029 | AG98: 9067.585834 | AH98: 11773.59885 | AI98: 13263.52414 | AJ98: 15267.51723 | AK98: 5250.601914 | AL98: 5764.711871 | AM98: 6074.950637 | AN98: 6982.91205 | AO98: 7334.756494 | AP98: 8332.217649 | AQ98: 7412.453763 | AR98: 8650.917538 | AS98: 10104.15374 | AT98: 10781.98789 | AU98: 12619.66295 | AV98: 14018.37448 | AW98: 15375.59387 | AX98: 10937.52906 | AY98: 9650.578042 | AZ98: 13183.74359 | BA98: 11089.74277 | BB98: 8332.217649 | BC98: 7412.453763 | BD98: 8825.627859 | BE98: 10104.15374 | BF98: 10781.98789 | BG98: 12619.66295 | BH98: 14018.37448 | BI98: 15375.59387 | BJ98: 10878.98623 | BK98: 9629.88671 | BL98: 13539.51301 | BM98: 11089.74277 | BN98: 9873.889783 | BO98: 9018.740151 | BP98: 13672.65801 | BQ98: 8817.176483 | BR98: 11791.06211 | BS98: 9619.017016 | BT98: 10301.25039 | BU98: 12693.58986 | BV98: 13810.01647 | BW98: 15764.62109 | BX98: 17373.13935 | BY98: 18933.94165 | BZ98: 15493.28776 | CA98: 19196.1412 | CB98: 19825.15156 | CC98: 22531.08292 | CD98: 8940.289477 | CE98: 5161.53888 | CH98: 0 | CI98: =IF(CH98<>0,LOOKUP(,-CODE(CH$3:CH98),CH$3:CH98),CI97) -> 2 | CQ98: 0.648 | CR98: 194.4 | CS98: 1.8 | CT98: 2160 | CU98: ф | CV98: 2354.4
B99: 0 | C99: =IF(B99<>0,LOOKUP(,-CODE(B$3:B99),B$3:B99),C98) -> 7 | D99: 7-180(950)-528 | E99: Тумба кухонная двухдверный с метабоксом, Н - 140/180 мм, полка ЛДСП | F99: =IF(E99<>0,LOOKUP(,-CODE(E$3:E99),E$3:E99),F98) -> Тумба кухонная двухдверный с метабоксом, Н - 140/180 мм, полка ЛДСП | H99: 1 | I99: 950 | J99: 720 | K99: 528 | L99: 6789.800804 | M99: 7209.577969 | N99: 9847.13738 | O99: 11299.37225 | P99: 13252.67062 | Q99: 6947.576804 | R99: 7367.353969 | S99: 10004.91338 | T99: 11457.14825 | U99: 13410.44662 | V99: 6557.288804 | W99: 6977.065969 | X99: 9847.452198 | Y99: 11360.19686 | Z99: 13394.88266 | AA99: 7773.455982 | AB99: 8263.196007 | AC99: 11340.34865 | AD99: 13034.62267 | AE99: 15313.47077 | AF99: 8922.706393 | AG99: 9377.464988 | AH99: 12234.82102 | AI99: 13808.07546 | AJ99: 15924.1487 | AK99: 5411.715408 | AL99: 5950.084183 | AM99: 6274.961892 | AN99: 7234.737371 | AO99: 7605.420419 | AP99: 8671.260439 | AQ99: 7700.055619 | AR99: 9007.784706 | AS99: 10542.2981 | AT99: 11258.04243 | AU99: 13198.49574 | AV99: 14675.43499 | AW99: 16108.56151 | AX99: 11422.28278 | AY99: 10063.35463 | AZ99: 13794.12452 | BA99: 11583.00956 | BB99: 8671.260439 | BC99: 7700.055619 | BD99: 9192.266298 | BE99: 10542.2981 | BF99: 11258.04243 | BG99: 13198.49574 | BH99: 14675.43499 | BI99: 16108.56151 | BJ99: 11360.46574 | BK99: 10041.50607 | BL99: 14169.79155 | BM99: 11583.00956 | BN99: 10299.15585 | BO99: 9396.179054 | BP99: 14238.7282 | BQ99: 9183.34225 | BR99: 12323.55257 | BS99: 10030.02845 | BT99: 10750.41806 | BU99: 13276.55727 | BV99: 14455.42385 | BW99: 16519.3464 | BX99: 18217.82653 | BY99: 19865.92203 | BZ99: 16228.52778 | CA99: 20137.0953 | CB99: 20801.05068 | CC99: 23657.31156 | CD99: 9285.909163 | CE99: 5300.081738 | CH99: 0 | CI99: =IF(CH99<>0,LOOKUP(,-CODE(CH$3:CH99),CH$3:CH99),CI98) -> 2 | CQ99: 0.684 | CR99: 205.2 | CS99: 1.9 | CT99: 2280 | CU99: ф | CV99: 2485.2
B100: 0 | C100: =IF(B100<>0,LOOKUP(,-CODE(B$3:B100),B$3:B100),C99) -> 7 | D100: 7-180(1000)-528 | E100: Тумба кухонная двухдверный с метабоксом, Н - 140/180 мм, полка ЛДСП | F100: =IF(E100<>0,LOOKUP(,-CODE(E$3:E100),E$3:E100),F99) -> Тумба кухонная двухдверный с метабоксом, Н - 140/180 мм, полка ЛДСП | H100: 1 | I100: 1000 | J100: 720 | K100: 528 | L100: 7010.006283 | M100: 7452.017408 | N100: 10229.27806 | O100: 11758.43215 | P100: 13815.18912 | Q100: 7172.342283 | R100: 7614.353408 | S100: 10391.61406 | T100: 11920.76815 | U100: 13977.52512 | V100: 6770.774283 | W100: 7212.785408 | X100: 10234.63862 | Y100: 11827.50747 | Z100: 13969.96264 | AA100: 8029.97523 | AB100: 8545.654876 | AC100: 11785.7923 | AD100: 13569.80541 | AE100: 15969.35521 | AF100: 9208.498757 | AG100: 9687.344142 | AH100: 12696.04318 | AI100: 14352.62678 | AJ100: 16580.78016 | AK100: 5572.828902 | AL100: 6135.456495 | AM100: 6474.973146 | AN100: 7486.562691 | AO100: 7876.084343 | AP100: 9010.303229 | AQ100: 7987.657476 | AR100: 9364.651875 | AS100: 10980.44246 | AT100: 11734.09698 | AU100: 13777.32854 | AV100: 15332.4955 | AW100: 16841.52914 | AX100: 11907.0365 | AY100: 10476.13123 | AZ100: 14404.50545 | BA100: 12076.27635 | BB100: 9010.303229 | BC100: 7987.657476 | BD100: 9558.904737 | BE100: 10980.44246 | BF100: 11734.09698 | BG100: 13777.32854 | BH100: 15332.4955 | BI100: 16841.52914 | BJ100: 11841.94525 | BK100: 10453.12543 | BL100: 14800.0701 | BM100: 12076.27635 | BN100: 10724.42191 | BO100: 9773.617957 | BP100: 14804.79839 | BQ100: 9549.508017 | BR100: 12856.04304 | BS100: 10441.03988 | BT100: 11199.58572 | BU100: 13859.52468 | BV100: 15100.83123 | BW100: 17274.07171 | BX100: 19062.51371 | BY100: 20797.9024 | BZ100: 16963.7678 | CA100: 21078.0494 | CB100: 21776.9498 | CC100: 24783.5402 | CD100: 9631.528849 | CE100: 5438.624597 | CH100: 0 | CI100: =IF(CH100<>0,LOOKUP(,-CODE(CH$3:CH100),CH$3:CH100),CI99) -> 2 | CQ100: 0.72 | CR100: 216 | CS100: 2 | CT100: 2400 | CU100: ф | CV100: 2616
B101: 8 | C101: =IF(B101<>0,LOOKUP(,-CODE(B$3:B101),B$3:B101),C100) -> 8 | D101: 8-140(600)-528 | E101: Тумба кухонная двухдверный с леграбоксом, Н - 140/180 мм, полка ЛДСП | F101: =IF(E101<>0,LOOKUP(,-CODE(E$3:E101),E$3:E101),F100) -> Тумба кухонная двухдверный с леграбоксом, Н - 140/180 мм, полка ЛДСП | H101: 1 | I101: 600 | J101: 720 | K101: 528 | L101: 7044.45 | M101: 7308.589445 | N101: 8968.240176 | O101: 9882.040509 | P101: 11111.12868 | Q101: 7170.306 | R101: 7434.445445 | S101: 9094.096176 | T101: 10007.89651 | U101: 11236.98468 | V101: 6858.978 | W101: 7123.117445 | X101: 8933.234797 | Y101: 9885.110144 | Z101: 11165.41032 | AA101: 7773.908787 | AB101: 8082.071473 | AC101: 10018.33066 | AD101: 11084.43105 | AE101: 12518.36724 | AF101: 8718.247394 | AG101: 9004.398459 | AH101: 10802.35342 | AI101: 11792.30378 | AJ101: 13123.81596 | AK101: 6063.4974 | AL101: 6418.75384 | AM101: 6633.132726 | AN101: 7233.267353 | AO101: 7469.595861 | AP101: 8094.048457 | AQ101: 7482.93017 | AR101: 8305.802074 | AS101: 9271.375122 | AT101: 9721.748144 | AU101: 10942.75372 | AV101: 11872.09897 | AW101: 12773.87561 | AX101: 9825.094292 | AY101: 8970.006033 | AZ101: 11317.54556 | BA101: 9926.229577 | BB101: 8094.048457 | BC101: 7482.93017 | BD101: 8421.88477 | BE101: 9271.375122 | BF101: 9721.748144 | BG101: 10942.75372 | BH101: 11872.09897 | BI101: 12773.87561 | BJ101: 9786.196705 | BK101: 8956.258101 | BL101: 11553.92926 | BM101: 9926.229577 | BN101: 9118.380948 | BO101: 0 | BP101: 10977.6364 | BQ101: 8416.269427 | BR101: 0 | BS101: 8949.035955 | BT101: 9402.331957 | BU101: 10991.87295 | BV101: 11733.65975 | BW101: 13032.35678 | BX101: 14101.10381 | BY101: 15138.14696 | BZ101: 13092.52687 | CA101: 15629.83567 | CB101: 16060.85287 | CC101: 17915.04007 | CD101: 8549.608228 | CE101: 6126.401274 | CH101: 2 | CI101: =IF(CH101<>0,LOOKUP(,-CODE(CH$3:CH101),CH$3:CH101),CI100) -> 2 | CQ101: Ф | CR101: Ф | CS101: Ф | CT101: Ф | CU101: ф | CV101: Ф
A102: 0 | B102: 0 | C102: =IF(B102<>0,LOOKUP(,-CODE(B$3:B102),B$3:B102),C101) -> 8 | D102: 8-140(650)-528 | E102: Тумба кухонная двухдверный с леграбоксом, Н - 140/180 мм, полка ЛДСП | F102: =IF(E102<>0,LOOKUP(,-CODE(E$3:E102),E$3:E102),F101) -> Тумба кухонная двухдверный с леграбоксом, Н - 140/180 мм, полка ЛДСП | H102: 1 | I102: 650 | J102: 720 | K102: 528 | L102: 7264.261728 | M102: 7550.635133 | N102: 9349.987104 | O102: 10340.70666 | P102: 11673.25343 | Q102: 7394.677728 | R102: 7681.051133 | S102: 9480.403104 | T102: 10471.12266 | U102: 11803.66943 | V102: 7072.069728 | W102: 7358.443133 | X102: 9320.027468 | Y102: 10352.027 | Z102: 11740.09655 | AA102: 8030.034286 | AB102: 8364.136592 | AC102: 10463.38056 | AD102: 11619.22004 | AE102: 13173.85793 | AF102: 9003.646007 | AG102: 9313.883862 | AH102: 11263.18183 | AI102: 12336.46135 | AJ102: 13780.05368 | AK102: 6223.032703 | AL102: 6601.593829 | AM102: 6830.035888 | AN102: 7482.203922 | AO102: 7737.19282 | AP102: 8432.697497 | AQ102: 7770.138276 | AR102: 8662.275492 | AS102: 9709.125733 | AT102: 10197.40894 | AU102: 11521.19277 | AV102: 12528.76573 | AW102: 13506.4495 | AX102: 10309.45426 | AY102: 9382.388876 | AZ102: 11927.53274 | BA102: 10419.10262 | BB102: 8432.697497 | BC102: 7770.138276 | BD102: 8788.129459 | BE102: 9709.125733 | BF102: 10197.40894 | BG102: 11521.19277 | BH102: 12528.76573 | BI102: 13506.4495 | BJ102: 10267.28247 | BK102: 9367.48371 | BL102: 12183.81406 | BM102: 10419.10262 | BN102: 9543.253262 | BO102: 0 | BP102: 11441.95284 | BQ102: 8782.041444 | BR102: 0 | BS102: 9359.65364 | BT102: 9851.105871 | BU102: 11574.44661 | BV102: 12378.67338 | BW102: 13786.68834 | BX102: 14945.39724 | BY102: 16069.73358 | BZ102: 13845.25578 | CA102: 16594.00698 | CB102: 17060.94228 | CC102: 19069.64508 | CD102: 8881.92947 | CE102: 6264.430383 | CH102: 0 | CI102: =IF(CH102<>0,LOOKUP(,-CODE(CH$3:CH102),CH$3:CH102),CI101) -> 2 | CQ102: Ф | CR102: Ф | CS102: Ф | CT102: Ф | CU102: ф | CV102: Ф
A103: 0 | B103: 0 | C103: =IF(B103<>0,LOOKUP(,-CODE(B$3:B103),B$3:B103),C102) -> 8 | D103: 8-140(700)-528 | E103: Тумба кухонная двухдверный с леграбоксом, Н - 140/180 мм, полка ЛДСП | F103: =IF(E103<>0,LOOKUP(,-CODE(E$3:E103),E$3:E103),F102) -> Тумба кухонная двухдверный с леграбоксом, Н - 140/180 мм, полка ЛДСП | H103: 1 | I103: 700 | J103: 720 | K103: 528 | L103: 7484.073457 | M103: 7792.680822 | N103: 9731.734033 | O103: 10799.37281 | P103: 12235.37817 | Q103: 7619.049457 | R103: 7927.656822 | S103: 9866.710033 | T103: 10934.34881 | U103: 12370.35417 | V103: 7285.161457 | W103: 7593.768822 | X103: 9706.820139 | Y103: 10818.94386 | Z103: 12314.78279 | AA103: 8286.159785 | AB103: 8646.20171 | AC103: 10908.43046 | AD103: 12154.00903 | AE103: 13829.34862 | AF103: 9289.044621 | AG103: 9623.369266 | AH103: 11724.01024 | AI103: 12880.61892 | AJ103: 14436.2914 | AK103: 6382.568007 | AL103: 6784.433818 | AM103: 7026.939049 | AN103: 7731.14049 | AO103: 8004.789779 | AP103: 8771.346536 | AQ103: 8057.346383 | AR103: 9018.748911 | AS103: 10146.87634 | AT103: 10673.06974 | AU103: 12099.63181 | AV103: 13185.43249 | AW103: 14239.02338 | AX103: 10793.81423 | AY103: 9794.771718 | AZ103: 12537.51992 | BA103: 10911.97566 | BB103: 8771.346536 | BC103: 8057.346383 | BD103: 9154.374149 | BE103: 10146.87634 | BF103: 10673.06974 | BG103: 12099.63181 | BH103: 13185.43249 | BI103: 14239.02338 | BJ103: 10748.36823 | BK103: 9778.709319 | BL103: 12813.69886 | BM103: 10911.97566 | BN103: 9968.125575 | BO103: 0 | BP103: 11906.26928 | BQ103: 9147.813461 | BR103: 0 | BS103: 9770.271324 | BT103: 10299.87978 | BU103: 12157.02027 | BV103: 13023.68701 | BW103: 14541.0199 | BX103: 15789.69068 | BY103: 17001.3202 | BZ103: 14597.98469 | CA103: 17558.17829 | CB103: 18061.03169 | CC103: 20224.25009 | CD103: 9214.250713 | CE103: 6402.459492 | CH103: 0 | CI103: =IF(CH103<>0,LOOKUP(,-CODE(CH$3:CH103),CH$3:CH103),CI102) -> 2 | CQ103: Ф | CR103: Ф | CS103: Ф | CT103: Ф | CU103: ф | CV103: Ф
A104: 0 | B104: 0 | C104: =IF(B104<>0,LOOKUP(,-CODE(B$3:B104),B$3:B104),C103) -> 8 | D104: 8-140(750)-528 | E104: Тумба кухонная двухдверный с леграбоксом, Н - 140/180 мм, полка ЛДСП | F104: =IF(E104<>0,LOOKUP(,-CODE(E$3:E104),E$3:E104),F103) -> Тумба кухонная двухдверный с леграбоксом, Н - 140/180 мм, полка ЛДСП | H104: 1 | I104: 750 | J104: 720 | K104: 528 | L104: 7703.885186 | M104: 8034.726511 | N104: 10113.48096 | O104: 11258.03896 | P104: 12797.50292 | Q104: 7843.421186 | R104: 8174.262511 | S104: 10253.01696 | T104: 11397.57496 | U104: 12937.03892 | V104: 7498.253186 | W104: 7829.094511 | X104: 10093.61281 | Y104: 11285.86072 | Z104: 12889.46902 | AA104: 8542.285283 | AB104: 8928.266829 | AC104: 11353.48036 | AD104: 12688.79801 | AE104: 14484.83931 | AF104: 9574.443235 | AG104: 9932.85467 | AH104: 12184.83866 | AI104: 13424.77649 | AJ104: 15092.52912 | AK104: 6542.10331 | AL104: 6967.273808 | AM104: 7223.842211 | AN104: 7980.077059 | AO104: 8272.386738 | AP104: 9109.995576 | AQ104: 8344.55449 | AR104: 9375.222329 | AS104: 10584.62696 | AT104: 11148.73054 | AU104: 12678.07086 | AV104: 13842.09925 | AW104: 14971.59727 | AX104: 11278.1742 | AY104: 10207.15456 | AZ104: 13147.5071 | BA104: 11404.8487 | BB104: 9109.995576 | BC104: 8344.55449 | BD104: 9520.618838 | BE104: 10584.62696 | BF104: 11148.73054 | BG104: 12678.07086 | BH104: 13842.09925 | BI104: 14971.59727 | BJ104: 11229.45399 | BK104: 10189.93493 | BL104: 13443.58366 | BM104: 11404.8487 | BN104: 10392.99789 | BO104: 0 | BP104: 12370.58573 | BQ104: 9513.585478 | BR104: 0 | BS104: 10180.88901 | BT104: 10748.6537 | BU104: 12739.59393 | BV104: 13668.70064 | BW104: 15295.35146 | BX104: 16633.98411 | BY104: 17932.90683 | BZ104: 15350.7136 | CA104: 18522.3496 | CB104: 19061.1211 | CC104: 21378.8551 | CD104: 9546.571955 | CE104: 6540.4886 | CH104: 0 | CI104: =IF(CH104<>0,LOOKUP(,-CODE(CH$3:CH104),CH$3:CH104),CI103) -> 2 | CQ104: Ф | CR104: Ф | CS104: Ф | CT104: Ф | CU104: ф | CV104: Ф
A105: 0 | B105: 0 | C105: =IF(B105<>0,LOOKUP(,-CODE(B$3:B105),B$3:B105),C104) -> 8 | D105: 8-140(800)-528 | E105: Тумба кухонная двухдверный с леграбоксом, Н - 140/180 мм, полка ЛДСП | F105: =IF(E105<>0,LOOKUP(,-CODE(E$3:E105),E$3:E105),F104) -> Тумба кухонная двухдверный с леграбоксом, Н - 140/180 мм, полка ЛДСП | H105: 1 | I105: 800 | J105: 720 | K105: 528 | L105: 7923.696915 | M105: 8276.772199 | N105: 10495.22789 | O105: 11716.7051 | P105: 13359.62767 | Q105: 8067.792915 | R105: 8420.868199 | S105: 10639.32389 | T105: 11860.8011 | U105: 13503.72367 | V105: 7711.344915 | W105: 8064.420199 | X105: 10480.40548 | Y105: 11752.77758 | Z105: 13464.15525 | AA105: 8798.410782 | AB105: 9210.331948 | AC105: 11798.53025 | AD105: 13223.587 | AE105: 15140.33 | AF105: 9859.841848 | AG105: 10242.34007 | AH105: 12645.66707 | AI105: 13968.93405 | AJ105: 15748.76684 | AK105: 6701.638614 | AL105: 7150.113797 | AM105: 7420.745373 | AN105: 8229.013628 | AO105: 8539.983696 | AP105: 9448.644616 | AQ105: 8631.762596 | AR105: 9731.695748 | AS105: 11022.37757 | AT105: 11624.39134 | AU105: 13256.5099 | AV105: 14498.766 | AW105: 15704.17115 | AX105: 11762.53417 | AY105: 10619.5374 | AZ105: 13757.49428 | BA105: 11897.72174 | BB105: 9448.644616 | BC105: 8631.762596 | BD105: 9886.863527 | BE105: 11022.37757 | BF105: 11624.39134 | BG105: 13256.5099 | BH105: 14498.766 | BI105: 15704.17115 | BJ105: 11710.53975 | BK105: 10601.16054 | BL105: 14073.46846 | BM105: 11897.72174 | BN105: 10817.8702 | BO105: 0 | BP105: 12834.90217 | BQ105: 9879.357495 | BR105: 0 | BS105: 10591.50669 | BT105: 11197.42761 | BU105: 13322.16759 | BV105: 14313.71426 | BW105: 16049.68302 | BX105: 17478.27754 | BY105: 18864.49345 | BZ105: 15778.04859 | CA105: 19056.89403 | CB105: 19613.87739 | CC105: 22009.95675 | CD105: 9878.893197 | CE105: 6678.517709 | CH105: 0 | CI105: =IF(CH105<>0,LOOKUP(,-CODE(CH$3:CH105),CH$3:CH105),CI104) -> 2 | CQ105: Ф | CR105: Ф | CS105: Ф | CT105: Ф | CU105: ф | CV105: Ф
A106: 0 | B106: 0 | C106: =IF(B106<>0,LOOKUP(,-CODE(B$3:B106),B$3:B106),C105) -> 8 | D106: 8-140(850)-528 | E106: Тумба кухонная двухдверный с леграбоксом, Н - 140/180 мм, полка ЛДСП | F106: =IF(E106<>0,LOOKUP(,-CODE(E$3:E106),E$3:E106),F105) -> Тумба кухонная двухдверный с леграбоксом, Н - 140/180 мм, полка ЛДСП | H106: 1 | I106: 850 | J106: 720 | K106: 528 | L106: 8143.508643 | M106: 8518.817888 | N106: 10876.97482 | O106: 12175.37125 | P106: 13921.75242 | Q106: 8292.164643 | R106: 8667.473888 | S106: 11025.63082 | T106: 12324.02725 | U106: 14070.40842 | V106: 7924.436643 | W106: 8299.745888 | X106: 10867.19815 | Y106: 12219.69444 | Z106: 14038.84149 | AA106: 9054.536281 | AB106: 9492.397066 | AC106: 12243.58015 | AD106: 13758.37599 | AE106: 15795.82069 | AF106: 10145.24046 | AG106: 10551.82548 | AH106: 13106.49549 | AI106: 14513.09162 | AJ106: 16405.00455 | AK106: 6861.173917 | AL106: 7332.953786 | AM106: 7617.648535 | AN106: 8477.950196 | AO106: 8807.580655 | AP106: 9787.293656 | AQ106: 8918.970703 | AR106: 10088.16917 | AS106: 11460.12818 | AT106: 12100.05213 | AU106: 13834.94895 | AV106: 15155.43276 | AW106: 16436.74503 | AX106: 12246.89414 | AY106: 11031.92025 | AZ106: 14367.48146 | BA106: 12390.59478 | BB106: 9787.293656 | BC106: 8918.970703 | BD106: 10253.10822 | BE106: 11460.12818 | BF106: 12100.05213 | BG106: 13834.94895 | BH106: 15155.43276 | BI106: 16436.74503 | BJ106: 12191.62551 | BK106: 11012.38615 | BL106: 14703.35325 | BM106: 12390.59478 | BN106: 11242.74252 | BO106: 0 | BP106: 13299.21861 | BQ106: 10245.12951 | BR106: 0 | BS106: 11002.12438 | BT106: 11646.20153 | BU106: 13904.74125 | BV106: 14958.72789 | BW106: 16804.01458 | BX106: 18322.57097 | BY106: 19796.08008 | BZ106: 16510.44038 | CA106: 19994.21366 | CB106: 20586.00848 | CC106: 23131.8428 | CD106: 10211.21444 | CE106: 6816.546818 | CH106: 0 | CI106: =IF(CH106<>0,LOOKUP(,-CODE(CH$3:CH106),CH$3:CH106),CI105) -> 2 | CQ106: Ф | CR106: Ф | CS106: Ф | CT106: Ф | CU106: ф | CV106: Ф
A107: 0 | B107: 0 | C107: =IF(B107<>0,LOOKUP(,-CODE(B$3:B107),B$3:B107),C106) -> 8 | D107: 8-140(900)-528 | E107: Тумба кухонная двухдверный с леграбоксом, Н - 140/180 мм, полка ЛДСП | F107: =IF(E107<>0,LOOKUP(,-CODE(E$3:E107),E$3:E107),F106) -> Тумба кухонная двухдверный с леграбоксом, Н - 140/180 мм, полка ЛДСП | H107: 1 | I107: 900 | J107: 720 | K107: 528 | L107: 8363.320372 | M107: 8760.863577 | N107: 11258.72175 | O107: 12634.0374 | P107: 14483.87717 | Q107: 8516.536372 | R107: 8914.079577 | S107: 11411.93775 | T107: 12787.2534 | U107: 14637.09317 | V107: 8137.528372 | W107: 8535.071577 | X107: 11253.99082 | Y107: 12686.6113 | Z107: 14613.52772 | AA107: 9310.66178 | AB107: 9774.462185 | AC107: 12688.63005 | AD107: 14293.16498 | AE107: 16451.31138 | AF107: 10430.63908 | AG107: 10861.31088 | AH107: 13567.3239 | AI107: 15057.24919 | AJ107: 17061.24227 | AK107: 7020.709221 | AL107: 7515.793776 | AM107: 7814.551697 | AN107: 8726.886765 | AO107: 9075.177614 | AP107: 10125.9427 | AQ107: 9206.178809 | AR107: 10444.64258 | AS107: 11897.87879 | AT107: 12575.71293 | AU107: 14413.38799 | AV107: 15812.09952 | AW107: 17169.31892 | AX107: 12731.2541 | AY107: 11444.30309 | AZ107: 14977.46864 | BA107: 12883.46782 | BB107: 10125.9427 | BC107: 9206.178809 | BD107: 10619.35291 | BE107: 11897.87879 | BF107: 12575.71293 | BG107: 14413.38799 | BH107: 15812.09952 | BI107: 17169.31892 | BJ107: 12672.71127 | BK107: 11423.61176 | BL107: 15333.23805 | BM107: 12883.46782 | BN107: 11667.61483 | BO107: 0 | BP107: 13763.53505 | BQ107: 10610.90153 | BR107: 0 | BS107: 11412.74206 | BT107: 12094.97544 | BU107: 14487.31491 | BV107: 15603.74152 | BW107: 17558.34614 | BX107: 19166.8644 | BY107: 20727.6667 | BZ107: 17242.83217 | CA107: 20931.53329 | CB107: 21558.13957 | CC107: 24253.72885 | CD107: 10543.53568 | CE107: 6954.575926 | CH107: 0 | CI107: =IF(CH107<>0,LOOKUP(,-CODE(CH$3:CH107),CH$3:CH107),CI106) -> 2 | CQ107: Ф | CR107: Ф | CS107: Ф | CT107: Ф | CU107: ф | CV107: Ф
A108: 0 | B108: 0 | C108: =IF(B108<>0,LOOKUP(,-CODE(B$3:B108),B$3:B108),C107) -> 8 | D108: 8-140(950)-528 | E108: Тумба кухонная двухдверный с леграбоксом, Н - 140/180 мм, полка ЛДСП | F108: =IF(E108<>0,LOOKUP(,-CODE(E$3:E108),E$3:E108),F107) -> Тумба кухонная двухдверный с леграбоксом, Н - 140/180 мм, полка ЛДСП | H108: 1 | I108: 950 | J108: 720 | K108: 528 | L108: 8583.132101 | M108: 9002.909265 | N108: 11640.46868 | O108: 13092.70355 | P108: 15046.00192 | Q108: 8740.908101 | R108: 9160.685265 | S108: 11798.24468 | T108: 13250.47955 | U108: 15203.77792 | V108: 8350.620101 | W108: 8770.397265 | X108: 11640.7835 | Y108: 13153.52816 | Z108: 15188.21396 | AA108: 9566.787278 | AB108: 10056.5273 | AC108: 13133.67995 | AD108: 14827.95397 | AE108: 17106.80207 | AF108: 10716.03769 | AG108: 11170.79628 | AH108: 14028.15231 | AI108: 15601.40676 | AJ108: 17717.47999 | AK108: 7180.244524 | AL108: 7698.633765 | AM108: 8011.454858 | AN108: 8975.823334 | AO108: 9342.774572 | AP108: 10464.59174 | AQ108: 9493.386916 | AR108: 10801.116 | AS108: 12335.6294 | AT108: 13051.37373 | AU108: 14991.82704 | AV108: 16468.76628 | AW108: 17901.8928 | AX108: 13215.61407 | AY108: 11856.68593 | AZ108: 15587.45582 | BA108: 13376.34086 | BB108: 10464.59174 | BC108: 9493.386916 | BD108: 10985.59759 | BE108: 12335.6294 | BF108: 13051.37373 | BG108: 14991.82704 | BH108: 16468.76628 | BI108: 17901.8928 | BJ108: 13153.79703 | BK108: 11834.83737 | BL108: 15963.12285 | BM108: 13376.34086 | BN108: 12092.48714 | BO108: 0 | BP108: 14227.8515 | BQ108: 10976.67355 | BR108: 0 | BS108: 11823.35975 | BT108: 12543.74935 | BU108: 15069.88857 | BV108: 16248.75515 | BW108: 18312.67769 | BX108: 20011.15783 | BY108: 21659.25332 | BZ108: 17975.22396 | CA108: 21868.85292 | CB108: 22530.27066 | CC108: 25375.6149 | CD108: 10875.85692 | CE108: 7092.605035 | CH108: 0 | CI108: =IF(CH108<>0,LOOKUP(,-CODE(CH$3:CH108),CH$3:CH108),CI107) -> 2 | CQ108: Ф | CR108: Ф | CS108: Ф | CT108: Ф | CU108: ф | CV108: Ф
A109: 0 | B109: 0 | C109: =IF(B109<>0,LOOKUP(,-CODE(B$3:B109),B$3:B109),C108) -> 8 | D109: 8-140(1000)-528 | E109: Тумба кухонная двухдверный с леграбоксом, Н - 140/180 мм, полка ЛДСП | F109: =IF(E109<>0,LOOKUP(,-CODE(E$3:E109),E$3:E109),F108) -> Тумба кухонная двухдверный с леграбоксом, Н - 140/180 мм, полка ЛДСП | H109: 1 | I109: 1000 | J109: 720 | K109: 528 | L109: 8802.943829 | M109: 9244.954954 | N109: 12022.21561 | O109: 13551.3697 | P109: 15608.12667 | Q109: 8965.279829 | R109: 9407.290954 | S109: 12184.55161 | T109: 13713.7057 | U109: 15770.46267 | V109: 8563.711829 | W109: 9005.722954 | X109: 12027.57617 | Y109: 13620.44501 | Z109: 15762.90019 | AA109: 9822.912777 | AB109: 10338.59242 | AC109: 13578.72985 | AD109: 15362.74296 | AE109: 17762.29275 | AF109: 11001.4363 | AG109: 11480.28169 | AH109: 14488.98073 | AI109: 16145.56433 | AJ109: 18373.71771 | AK109: 7339.779828 | AL109: 7881.473754 | AM109: 8208.35802 | AN109: 9224.759903 | AO109: 9610.371531 | AP109: 10803.24078 | AQ109: 9780.595023 | AR109: 11157.58942 | AS109: 12773.38001 | AT109: 13527.03453 | AU109: 15570.26608 | AV109: 17125.43304 | AW109: 18634.46669 | AX109: 13699.97404 | AY109: 12269.06877 | AZ109: 16197.443 | BA109: 13869.2139 | BB109: 10803.24078 | BC109: 9780.595023 | BD109: 11351.84228 | BE109: 12773.38001 | BF109: 13527.03453 | BG109: 15570.26608 | BH109: 17125.43304 | BI109: 18634.46669 | BJ109: 13634.88279 | BK109: 12246.06297 | BL109: 16593.00765 | BM109: 13869.2139 | BN109: 12517.35946 | BO109: 0 | BP109: 14692.16794 | BQ109: 11342.44556 | BR109: 0 | BS109: 12233.97743 | BT109: 12992.52327 | BU109: 15652.46223 | BV109: 16893.76877 | BW109: 19067.00925 | BX109: 20855.45126 | BY109: 22590.83995 | BZ109: 18707.61574 | CA109: 22806.17254 | CB109: 23502.40174 | CC109: 26497.50094 | CD109: 11208.17817 | CE109: 7230.634144 | CH109: 0 | CI109: =IF(CH109<>0,LOOKUP(,-CODE(CH$3:CH109),CH$3:CH109),CI108) -> 2 | CQ109: Ф | CR109: Ф | CS109: Ф | CT109: Ф | CU109: ф | CV109: Ф
A110: 0 | B110: 0 | C110: =IF(B110<>0,LOOKUP(,-CODE(B$3:B110),B$3:B110),C109) -> 8 | D110: 8-180(600)-528 | E110: Тумба кухонная двухдверный с леграбоксом, Н - 140/180 мм, полка ЛДСП | F110: =IF(E110<>0,LOOKUP(,-CODE(E$3:E110),E$3:E110),F109) -> Тумба кухонная двухдверный с леграбоксом, Н - 140/180 мм, полка ЛДСП | H110: 1 | I110: 600 | J110: 720 | K110: 528 | L110: 7044.45 | M110: 7308.589445 | N110: 8968.240176 | O110: 9882.040509 | P110: 11111.12868 | Q110: 7170.306 | R110: 7434.445445 | S110: 9094.096176 | T110: 10007.89651 | U110: 11236.98468 | V110: 6858.978 | W110: 7123.117445 | X110: 8933.234797 | Y110: 9885.110144 | Z110: 11165.41032 | AA110: 7773.908787 | AB110: 8082.071473 | AC110: 10018.33066 | AD110: 11084.43105 | AE110: 12518.36724 | AF110: 8718.247394 | AG110: 9004.398459 | AH110: 10802.35342 | AI110: 11792.30378 | AJ110: 13123.81596 | AK110: 6080.008498 | AL110: 6448.565544 | AM110: 6670.970659 | AN110: 7268.047675 | AO110: 7506.860492 | AP110: 8094.048457 | AQ110: 7482.93017 | AR110: 8305.802074 | AS110: 9271.375122 | AT110: 9721.748144 | AU110: 10942.75372 | AV110: 11872.09897 | AW110: 12773.87561 | AX110: 9825.094292 | AY110: 8970.006033 | AZ110: 11317.54556 | BA110: 9926.229577 | BB110: 8094.048457 | BC110: 7482.93017 | BD110: 8421.88477 | BE110: 9271.375122 | BF110: 9721.748144 | BG110: 10942.75372 | BH110: 11872.09897 | BI110: 12773.87561 | BJ110: 9786.196705 | BK110: 8956.258101 | BL110: 11553.92926 | BM110: 9926.229577 | BN110: 9118.380948 | BO110: 8550.19428 | BP110: 12072.3244 | BQ110: 8416.269427 | BR110: 10392.20686 | BS110: 8949.035955 | BT110: 9402.331957 | BU110: 10991.87295 | BV110: 11733.65975 | BW110: 13032.35678 | BX110: 14101.10381 | BY110: 15138.14696 | BZ110: 13105.14991 | CA110: 15646.50223 | CB110: 16078.20631 | CC110: 17935.34839 | CD110: 8662.658906 | CE110: 6126.369274 | CH110: 0 | CI110: =IF(CH110<>0,LOOKUP(,-CODE(CH$3:CH110),CH$3:CH110),CI109) -> 2 | CQ110: =$I110*$J110/1000000 -> 0.432 | CR110: 129.6 | CS110: 1.2 | CT110: 1440 | CU110: ф | CV110: 1569.6
A111: 0 | B111: 0 | C111: =IF(B111<>0,LOOKUP(,-CODE(B$3:B111),B$3:B111),C110) -> 8 | D111: 8-180(650)-528 | E111: Тумба кухонная двухдверный с леграбоксом, Н - 140/180 мм, полка ЛДСП | F111: =IF(E111<>0,LOOKUP(,-CODE(E$3:E111),E$3:E111),F110) -> Тумба кухонная двухдверный с леграбоксом, Н - 140/180 мм, полка ЛДСП | H111: 1 | I111: 650 | J111: 720 | K111: 528 | L111: 7264.261728 | M111: 7550.635133 | N111: 9349.987104 | O111: 10340.70666 | P111: 11673.25343 | Q111: 7394.677728 | R111: 7681.051133 | S111: 9480.403104 | T111: 10471.12266 | U111: 11803.66943 | V111: 7072.069728 | W111: 7358.443133 | X111: 9320.027468 | Y111: 10352.027 | Z111: 11740.09655 | AA111: 8030.034286 | AB111: 8364.136592 | AC111: 10463.38056 | AD111: 11619.22004 | AE111: 13173.85793 | AF111: 9003.646007 | AG111: 9313.883862 | AH111: 11263.18183 | AI111: 12336.46135 | AJ111: 13780.05368 | AK111: 6240.728242 | AL111: 6633.544107 | AM111: 6870.588163 | AN111: 7519.479246 | AO111: 7777.130667 | AP111: 8432.697497 | AQ111: 7770.138276 | AR111: 8662.275492 | AS111: 9709.125733 | AT111: 10197.40894 | AU111: 11521.19277 | AV111: 12528.76573 | AW111: 13506.4495 | AX111: 10309.45426 | AY111: 9382.388876 | AZ111: 11927.53274 | BA111: 10419.10262 | BB111: 8432.697497 | BC111: 7770.138276 | BD111: 8788.129459 | BE111: 9709.125733 | BF111: 10197.40894 | BG111: 11521.19277 | BH111: 12528.76573 | BI111: 13506.4495 | BJ111: 10267.28247 | BK111: 9367.48371 | BL111: 12183.81406 | BM111: 10419.10262 | BN111: 9543.253262 | BO111: 8927.239433 | BP111: 12638.00084 | BQ111: 8782.041444 | BR111: 10924.30357 | BS111: 9359.65364 | BT111: 9851.105871 | BU111: 11574.44661 | BV111: 12378.67338 | BW111: 13786.68834 | BX111: 14945.39724 | BY111: 16069.73358 | BZ111: 13858.93074 | CA111: 16612.06242 | CB111: 17079.74184 | CC111: 19091.64576 | CD111: 9007.884842 | CE111: 6264.518383 | CH111: 0 | CI111: =IF(CH111<>0,LOOKUP(,-CODE(CH$3:CH111),CH$3:CH111),CI110) -> 2 | CQ111: 0.468 | CR111: 140.4 | CS111: 1.3 | CT111: 1560 | CU111: ф | CV111: 1700.4
A112: 0 | B112: 0 | C112: =IF(B112<>0,LOOKUP(,-CODE(B$3:B112),B$3:B112),C111) -> 8 | D112: 8-180(700)-528 | E112: Тумба кухонная двухдверный с леграбоксом, Н - 140/180 мм, полка ЛДСП | F112: =IF(E112<>0,LOOKUP(,-CODE(E$3:E112),E$3:E112),F111) -> Тумба кухонная двухдверный с леграбоксом, Н - 140/180 мм, полка ЛДСП | H112: 1 | I112: 700 | J112: 720 | K112: 528 | L112: 7484.073457 | M112: 7792.680822 | N112: 9731.734033 | O112: 10799.37281 | P112: 12235.37817 | Q112: 7619.049457 | R112: 7927.656822 | S112: 9866.710033 | T112: 10934.34881 | U112: 12370.35417 | V112: 7285.161457 | W112: 7593.768822 | X112: 9706.820139 | Y112: 10818.94386 | Z112: 12314.78279 | AA112: 8286.159785 | AB112: 8646.20171 | AC112: 10908.43046 | AD112: 12154.00903 | AE112: 13829.34862 | AF112: 9289.044621 | AG112: 9623.369266 | AH112: 11724.01024 | AI112: 12880.61892 | AJ112: 14436.2914 | AK112: 6401.447985 | AL112: 6818.522669 | AM112: 7070.205667 | AN112: 7770.910816 | AO112: 8047.400842 | AP112: 8771.346536 | AQ112: 8057.346383 | AR112: 9018.748911 | AS112: 10146.87634 | AT112: 10673.06974 | AU112: 12099.63181 | AV112: 13185.43249 | AW112: 14239.02338 | AX112: 10793.81423 | AY112: 9794.771718 | AZ112: 12537.51992 | BA112: 10911.97566 | BB112: 8771.346536 | BC112: 8057.346383 | BD112: 9154.374149 | BE112: 10146.87634 | BF112: 10673.06974 | BG112: 12099.63181 | BH112: 13185.43249 | BI112: 14239.02338 | BJ112: 10748.36823 | BK112: 9778.709319 | BL112: 12813.69886 | BM112: 10911.97566 | BN112: 9968.125575 | BO112: 9304.284586 | BP112: 13203.67728 | BQ112: 9147.813461 | BR112: 11456.40029 | BS112: 9770.271324 | BT112: 10299.87978 | BU112: 12157.02027 | BV112: 13023.68701 | BW112: 14541.0199 | BX112: 15789.69068 | BY112: 17001.3202 | BZ112: 14612.71157 | CA112: 17577.62261 | CB112: 18081.27737 | CC112: 20247.94313 | CD112: 9353.110778 | CE112: 6402.667492 | CH112: 0 | CI112: =IF(CH112<>0,LOOKUP(,-CODE(CH$3:CH112),CH$3:CH112),CI111) -> 2 | CQ112: 0.504 | CR112: 151.2 | CS112: 1.4 | CT112: 1680 | CU112: ф | CV112: 1831.2
A113: 0 | B113: 0 | C113: =IF(B113<>0,LOOKUP(,-CODE(B$3:B113),B$3:B113),C112) -> 8 | D113: 8-180(750)-528 | E113: Тумба кухонная двухдверный с леграбоксом, Н - 140/180 мм, полка ЛДСП | F113: =IF(E113<>0,LOOKUP(,-CODE(E$3:E113),E$3:E113),F112) -> Тумба кухонная двухдверный с леграбоксом, Н - 140/180 мм, полка ЛДСП | H113: 1 | I113: 750 | J113: 720 | K113: 528 | L113: 7703.885186 | M113: 8034.726511 | N113: 10113.48096 | O113: 11258.03896 | P113: 12797.50292 | Q113: 7843.421186 | R113: 8174.262511 | S113: 10253.01696 | T113: 11397.57496 | U113: 12937.03892 | V113: 7498.253186 | W113: 7829.094511 | X113: 10093.61281 | Y113: 11285.86072 | Z113: 12889.46902 | AA113: 8542.285283 | AB113: 8928.266829 | AC113: 11353.48036 | AD113: 12688.79801 | AE113: 14484.83931 | AF113: 9574.443235 | AG113: 9932.85467 | AH113: 12184.83866 | AI113: 13424.77649 | AJ113: 15092.52912 | AK113: 6562.167729 | AL113: 7003.501231 | AM113: 7269.823171 | AN113: 8022.342386 | AO113: 8317.671017 | AP113: 9109.995576 | AQ113: 8344.55449 | AR113: 9375.222329 | AS113: 10584.62696 | AT113: 11148.73054 | AU113: 12678.07086 | AV113: 13842.09925 | AW113: 14971.59727 | AX113: 11278.1742 | AY113: 10207.15456 | AZ113: 13147.5071 | BA113: 11404.8487 | BB113: 9109.995576 | BC113: 8344.55449 | BD113: 9520.618838 | BE113: 10584.62696 | BF113: 11148.73054 | BG113: 12678.07086 | BH113: 13842.09925 | BI113: 14971.59727 | BJ113: 11229.45399 | BK113: 10189.93493 | BL113: 13443.58366 | BM113: 11404.8487 | BN113: 10392.99789 | BO113: 9681.329739 | BP113: 13769.35373 | BQ113: 9513.585478 | BR113: 11988.49701 | BS113: 10180.88901 | BT113: 10748.6537 | BU113: 12739.59393 | BV113: 13668.70064 | BW113: 15295.35146 | BX113: 16633.98411 | BY113: 17932.90683 | BZ113: 15366.4924 | CA113: 18543.1828 | CB113: 19082.8129 | CC113: 21404.2405 | CD113: 9698.336715 | CE113: 6540.8166 | CH113: 0 | CI113: =IF(CH113<>0,LOOKUP(,-CODE(CH$3:CH113),CH$3:CH113),CI112) -> 2 | CQ113: 0.54 | CR113: 162 | CS113: 1.5 | CT113: 1800 | CU113: ф | CV113: 1962
A114: 0 | B114: 0 | C114: =IF(B114<>0,LOOKUP(,-CODE(B$3:B114),B$3:B114),C113) -> 8 | D114: 8-180(800)-528 | E114: Тумба кухонная двухдверный с леграбоксом, Н - 140/180 мм, полка ЛДСП | F114: =IF(E114<>0,LOOKUP(,-CODE(E$3:E114),E$3:E114),F113) -> Тумба кухонная двухдверный с леграбоксом, Н - 140/180 мм, полка ЛДСП | H114: 1 | I114: 800 | J114: 720 | K114: 528 | L114: 7923.696915 | M114: 8276.772199 | N114: 10495.22789 | O114: 11716.7051 | P114: 13359.62767 | Q114: 8067.792915 | R114: 8420.868199 | S114: 10639.32389 | T114: 11860.8011 | U114: 13503.72367 | V114: 7711.344915 | W114: 8064.420199 | X114: 10480.40548 | Y114: 11752.77758 | Z114: 13464.15525 | AA114: 8798.410782 | AB114: 9210.331948 | AC114: 11798.53025 | AD114: 13223.587 | AE114: 15140.33 | AF114: 9859.841848 | AG114: 10242.34007 | AH114: 12645.66707 | AI114: 13968.93405 | AJ114: 15748.76684 | AK114: 6722.887473 | AL114: 7188.479793 | AM114: 7469.440676 | AN114: 8273.773956 | AO114: 8587.941191 | AP114: 9448.644616 | AQ114: 8631.762596 | AR114: 9731.695748 | AS114: 11022.37757 | AT114: 11624.39134 | AU114: 13256.5099 | AV114: 14498.766 | AW114: 15704.17115 | AX114: 11762.53417 | AY114: 10619.5374 | AZ114: 13757.49428 | BA114: 11897.72174 | BB114: 9448.644616 | BC114: 8631.762596 | BD114: 9886.863527 | BE114: 11022.37757 | BF114: 11624.39134 | BG114: 13256.5099 | BH114: 14498.766 | BI114: 15704.17115 | BJ114: 11710.53975 | BK114: 10601.16054 | BL114: 14073.46846 | BM114: 11897.72174 | BN114: 10817.8702 | BO114: 10058.37489 | BP114: 14335.03017 | BQ114: 9879.357495 | BR114: 12520.59372 | BS114: 10591.50669 | BT114: 11197.42761 | BU114: 13322.16759 | BV114: 14313.71426 | BW114: 16049.68302 | BX114: 17478.27754 | BY114: 18864.49345 | BZ114: 15817.32027 | CA114: 19108.74555 | CB114: 19667.86587 | CC114: 22073.13819 | CD114: 10043.56265 | CE114: 6678.965709 | CH114: 0 | CI114: =IF(CH114<>0,LOOKUP(,-CODE(CH$3:CH114),CH$3:CH114),CI113) -> 2 | CQ114: 0.576 | CR114: 172.8 | CS114: 1.6 | CT114: 1920 | CU114: ф | CV114: 2092.8
A115: 0 | B115: 0 | C115: =IF(B115<>0,LOOKUP(,-CODE(B$3:B115),B$3:B115),C114) -> 8 | D115: 8-180(850)-528 | E115: Тумба кухонная двухдверный с леграбоксом, Н - 140/180 мм, полка ЛДСП | F115: =IF(E115<>0,LOOKUP(,-CODE(E$3:E115),E$3:E115),F114) -> Тумба кухонная двухдверный с леграбоксом, Н - 140/180 мм, полка ЛДСП | H115: 1 | I115: 850 | J115: 720 | K115: 528 | L115: 8143.508643 | M115: 8518.817888 | N115: 10876.97482 | O115: 12175.37125 | P115: 13921.75242 | Q115: 8292.164643 | R115: 8667.473888 | S115: 11025.63082 | T115: 12324.02725 | U115: 14070.40842 | V115: 7924.436643 | W115: 8299.745888 | X115: 10867.19815 | Y115: 12219.69444 | Z115: 14038.84149 | AA115: 9054.536281 | AB115: 9492.397066 | AC115: 12243.58015 | AD115: 13758.37599 | AE115: 15795.82069 | AF115: 10145.24046 | AG115: 10551.82548 | AH115: 13106.49549 | AI115: 14513.09162 | AJ115: 16405.00455 | AK115: 6883.607217 | AL115: 7373.458355 | AM115: 7669.05818 | AN115: 8525.205527 | AO115: 8858.211366 | AP115: 9787.293656 | AQ115: 8918.970703 | AR115: 10088.16917 | AS115: 11460.12818 | AT115: 12100.05213 | AU115: 13834.94895 | AV115: 15155.43276 | AW115: 16436.74503 | AX115: 12246.89414 | AY115: 11031.92025 | AZ115: 14367.48146 | BA115: 12390.59478 | BB115: 9787.293656 | BC115: 8918.970703 | BD115: 10253.10822 | BE115: 11460.12818 | BF115: 12100.05213 | BG115: 13834.94895 | BH115: 15155.43276 | BI115: 16436.74503 | BJ115: 12191.62551 | BK115: 11012.38615 | BL115: 14703.35325 | BM115: 12390.59478 | BN115: 11242.74252 | BO115: 10435.42005 | BP115: 14900.70661 | BQ115: 10245.12951 | BR115: 13052.69044 | BS115: 11002.12438 | BT115: 11646.20153 | BU115: 13904.74125 | BV115: 14958.72789 | BW115: 16804.01458 | BX115: 18322.57097 | BY115: 19796.08008 | BZ115: 16552.16654 | CA115: 20049.3059 | CB115: 20643.37124 | CC115: 23198.97308 | CD115: 10388.78859 | CE115: 6817.114818 | CH115: 0 | CI115: =IF(CH115<>0,LOOKUP(,-CODE(CH$3:CH115),CH$3:CH115),CI114) -> 2 | CQ115: 0.612 | CR115: 183.6 | CS115: 1.7 | CT115: 2040 | CU115: ф | CV115: 2223.6
A116: 0 | B116: 0 | C116: =IF(B116<>0,LOOKUP(,-CODE(B$3:B116),B$3:B116),C115) -> 8 | D116: 8-180(900)-528 | E116: Тумба кухонная двухдверный с леграбоксом, Н - 140/180 мм, полка ЛДСП | F116: =IF(E116<>0,LOOKUP(,-CODE(E$3:E116),E$3:E116),F115) -> Тумба кухонная двухдверный с леграбоксом, Н - 140/180 мм, полка ЛДСП | H116: 1 | I116: 900 | J116: 720 | K116: 528 | L116: 8363.320372 | M116: 8760.863577 | N116: 11258.72175 | O116: 12634.0374 | P116: 14483.87717 | Q116: 8516.536372 | R116: 8914.079577 | S116: 11411.93775 | T116: 12787.2534 | U116: 14637.09317 | V116: 8137.528372 | W116: 8535.071577 | X116: 11253.99082 | Y116: 12686.6113 | Z116: 14613.52772 | AA116: 9310.66178 | AB116: 9774.462185 | AC116: 12688.63005 | AD116: 14293.16498 | AE116: 16451.31138 | AF116: 10430.63908 | AG116: 10861.31088 | AH116: 13567.3239 | AI116: 15057.24919 | AJ116: 17061.24227 | AK116: 7044.326961 | AL116: 7558.436917 | AM116: 7868.675684 | AN116: 8776.637097 | AO116: 9128.481541 | AP116: 10125.9427 | AQ116: 9206.178809 | AR116: 10444.64258 | AS116: 11897.87879 | AT116: 12575.71293 | AU116: 14413.38799 | AV116: 15812.09952 | AW116: 17169.31892 | AX116: 12731.2541 | AY116: 11444.30309 | AZ116: 14977.46864 | BA116: 12883.46782 | BB116: 10125.9427 | BC116: 9206.178809 | BD116: 10619.35291 | BE116: 11897.87879 | BF116: 12575.71293 | BG116: 14413.38799 | BH116: 15812.09952 | BI116: 17169.31892 | BJ116: 12672.71127 | BK116: 11423.61176 | BL116: 15333.23805 | BM116: 12883.46782 | BN116: 11667.61483 | BO116: 10812.4652 | BP116: 15466.38305 | BQ116: 10610.90153 | BR116: 13584.78715 | BS116: 11412.74206 | BT116: 12094.97544 | BU116: 14487.31491 | BV116: 15603.74152 | BW116: 17558.34614 | BX116: 19166.8644 | BY116: 20727.6667 | BZ116: 17287.01281 | CA116: 20989.86625 | CB116: 21618.87661 | CC116: 24324.80797 | CD116: 10734.01452 | CE116: 6955.263926 | CH116: 0 | CI116: =IF(CH116<>0,LOOKUP(,-CODE(CH$3:CH116),CH$3:CH116),CI115) -> 2 | CQ116: 0.648 | CR116: 194.4 | CS116: 1.8 | CT116: 2160 | CU116: ф | CV116: 2354.4
A117: 0 | B117: 0 | C117: =IF(B117<>0,LOOKUP(,-CODE(B$3:B117),B$3:B117),C116) -> 8 | D117: 8-180(950)-528 | E117: Тумба кухонная двухдверный с леграбоксом, Н - 140/180 мм, полка ЛДСП | F117: =IF(E117<>0,LOOKUP(,-CODE(E$3:E117),E$3:E117),F116) -> Тумба кухонная двухдверный с леграбоксом, Н - 140/180 мм, полка ЛДСП | H117: 1 | I117: 950 | J117: 720 | K117: 528 | L117: 8583.132101 | M117: 9002.909265 | N117: 11640.46868 | O117: 13092.70355 | P117: 15046.00192 | Q117: 8740.908101 | R117: 9160.685265 | S117: 11798.24468 | T117: 13250.47955 | U117: 15203.77792 | V117: 8350.620101 | W117: 8770.397265 | X117: 11640.7835 | Y117: 13153.52816 | Z117: 15188.21396 | AA117: 9566.787278 | AB117: 10056.5273 | AC117: 13133.67995 | AD117: 14827.95397 | AE117: 17106.80207 | AF117: 10716.03769 | AG117: 11170.79628 | AH117: 14028.15231 | AI117: 15601.40676 | AJ117: 17717.47999 | AK117: 7205.046705 | AL117: 7743.415479 | AM117: 8068.293188 | AN117: 9028.068667 | AO117: 9398.751715 | AP117: 10464.59174 | AQ117: 9493.386916 | AR117: 10801.116 | AS117: 12335.6294 | AT117: 13051.37373 | AU117: 14991.82704 | AV117: 16468.76628 | AW117: 17901.8928 | AX117: 13215.61407 | AY117: 11856.68593 | AZ117: 15587.45582 | BA117: 13376.34086 | BB117: 10464.59174 | BC117: 9493.386916 | BD117: 10985.59759 | BE117: 12335.6294 | BF117: 13051.37373 | BG117: 14991.82704 | BH117: 16468.76628 | BI117: 17901.8928 | BJ117: 13153.79703 | BK117: 11834.83737 | BL117: 15963.12285 | BM117: 13376.34086 | BN117: 12092.48714 | BO117: 11189.51035 | BP117: 16032.0595 | BQ117: 10976.67355 | BR117: 14116.88387 | BS117: 11823.35975 | BT117: 12543.74935 | BU117: 15069.88857 | BV117: 16248.75515 | BW117: 18312.67769 | BX117: 20011.15783 | BY117: 21659.25332 | BZ117: 18021.85908 | CA117: 21930.4266 | CB117: 22594.38198 | CC117: 25450.64286 | CD117: 11079.24046 | CE117: 7093.413035 | CH117: 0 | CI117: =IF(CH117<>0,LOOKUP(,-CODE(CH$3:CH117),CH$3:CH117),CI116) -> 2 | CQ117: 0.684 | CR117: 205.2 | CS117: 1.9 | CT117: 2280 | CU117: ф | CV117: 2485.2
A118: 0 | B118: 0 | C118: =IF(B118<>0,LOOKUP(,-CODE(B$3:B118),B$3:B118),C117) -> 8 | D118: 8-180(1000)-528 | E118: Тумба кухонная двухдверный с леграбоксом, Н - 140/180 мм, полка ЛДСП | F118: =IF(E118<>0,LOOKUP(,-CODE(E$3:E118),E$3:E118),F117) -> Тумба кухонная двухдверный с леграбоксом, Н - 140/180 мм, полка ЛДСП | H118: 1 | I118: 1000 | J118: 720 | K118: 528 | L118: 8802.943829 | M118: 9244.954954 | N118: 12022.21561 | O118: 13551.3697 | P118: 15608.12667 | Q118: 8965.279829 | R118: 9407.290954 | S118: 12184.55161 | T118: 13713.7057 | U118: 15770.46267 | V118: 8563.711829 | W118: 9005.722954 | X118: 12027.57617 | Y118: 13620.44501 | Z118: 15762.90019 | AA118: 9822.912777 | AB118: 10338.59242 | AC118: 13578.72985 | AD118: 15362.74296 | AE118: 17762.29275 | AF118: 11001.4363 | AG118: 11480.28169 | AH118: 14488.98073 | AI118: 16145.56433 | AJ118: 18373.71771 | AK118: 7365.766448 | AL118: 7928.394042 | AM118: 8267.910693 | AN118: 9279.500238 | AO118: 9669.02189 | AP118: 10803.24078 | AQ118: 9780.595023 | AR118: 11157.58942 | AS118: 12773.38001 | AT118: 13527.03453 | AU118: 15570.26608 | AV118: 17125.43304 | AW118: 18634.46669 | AX118: 13699.97404 | AY118: 12269.06877 | AZ118: 16197.443 | BA118: 13869.2139 | BB118: 10803.24078 | BC118: 9780.595023 | BD118: 11351.84228 | BE118: 12773.38001 | BF118: 13527.03453 | BG118: 15570.26608 | BH118: 17125.43304 | BI118: 18634.46669 | BJ118: 13634.88279 | BK118: 12246.06297 | BL118: 16593.00765 | BM118: 13869.2139 | BN118: 12517.35946 | BO118: 11566.5555 | BP118: 16597.73594 | BQ118: 11342.44556 | BR118: 14648.98059 | BS118: 12233.97743 | BT118: 12992.52327 | BU118: 15652.46223 | BV118: 16893.76877 | BW118: 19067.00925 | BX118: 20855.45126 | BY118: 22590.83995 | BZ118: 18756.70534 | CA118: 22870.98694 | CB118: 23569.88734 | CC118: 26576.47774 | CD118: 11424.4664 | CE118: 7231.562144 | CH118: 0 | CI118: =IF(CH118<>0,LOOKUP(,-CODE(CH$3:CH118),CH$3:CH118),CI117) -> 2 | CQ118: 0.72 | CR118: 216 | CS118: 2 | CT118: 2400 | CU118: ф | CV118: 2616
A119: 12 | B119: 9 | C119: =IF(B119<>0,LOOKUP(,-CODE(B$3:B119),B$3:B119),C118) -> 9 | D119: 9(300)-528 | E119: Тумба кухонная однодверный со стеклом, полка ЛДСП | F119: =IF(E119<>0,LOOKUP(,-CODE(E$3:E119),E$3:E119),F118) -> Тумба кухонная однодверный со стеклом, полка ЛДСП | H119: 1 | I119: 300 | J119: 720 | K119: 528 | L119: 3116.153129 | M119: 3116.153129 | N119: 3116.153129 | O119: 3116.153129 | P119: 3116.153129 | Q119: 3294.233129 | R119: 3294.233129 | S119: 3294.233129 | T119: 3294.233129 | U119: 3294.233129 | V119: 0 | W119: 0 | X119: 0 | Y119: 0 | Z119: 0 | AA119: 0 | AB119: 0 | AC119: 0 | AD119: 0 | AE119: 0 | AF119: 0 | AG119: 0 | AH119: 0 | AI119: 0 | AJ119: 0 | AK119: 2283.862522 | AL119: 2438.59848 | AM119: 2531.973627 | AN119: 2838.735888 | AO119: 2952.981376 | AP119: 3332.748382 | AQ119: 3025.905377 | AR119: 3439.070051 | AS119: 3923.88509 | AT119: 4150.017763 | AU119: 4763.085689 | AV119: 5229.710718 | AW119: 5682.493529 | AX119: 4201.907951 | AY119: 3772.567417 | AZ119: 0 | BA119: 0 | BB119: 3332.748382 | BC119: 3025.905377 | BD119: 3497.355271 | BE119: 3923.88509 | BF119: 4150.017763 | BG119: 4763.085689 | BH119: 5229.710718 | BI119: 5682.493529 | BJ119: 4182.37744 | BK119: 3765.664569 | BL119: 0 | BM119: 0 | BN119: 3847.066587 | BO119: 3561.779583 | BP119: 5058.957017 | BQ119: 0 | BR119: 0 | BS119: 3762.038324 | BT119: 0 | BU119: 0 | BV119: 0 | BW119: 0 | BX119: 0 | BY119: 0 | BZ119: 5803.757609 | CA119: 7065.335849 | CB119: 7279.642409 | CC119: 8201.564969 | CD119: 0 | CE119: 2207.269289 | CH119: 1 | CI119: =IF(CH119<>0,LOOKUP(,-CODE(CH$3:CH119),CH$3:CH119),CI118) -> 1 | CQ119: Ф | CR119: Ф | CS119: Ф | CT119: Ф | CU119: ф | CV119: Ф
A120: 0 | B120: 0 | C120: =IF(B120<>0,LOOKUP(,-CODE(B$3:B120),B$3:B120),C119) -> 9 | D120: 9(350)-528 | E120: Тумба кухонная однодверный со стеклом, полка ЛДСП | F120: =IF(E120<>0,LOOKUP(,-CODE(E$3:E120),E$3:E120),F119) -> Тумба кухонная однодверный со стеклом, полка ЛДСП | H120: 1 | I120: 350 | J120: 720 | K120: 528 | L120: 3303.926904 | M120: 3303.926904 | N120: 3303.926904 | O120: 3303.926904 | P120: 3303.926904 | Q120: 3490.406904 | R120: 3490.406904 | S120: 3490.406904 | T120: 3490.406904 | U120: 3490.406904 | V120: 0 | W120: 0 | X120: 0 | Y120: 0 | Z120: 0 | AA120: 0 | AB120: 0 | AC120: 0 | AD120: 0 | AE120: 0 | AF120: 0 | AG120: 0 | AH120: 0 | AI120: 0 | AJ120: 0 | AK120: 2456.688211 | AL120: 2630.912325 | AM120: 2736.047566 | AN120: 3095.961735 | AO120: 3228.21487 | AP120: 3690.299702 | AQ120: 3331.799625 | AR120: 3814.520642 | AS120: 4380.954374 | AT120: 4645.15652 | AU120: 5361.434535 | AV120: 5906.615966 | AW120: 6435.62484 | AX120: 4705.78243 | AY120: 4204.162346 | AZ120: 0 | BA120: 0 | BB120: 3690.299702 | BC120: 3331.799625 | BD120: 3882.618188 | BE120: 4380.954374 | BF120: 4645.15652 | BG120: 5361.434535 | BH120: 5906.615966 | BI120: 6435.62484 | BJ120: 4682.963954 | BK120: 4196.097402 | BL120: 0 | BM120: 0 | BN120: 4291.203463 | BO120: 3957.888344 | BP120: 5542.277872 | BQ120: 0 | BR120: 0 | BS120: 4191.860677 | BT120: 0 | BU120: 0 | BV120: 0 | BW120: 0 | BX120: 0 | BY120: 0 | BZ120: 6570.673464 | CA120: 8042.514744 | CB120: 8292.539064 | CC120: 9368.115384 | CD120: 0 | CE120: 2334.923064 | CH120: 0 | CI120: =IF(CH120<>0,LOOKUP(,-CODE(CH$3:CH120),CH$3:CH120),CI119) -> 1 | CQ120: Ф | CR120: Ф | CS120: Ф | CT120: Ф | CU120: ф | CV120: Ф
A121: 0 | B121: 0 | C121: =IF(B121<>0,LOOKUP(,-CODE(B$3:B121),B$3:B121),C120) -> 9 | D121: 9(400)-528 | E121: Тумба кухонная однодверный со стеклом, полка ЛДСП | F121: =IF(E121<>0,LOOKUP(,-CODE(E$3:E121),E$3:E121),F120) -> Тумба кухонная однодверный со стеклом, полка ЛДСП | H121: 1 | I121: 400 | J121: 720 | K121: 528 | L121: 3491.700679 | M121: 3491.700679 | N121: 3491.700679 | O121: 3491.700679 | P121: 3491.700679 | Q121: 3686.580679 | R121: 3686.580679 | S121: 3686.580679 | T121: 3686.580679 | U121: 3686.580679 | V121: 0 | W121: 0 | X121: 0 | Y121: 0 | Z121: 0 | AA121: 0 | AB121: 0 | AC121: 0 | AD121: 0 | AE121: 0 | AF121: 0 | AG121: 0 | AH121: 0 | AI121: 0 | AJ121: 0 | AK121: 2629.5139 | AL121: 2823.22617 | AM121: 2940.121505 | AN121: 3353.187582 | AO121: 3503.448365 | AP121: 4047.851022 | AQ121: 3637.693873 | AR121: 4189.971232 | AS121: 4838.023658 | AT121: 5140.295278 | AU121: 5959.783382 | AV121: 6583.521215 | AW121: 7188.756151 | AX121: 5209.65691 | AY121: 4635.757274 | AZ121: 0 | BA121: 0 | BB121: 4047.851022 | BC121: 3637.693873 | BD121: 4267.881105 | BE121: 4838.023658 | BF121: 5140.295278 | BG121: 5959.783382 | BH121: 6583.521215 | BI121: 7188.756151 | BJ121: 5183.550469 | BK121: 4626.530234 | BL121: 0 | BM121: 0 | BN121: 4735.340339 | BO121: 4353.997105 | BP121: 6025.598726 | BQ121: 0 | BR121: 0 | BS121: 4621.683031 | BT121: 0 | BU121: 0 | BV121: 0 | BW121: 0 | BX121: 0 | BY121: 0 | BZ121: 7135.620679 | CA121: 8753.028679 | CB121: 9027.780679 | CC121: 10209.73268 | CD121: 0 | CE121: 2462.576839 | CH121: 0 | CI121: =IF(CH121<>0,LOOKUP(,-CODE(CH$3:CH121),CH$3:CH121),CI120) -> 1 | CQ121: Ф | CR121: Ф | CS121: Ф | CT121: Ф | CU121: ф | CV121: Ф
A122: 0 | B122: 0 | C122: =IF(B122<>0,LOOKUP(,-CODE(B$3:B122),B$3:B122),C121) -> 9 | D122: 9(450)-528 | E122: Тумба кухонная однодверный со стеклом, полка ЛДСП | F122: =IF(E122<>0,LOOKUP(,-CODE(E$3:E122),E$3:E122),F121) -> Тумба кухонная однодверный со стеклом, полка ЛДСП | H122: 1 | I122: 450 | J122: 720 | K122: 528 | L122: 3679.474455 | M122: 3679.474455 | N122: 3679.474455 | O122: 3679.474455 | P122: 3679.474455 | Q122: 3882.754455 | R122: 3882.754455 | S122: 3882.754455 | T122: 3882.754455 | U122: 3882.754455 | V122: 0 | W122: 0 | X122: 0 | Y122: 0 | Z122: 0 | AA122: 0 | AB122: 0 | AC122: 0 | AD122: 0 | AE122: 0 | AF122: 0 | AG122: 0 | AH122: 0 | AI122: 0 | AJ122: 0 | AK122: 2802.339589 | AL122: 3015.540014 | AM122: 3144.195444 | AN122: 3610.413429 | AO122: 3778.68186 | AP122: 4405.402341 | AQ122: 3943.588121 | AR122: 4565.421823 | AS122: 5295.092942 | AT122: 5635.434036 | AU122: 6558.132228 | AV122: 7260.426463 | AW122: 7941.887462 | AX122: 5713.531389 | AY122: 5067.352202 | AZ122: 0 | BA122: 0 | BB122: 4405.402341 | BC122: 3943.588121 | BD122: 4653.144022 | BE122: 5295.092942 | BF122: 5635.434036 | BG122: 6558.132228 | BH122: 7260.426463 | BI122: 7941.887462 | BJ122: 5684.136983 | BK122: 5056.963067 | BL122: 0 | BM122: 0 | BN122: 5179.477215 | BO122: 4750.105866 | BP122: 6508.91958 | BQ122: 0 | BR122: 0 | BS122: 5051.505384 | BT122: 0 | BU122: 0 | BV122: 0 | BW122: 0 | BX122: 0 | BY122: 0 | BZ122: 7877.290455 | CA122: 9696.874455 | CB122: 10005.97045 | CC122: 11335.66645 | CD122: 0 | CE122: 2590.230615 | CH122: 0 | CI122: =IF(CH122<>0,LOOKUP(,-CODE(CH$3:CH122),CH$3:CH122),CI121) -> 1 | CQ122: Ф | CR122: Ф | CS122: Ф | CT122: Ф | CU122: ф | CV122: Ф
A123: 0 | B123: 0 | C123: =IF(B123<>0,LOOKUP(,-CODE(B$3:B123),B$3:B123),C122) -> 9 | D123: 9(500)-528 | E123: Тумба кухонная однодверный со стеклом, полка ЛДСП | F123: =IF(E123<>0,LOOKUP(,-CODE(E$3:E123),E$3:E123),F122) -> Тумба кухонная однодверный со стеклом, полка ЛДСП | H123: 1 | I123: 500 | J123: 720 | K123: 528 | L123: 3867.24823 | M123: 3867.24823 | N123: 3867.24823 | O123: 3867.24823 | P123: 3867.24823 | Q123: 4078.92823 | R123: 4078.92823 | S123: 4078.92823 | T123: 4078.92823 | U123: 4078.92823 | V123: 0 | W123: 0 | X123: 0 | Y123: 0 | Z123: 0 | AA123: 0 | AB123: 0 | AC123: 0 | AD123: 0 | AE123: 0 | AF123: 0 | AG123: 0 | AH123: 0 | AI123: 0 | AJ123: 0 | AK123: 2975.165278 | AL123: 3207.853859 | AM123: 3348.269383 | AN123: 3867.639276 | AO123: 4053.915355 | AP123: 4762.953661 | AQ123: 4249.482369 | AR123: 4940.872414 | AS123: 5752.162226 | AT123: 6130.572793 | AU123: 7156.481074 | AV123: 7937.331711 | AW123: 8695.018772 | AX123: 6217.405868 | AY123: 5498.94713 | AZ123: 0 | BA123: 0 | BB123: 4762.953661 | BC123: 4249.482369 | BD123: 5038.406939 | BE123: 5752.162226 | BF123: 6130.572793 | BG123: 7156.481074 | BH123: 7937.331711 | BI123: 8695.018772 | BJ123: 6184.723498 | BK123: 5487.395899 | BL123: 0 | BM123: 0 | BN123: 5623.614091 | BO123: 5146.214627 | BP123: 6992.240434 | BQ123: 0 | BR123: 0 | BS123: 5481.327738 | BT123: 0 | BU123: 0 | BV123: 0 | BW123: 0 | BX123: 0 | BY123: 0 | BZ123: 8618.96023 | CA123: 10640.72023 | CB123: 10984.16023 | CC123: 12461.60023 | CD123: 0 | CE123: 2717.88439 | CH123: 0 | CI123: =IF(CH123<>0,LOOKUP(,-CODE(CH$3:CH123),CH$3:CH123),CI122) -> 1 | CQ123: Ф | CR123: Ф | CS123: Ф | CT123: Ф | CU123: ф | CV123: Ф
A124: 0 | B124: 0 | C124: =IF(B124<>0,LOOKUP(,-CODE(B$3:B124),B$3:B124),C123) -> 9 | D124: 9(550)-528 | E124: Тумба кухонная однодверный со стеклом, полка ЛДСП | F124: =IF(E124<>0,LOOKUP(,-CODE(E$3:E124),E$3:E124),F123) -> Тумба кухонная однодверный со стеклом, полка ЛДСП | H124: 1 | I124: 550 | J124: 720 | K124: 528 | L124: 4055.022006 | M124: 4055.022006 | N124: 4055.022006 | O124: 4055.022006 | P124: 4055.022006 | Q124: 4275.102006 | R124: 4275.102006 | S124: 4275.102006 | T124: 4275.102006 | U124: 4275.102006 | V124: 0 | W124: 0 | X124: 0 | Y124: 0 | Z124: 0 | AA124: 0 | AB124: 0 | AC124: 0 | AD124: 0 | AE124: 0 | AF124: 0 | AG124: 0 | AH124: 0 | AI124: 0 | AJ124: 0 | AK124: 3147.990967 | AL124: 3400.167704 | AM124: 3552.343321 | AN124: 4124.865122 | AO124: 4329.148849 | AP124: 5120.504981 | AQ124: 4555.376617 | AR124: 5316.323004 | AS124: 6209.231511 | AT124: 6625.711551 | AU124: 7754.82992 | AV124: 8614.236959 | AW124: 9448.150083 | AX124: 6721.280348 | AY124: 5930.542059 | AZ124: 0 | BA124: 0 | BB124: 5120.504981 | BC124: 4555.376617 | BD124: 5423.669856 | BE124: 6209.231511 | BF124: 6625.711551 | BG124: 7754.82992 | BH124: 8614.236959 | BI124: 9448.150083 | BJ124: 6685.310013 | BK124: 5917.828732 | BL124: 0 | BM124: 0 | BN124: 6067.750967 | BO124: 5542.323388 | BP124: 7475.561289 | BQ124: 0 | BR124: 0 | BS124: 5911.150092 | BT124: 0 | BU124: 0 | BV124: 0 | BW124: 0 | BX124: 0 | BY124: 0 | BZ124: 9360.630006 | CA124: 11584.56601 | CB124: 11962.35001 | CC124: 13587.53401 | CD124: 0 | CE124: 2845.538166 | CH124: 0 | CI124: =IF(CH124<>0,LOOKUP(,-CODE(CH$3:CH124),CH$3:CH124),CI123) -> 1 | CQ124: Ф | CR124: Ф | CS124: Ф | CT124: Ф | CU124: ф | CV124: Ф
A125: 0 | B125: 0 | C125: =IF(B125<>0,LOOKUP(,-CODE(B$3:B125),B$3:B125),C124) -> 9 | D125: 9(600)-528 | E125: Тумба кухонная однодверный со стеклом, полка ЛДСП | F125: =IF(E125<>0,LOOKUP(,-CODE(E$3:E125),E$3:E125),F124) -> Тумба кухонная однодверный со стеклом, полка ЛДСП | H125: 1 | I125: 600 | J125: 720 | K125: 528 | L125: 4242.795781 | M125: 4242.795781 | N125: 4242.795781 | O125: 4242.795781 | P125: 4242.795781 | Q125: 4471.275781 | R125: 4471.275781 | S125: 4471.275781 | T125: 4471.275781 | U125: 4471.275781 | V125: 0 | W125: 0 | X125: 0 | Y125: 0 | Z125: 0 | AA125: 0 | AB125: 0 | AC125: 0 | AD125: 0 | AE125: 0 | AF125: 0 | AG125: 0 | AH125: 0 | AI125: 0 | AJ125: 0 | AK125: 3320.816656 | AL125: 3592.481549 | AM125: 3756.41726 | AN125: 4382.090969 | AO125: 4604.382344 | AP125: 5478.0563 | AQ125: 4861.270865 | AR125: 5691.773595 | AS125: 6666.300795 | AT125: 7120.850308 | AU125: 8353.178766 | AV125: 9291.142208 | AW125: 10201.28139 | AX125: 7225.154827 | AY125: 6362.136987 | AZ125: 0 | BA125: 0 | BB125: 5478.0563 | BC125: 4861.270865 | BD125: 5808.932773 | BE125: 6666.300795 | BF125: 7120.850308 | BG125: 8353.178766 | BH125: 9291.142208 | BI125: 10201.28139 | BJ125: 7185.896527 | BK125: 6348.261565 | BL125: 0 | BM125: 0 | BN125: 6511.887843 | BO125: 5938.432149 | BP125: 7958.882143 | BQ125: 0 | BR125: 0 | BS125: 6340.972445 | BT125: 0 | BU125: 0 | BV125: 0 | BW125: 0 | BX125: 0 | BY125: 0 | BZ125: 10102.29978 | CA125: 12528.41178 | CB125: 12940.53978 | CC125: 14713.46778 | CD125: 0 | CE125: 2973.191941 | CH125: 0 | CI125: =IF(CH125<>0,LOOKUP(,-CODE(CH$3:CH125),CH$3:CH125),CI124) -> 1 | CQ125: Ф | CR125: Ф | CS125: Ф | CT125: Ф | CU125: ф | CV125: Ф
A126: 13 | B126: 10 | C126: =IF(B126<>0,LOOKUP(,-CODE(B$3:B126),B$3:B126),C125) -> 10 | D126: 10(600)-528 | E126: Тумба кухонная двухдверный со стеклом, полка ЛДСП | F126: =IF(E126<>0,LOOKUP(,-CODE(E$3:E126),E$3:E126),F125) -> Тумба кухонная двухдверный со стеклом, полка ЛДСП | H126: 1 | I126: 600 | J126: 720 | K126: 528 | L126: 5286.033781 | M126: 5286.033781 | N126: 5286.033781 | O126: 5286.033781 | P126: 5286.033781 | Q126: 5158.833781 | R126: 5158.833781 | S126: 5158.833781 | T126: 5158.833781 | U126: 5158.833781 | V126: 0 | W126: 0 | X126: 0 | Y126: 0 | Z126: 0 | AA126: 0 | AB126: 0 | AC126: 0 | AD126: 0 | AE126: 0 | AF126: 0 | AG126: 0 | AH126: 0 | AI126: 0 | AJ126: 0 | AK126: 3639.224099 | AL126: 3949.865305 | AM126: 4137.321204 | AN126: 4750.576925 | AO126: 4979.286301 | AP126: 5735.544288 | AQ126: 5121.858277 | AR126: 5948.187626 | AS126: 6917.817704 | AT126: 7370.083049 | AU126: 8596.218902 | AV126: 9529.468959 | AW126: 10435.03458 | AX126: 7473.863425 | AY126: 6615.182358 | AZ126: 0 | BA126: 0 | BB126: 5735.544288 | BC126: 5121.858277 | BD126: 6064.758065 | BE126: 6917.817704 | BF126: 7370.083049 | BG126: 8596.218902 | BH126: 9529.468959 | BI126: 10435.03458 | BJ126: 7434.802403 | BK126: 6601.376661 | BL126: 0 | BM126: 0 | BN126: 6764.180697 | BO126: 6193.60669 | BP126: 9187.961558 | BQ126: 0 | BR126: 0 | BS126: 6594.124171 | BT126: 0 | BU126: 0 | BV126: 0 | BW126: 0 | BX126: 0 | BY126: 0 | BZ126: 10677.56274 | CA126: 13200.71922 | CB126: 13629.33234 | CC126: 15473.17746 | CD126: 0 | CE126: 3569.741941 | CH126: 2 | CI126: =IF(CH126<>0,LOOKUP(,-CODE(CH$3:CH126),CH$3:CH126),CI125) -> 2 | CQ126: Ф | CR126: Ф | CS126: Ф | CT126: Ф | CU126: ф | CV126: Ф
A127: 0 | B127: 0 | C127: =IF(B127<>0,LOOKUP(,-CODE(B$3:B127),B$3:B127),C126) -> 10 | D127: 10(650)-528 | E127: Тумба кухонная двухдверный со стеклом, полка ЛДСП | F127: =IF(E127<>0,LOOKUP(,-CODE(E$3:E127),E$3:E127),F126) -> Тумба кухонная двухдверный со стеклом, полка ЛДСП | H127: 1 | I127: 650 | J127: 720 | K127: 528 | L127: 5473.807556 | M127: 5473.807556 | N127: 5473.807556 | O127: 5473.807556 | P127: 5473.807556 | Q127: 5355.007556 | R127: 5355.007556 | S127: 5355.007556 | T127: 5355.007556 | U127: 5355.007556 | V127: 0 | W127: 0 | X127: 0 | Y127: 0 | Z127: 0 | AA127: 0 | AB127: 0 | AC127: 0 | AD127: 0 | AE127: 0 | AF127: 0 | AG127: 0 | AH127: 0 | AI127: 0 | AJ127: 0 | AK127: 3812.049788 | AL127: 4142.179149 | AM127: 4341.395143 | AN127: 5007.802772 | AO127: 5254.519796 | AP127: 6093.095607 | AQ127: 5427.752525 | AR127: 6323.638217 | AS127: 7374.886988 | AT127: 7865.221807 | AU127: 9194.567748 | AV127: 10206.37421 | AW127: 11188.16589 | AX127: 7977.737904 | AY127: 7046.777286 | AZ127: 0 | BA127: 0 | BB127: 6093.095607 | BC127: 5427.752525 | BD127: 6450.020982 | BE127: 7374.886988 | BF127: 7865.221807 | BG127: 9194.567748 | BH127: 10206.37421 | BI127: 11188.16589 | BJ127: 7935.388917 | BK127: 7031.809494 | BL127: 0 | BM127: 0 | BN127: 7208.317573 | BO127: 6589.715451 | BP127: 9671.282412 | BQ127: 0 | BR127: 0 | BS127: 7023.946524 | BT127: 0 | BU127: 0 | BV127: 0 | BW127: 0 | BX127: 0 | BY127: 0 | BZ127: 11444.4786 | CA127: 14177.89812 | CB127: 14642.229 | CC127: 16639.72788 | CD127: 0 | CE127: 3697.395716 | CH127: 0 | CI127: =IF(CH127<>0,LOOKUP(,-CODE(CH$3:CH127),CH$3:CH127),CI126) -> 2 | CQ127: Ф | CR127: Ф | CS127: Ф | CT127: Ф | CU127: ф | CV127: Ф
A128: 0 | B128: 0 | C128: =IF(B128<>0,LOOKUP(,-CODE(B$3:B128),B$3:B128),C127) -> 10 | D128: 10(700)-528 | E128: Тумба кухонная двухдверный со стеклом, полка ЛДСП | F128: =IF(E128<>0,LOOKUP(,-CODE(E$3:E128),E$3:E128),F127) -> Тумба кухонная двухдверный со стеклом, полка ЛДСП | H128: 1 | I128: 700 | J128: 720 | K128: 528 | L128: 5661.581332 | M128: 5661.581332 | N128: 5661.581332 | O128: 5661.581332 | P128: 5661.581332 | Q128: 5551.181332 | R128: 5551.181332 | S128: 5551.181332 | T128: 5551.181332 | U128: 5551.181332 | V128: 0 | W128: 0 | X128: 0 | Y128: 0 | Z128: 0 | AA128: 0 | AB128: 0 | AC128: 0 | AD128: 0 | AE128: 0 | AF128: 0 | AG128: 0 | AH128: 0 | AI128: 0 | AJ128: 0 | AK128: 3984.875477 | AL128: 4334.492994 | AM128: 4545.469082 | AN128: 5265.028618 | AO128: 5529.75329 | AP128: 6450.646927 | AQ128: 5733.646773 | AR128: 6699.088807 | AS128: 7831.956272 | AT128: 8360.360564 | AU128: 9792.916594 | AV128: 10883.27946 | AW128: 11941.2972 | AX128: 8481.612384 | AY128: 7478.372215 | AZ128: 0 | BA128: 0 | BB128: 6450.646927 | BC128: 5733.646773 | BD128: 6835.283899 | BE128: 7831.956272 | BF128: 8360.360564 | BG128: 9792.916594 | BH128: 10883.27946 | BI128: 11941.2972 | BJ128: 8435.975432 | BK128: 7462.242327 | BL128: 0 | BM128: 0 | BN128: 7652.454449 | BO128: 6985.824212 | BP128: 10154.60327 | BQ128: 0 | BR128: 0 | BS128: 7453.768878 | BT128: 0 | BU128: 0 | BV128: 0 | BW128: 0 | BX128: 0 | BY128: 0 | BZ128: 12211.39445 | CA128: 15155.07701 | CB128: 15655.12565 | CC128: 17806.27829 | CD128: 0 | CE128: 3825.049492 | CH128: 0 | CI128: =IF(CH128<>0,LOOKUP(,-CODE(CH$3:CH128),CH$3:CH128),CI127) -> 2 | CQ128: Ф | CR128: Ф | CS128: Ф | CT128: Ф | CU128: ф | CV128: Ф
A129: 0 | B129: 0 | C129: =IF(B129<>0,LOOKUP(,-CODE(B$3:B129),B$3:B129),C128) -> 10 | D129: 10(750)-528 | E129: Тумба кухонная двухдверный со стеклом, полка ЛДСП | F129: =IF(E129<>0,LOOKUP(,-CODE(E$3:E129),E$3:E129),F128) -> Тумба кухонная двухдверный со стеклом, полка ЛДСП | H129: 1 | I129: 750 | J129: 720 | K129: 528 | L129: 5849.355107 | M129: 5849.355107 | N129: 5849.355107 | O129: 5849.355107 | P129: 5849.355107 | Q129: 5747.355107 | R129: 5747.355107 | S129: 5747.355107 | T129: 5747.355107 | U129: 5747.355107 | V129: 0 | W129: 0 | X129: 0 | Y129: 0 | Z129: 0 | AA129: 0 | AB129: 0 | AC129: 0 | AD129: 0 | AE129: 0 | AF129: 0 | AG129: 0 | AH129: 0 | AI129: 0 | AJ129: 0 | AK129: 4157.701166 | AL129: 4526.806839 | AM129: 4749.543021 | AN129: 5522.254465 | AO129: 5804.986785 | AP129: 6808.198247 | AQ129: 6039.541021 | AR129: 7074.539398 | AS129: 8289.025556 | AT129: 8855.499322 | AU129: 10391.26544 | AV129: 11560.1847 | AW129: 12694.42851 | AX129: 8985.486863 | AY129: 7909.967143 | AZ129: 0 | BA129: 0 | BB129: 6808.198247 | BC129: 6039.541021 | BD129: 7220.546816 | BE129: 8289.025556 | BF129: 8855.499322 | BG129: 10391.26544 | BH129: 11560.1847 | BI129: 12694.42851 | BJ129: 8936.561947 | BK129: 7892.675159 | BL129: 0 | BM129: 0 | BN129: 8096.591325 | BO129: 7381.932973 | BP129: 10637.92412 | BQ129: 0 | BR129: 0 | BS129: 7883.591232 | BT129: 0 | BU129: 0 | BV129: 0 | BW129: 0 | BX129: 0 | BY129: 0 | BZ129: 12978.31031 | CA129: 16132.25591 | CB129: 16668.02231 | CC129: 18972.82871 | CD129: 0 | CE129: 3952.703267 | CH129: 0 | CI129: =IF(CH129<>0,LOOKUP(,-CODE(CH$3:CH129),CH$3:CH129),CI128) -> 2 | CQ129: Ф | CR129: Ф | CS129: Ф | CT129: Ф | CU129: ф | CV129: Ф
A130: 0 | B130: 0 | C130: =IF(B130<>0,LOOKUP(,-CODE(B$3:B130),B$3:B130),C129) -> 10 | D130: 10(800)-528 | E130: Тумба кухонная двухдверный со стеклом, полка ЛДСП | F130: =IF(E130<>0,LOOKUP(,-CODE(E$3:E130),E$3:E130),F129) -> Тумба кухонная двухдверный со стеклом, полка ЛДСП | H130: 1 | I130: 800 | J130: 720 | K130: 528 | L130: 6037.128882 | M130: 6037.128882 | N130: 6037.128882 | O130: 6037.128882 | P130: 6037.128882 | Q130: 5943.528882 | R130: 5943.528882 | S130: 5943.528882 | T130: 5943.528882 | U130: 5943.528882 | V130: 0 | W130: 0 | X130: 0 | Y130: 0 | Z130: 0 | AA130: 0 | AB130: 0 | AC130: 0 | AD130: 0 | AE130: 0 | AF130: 0 | AG130: 0 | AH130: 0 | AI130: 0 | AJ130: 0 | AK130: 4330.526855 | AL130: 4719.120684 | AM130: 4953.61696 | AN130: 5779.480312 | AO130: 6080.22028 | AP130: 7165.749566 | AQ130: 6345.435269 | AR130: 7449.989988 | AS130: 8746.09484 | AT130: 9350.638079 | AU130: 10989.61429 | AV130: 12237.08995 | AW130: 13447.55983 | AX130: 9489.361343 | AY130: 8341.562071 | AZ130: 0 | BA130: 0 | BB130: 7165.749566 | BC130: 6345.435269 | BD130: 7605.809733 | BE130: 8746.09484 | BF130: 9350.638079 | BG130: 10989.61429 | BH130: 12237.08995 | BI130: 13447.55983 | BJ130: 9437.148461 | BK130: 8323.107992 | BL130: 0 | BM130: 0 | BN130: 8540.728201 | BO130: 7778.041734 | BP130: 11121.24498 | BQ130: 0 | BR130: 0 | BS130: 8313.413585 | BT130: 0 | BU130: 0 | BV130: 0 | BW130: 0 | BX130: 0 | BY130: 0 | BZ130: 13341.28888 | CA130: 16576.10488 | CB130: 17125.60888 | CC130: 19489.51288 | CD130: 0 | CE130: 4080.357042 | CH130: 0 | CI130: =IF(CH130<>0,LOOKUP(,-CODE(CH$3:CH130),CH$3:CH130),CI129) -> 2 | CQ130: Ф | CR130: Ф | CS130: Ф | CT130: Ф | CU130: ф | CV130: Ф
A131: 0 | B131: 0 | C131: =IF(B131<>0,LOOKUP(,-CODE(B$3:B131),B$3:B131),C130) -> 10 | D131: 10(850)-528 | E131: Тумба кухонная двухдверный со стеклом, полка ЛДСП | F131: =IF(E131<>0,LOOKUP(,-CODE(E$3:E131),E$3:E131),F130) -> Тумба кухонная двухдверный со стеклом, полка ЛДСП | H131: 1 | I131: 850 | J131: 720 | K131: 528 | L131: 6224.902658 | M131: 6224.902658 | N131: 6224.902658 | O131: 6224.902658 | P131: 6224.902658 | Q131: 6139.702658 | R131: 6139.702658 | S131: 6139.702658 | T131: 6139.702658 | U131: 6139.702658 | V131: 0 | W131: 0 | X131: 0 | Y131: 0 | Z131: 0 | AA131: 0 | AB131: 0 | AC131: 0 | AD131: 0 | AE131: 0 | AF131: 0 | AG131: 0 | AH131: 0 | AI131: 0 | AJ131: 0 | AK131: 4503.352544 | AL131: 4911.434529 | AM131: 5157.690899 | AN131: 6036.706159 | AO131: 6355.453775 | AP131: 7523.300886 | AQ131: 6651.329517 | AR131: 7825.440579 | AS131: 9203.164124 | AT131: 9845.776837 | AU131: 11587.96313 | AV131: 12913.9952 | AW131: 14200.69114 | AX131: 9993.235822 | AY131: 8773.156999 | AZ131: 0 | BA131: 0 | BB131: 7523.300886 | BC131: 6651.329517 | BD131: 7991.07265 | BE131: 9203.164124 | BF131: 9845.776837 | BG131: 11587.96313 | BH131: 12913.9952 | BI131: 14200.69114 | BJ131: 9937.734976 | BK131: 8753.540824 | BL131: 0 | BM131: 0 | BN131: 8984.865077 | BO131: 8174.150495 | BP131: 11604.56583 | BQ131: 0 | BR131: 0 | BS131: 8743.235939 | BT131: 0 | BU131: 0 | BV131: 0 | BW131: 0 | BX131: 0 | BY131: 0 | BZ131: 14082.95866 | CA131: 17519.95066 | CB131: 18103.79866 | CC131: 20615.44666 | CD131: 0 | CE131: 4208.010818 | CH131: 0 | CI131: =IF(CH131<>0,LOOKUP(,-CODE(CH$3:CH131),CH$3:CH131),CI130) -> 2 | CQ131: Ф | CR131: Ф | CS131: Ф | CT131: =IFERROR($CS131*$CT$1,"Ф") -> Ф | CU131: ф | CV131: Ф
